Workbook

Sheet SN005
A7: ügyfél név | D7: eltelt évek | E7: aktuális érték | F7: lojalitási számla értéke | G7: jóváírt bónusz értéke | H7: adójóváírás számla értéke | I7: felvehető összeg összesen (nyugdíjcélú) | J7: nyugdíjcélú eseti befizetés | K7: szabad felhasználású megtakarítás értéke (100%-ban felvehető) | L7: szabad felhasználású eseti befizetés
A8: technikai kezdet | B8: 2018-02-01
A9: bizt. szül. dátuma | B9: 1976-03-25 | D9: 1 | E9: =oRes!B7+oRes!D7+oRes!E7+oRes!G7 -> 80997 | F9: =oRes!D7 -> 7278 | H9: =oRes!G7 -> 0 | I9: =oRes!B7+oRes!E7+oRes!G7+IF(D9=ROUNDUP(Term2/12,0),oRes!D7,0) -> 73719 | J9: 0 | K9: =IF(oRes!F7=0,"",oRes!F7) ->  | L9: 0
A10: belépési kor | B10: =Age -> 42 | D10: 2 | E10: =oRes!B8+oRes!D8+oRes!E8+oRes!G8 -> 353212 | F10: =oRes!D8 -> 15058 | H10: =oRes!G8 -> 67341 | I10: =oRes!B8+oRes!E8+oRes!G8+IF(D10=ROUNDUP(Term2/12,0),oRes!D8,0) -> 338154 | J10: 0 | K10: =IF(oRes!F8=0,"",oRes!F8) ->  | L10: 0
A11: lejárat dátuma | B11: =PolEnd -> 2041-03-25 | D11: 3 | E11: =oRes!B9+oRes!D9+oRes!E9+oRes!G9 -> 778491 | F11: =oRes!D9 -> 23376 | H11: =oRes!G9 -> 146044 | I11: =oRes!B9+oRes!E9+oRes!G9+IF(D11=ROUNDUP(Term2/12,0),oRes!D9,0) -> 755115 | J11: 0 | K11: =IF(oRes!F9=0,"",oRes!F9) ->  | L11: 0
A12: tartam (év-hó-nap) | B12: =sTerm -> 23-1-24 | D12: 4 | E12: =oRes!B10+oRes!D10+oRes!E10+oRes!G10 -> 1310491 | F12: =oRes!D10 -> 56920 | H12: =oRes!G10 -> 230773 | I12: =oRes!B10+oRes!E10+oRes!G10+IF(D12=ROUNDUP(Term2/12,0),oRes!D10,0) -> 1253571 | J12: 0 | K12: =IF(oRes!F10=0,"",oRes!F10) ->  | L12: 0
A13: díjfizetési mód | B13: csoportos | D13: 5 | E13: =oRes!B11+oRes!D11+oRes!E11+oRes!G11 -> 1881560 | F13: =oRes!D11 -> 91551 | H13: =oRes!G11 -> 321893 | I13: =oRes!B11+oRes!E11+oRes!G11+IF(D13=ROUNDUP(Term2/12,0),oRes!D11,0) -> 1790009 | J13: 0 | K13: =IF(oRes!F11=0,"",oRes!F11) ->  | L13: 0
A14: díjfizetési gyakoriság | B14: havi | D14: 6 | E14: =oRes!B12+oRes!D12+oRes!E12+oRes!G12 -> 2493992 | F14: =oRes!D12 -> 127289 | H14: =oRes!G12 -> 419782 | I14: =oRes!B12+oRes!E12+oRes!G12+IF(D14=ROUNDUP(Term2/12,0),oRes!D12,0) -> 2366703 | J14: 0 | K14: =IF(oRes!F12=0,"",oRes!F12) ->  | L14: 0
A15: gyakoriság szerinti díj | B15: 30000 | D15: 7 | E15: =oRes!B13+oRes!D13+oRes!E13+oRes!G13 -> 3150260 | F15: =oRes!D13 -> 164180 | H15: =oRes!G13 -> 524845 | I15: =oRes!B13+oRes!E13+oRes!G13+IF(D15=ROUNDUP(Term2/12,0),oRes!D13,0) -> 2986080 | J15: 0 | K15: =IF(oRes!F13=0,"",oRes!F13) ->  | L15: 0
A16: biztosítási összeg | B16: =MIN(DPrm*PayPa*2,1000000) -> 720000 | D16: 8 | E16: =oRes!B14+oRes!D14+oRes!E14+oRes!G14 -> 3852810 | F16: =oRes!D14 -> 202274 | H16: =oRes!G14 -> 637488 | I16: =oRes!B14+oRes!E14+oRes!G14+IF(D16=ROUNDUP(Term2/12,0),oRes!D14,0) -> 3650536 | J16: 0 | K16: =IF(oRes!F14=0,"",oRes!F14) ->  | L16: 0
A17: üzleti kedvezmény | B17: 0 | D17: 9 | E17: =oRes!B15+oRes!D15+oRes!E15+oRes!G15 -> 4604413 | F17: =oRes!D15 -> 241616 | H17: =oRes!G15 -> 758165 | I17: =oRes!B15+oRes!E15+oRes!G15+IF(D17=ROUNDUP(Term2/12,0),oRes!D15,0) -> 4362797 | J17: 0 | K17: =IF(oRes!F15=0,"",oRes!F15) ->  | L17: 0
A18: portfolió | B18: Lendületes | D18: 10 | E18: =oRes!B16+oRes!D16+oRes!E16+oRes!G16 -> 5407885 | F18: =IF(D18=ROUNDUP(Term2/12,0),0,oRes!D16) -> 141127 | G18: =IF(D18=ROUNDUP(Term2/12,0),oRes!D16,0)+IF(MOD(D18,5)=0,oRes!H16,0) -> 141128 | H18: =oRes!G16 -> 887341 | I18: =oRes!B16+oRes!E16+oRes!G16+IF(D18=ROUNDUP(Term2/12,0),oRes!D16,0) -> 5266758 | J18: 0 | K18: =IF(oRes!F16=0,"",oRes!F16) ->  | L18: 0
A19: éves várható hozam | B19: 0.04 | D19: 11 | E19: =oRes!B17+oRes!D17+oRes!E17+oRes!G17 -> 6266365 | F19: =IF(D19=ROUNDUP(Term2/12,0),0,oRes!D17) -> 180398 | G19: =IF(D19=ROUNDUP(Term2/12,0),oRes!D17,0)+IF(MOD(D19,5)=0,oRes!H17,0) -> 0 | H19: =oRes!G17 -> 1025535 | I19: =oRes!B17+oRes!E17+oRes!G17+IF(D19=ROUNDUP(Term2/12,0),oRes!D17,0) -> 6085967 | J19: 0 | K19: =IF(oRes!F17=0,"",oRes!F17) ->  | L19: 0
A20: index | B20: 0.05 | D20: 12 | E20: =oRes!B18+oRes!D18+oRes!E18+oRes!G18 -> 7182731 | F20: =IF(D20=ROUNDUP(Term2/12,0),0,oRes!D18) -> 221014 | G20: =IF(D20=ROUNDUP(Term2/12,0),oRes!D18,0)+IF(MOD(D20,5)=0,oRes!H18,0) -> 0 | H20: =oRes!G18 -> 1173227 | I20: =oRes!B18+oRes!E18+oRes!G18+IF(D20=ROUNDUP(Term2/12,0),oRes!D18,0) -> 6961717 | J20: 0 | K20: =IF(oRes!F18=0,"",oRes!F18) ->  | L20: 0
D21: 13 | E21: =oRes!B19+oRes!D19+oRes!E19+oRes!G19 -> 8160451 | F21: =IF(D21=ROUNDUP(Term2/12,0),0,oRes!D19) -> 263047 | G21: =IF(D21=ROUNDUP(Term2/12,0),oRes!D19,0)+IF(MOD(D21,5)=0,oRes!H19,0) -> 0 | H21: =oRes!G19 -> 1330979 | I21: =oRes!B19+oRes!E19+oRes!G19+IF(D21=ROUNDUP(Term2/12,0),oRes!D19,0) -> 7897404 | J21: 0 | K21: =IF(oRes!F19=0,"",oRes!F19) ->  | L21: 0
A22: =ErrMsg ->  | D22: 14 | E22: =oRes!B20+oRes!D20+oRes!E20+oRes!G20 -> 9203012 | F22: =IF(D22=ROUNDUP(Term2/12,0),0,oRes!D20) -> 306551 | G22: =IF(D22=ROUNDUP(Term2/12,0),oRes!D20,0)+IF(MOD(D22,5)=0,oRes!H20,0) -> 0 | H22: =oRes!G20 -> 1499371 | I22: =oRes!B20+oRes!E20+oRes!G20+IF(D22=ROUNDUP(Term2/12,0),oRes!D20,0) -> 8896461 | J22: 0 | K22: =IF(oRes!F20=0,"",oRes!F20) ->  | L22: 0
D23: 15 | E23: =oRes!B21+oRes!D21+oRes!E21+oRes!G21 -> 10308970 | F23: =IF(D23=ROUNDUP(Term2/12,0),0,oRes!D21) -> 175787 | G23: =IF(D23=ROUNDUP(Term2/12,0),oRes!D21,0)+IF(MOD(D23,5)=0,oRes!H21,0) -> 175788 | H23: =oRes!G21 -> 1673720 | I23: =oRes!B21+oRes!E21+oRes!G21+IF(D23=ROUNDUP(Term2/12,0),oRes!D21,0) -> 10133183 | J23: 0 | K23: =IF(oRes!F21=0,"",oRes!F21) ->  | L23: 0
D24: 16 | E24: =oRes!B22+oRes!D22+oRes!E22+oRes!G22 -> 11494916 | F24: =IF(D24=ROUNDUP(Term2/12,0),0,oRes!D22) -> 233796 | G24: =IF(D24=ROUNDUP(Term2/12,0),oRes!D22,0)+IF(MOD(D24,5)=0,oRes!H22,0) -> 0 | H24: =oRes!G22 -> 1852879 | I24: =oRes!B22+oRes!E22+oRes!G22+IF(D24=ROUNDUP(Term2/12,0),oRes!D22,0) -> 11261120 | J24: 0 | K24: =IF(oRes!F22=0,"",oRes!F22) ->  | L24: 0
D25: 17 | E25: =oRes!B23+oRes!D23+oRes!E23+oRes!G23 -> 12750175 | F25: =IF(D25=ROUNDUP(Term2/12,0),0,oRes!D23) -> 293684 | G25: =IF(D25=ROUNDUP(Term2/12,0),oRes!D23,0)+IF(MOD(D25,5)=0,oRes!H23,0) -> 0 | H25: =oRes!G23 -> 2037017 | I25: =oRes!B23+oRes!E23+oRes!G23+IF(D25=ROUNDUP(Term2/12,0),oRes!D23,0) -> 12456491 | J25: 0 | K25: =IF(oRes!F23=0,"",oRes!F23) ->  | L25: 0
D26: 18 | E26: =oRes!B24+oRes!D24+oRes!E24+oRes!G24 -> 14078504 | F26: =IF(D26=ROUNDUP(Term2/12,0),0,oRes!D24) -> 355532 | G26: =IF(D26=ROUNDUP(Term2/12,0),oRes!D24,0)+IF(MOD(D26,5)=0,oRes!H24,0) -> 0 | H26: =oRes!G24 -> 2226271 | I26: =oRes!B24+oRes!E24+oRes!G24+IF(D26=ROUNDUP(Term2/12,0),oRes!D24,0) -> 13722972 | J26: 0 | K26: =IF(oRes!F24=0,"",oRes!F24) ->  | L26: 0
D27: 19 | E27: =oRes!B25+oRes!D25+oRes!E25+oRes!G25 -> 15484156 | F27: =IF(D27=ROUNDUP(Term2/12,0),0,oRes!D25) -> 419406 | G27: =IF(D27=ROUNDUP(Term2/12,0),oRes!D25,0)+IF(MOD(D27,5)=0,oRes!H25,0) -> 0 | H27: =oRes!G25 -> 2420838 | I27: =oRes!B25+oRes!E25+oRes!G25+IF(D27=ROUNDUP(Term2/12,0),oRes!D25,0) -> 15064750 | J27: 0 | K27: =IF(oRes!F25=0,"",oRes!F25) ->  | L27: 0
A28: lejárati összeg | B28: =VLOOKUP(ROUNDUP(Term/12,0),$D$9:$F$63,2,FALSE)+VLOOKUP(ROUNDUP(Term/12,0),$D$9:$F$63,3,FALSE) -> 22019541 | D28: 20 | E28: =oRes!B26+oRes!D26+oRes!E26+oRes!G26 -> 16970646 | F28: =IF(D28=ROUNDUP(Term2/12,0),0,oRes!D26) -> 242693 | G28: =IF(D28=ROUNDUP(Term2/12,0),oRes!D26,0)+IF(MOD(D28,5)=0,oRes!H26,0) -> 242694 | H28: =oRes!G26 -> 2620762 | I28: =oRes!B26+oRes!E26+oRes!G26+IF(D28=ROUNDUP(Term2/12,0),oRes!D26,0) -> 16727953 | J28: 0 | K28: =IF(oRes!F26=0,"",oRes!F26) ->  | L28: 0
A29: lejárat utáni adójóváírások | B29: =LastTax -> 165980 | D29: 21 | E29: =oRes!B27+oRes!D27+oRes!E27+oRes!G27 -> 18503092 | F29: =IF(D29=ROUNDUP(Term2/12,0),0,oRes!D27) -> 266704 | G29: =IF(D29=ROUNDUP(Term2/12,0),oRes!D27,0)+IF(MOD(D29,5)=0,oRes!H27,0) -> 0 | H29: =oRes!G27 -> 2826245 | I29: =oRes!B27+oRes!E27+oRes!G27+IF(D29=ROUNDUP(Term2/12,0),oRes!D27,0) -> 18236388 | J29: 0 | K29: =IF(oRes!F27=0,"",oRes!F27) ->  | L29: 0
A30: összesen | B30: =B28+B29 -> 22185521 | D30: 22 | E30: =oRes!B28+oRes!D28+oRes!E28+oRes!G28 -> 20124555 | F30: =IF(D30=ROUNDUP(Term2/12,0),0,oRes!D28) -> 292149 | G30: =IF(D30=ROUNDUP(Term2/12,0),oRes!D28,0)+IF(MOD(D30,5)=0,oRes!H28,0) -> 0 | H30: =oRes!G28 -> 3037437 | I30: =oRes!B28+oRes!E28+oRes!G28+IF(D30=ROUNDUP(Term2/12,0),oRes!D28,0) -> 19832406 | J30: 0 | K30: =IF(oRes!F28=0,"",oRes!F28) ->  | L30: 0
A31: összes befizetés | B31: =SUM(oRes!$L$7:$L$61) -> 15006739 | D31: 23 | E31: =oRes!B29+oRes!D29+oRes!E29+oRes!G29 -> 21840295 | F31: =IF(D31=ROUNDUP(Term2/12,0),0,oRes!D29) -> 319106 | G31: =IF(D31=ROUNDUP(Term2/12,0),oRes!D29,0)+IF(MOD(D31,5)=0,oRes!H29,0) -> 0 | H31: =oRes!G29 -> 3254570 | I31: =oRes!B29+oRes!E29+oRes!G29+IF(D31=ROUNDUP(Term2/12,0),oRes!D29,0) -> 21521189 | J31: 0 | K31: =IF(oRes!F29=0,"",oRes!F29) ->  | L31: 0
D32: 24 | E32: =oRes!B30+oRes!D30+oRes!E30+oRes!G30 -> 22019541 | F32: =IF(D32=ROUNDUP(Term2/12,0),0,oRes!D30) -> 0 | G32: =IF(D32=ROUNDUP(Term2/12,0),oRes!D30,0)+IF(MOD(D32,5)=0,oRes!H30,0) -> 322277 | H32: =oRes!G30 -> 3268045 | I32: =oRes!B30+oRes!E30+oRes!G30+IF(D32=ROUNDUP(Term2/12,0),oRes!D30,0) -> 22019541 | J32: 0 | K32: =IF(oRes!F30=0,"",oRes!F30) ->  | L32: 0
D33: 25 | E33: =oRes!B31+oRes!D31+oRes!E31+oRes!G31 -> 0 | F33: =IF(D33=ROUNDUP(Term2/12,0),0,oRes!D31) -> 0 | G33: =IF(D33=ROUNDUP(Term2/12,0),oRes!D31,0)+IF(MOD(D33,5)=0,oRes!H31,0) -> 0 | H33: =oRes!G31 -> 0 | I33: =oRes!B31+oRes!E31+oRes!G31+IF(D33=ROUNDUP(Term2/12,0),oRes!D31,0) -> 0 | J33: 0 | K33: =IF(oRes!F31=0,"",oRes!F31) ->  | L33: 0
D34: 26 | E34: =oRes!B32+oRes!D32+oRes!E32+oRes!G32 -> 0 | F34: =IF(D34=ROUNDUP(Term2/12,0),0,oRes!D32) -> 0 | G34: =IF(D34=ROUNDUP(Term2/12,0),oRes!D32,0)+IF(MOD(D34,5)=0,oRes!H32,0) -> 0 | H34: =oRes!G32 -> 0 | I34: =oRes!B32+oRes!E32+oRes!G32+IF(D34=ROUNDUP(Term2/12,0),oRes!D32,0) -> 0 | J34: 0 | K34: =IF(oRes!F32=0,"",oRes!F32) ->  | L34: 0
D35: 27 | E35: =oRes!B33+oRes!D33+oRes!E33+oRes!G33 -> 0 | F35: =IF(D35=ROUNDUP(Term2/12,0),0,oRes!D33) -> 0 | G35: =IF(D35=ROUNDUP(Term2/12,0),oRes!D33,0)+IF(MOD(D35,5)=0,oRes!H33,0) -> 0 | H35: =oRes!G33 -> 0 | I35: =oRes!B33+oRes!E33+oRes!G33+IF(D35=ROUNDUP(Term2/12,0),oRes!D33,0) -> 0 | J35: 0 | K35: =IF(oRes!F33=0,"",oRes!F33) ->  | L35: 0
D36: 28 | E36: =oRes!B34+oRes!D34+oRes!E34+oRes!G34 -> 0 | F36: =IF(D36=ROUNDUP(Term2/12,0),0,oRes!D34) -> 0 | G36: =IF(D36=ROUNDUP(Term2/12,0),oRes!D34,0)+IF(MOD(D36,5)=0,oRes!H34,0) -> 0 | H36: =oRes!G34 -> 0 | I36: =oRes!B34+oRes!E34+oRes!G34+IF(D36=ROUNDUP(Term2/12,0),oRes!D34,0) -> 0 | J36: 0 | K36: =IF(oRes!F34=0,"",oRes!F34) ->  | L36: 0
D37: 29 | E37: =oRes!B35+oRes!D35+oRes!E35+oRes!G35 -> 0 | F37: =IF(D37=ROUNDUP(Term2/12,0),0,oRes!D35) -> 0 | G37: =IF(D37=ROUNDUP(Term2/12,0),oRes!D35,0)+IF(MOD(D37,5)=0,oRes!H35,0) -> 0 | H37: =oRes!G35 -> 0 | I37: =oRes!B35+oRes!E35+oRes!G35+IF(D37=ROUNDUP(Term2/12,0),oRes!D35,0) -> 0 | J37: 0 | K37: =IF(oRes!F35=0,"",oRes!F35) ->  | L37: 0
D38: 30 | E38: =oRes!B36+oRes!D36+oRes!E36+oRes!G36 -> 0 | F38: =IF(D38=ROUNDUP(Term2/12,0),0,oRes!D36) -> 0 | G38: =IF(D38=ROUNDUP(Term2/12,0),oRes!D36,0)+IF(MOD(D38,5)=0,oRes!H36,0) -> 0 | H38: =oRes!G36 -> 0 | I38: =oRes!B36+oRes!E36+oRes!G36+IF(D38=ROUNDUP(Term2/12,0),oRes!D36,0) -> 0 | J38: 0 | K38: =IF(oRes!F36=0,"",oRes!F36) ->  | L38: 0
D39: 31 | E39: =oRes!B37+oRes!D37+oRes!E37+oRes!G37 -> 0 | F39: =IF(D39=ROUNDUP(Term2/12,0),0,oRes!D37) -> 0 | G39: =IF(D39=ROUNDUP(Term2/12,0),oRes!D37,0)+IF(MOD(D39,5)=0,oRes!H37,0) -> 0 | H39: =oRes!G37 -> 0 | I39: =oRes!B37+oRes!E37+oRes!G37+IF(D39=ROUNDUP(Term2/12,0),oRes!D37,0) -> 0 | J39: 0 | K39: =IF(oRes!F37=0,"",oRes!F37) ->  | L39: 0
D40: 32 | E40: =oRes!B38+oRes!D38+oRes!E38+oRes!G38 -> 0 | F40: =IF(D40=ROUNDUP(Term2/12,0),0,oRes!D38) -> 0 | G40: =IF(D40=ROUNDUP(Term2/12,0),oRes!D38,0)+IF(MOD(D40,5)=0,oRes!H38,0) -> 0 | H40: =oRes!G38 -> 0 | I40: =oRes!B38+oRes!E38+oRes!G38+IF(D40=ROUNDUP(Term2/12,0),oRes!D38,0) -> 0 | J40: 0 | K40: =IF(oRes!F38=0,"",oRes!F38) ->  | L40: 0
D41: 33 | E41: =oRes!B39+oRes!D39+oRes!E39+oRes!G39 -> 0 | F41: =IF(D41=ROUNDUP(Term2/12,0),0,oRes!D39) -> 0 | G41: =IF(D41=ROUNDUP(Term2/12,0),oRes!D39,0)+IF(MOD(D41,5)=0,oRes!H39,0) -> 0 | H41: =oRes!G39 -> 0 | I41: =oRes!B39+oRes!E39+oRes!G39+IF(D41=ROUNDUP(Term2/12,0),oRes!D39,0) -> 0 | J41: 0 | K41: =IF(oRes!F39=0,"",oRes!F39) ->  | L41: 0
D42: 34 | E42: =oRes!B40+oRes!D40+oRes!E40+oRes!G40 -> 0 | F42: =IF(D42=ROUNDUP(Term2/12,0),0,oRes!D40) -> 0 | G42: =IF(D42=ROUNDUP(Term2/12,0),oRes!D40,0)+IF(MOD(D42,5)=0,oRes!H40,0) -> 0 | H42: =oRes!G40 -> 0 | I42: =oRes!B40+oRes!E40+oRes!G40+IF(D42=ROUNDUP(Term2/12,0),oRes!D40,0) -> 0 | J42: 0 | K42: =IF(oRes!F40=0,"",oRes!F40) ->  | L42: 0
D43: 35 | E43: =oRes!B41+oRes!D41+oRes!E41+oRes!G41 -> 0 | F43: =IF(D43=ROUNDUP(Term2/12,0),0,oRes!D41) -> 0 | G43: =IF(D43=ROUNDUP(Term2/12,0),oRes!D41,0)+IF(MOD(D43,5)=0,oRes!H41,0) -> 0 | H43: =oRes!G41 -> 0 | I43: =oRes!B41+oRes!E41+oRes!G41+IF(D43=ROUNDUP(Term2/12,0),oRes!D41,0) -> 0 | J43: 0 | K43: =IF(oRes!F41=0,"",oRes!F41) ->  | L43: 0
D44: 36 | E44: =oRes!B42+oRes!D42+oRes!E42+oRes!G42 -> 0 | F44: =IF(D44=ROUNDUP(Term2/12,0),0,oRes!D42) -> 0 | G44: =IF(D44=ROUNDUP(Term2/12,0),oRes!D42,0)+IF(MOD(D44,5)=0,oRes!H42,0) -> 0 | H44: =oRes!G42 -> 0 | I44: =oRes!B42+oRes!E42+oRes!G42+IF(D44=ROUNDUP(Term2/12,0),oRes!D42,0) -> 0 | J44: 0 | K44: =IF(oRes!F42=0,"",oRes!F42) ->  | L44: 0
D45: 37 | E45: =oRes!B43+oRes!D43+oRes!E43+oRes!G43 -> 0 | F45: =IF(D45=ROUNDUP(Term2/12,0),0,oRes!D43) -> 0 | G45: =IF(D45=ROUNDUP(Term2/12,0),oRes!D43,0)+IF(MOD(D45,5)=0,oRes!H43,0) -> 0 | H45: =oRes!G43 -> 0 | I45: =oRes!B43+oRes!E43+oRes!G43+IF(D45=ROUNDUP(Term2/12,0),oRes!D43,0) -> 0 | J45: 0 | K45: =IF(oRes!F43=0,"",oRes!F43) ->  | L45: 0
D46: 38 | E46: =oRes!B44+oRes!D44+oRes!E44+oRes!G44 -> 0 | F46: =IF(D46=ROUNDUP(Term2/12,0),0,oRes!D44) -> 0 | G46: =IF(D46=ROUNDUP(Term2/12,0),oRes!D44,0)+IF(MOD(D46,5)=0,oRes!H44,0) -> 0 | H46: =oRes!G44 -> 0 | I46: =oRes!B44+oRes!E44+oRes!G44+IF(D46=ROUNDUP(Term2/12,0),oRes!D44,0) -> 0 | J46: 0 | K46: =IF(oRes!F44=0,"",oRes!F44) ->  | L46: 0
D47: 39 | E47: =oRes!B45+oRes!D45+oRes!E45+oRes!G45 -> 0 | F47: =IF(D47=ROUNDUP(Term2/12,0),0,oRes!D45) -> 0 | G47: =IF(D47=ROUNDUP(Term2/12,0),oRes!D45,0)+IF(MOD(D47,5)=0,oRes!H45,0) -> 0 | H47: =oRes!G45 -> 0 | I47: =oRes!B45+oRes!E45+oRes!G45+IF(D47=ROUNDUP(Term2/12,0),oRes!D45,0) -> 0 | J47: 0 | K47: =IF(oRes!F45=0,"",oRes!F45) ->  | L47: 0
D48: 40 | E48: =oRes!B46+oRes!D46+oRes!E46+oRes!G46 -> 0 | F48: =IF(D48=ROUNDUP(Term2/12,0),0,oRes!D46) -> 0 | G48: =IF(D48=ROUNDUP(Term2/12,0),oRes!D46,0)+IF(MOD(D48,5)=0,oRes!H46,0) -> 0 | H48: =oRes!G46 -> 0 | I48: =oRes!B46+oRes!E46+oRes!G46+IF(D48=ROUNDUP(Term2/12,0),oRes!D46,0) -> 0 | J48: 0 | K48: =IF(oRes!F46=0,"",oRes!F46) ->  | L48: 0
D49: 41 | E49: =oRes!B47+oRes!D47+oRes!E47+oRes!G47 -> 0 | F49: =IF(D49=ROUNDUP(Term2/12,0),0,oRes!D47) -> 0 | G49: =IF(D49=ROUNDUP(Term2/12,0),oRes!D47,0)+IF(MOD(D49,5)=0,oRes!H47,0) -> 0 | H49: =oRes!G47 -> 0 | I49: =oRes!B47+oRes!E47+oRes!G47+IF(D49=ROUNDUP(Term2/12,0),oRes!D47,0) -> 0 | J49: 0 | K49: =IF(oRes!F47=0,"",oRes!F47) ->  | L49: 0
D50: 42 | E50: =oRes!B48+oRes!D48+oRes!E48+oRes!G48 -> 0 | F50: =IF(D50=ROUNDUP(Term2/12,0),0,oRes!D48) -> 0 | G50: =IF(D50=ROUNDUP(Term2/12,0),oRes!D48,0)+IF(MOD(D50,5)=0,oRes!H48,0) -> 0 | H50: =oRes!G48 -> 0 | I50: =oRes!B48+oRes!E48+oRes!G48+IF(D50=ROUNDUP(Term2/12,0),oRes!D48,0) -> 0 | J50: 0 | K50: =IF(oRes!F48=0,"",oRes!F48) ->  | L50: 0
D51: 43 | E51: =oRes!B49+oRes!D49+oRes!E49+oRes!G49 -> 0 | F51: =IF(D51=ROUNDUP(Term2/12,0),0,oRes!D49) -> 0 | G51: =IF(D51=ROUNDUP(Term2/12,0),oRes!D49,0)+IF(MOD(D51,5)=0,oRes!H49,0) -> 0 | H51: =oRes!G49 -> 0 | I51: =oRes!B49+oRes!E49+oRes!G49+IF(D51=ROUNDUP(Term2/12,0),oRes!D49,0) -> 0 | J51: 0 | K51: =IF(oRes!F49=0,"",oRes!F49) ->  | L51: 0
D52: 44 | E52: =oRes!B50+oRes!D50+oRes!E50+oRes!G50 -> 0 | F52: =IF(D52=ROUNDUP(Term2/12,0),0,oRes!D50) -> 0 | G52: =IF(D52=ROUNDUP(Term2/12,0),oRes!D50,0)+IF(MOD(D52,5)=0,oRes!H50,0) -> 0 | H52: =oRes!G50 -> 0 | I52: =oRes!B50+oRes!E50+oRes!G50+IF(D52=ROUNDUP(Term2/12,0),oRes!D50,0) -> 0 | J52: 0 | K52: =IF(oRes!F50=0,"",oRes!F50) ->  | L52: 0
D53: 45 | E53: =oRes!B51+oRes!D51+oRes!E51+oRes!G51 -> 0 | F53: =IF(D53=ROUNDUP(Term2/12,0),0,oRes!D51) -> 0 | G53: =IF(D53=ROUNDUP(Term2/12,0),oRes!D51,0)+IF(MOD(D53,5)=0,oRes!H51,0) -> 0 | H53: =oRes!G51 -> 0 | I53: =oRes!B51+oRes!E51+oRes!G51+IF(D53=ROUNDUP(Term2/12,0),oRes!D51,0) -> 0 | J53: 0 | K53: =IF(oRes!F51=0,"",oRes!F51) ->  | L53: 0
D54: 46 | E54: =oRes!B52+oRes!D52+oRes!E52+oRes!G52 -> 0 | F54: =IF(D54=ROUNDUP(Term2/12,0),0,oRes!D52) -> 0 | G54: =IF(D54=ROUNDUP(Term2/12,0),oRes!D52,0)+IF(MOD(D54,5)=0,oRes!H52,0) -> 0 | H54: =oRes!G52 -> 0 | I54: =oRes!B52+oRes!E52+oRes!G52+IF(D54=ROUNDUP(Term2/12,0),oRes!D52,0) -> 0 | J54: 0 | K54: =IF(oRes!F52=0,"",oRes!F52) ->  | L54: 0
D55: 47 | E55: =oRes!B53+oRes!D53+oRes!E53+oRes!G53 -> 0 | F55: =IF(D55=ROUNDUP(Term2/12,0),0,oRes!D53) -> 0 | G55: =IF(D55=ROUNDUP(Term2/12,0),oRes!D53,0)+IF(MOD(D55,5)=0,oRes!H53,0) -> 0 | H55: =oRes!G53 -> 0 | I55: =oRes!B53+oRes!E53+oRes!G53+IF(D55=ROUNDUP(Term2/12,0),oRes!D53,0) -> 0 | J55: 0 | K55: =IF(oRes!F53=0,"",oRes!F53) ->  | L55: 0
D56: 48 | E56: =oRes!B54+oRes!D54+oRes!E54+oRes!G54 -> 0 | F56: =IF(D56=ROUNDUP(Term2/12,0),0,oRes!D54) -> 0 | G56: =IF(D56=ROUNDUP(Term2/12,0),oRes!D54,0)+IF(MOD(D56,5)=0,oRes!H54,0) -> 0 | H56: =oRes!G54 -> 0 | I56: =oRes!B54+oRes!E54+oRes!G54+IF(D56=ROUNDUP(Term2/12,0),oRes!D54,0) -> 0 | J56: 0 | K56: =IF(oRes!F54=0,"",oRes!F54) ->  | L56: 0
D57: 49 | E57: =oRes!B55+oRes!D55+oRes!E55+oRes!G55 -> 0 | F57: =IF(D57=ROUNDUP(Term2/12,0),0,oRes!D55) -> 0 | G57: =IF(D57=ROUNDUP(Term2/12,0),oRes!D55,0)+IF(MOD(D57,5)=0,oRes!H55,0) -> 0 | H57: =oRes!G55 -> 0 | I57: =oRes!B55+oRes!E55+oRes!G55+IF(D57=ROUNDUP(Term2/12,0),oRes!D55,0) -> 0 | J57: 0 | K57: =IF(oRes!F55=0,"",oRes!F55) ->  | L57: 0
D58: 50 | E58: =oRes!B56+oRes!D56+oRes!E56+oRes!G56 -> 0 | F58: =IF(D58=ROUNDUP(Term2/12,0),0,oRes!D56) -> 0 | G58: =IF(D58=ROUNDUP(Term2/12,0),oRes!D56,0)+IF(MOD(D58,5)=0,oRes!H56,0) -> 0 | H58: =oRes!G56 -> 0 | I58: =oRes!B56+oRes!E56+oRes!G56+IF(D58=ROUNDUP(Term2/12,0),oRes!D56,0) -> 0 | J58: 0 | K58: =IF(oRes!F56=0,"",oRes!F56) ->  | L58: 0
D59: 51 | E59: =oRes!B57+oRes!D57+oRes!E57+oRes!G57 -> 0 | F59: =IF(D59=ROUNDUP(Term2/12,0),0,oRes!D57) -> 0 | G59: =IF(D59=ROUNDUP(Term2/12,0),oRes!D57,0)+IF(MOD(D59,5)=0,oRes!H57,0) -> 0 | H59: =oRes!G57 -> 0 | I59: =oRes!B57+oRes!E57+oRes!G57+IF(D59=ROUNDUP(Term2/12,0),oRes!D57,0) -> 0 | J59: 0 | K59: =IF(oRes!F57=0,"",oRes!F57) ->  | L59: 0
D60: 52 | E60: =oRes!B58+oRes!D58+oRes!E58+oRes!G58 -> 0 | F60: =IF(D60=ROUNDUP(Term2/12,0),0,oRes!D58) -> 0 | G60: =IF(D60=ROUNDUP(Term2/12,0),oRes!D58,0)+IF(MOD(D60,5)=0,oRes!H58,0) -> 0 | H60: =oRes!G58 -> 0 | I60: =oRes!B58+oRes!E58+oRes!G58+IF(D60=ROUNDUP(Term2/12,0),oRes!D58,0) -> 0 | J60: 0 | K60: =IF(oRes!F58=0,"",oRes!F58) ->  | L60: 0
D61: 53 | E61: =oRes!B59+oRes!D59+oRes!E59+oRes!G59 -> 0 | F61: =IF(D61=ROUNDUP(Term2/12,0),0,oRes!D59) -> 0 | G61: =IF(D61=ROUNDUP(Term2/12,0),oRes!D59,0)+IF(MOD(D61,5)=0,oRes!H59,0) -> 0 | H61: =oRes!G59 -> 0 | I61: =oRes!B59+oRes!E59+oRes!G59+IF(D61=ROUNDUP(Term2/12,0),oRes!D59,0) -> 0 | J61: 0 | K61: =IF(oRes!F59=0,"",oRes!F59) ->  | L61: 0
D62: 54 | E62: =oRes!B60+oRes!D60+oRes!E60+oRes!G60 -> 0 | F62: =IF(D62=ROUNDUP(Term2/12,0),0,oRes!D60) -> 0 | G62: =IF(D62=ROUNDUP(Term2/12,0),oRes!D60,0)+IF(MOD(D62,5)=0,oRes!H60,0) -> 0 | H62: =oRes!G60 -> 0 | I62: =oRes!B60+oRes!E60+oRes!G60+IF(D62=ROUNDUP(Term2/12,0),oRes!D60,0) -> 0 | J62: 0 | K62: =IF(oRes!F60=0,"",oRes!F60) ->  | L62: 0
D63: 55 | E63: =oRes!B61+oRes!D61+oRes!E61+oRes!G61 -> 0 | F63: =IF(D63=ROUNDUP(Term2/12,0),0,oRes!D61) -> 0 | G63: =IF(D63=ROUNDUP(Term2/12,0),oRes!D61,0)+IF(MOD(D63,5)=0,oRes!H61,0) -> 0 | H63: =oRes!G61 -> 0 | I63: =oRes!B61+oRes!E61+oRes!G61+IF(D63=ROUNDUP(Term2/12,0),oRes!D61,0) -> 0 | J63: 0 | K63: =IF(oRes!F61=0,"",oRes!F61) ->  | L63: 0
A64: A kalkulátor használatával a következőkre hívjuk fel a figyelmet: A kalkulátor példaszámítást végez, a bemutatott adatok tájékoztató jellegűek. A kalkulátorban megjelenített adatok nem minősülnek biztosításközvetítői vagy befektetési tanácsadásnak, sem szerződéskötésre vonatkozó ajánlattételnek, ajánlattételi felhívásnak, sem más egyoldalú kötelezettségvállalásnak. A számítás mindvégig azonos, csak példaként szolgáló hozammal készült, a számítás más hozamot alapul véve is elvégezhető. A példa elméleti jellege miatt a tényleges kifizetés a jelen kalkulátorban szereplő értékektől akár lényegesen is eltérhet, tehát lehet több, de lehet kevesebb is. A példaszámítás azzal a feltételezéssel készült, hogy a szerződő mindvégig igénybe veszi az adókedvezményt. A SIGNAL IDUNA Biztosító Zrt. tőke vagy hozamgaranciát nem vállal, kivéve azon alapokat, amelyeknél ezt a biztosítási feltételek kifejezetten tartalmazza. Egyes alapok árfolyamkockázatot hordozhatnak, melyre az alap leírása külön figyelemfelhívó módon utal. A termék jellegéből fakadóan a befektetési- és árfolyamkockázatot teljes egészében a szerződő viseli. A biztosításból 10 éven belüli kivét esetén a kivett összegek hozamait kamatadó terheli.

Sheet G1
A1: eltelt évek | B1: főszámla értéke | C1: ebből jóváírt bónusz | D1: adójóváírás számla értéke
A3: 1 | B3: ='SN005'!E9-'SN005'!H9-oRes!E7-C3 -> 80997 | C3: =+'SN005'!G9 -> 0 | D3: =+oRes!G7 -> 0
A4: 2 | B4: ='SN005'!E10-'SN005'!H10-oRes!E8-C4 -> 285871 | C4: =+'SN005'!G10 -> 0 | D4: =+oRes!G8 -> 67341
A5: 3 | B5: ='SN005'!E11-'SN005'!H11-oRes!E9-C5 -> 632447 | C5: =+'SN005'!G11 -> 0 | D5: =+oRes!G9 -> 146044
A6: 4 | B6: ='SN005'!E12-'SN005'!H12-oRes!E10-C6 -> 1079718 | C6: =+'SN005'!G12 -> 0 | D6: =+oRes!G10 -> 230773
A7: 5 | B7: ='SN005'!E13-'SN005'!H13-oRes!E11-C7 -> 1559667 | C7: =+'SN005'!G13 -> 0 | D7: =+oRes!G11 -> 321893
A8: 6 | B8: ='SN005'!E14-'SN005'!H14-oRes!E12-C8 -> 2074210 | C8: =+'SN005'!G14 -> 0 | D8: =+oRes!G12 -> 419782
A9: 7 | B9: ='SN005'!E15-'SN005'!H15-oRes!E13-C9 -> 2625415 | C9: =+'SN005'!G15 -> 0 | D9: =+oRes!G13 -> 524845
A10: 8 | B10: ='SN005'!E16-'SN005'!H16-oRes!E14-C10 -> 3215322 | C10: =+'SN005'!G16 -> 0 | D10: =+oRes!G14 -> 637488
A11: 9 | B11: ='SN005'!E17-'SN005'!H17-oRes!E15-C11 -> 3846248 | C11: =+'SN005'!G17 -> 0 | D11: =+oRes!G15 -> 758165
A12: 10 | B12: ='SN005'!E18-'SN005'!H18-oRes!E16-C12 -> 4379416 | C12: =+'SN005'!G18 -> 141128 | D12: =+oRes!G16 -> 887341
A13: 11 | B13: ='SN005'!E19-'SN005'!H19-oRes!E17-C13 -> 5240830 | C13: =+'SN005'!G19 -> 0 | D13: =+oRes!G17 -> 1025535
A14: 12 | B14: ='SN005'!E20-'SN005'!H20-oRes!E18-C14 -> 6009504 | C14: =+'SN005'!G20 -> 0 | D14: =+oRes!G18 -> 1173227
A15: 13 | B15: ='SN005'!E21-'SN005'!H21-oRes!E19-C15 -> 6829472 | C15: =+'SN005'!G21 -> 0 | D15: =+oRes!G19 -> 1330979
A16: 14 | B16: ='SN005'!E22-'SN005'!H22-oRes!E20-C16 -> 7703641 | C16: =+'SN005'!G22 -> 0 | D16: =+oRes!G20 -> 1499371
A17: 15 | B17: ='SN005'!E23-'SN005'!H23-oRes!E21-C17 -> 8459462 | C17: =+'SN005'!G23 -> 175788 | D17: =+oRes!G21 -> 1673720
A18: 16 | B18: ='SN005'!E24-'SN005'!H24-oRes!E22-C18 -> 9642037 | C18: =+'SN005'!G24 -> 0 | D18: =+oRes!G22 -> 1852879
A19: 17 | B19: ='SN005'!E25-'SN005'!H25-oRes!E23-C19 -> 10713158 | C19: =+'SN005'!G25 -> 0 | D19: =+oRes!G23 -> 2037017
A20: 18 | B20: ='SN005'!E26-'SN005'!H26-oRes!E24-C20 -> 11852233 | C20: =+'SN005'!G26 -> 0 | D20: =+oRes!G24 -> 2226271
A21: 19 | B21: ='SN005'!E27-'SN005'!H27-oRes!E25-C21 -> 13063318 | C21: =+'SN005'!G27 -> 0 | D21: =+oRes!G25 -> 2420838
A22: 20 | B22: ='SN005'!E28-'SN005'!H28-oRes!E26-C22 -> 14107190 | C22: =+'SN005'!G28 -> 242694 | D22: =+oRes!G26 -> 2620762
A23: 21 | B23: ='SN005'!E29-'SN005'!H29-oRes!E27-C23 -> 15676847 | C23: =+'SN005'!G29 -> 0 | D23: =+oRes!G27 -> 2826245
A24: 22 | B24: ='SN005'!E30-'SN005'!H30-oRes!E28-C24 -> 17087118 | C24: =+'SN005'!G30 -> 0 | D24: =+oRes!G28 -> 3037437
A25: 23 | B25: ='SN005'!E31-'SN005'!H31-oRes!E29-C25 -> 18585725 | C25: =+'SN005'!G31 -> 0 | D25: =+oRes!G29 -> 3254570
A26: 24 | B26: ='SN005'!E32-'SN005'!H32-oRes!E30-C26 -> 18429219 | C26: =+'SN005'!G32 -> 322277 | D26: =+oRes!G30 -> 3268045
A27: 25 | B27: ='SN005'!E33-'SN005'!H33-oRes!E31-C27 -> 0 | C27: =+'SN005'!G33 -> 0 | D27: =+oRes!G31 -> 0
A28: 26 | B28: ='SN005'!E34-'SN005'!H34-oRes!E32-C28 -> 0 | C28: =+'SN005'!G34 -> 0 | D28: =+oRes!G32 -> 0
A29: 27 | B29: ='SN005'!E35-'SN005'!H35-oRes!E33-C29 -> 0 | C29: =+'SN005'!G35 -> 0 | D29: =+oRes!G33 -> 0
A30: 28 | B30: ='SN005'!E36-'SN005'!H36-oRes!E34-C30 -> 0 | C30: =+'SN005'!G36 -> 0 | D30: =+oRes!G34 -> 0
A31: 29 | B31: ='SN005'!E37-'SN005'!H37-oRes!E35-C31 -> 0 | C31: =+'SN005'!G37 -> 0 | D31: =+oRes!G35 -> 0
A32: 30 | B32: ='SN005'!E38-'SN005'!H38-oRes!E36-C32 -> 0 | C32: =+'SN005'!G38 -> 0 | D32: =+oRes!G36 -> 0
A33: 31 | B33: ='SN005'!E39-'SN005'!H39-oRes!E37-C33 -> 0 | C33: =+'SN005'!G39 -> 0 | D33: =+oRes!G37 -> 0
A34: 32 | B34: ='SN005'!E40-'SN005'!H40-oRes!E38-C34 -> 0 | C34: =+'SN005'!G40 -> 0 | D34: =+oRes!G38 -> 0
A35: 33 | B35: ='SN005'!E41-'SN005'!H41-oRes!E39-C35 -> 0 | C35: =+'SN005'!G41 -> 0 | D35: =+oRes!G39 -> 0
A36: 34 | B36: ='SN005'!E42-'SN005'!H42-oRes!E40-C36 -> 0 | C36: =+'SN005'!G42 -> 0 | D36: =+oRes!G40 -> 0
A37: 35 | B37: ='SN005'!E43-'SN005'!H43-oRes!E41-C37 -> 0 | C37: =+'SN005'!G43 -> 0 | D37: =+oRes!G41 -> 0
A38: 36 | B38: ='SN005'!E44-'SN005'!H44-oRes!E42-C38 -> 0 | C38: =+'SN005'!G44 -> 0 | D38: =+oRes!G42 -> 0
A39: 37 | B39: ='SN005'!E45-'SN005'!H45-oRes!E43-C39 -> 0 | C39: =+'SN005'!G45 -> 0 | D39: =+oRes!G43 -> 0
A40: 38 | B40: ='SN005'!E46-'SN005'!H46-oRes!E44-C40 -> 0 | C40: =+'SN005'!G46 -> 0 | D40: =+oRes!G44 -> 0
A41: 39 | B41: ='SN005'!E47-'SN005'!H47-oRes!E45-C41 -> 0 | C41: =+'SN005'!G47 -> 0 | D41: =+oRes!G45 -> 0
A42: 40 | B42: ='SN005'!E48-'SN005'!H48-oRes!E46-C42 -> 0 | C42: =+'SN005'!G48 -> 0 | D42: =+oRes!G46 -> 0
A43: 41 | B43: ='SN005'!E49-'SN005'!H49-oRes!E47-C43 -> 0 | C43: =+'SN005'!G49 -> 0 | D43: =+oRes!G47 -> 0
A44: 42 | B44: ='SN005'!E50-'SN005'!H50-oRes!E48-C44 -> 0 | C44: =+'SN005'!G50 -> 0 | D44: =+oRes!G48 -> 0
A45: 43 | B45: ='SN005'!E51-'SN005'!H51-oRes!E49-C45 -> 0 | C45: =+'SN005'!G51 -> 0 | D45: =+oRes!G49 -> 0
A46: 44 | B46: ='SN005'!E52-'SN005'!H52-oRes!E50-C46 -> 0 | C46: =+'SN005'!G52 -> 0 | D46: =+oRes!G50 -> 0
A47: 45 | B47: ='SN005'!E53-'SN005'!H53-oRes!E51-C47 -> 0 | C47: =+'SN005'!G53 -> 0 | D47: =+oRes!G51 -> 0
A48: 46 | B48: ='SN005'!E54-'SN005'!H54-oRes!E52-C48 -> 0 | C48: =+'SN005'!G54 -> 0 | D48: =+oRes!G52 -> 0
A49: 47 | B49: ='SN005'!E55-'SN005'!H55-oRes!E53-C49 -> 0 | C49: =+'SN005'!G55 -> 0 | D49: =+oRes!G53 -> 0
A50: 48 | B50: ='SN005'!E56-'SN005'!H56-oRes!E54-C50 -> 0 | C50: =+'SN005'!G56 -> 0 | D50: =+oRes!G54 -> 0
A51: 49 | B51: ='SN005'!E57-'SN005'!H57-oRes!E55-C51 -> 0 | C51: =+'SN005'!G57 -> 0 | D51: =+oRes!G55 -> 0
A52: 50 | B52: ='SN005'!E58-'SN005'!H58-oRes!E56-C52 -> 0 | C52: =+'SN005'!G58 -> 0 | D52: =+oRes!G56 -> 0
A53: 51 | B53: ='SN005'!E59-'SN005'!H59-oRes!E57-C53 -> 0 | C53: =+'SN005'!G59 -> 0 | D53: =+oRes!G57 -> 0
A54: 52 | B54: ='SN005'!E60-'SN005'!H60-oRes!E58-C54 -> 0 | C54: =+'SN005'!G60 -> 0 | D54: =+oRes!G58 -> 0
A55: 53 | B55: ='SN005'!E61-'SN005'!H61-oRes!E59-C55 -> 0 | C55: =+'SN005'!G61 -> 0 | D55: =+oRes!G59 -> 0
A56: 54 | B56: ='SN005'!E62-'SN005'!H62-oRes!E60-C56 -> 0 | C56: =+'SN005'!G62 -> 0 | D56: =+oRes!G60 -> 0
A57: 55 | B57: ='SN005'!E63-'SN005'!H63-oRes!E61-C57 -> 0 | C57: =+'SN005'!G63 -> 0 | D57: =+oRes!G61 -> 0
A58: max | B58: =MAX(B3:B57) -> 18585725 | C58: =MAX(C3:C57) -> 322277 | D58: 3268045
B59: =+SUM(B58:D58) -> 22176047

Sheet G2
A1: eltelt évek | B1: Lojalitási számla értéke | C1: Jóváírt bónusz értéke
A3: 1 | B3: =+'SN005'!F9 -> 7278 | C3: =+'SN005'!G9 -> 0 | D3: =+B3+C3 -> 7278
A4: 2 | B4: =+'SN005'!F10 -> 15058 | C4: =+'SN005'!G10 -> 0 | D4: =+B4+C4 -> 15058
A5: 3 | B5: =+'SN005'!F11 -> 23376 | C5: =+'SN005'!G11 -> 0 | D5: 23376
A6: 4 | B6: =+'SN005'!F12 -> 56920 | C6: =+'SN005'!G12 -> 0 | D6: 56920
A7: 5 | B7: =+'SN005'!F13 -> 91551 | C7: =+'SN005'!G13 -> 0 | D7: 91551
A8: 6 | B8: =+'SN005'!F14 -> 127289 | C8: =+'SN005'!G14 -> 0 | D8: 127289
A9: 7 | B9: =+'SN005'!F15 -> 164180 | C9: =+'SN005'!G15 -> 0 | D9: 164180
A10: 8 | B10: =+'SN005'!F16 -> 202274 | C10: =+'SN005'!G16 -> 0 | D10: 202274
A11: 9 | B11: =+'SN005'!F17 -> 241616 | C11: =+'SN005'!G17 -> 0 | D11: 241616
A12: 10 | B12: =+'SN005'!F18 -> 141127 | C12: =+'SN005'!G18 -> 141128 | D12: 282255
A13: 11 | B13: =+'SN005'!F19 -> 180398 | C13: =+'SN005'!G19 -> 0 | D13: 180398
A14: 12 | B14: =+'SN005'!F20 -> 221014 | C14: =+'SN005'!G20 -> 0 | D14: 221014
A15: 13 | B15: =+'SN005'!F21 -> 263047 | C15: =+'SN005'!G21 -> 0 | D15: 263047
A16: 14 | B16: =+'SN005'!F22 -> 306551 | C16: =+'SN005'!G22 -> 0 | D16: 306551
A17: 15 | B17: =+'SN005'!F23 -> 175787 | C17: =+'SN005'!G23 -> 175788 | D17: 351575
A18: 16 | B18: =+'SN005'!F24 -> 233796 | C18: =+'SN005'!G24 -> 0 | D18: 233796
A19: 17 | B19: =+'SN005'!F25 -> 293684 | C19: =+'SN005'!G25 -> 0 | D19: 293684
A20: 18 | B20: =+'SN005'!F26 -> 355532 | C20: =+'SN005'!G26 -> 0 | D20: 355532
A21: 19 | B21: =+'SN005'!F27 -> 419406 | C21: =+'SN005'!G27 -> 0 | D21: 419406
A22: 20 | B22: =+'SN005'!F28 -> 242693 | C22: =+'SN005'!G28 -> 242694 | D22: 485387
A23: 21 | B23: =+'SN005'!F29 -> 266704 | C23: =+'SN005'!G29 -> 0 | D23: 266704
A24: 22 | B24: =+'SN005'!F30 -> 292149 | C24: =+'SN005'!G30 -> 0 | D24: 292149
A25: 23 | B25: =+'SN005'!F31 -> 319106 | C25: =+'SN005'!G31 -> 0 | D25: 319106
A26: 24 | B26: =+'SN005'!F32 -> 0 | C26: =+'SN005'!G32 -> 322277 | D26: 322277
A27: 25 | B27: =+'SN005'!F33 -> 0 | C27: =+'SN005'!G33 -> 0 | D27: 0
A28: 26 | B28: =+'SN005'!F34 -> 0 | C28: =+'SN005'!G34 -> 0 | D28: 0
A29: 27 | B29: =+'SN005'!F35 -> 0 | C29: =+'SN005'!G35 -> 0 | D29: 0
A30: 28 | B30: =+'SN005'!F36 -> 0 | C30: =+'SN005'!G36 -> 0 | D30: 0
A31: 29 | B31: =+'SN005'!F37 -> 0 | C31: =+'SN005'!G37 -> 0 | D31: 0
A32: 30 | B32: =+'SN005'!F38 -> 0 | C32: =+'SN005'!G38 -> 0 | D32: 0
A33: 31 | B33: =+'SN005'!F39 -> 0 | C33: =+'SN005'!G39 -> 0 | D33: 0
A34: 32 | B34: =+'SN005'!F40 -> 0 | C34: =+'SN005'!G40 -> 0 | D34: 0
A35: 33 | B35: =+'SN005'!F41 -> 0 | C35: =+'SN005'!G41 -> 0 | D35: 0
A36: 34 | B36: =+'SN005'!F42 -> 0 | C36: =+'SN005'!G42 -> 0 | D36: 0
A37: 35 | B37: =+'SN005'!F43 -> 0 | C37: =+'SN005'!G43 -> 0 | D37: 0
A38: 36 | B38: =+'SN005'!F44 -> 0 | C38: =+'SN005'!G44 -> 0 | D38: 0
A39: 37 | B39: =+'SN005'!F45 -> 0 | C39: =+'SN005'!G45 -> 0 | D39: 0
A40: 38 | B40: =+'SN005'!F46 -> 0 | C40: =+'SN005'!G46 -> 0 | D40: 0
A41: 39 | B41: =+'SN005'!F47 -> 0 | C41: =+'SN005'!G47 -> 0 | D41: 0
A42: 40 | B42: =+'SN005'!F48 -> 0 | C42: =+'SN005'!G48 -> 0 | D42: 0
A43: 41 | B43: =+'SN005'!F49 -> 0 | C43: =+'SN005'!G49 -> 0 | D43: 0
A44: 42 | B44: =+'SN005'!F50 -> 0 | C44: =+'SN005'!G50 -> 0 | D44: 0
A45: 43 | B45: =+'SN005'!F51 -> 0 | C45: =+'SN005'!G51 -> 0 | D45: 0
A46: 44 | B46: =+'SN005'!F52 -> 0 | C46: =+'SN005'!G52 -> 0 | D46: 0
A47: 45 | B47: =+'SN005'!F53 -> 0 | C47: =+'SN005'!G53 -> 0 | D47: 0
A48: 46 | B48: =+'SN005'!F54 -> 0 | C48: =+'SN005'!G54 -> 0 | D48: 0
A49: 47 | B49: =+'SN005'!F55 -> 0 | C49: =+'SN005'!G55 -> 0 | D49: 0
A50: 48 | B50: =+'SN005'!F56 -> 0 | C50: =+'SN005'!G56 -> 0 | D50: 0
A51: 49 | B51: =+'SN005'!F57 -> 0 | C51: =+'SN005'!G57 -> 0 | D51: 0
A52: 50 | B52: =+'SN005'!F58 -> 0 | C52: =+'SN005'!G58 -> 0 | D52: 0
A53: 51 | B53: =+'SN005'!F59 -> 0 | C53: =+'SN005'!G59 -> 0 | D53: 0
A54: 52 | B54: =+'SN005'!F60 -> 0 | C54: =+'SN005'!G60 -> 0 | D54: 0
A55: 53 | B55: =+'SN005'!F61 -> 0 | C55: =+'SN005'!G61 -> 0 | D55: 0
A56: 54 | B56: =+'SN005'!F62 -> 0 | C56: =+'SN005'!G62 -> 0 | D56: 0
A57: 55 | B57: =+'SN005'!F63 -> 0 | C57: =+'SN005'!G63 -> 0 | D57: 0

Sheet iPar (hidden)
A1: PolBeg | B1: =+'SN005'!B8 -> 2018-02-01 | K1: PayMethod | M1: PayPa | N1: Portfolios | O1: Term-Age | Q1: Yields | R1: Prm | T1: Disc
A2: PolEnd | B2: =+DATE(YEAR(BD)+65,MONTH(BD),DAY(BD)) -> 2041-03-25 | K2: átutalás | L2: 1 | M2: havi | N2: Lendületes | O2: min term | P2: 120 | Q2: 0 | R2: min | S2: 144000 | T2: min | U2: 0
A3: Term | B3: =fterm(PolBeg,PolEnd) -> 277 | C3: =sdatediff(PolBeg,PolEnd) -> 23-1-24 | D3: =ROUNDUP(Term/12,0) -> 24 | K3: csekk | L3: 3 | M3: negyedéves | N3: Mérsékelt | O3: min age | P3: 18 | Q3: 0.01 | R3: min topup | S3: 35000 | T3: max | U3: 0.8
A4: EntryAge | B4: =YEAR(PolBeg)-YEAR(BD) -> 42 | C4: =fterm2(PolBeg,PolEnd) -> 278 | K4: csoportos | L4: 2 | M4: féléves | N4: Óvatos | O4: check | P4: =IF(Term<P2, "Minimálisnál kisebb tartam.","") ->  | Q4: 0.02 | R4: check | S4: =IF(DPrm*PayPa<S2, "Minimálisnál kisebb díj.","") -> 
M5: éves | N5: Nincs | P5: =IF(Age<P3, "Minimálisnál kisebb kor.","") ->  | Q5: 0.03 | S5: =IF(OR(DiscFEL<U2,DiscFEL>U3), "Hibás üzleti kedvezmény.","") -> 
A6: PayPa | B6: =IF(PP="havi",12,IF(PP="negyedéves",4,IF(PP="féléves",2,1))) -> 12 | Q6: 0.04
A7: PayMod | B7: =VLOOKUP(PM,K2:L4,2) -> 2 | M7: ErrMsg | N7: =IF(hiba1="",IF(hiba2="",IF(hiba3="",IF(hiba4="",IF(ErrFromVB="","",ErrFromVB),hiba4),hiba3),hiba2),hiba1) ->  | Q7: 0.05
A8: DuePrm | B8: =P -> 30000 | M8: ErrMsg | Q8: 0.06
A9: PensionPart | B9: 1 | E9: portfolio | F9: ann.KBF | G9: dailyKBF | Q9: 0.07
A10: DiscFEL | B10: =+D -> 0 | D10: Lendületes | E10: 1 | F10: 0.0083 | G10: =ROUND(F10/365,8) -> 2.274e-05 | M10: MaxG2 | N10: =+MAX('G2'!D3:D57) -> 485387 | Q10: 0.08
A11: Portfolio | B11: =MATCH(PO,iPar!N2:N5,0) -> 1 | D11: Mérsékelt | E11: 2 | F11: 0.0075 | G11: 2.055e-05 | Q11: 0.09
A12: Yield | B12: =YI -> 0.04 | D12: Óvatos | E12: 3 | F12: 0.00645 | G12: 1.767e-05 | Q12: 0.1
A13: Index | B13: 0.05 | D13: Üres | E13: 4 | F13: 0 | G13: =ROUND(F13/365,8) -> 0 | Q13: 0.11
Q14: 0.12
A15: fPolBeg | B15: fPolEnd | C15: fTermType | D15: fTerm | E15: fInsPers | F15: fSex | G15: fEntAge | H15: fFirstIndex | I15: fLastIndex | J15: fLapsePeriod | K15: fKBFperiod | L15: fKBFshift | M15: fMinTopUp | Q15: 0.13 | AD15: fPremTabID | AE15: fMinSex | AF15: fMaxSex | AG15: fMinAge | AH15: fMaxAge | AI15: fNetPrm | AK15: fDur | AL15: fTopUpPen | AM15: fTopUpNon | AN15: fPartSurr
A16: =+PolBeg -> 2018-02-01 | B16: =+PolEnd -> 2041-03-25 | C16: 5 | D16: =+Term -> 277 | E16: 111 | F16: 1 | G16: =+Age -> 42 | H16: 1 | I16: 0 | J16: 0 | K16: 3 | L16: 3 | M16: =+MinTopUp -> 35000 | Q16: 0.14 | AK16: 1 | AL16: ='SN005'!J9 -> 0 | AM16: ='SN005'!L9 -> 0 | AN16: 0
Q17: 0.15 | AK17: 2 | AL17: ='SN005'!J10 -> 0 | AM17: ='SN005'!L10 -> 0 | AN17: 0
A18: fAccountNr | B18: fTarOption | C18: fTarifNr | D18: fRisk | E18: fIndexType | F18: fIndex | G18: fRiskBeg | H18: fRiskEnd | I18: fPayEnd | J18: fPayReg | K18: fPayPa | L18: fPayMethod | M18: fGrossPrm | N18: fFirstPrm | O18: fPensionPart | P18: fMinPool | AK18: 3 | AL18: ='SN005'!J11 -> 0 | AM18: ='SN005'!L11 -> 0 | AN18: 0
A19: 1 | B19: 0 | C19: 11 | D19: 5 | E19: 101 | F19: =Index -> 0.05 | G19: =+PolBeg -> 2018-02-01 | H19: =+PolEnd -> 2041-03-25 | I19: =+H19-DAY(H19)+1 -> 2041-03-01 | J19: 1 | K19: =+PayPa -> 12 | L19: =+PayMod -> 2 | M19: =+DPrm*PayPa -> 360000 | N19: =+M19 -> 360000 | O19: =PensionPart -> 1 | P19: 100000 | Q19: SN005 | R19: alap | AK19: 4 | AL19: ='SN005'!J12 -> 0 | AM19: ='SN005'!L12 -> 0 | AN19: 0
A20: 2 | B20: 3 | C20: 12 | D20: 5 | E20: 0 | F20: 0 | G20: =+G19 -> 2018-02-01 | H20: 2041-03-25 | I20: 2041-03-01 | J20: 2 | K20: 1 | L20: 1 | M20: 0 | N20: 0 | O20: 1 | P20: 0 | Q20: SN005 | R20: eseti | AK20: 5 | AL20: ='SN005'!J13 -> 0 | AM20: ='SN005'!L13 -> 0 | AN20: 0
A21: 3 | B21: 4 | C21: 13 | D21: 5 | E21: 0 | F21: 0 | G21: 2018-02-01 | H21: 2041-03-25 | I21: 2041-03-01 | J21: 2 | K21: 1 | L21: 1 | M21: 0 | N21: 0 | O21: 1 | P21: 0 | Q21: SN005 | R21: eseti nNYC | AK21: 6 | AL21: ='SN005'!J14 -> 0 | AM21: ='SN005'!L14 -> 0 | AN21: 0
A22: 4 | B22: 13 | C22: 14 | D22: 5 | E22: 0 | F22: 0 | G22: 2018-02-01 | H22: 2041-03-25 | I22: 2041-03-01 | J22: 2 | K22: 1 | L22: 1 | M22: 0 | N22: 0 | O22: 1 | P22: 0 | Q22: SN005 | R22: Adójóváírás | AK22: 7 | AL22: ='SN005'!J15 -> 0 | AM22: ='SN005'!L15 -> 0 | AN22: 0
AK23: 8 | AL23: ='SN005'!J16 -> 0 | AM23: ='SN005'!L16 -> 0 | AN23: 0
A24: fRiskNr | B24: fAccountNr | C24: fUnitType | D24: fTarifNr | E24: fRisk | F24: fIndexType | G24: fPremTabID | H24: fTransType | I24: fFormula | J24: fRiskBeg | K24: fRiskEnd | L24: fInsPers | M24: fSex | N24: fEntAge | O24: fSumIns | P24: fMinPolMo | Q24: fMaxPolMo | R24: fRound1 | S24: fRound2 | T24: fRound3 | U24: fRound4 | AK24: 9 | AL24: ='SN005'!J17 -> 0 | AM24: ='SN005'!L17 -> 0 | AN24: 0
AK25: 10 | AL25: ='SN005'!J18 -> 0 | AM25: ='SN005'!L18 -> 0 | AN25: 0
AK26: 11 | AL26: ='SN005'!J19 -> 0 | AM26: ='SN005'!L19 -> 0 | AN26: 0
AK27: 12 | AL27: ='SN005'!J20 -> 0 | AM27: ='SN005'!L20 -> 0 | AN27: 0
A28: fDiscNr | B28: fAccountNr | C28: fTransType | D28: fFundID | E28: fValidFrom | F28: fValidTo | G28: fCalcType | H28: fValue | AK28: 13 | AL28: ='SN005'!J21 -> 0 | AM28: ='SN005'!L21 -> 0 | AN28: 0
A29: 1 | B29: =1 -> 1 | C29: 202 | E29: =PolBeg -> 2018-02-01 | F29: =PolEnd -> 2041-03-25 | H29: =DiscFEL -> 0 | AK29: 14 | AL29: ='SN005'!J22 -> 0 | AM29: ='SN005'!L22 -> 0 | AN29: 0
AK30: 15 | AL30: ='SN005'!J23 -> 0 | AM30: ='SN005'!L23 -> 0 | AN30: 0
AK31: 16 | AL31: ='SN005'!J24 -> 0 | AM31: ='SN005'!L24 -> 0 | AN31: 0
A32: fID | B32: fYield | C32: fMoYield | D32: fValidFrom | E32: fValidTo | AK32: 17 | AL32: ='SN005'!J25 -> 0 | AM32: ='SN005'!L25 -> 0 | AN32: 0
A33: 1 | B33: =Yield -> 0.04 | C33: =+ROUND((1+B33)^(1/12)-1,8) -> 0.00327374 | D33: 2016-01-01 | E33: 2099-12-31 | AK33: 18 | AL33: ='SN005'!J26 -> 0 | AM33: ='SN005'!L26 -> 0 | AN33: 0
AK34: 19 | AL34: ='SN005'!J27 -> 0 | AM34: ='SN005'!L27 -> 0 | AN34: 0
A35: fAccountNr | B35: fTarifNr | C35: fUnitType | D35: fUnitTypeTo | E35: fELID | F35: fTransType | G35: fFormula | H35: fFundID | I35: fValidFrom | J35: fValidTo | K35: fValue | L35: fValue2 | M35: fMinValue | N35: fMaxValue | O35: fMinPolMo | P35: fMaxPolMo | Q35: fMinTerm | R35: fMaxTerm | S35: fMinPrm | T35: fMaxPrm | U35: fPayPa | V35: fPayMethod | W35: fRound1 | X35: fRound2 | Y35: fRound3 | Z35: fRound4 | AA35: fRound5 | AB35: fRound6 | AK35: 20 | AL35: ='SN005'!J28 -> 0 | AM35: ='SN005'!L28 -> 0 | AN35: 0
A36: 1 | B36: 11 | C36: 1 | D36: 0 | E36: 30 | F36: 202 | G36: 6 | H36: 0 | I36: 2016-01-01 | J36: 2116-12-31 | K36: 0.66 | L36: 12 | M36: 0 | N36: 0 | O36: 0 | P36: 12 | Q36: 120 | R36: 131 | S36: 0 | T36: 1000000000 | U36: 0 | V36: 0 | W36: 6 | X36: 0 | Y36: 0 | Z36: 0 | AA36: 0 | AB36: 0 | AK36: 21 | AL36: ='SN005'!J29 -> 0 | AM36: ='SN005'!L29 -> 0 | AN36: 0
A37: 1 | B37: 11 | C37: 1 | D37: 0 | E37: 30 | F37: 202 | G37: 6 | H37: 0 | I37: 2016-01-01 | J37: 2116-12-31 | K37: 0.08 | L37: 24 | M37: 0 | N37: 0 | O37: 0 | P37: 24 | Q37: 120 | R37: 131 | S37: 0 | T37: 1000000000 | U37: 0 | V37: 0 | W37: 6 | X37: 0 | Y37: 0 | Z37: 0 | AA37: 0 | AB37: 0 | AK37: 22 | AL37: ='SN005'!J30 -> 0 | AM37: ='SN005'!L30 -> 0 | AN37: 0
A38: 1 | B38: 11 | C38: 1 | D38: 0 | E38: 30 | F38: 202 | G38: 6 | H38: 0 | I38: 2016-01-01 | J38: 2116-12-31 | K38: 0.61 | L38: 12 | M38: 0 | N38: 0 | O38: 0 | P38: 12 | Q38: 132 | R38: 143 | S38: 0 | T38: 1000000000 | U38: 0 | V38: 0 | W38: 6 | X38: 0 | Y38: 0 | Z38: 0 | AA38: 0 | AB38: 0 | AK38: 23 | AL38: ='SN005'!J31 -> 0 | AM38: ='SN005'!L31 -> 0 | AN38: 0
A39: 1 | B39: 11 | C39: 1 | D39: 0 | E39: 30 | F39: 202 | G39: 6 | H39: 0 | I39: 2016-01-01 | J39: 2116-12-31 | K39: 0.13 | L39: 24 | M39: 0 | N39: 0 | O39: 0 | P39: 24 | Q39: 132 | R39: 143 | S39: 0 | T39: 1000000000 | U39: 0 | V39: 0 | W39: 6 | X39: 0 | Y39: 0 | Z39: 0 | AA39: 0 | AB39: 0 | AK39: 24 | AL39: ='SN005'!J32 -> 0 | AM39: ='SN005'!L32 -> 0 | AN39: 0
A40: 1 | B40: 11 | C40: 1 | D40: 0 | E40: 30 | F40: 202 | G40: 6 | H40: 0 | I40: 2016-01-01 | J40: 2116-12-31 | K40: 0.56 | L40: 12 | M40: 0 | N40: 0 | O40: 0 | P40: 12 | Q40: 144 | R40: 155 | S40: 0 | T40: 1000000000 | U40: 0 | V40: 0 | W40: 6 | X40: 0 | Y40: 0 | Z40: 0 | AA40: 0 | AB40: 0 | AK40: 25 | AL40: ='SN005'!J33 -> 0 | AM40: ='SN005'!L33 -> 0 | AN40: 0
A41: 1 | B41: 11 | C41: 1 | D41: 0 | E41: 30 | F41: 202 | G41: 6 | H41: 0 | I41: 2016-01-01 | J41: 2116-12-31 | K41: 0.18 | L41: 24 | M41: 0 | N41: 0 | O41: 0 | P41: 24 | Q41: 144 | R41: 155 | S41: 0 | T41: 1000000000 | U41: 0 | V41: 0 | W41: 6 | X41: 0 | Y41: 0 | Z41: 0 | AA41: 0 | AB41: 0 | AK41: 26 | AL41: ='SN005'!J34 -> 0 | AM41: ='SN005'!L34 -> 0 | AN41: 0
A42: 1 | B42: 11 | C42: 1 | D42: 0 | E42: 30 | F42: 202 | G42: 6 | H42: 0 | I42: 2016-01-01 | J42: 2116-12-31 | K42: 0.51 | L42: 12 | M42: 0 | N42: 0 | O42: 0 | P42: 12 | Q42: 156 | R42: 167 | S42: 0 | T42: 1000000000 | U42: 0 | V42: 0 | W42: 6 | X42: 0 | Y42: 0 | Z42: 0 | AA42: 0 | AB42: 0 | AK42: 27 | AL42: ='SN005'!J35 -> 0 | AM42: ='SN005'!L35 -> 0 | AN42: 0
A43: 1 | B43: 11 | C43: 1 | D43: 0 | E43: 30 | F43: 202 | G43: 6 | H43: 0 | I43: 2016-01-01 | J43: 2116-12-31 | K43: 0.23 | L43: 24 | M43: 0 | N43: 0 | O43: 0 | P43: 24 | Q43: 156 | R43: 167 | S43: 0 | T43: 1000000000 | U43: 0 | V43: 0 | W43: 6 | X43: 0 | Y43: 0 | Z43: 0 | AA43: 0 | AB43: 0 | AK43: 28 | AL43: ='SN005'!J36 -> 0 | AM43: ='SN005'!L36 -> 0 | AN43: 0
A44: 1 | B44: 11 | C44: 1 | D44: 0 | E44: 30 | F44: 202 | G44: 6 | H44: 0 | I44: 2016-01-01 | J44: 2116-12-31 | K44: 0.46 | L44: 12 | M44: 0 | N44: 0 | O44: 0 | P44: 12 | Q44: 168 | R44: 179 | S44: 0 | T44: 1000000000 | U44: 0 | V44: 0 | W44: 6 | X44: 0 | Y44: 0 | Z44: 0 | AA44: 0 | AB44: 0 | AK44: 29 | AL44: ='SN005'!J37 -> 0 | AM44: ='SN005'!L37 -> 0 | AN44: 0
A45: 1 | B45: 11 | C45: 1 | D45: 0 | E45: 30 | F45: 202 | G45: 6 | H45: 0 | I45: 2016-01-01 | J45: 2116-12-31 | K45: 0.28 | L45: 24 | M45: 0 | N45: 0 | O45: 0 | P45: 24 | Q45: 168 | R45: 179 | S45: 0 | T45: 1000000000 | U45: 0 | V45: 0 | W45: 6 | X45: 0 | Y45: 0 | Z45: 0 | AA45: 0 | AB45: 0 | AK45: 30 | AL45: ='SN005'!J38 -> 0 | AM45: ='SN005'!L38 -> 0 | AN45: 0
A46: 1 | B46: 11 | C46: 1 | D46: 0 | E46: 30 | F46: 202 | G46: 6 | H46: 0 | I46: 2016-01-01 | J46: 2116-12-31 | K46: 0.41 | L46: 12 | M46: 0 | N46: 0 | O46: 0 | P46: 12 | Q46: 180 | R46: 191 | S46: 0 | T46: 1000000000 | U46: 0 | V46: 0 | W46: 6 | X46: 0 | Y46: 0 | Z46: 0 | AA46: 0 | AB46: 0 | AK46: 31 | AL46: ='SN005'!J39 -> 0 | AM46: ='SN005'!L39 -> 0 | AN46: 0
A47: 1 | B47: 11 | C47: 1 | D47: 0 | E47: 30 | F47: 202 | G47: 6 | H47: 0 | I47: 2016-01-01 | J47: 2116-12-31 | K47: 0.33 | L47: 24 | M47: 0 | N47: 0 | O47: 0 | P47: 24 | Q47: 180 | R47: 191 | S47: 0 | T47: 1000000000 | U47: 0 | V47: 0 | W47: 6 | X47: 0 | Y47: 0 | Z47: 0 | AA47: 0 | AB47: 0 | AK47: 32 | AL47: ='SN005'!J40 -> 0 | AM47: ='SN005'!L40 -> 0 | AN47: 0
A48: 1 | B48: 11 | C48: 1 | D48: 0 | E48: 30 | F48: 202 | G48: 6 | H48: 0 | I48: 2016-01-01 | J48: 2116-12-31 | K48: 0.36 | L48: 12 | M48: 0 | N48: 0 | O48: 0 | P48: 12 | Q48: 192 | R48: 203 | S48: 0 | T48: 1000000000 | U48: 0 | V48: 0 | W48: 6 | X48: 0 | Y48: 0 | Z48: 0 | AA48: 0 | AB48: 0 | AK48: 33 | AL48: ='SN005'!J41 -> 0 | AM48: ='SN005'!L41 -> 0 | AN48: 0
A49: 1 | B49: 11 | C49: 1 | D49: 0 | E49: 30 | F49: 202 | G49: 6 | H49: 0 | I49: 2016-01-01 | J49: 2116-12-31 | K49: 0.38 | L49: 24 | M49: 0 | N49: 0 | O49: 0 | P49: 24 | Q49: 192 | R49: 203 | S49: 0 | T49: 1000000000 | U49: 0 | V49: 0 | W49: 6 | X49: 0 | Y49: 0 | Z49: 0 | AA49: 0 | AB49: 0 | AK49: 34 | AL49: ='SN005'!J42 -> 0 | AM49: ='SN005'!L42 -> 0 | AN49: 0
A50: 1 | B50: 11 | C50: 1 | D50: 0 | E50: 30 | F50: 202 | G50: 6 | H50: 0 | I50: 2016-01-01 | J50: 2116-12-31 | K50: 0.31 | L50: 12 | M50: 0 | N50: 0 | O50: 0 | P50: 12 | Q50: 204 | R50: 215 | S50: 0 | T50: 1000000000 | U50: 0 | V50: 0 | W50: 6 | X50: 0 | Y50: 0 | Z50: 0 | AA50: 0 | AB50: 0 | AK50: 35 | AL50: ='SN005'!J43 -> 0 | AM50: ='SN005'!L43 -> 0 | AN50: 0
A51: 1 | B51: 11 | C51: 1 | D51: 0 | E51: 30 | F51: 202 | G51: 6 | H51: 0 | I51: 2016-01-01 | J51: 2116-12-31 | K51: 0.43 | L51: 24 | M51: 0 | N51: 0 | O51: 0 | P51: 24 | Q51: 204 | R51: 215 | S51: 0 | T51: 1000000000 | U51: 0 | V51: 0 | W51: 6 | X51: 0 | Y51: 0 | Z51: 0 | AA51: 0 | AB51: 0 | AK51: 36 | AL51: ='SN005'!J44 -> 0 | AM51: ='SN005'!L44 -> 0 | AN51: 0
A52: 1 | B52: 11 | C52: 1 | D52: 0 | E52: 30 | F52: 202 | G52: 6 | H52: 0 | I52: 2016-01-01 | J52: 2116-12-31 | K52: 0.3 | L52: 12 | M52: 0 | N52: 0 | O52: 0 | P52: 12 | Q52: 216 | R52: 1200 | S52: 0 | T52: 1000000000 | U52: 0 | V52: 0 | W52: 6 | X52: 0 | Y52: 0 | Z52: 0 | AA52: 0 | AB52: 0 | AK52: 37 | AL52: ='SN005'!J45 -> 0 | AM52: ='SN005'!L45 -> 0 | AN52: 0
A53: 1 | B53: 11 | C53: 1 | D53: 0 | E53: 30 | F53: 202 | G53: 6 | H53: 0 | I53: 2016-01-01 | J53: 2116-12-31 | K53: 0.4 | L53: 24 | M53: 0 | N53: 0 | O53: 0 | P53: 24 | Q53: 216 | R53: 227 | S53: 0 | T53: 1000000000 | U53: 0 | V53: 0 | W53: 6 | X53: 0 | Y53: 0 | Z53: 0 | AA53: 0 | AB53: 0 | AK53: 38 | AL53: ='SN005'!J46 -> 0 | AM53: ='SN005'!L46 -> 0 | AN53: 0
A54: 1 | B54: 11 | C54: 1 | D54: 0 | E54: 30 | F54: 202 | G54: 6 | H54: 0 | I54: 2016-01-01 | J54: 2116-12-31 | K54: 0.04 | L54: 36 | M54: 0 | N54: 0 | O54: 0 | P54: 36 | Q54: 216 | R54: 227 | S54: 0 | T54: 1000000000 | U54: 0 | V54: 0 | W54: 6 | X54: 0 | Y54: 0 | Z54: 0 | AA54: 0 | AB54: 0 | AK54: 39 | AL54: ='SN005'!J47 -> 0 | AM54: ='SN005'!L47 -> 0 | AN54: 0
A55: 1 | B55: 11 | C55: 1 | D55: 0 | E55: 30 | F55: 202 | G55: 6 | H55: 0 | I55: 2016-01-01 | J55: 2116-12-31 | K55: 0.35 | L55: 24 | M55: 0 | N55: 0 | O55: 0 | P55: 24 | Q55: 228 | R55: 239 | S55: 0 | T55: 1000000000 | U55: 0 | V55: 0 | W55: 6 | X55: 0 | Y55: 0 | Z55: 0 | AA55: 0 | AB55: 0 | AK55: 40 | AL55: ='SN005'!J48 -> 0 | AM55: ='SN005'!L48 -> 0 | AN55: 0
A56: 1 | B56: 11 | C56: 1 | D56: 0 | E56: 30 | F56: 202 | G56: 6 | H56: 0 | I56: 2016-01-01 | J56: 2116-12-31 | K56: 0.09 | L56: 36 | M56: 0 | N56: 0 | O56: 0 | P56: 36 | Q56: 228 | R56: 239 | S56: 0 | T56: 1000000000 | U56: 0 | V56: 0 | W56: 6 | X56: 0 | Y56: 0 | Z56: 0 | AA56: 0 | AB56: 0 | AK56: 41 | AL56: ='SN005'!J49 -> 0 | AM56: ='SN005'!L49 -> 0 | AN56: 0
A57: 1 | B57: 11 | C57: 1 | D57: 0 | E57: 30 | F57: 202 | G57: 6 | H57: 0 | I57: 2016-01-01 | J57: 2116-12-31 | K57: 0.3 | L57: 24 | M57: 0 | N57: 0 | O57: 0 | P57: 24 | Q57: 240 | R57: 1200 | S57: 0 | T57: 1000000000 | U57: 0 | V57: 0 | W57: 6 | X57: 0 | Y57: 0 | Z57: 0 | AA57: 0 | AB57: 0 | AK57: 42 | AL57: ='SN005'!J50 -> 0 | AM57: ='SN005'!L50 -> 0 | AN57: 0
A58: 1 | B58: 11 | C58: 1 | D58: 0 | E58: 30 | F58: 202 | G58: 6 | H58: 0 | I58: 2016-01-01 | J58: 2116-12-31 | K58: 0.14 | L58: 36 | M58: 0 | N58: 0 | O58: 0 | P58: 36 | Q58: 240 | R58: 1200 | S58: 0 | T58: 1000000000 | U58: 0 | V58: 0 | W58: 6 | X58: 0 | Y58: 0 | Z58: 0 | AA58: 0 | AB58: 0 | AK58: 43 | AL58: ='SN005'!J51 -> 0 | AM58: ='SN005'!L51 -> 0 | AN58: 0
A59: 1 | B59: 11 | C59: 1 | D59: 0 | E59: 22 | F59: 203 | G59: 11 | H59: 0 | I59: 2016-01-01 | J59: 2116-12-31 | K59: 0.06 | L59: 0 | M59: 0 | N59: 2000000000 | O59: 0 | P59: 1200 | Q59: 0 | R59: 0 | S59: 0 | T59: 2000000000 | U59: 0 | V59: 0 | W59: 6 | X59: 0 | Y59: 0 | Z59: 0 | AA59: 0 | AB59: 0 | AK59: 44 | AL59: ='SN005'!J52 -> 0 | AM59: ='SN005'!L52 -> 0 | AN59: 0
A60: 1 | B60: 11 | C60: 1 | D60: 0 | E60: 27 | F60: 225 | G60: 9 | H60: 2690 | I60: 2016-01-01 | J60: 2116-12-31 | K60: 0.00166667 | L60: 0 | M60: 0 | N60: 0 | O60: 37 | P60: 1200 | Q60: 0 | R60: 0 | S60: 0 | T60: 1000000000 | U60: 0 | V60: 0 | W60: 8 | X60: 0 | Y60: 0 | Z60: 0 | AA60: 0 | AB60: 0 | AK60: 45 | AL60: ='SN005'!J53 -> 0 | AM60: ='SN005'!L53 -> 0 | AN60: 0
A61: 1 | B61: 11 | C61: 3 | D61: 0 | E61: 28 | F61: 225 | G61: 9 | H61: 2690 | I61: 2016-01-01 | J61: 2116-12-31 | K61: 0.00166667 | L61: 0 | M61: 0 | N61: 0 | O61: 0 | P61: 1200 | Q61: 0 | R61: 0 | S61: 0 | T61: 1000000000 | U61: 0 | V61: 0 | W61: 8 | X61: 0 | Y61: 0 | Z61: 0 | AA61: 0 | AB61: 0 | AK61: 46 | AL61: ='SN005'!J54 -> 0 | AM61: ='SN005'!L54 -> 0 | AN61: 0
A62: 1 | B62: 11 | C62: 1 | D62: 0 | E62: 15 | F62: 260 | G62: 7 | H62: 0 | I62: 2016-01-01 | J62: 2116-12-31 | K62: 0.003 | L62: 0 | M62: 300 | N62: 1500 | O62: 0 | P62: 1200 | Q62: 0 | R62: 0 | S62: 0 | T62: 1000000000 | U62: 0 | V62: 0 | W62: 6 | X62: 0 | Y62: 0 | Z62: 0 | AA62: 0 | AB62: 0 | AK62: 47 | AL62: ='SN005'!J55 -> 0 | AM62: ='SN005'!L55 -> 0 | AN62: 0
A63: 1 | B63: 11 | C63: 3 | D63: 0 | E63: 17 | F63: 262 | G63: 5 | H63: 0 | I63: 2016-01-01 | J63: 2116-12-31 | K63: 1 | L63: 0 | M63: 0 | N63: 0 | O63: 1 | P63: 1200 | Q63: 0 | R63: 0 | S63: 0 | T63: 1000000000 | U63: 0 | V63: 0 | W63: 6 | X63: 0 | Y63: 0 | Z63: 0 | AA63: 0 | AB63: 0 | AK63: 48 | AL63: ='SN005'!J56 -> 0 | AM63: ='SN005'!L56 -> 0 | AN63: 0
A64: 1 | B64: 11 | C64: 1 | D64: 3 | E64: 33 | F64: 801 | G64: 5 | H64: 0 | I64: 2016-01-01 | J64: 2116-12-31 | K64: -0.01 | L64: 0 | M64: 0 | N64: 0 | O64: 0 | P64: 1200 | Q64: 0 | R64: 0 | S64: 300000 | T64: 2000000000 | U64: 0 | V64: 0 | W64: 6 | X64: 0 | Y64: 0 | Z64: 0 | AA64: 0 | AB64: 0 | AK64: 49 | AL64: ='SN005'!J57 -> 0 | AM64: ='SN005'!L57 -> 0 | AN64: 0
A65: 1 | B65: 11 | C65: 3 | D65: 3 | E65: 26 | F65: 803 | G65: 4 | H65: 0 | I65: 2016-01-01 | J65: 2116-12-31 | K65: -0.05 | L65: 0 | M65: 0 | N65: 0 | O65: 37 | P65: 180 | Q65: 0 | R65: 0 | S65: 0 | T65: 1000000000 | U65: 0 | V65: 0 | W65: 6 | X65: 0 | Y65: 0 | Z65: 0 | AA65: 0 | AB65: 0 | AK65: 50 | AL65: ='SN005'!J58 -> 0 | AM65: ='SN005'!L58 -> 0 | AN65: 0
A66: 1 | B66: 11 | C66: 3 | D66: 3 | E66: 26 | F66: 803 | G66: 4 | H66: 0 | I66: 2016-01-01 | J66: 2116-12-31 | K66: -0.08 | L66: 0 | M66: 0 | N66: 0 | O66: 181 | P66: 240 | Q66: 0 | R66: 0 | S66: 0 | T66: 1000000000 | U66: 0 | V66: 0 | W66: 6 | X66: 0 | Y66: 0 | Z66: 0 | AA66: 0 | AB66: 0 | AK66: 51 | AL66: ='SN005'!J59 -> 0 | AM66: ='SN005'!L59 -> 0 | AN66: 0
A67: 1 | B67: 11 | C67: 1 | D67: 3 | E67: 32 | F67: 804 | G67: 5 | H67: 0 | I67: 2016-01-01 | J67: 2116-12-31 | K67: -0.01 | L67: 0 | M67: 0 | N67: 0 | O67: 0 | P67: 1200 | Q67: 0 | R67: 0 | S67: 0 | T67: 2000000000 | U67: 0 | V67: 1 | W67: 6 | X67: 0 | Y67: 0 | Z67: 0 | AA67: 0 | AB67: 0 | AK67: 52 | AL67: ='SN005'!J60 -> 0 | AM67: ='SN005'!L60 -> 0 | AN67: 0
A68: 1 | B68: 11 | C68: 1 | D68: 3 | E68: 32 | F68: 804 | G68: 5 | H68: 0 | I68: 2016-01-01 | J68: 2116-12-31 | K68: -0.01 | L68: 0 | M68: 0 | N68: 0 | O68: 0 | P68: 1200 | Q68: 0 | R68: 0 | S68: 0 | T68: 2000000000 | U68: 0 | V68: 2 | W68: 6 | X68: 0 | Y68: 0 | Z68: 0 | AA68: 0 | AB68: 0 | AK68: 53 | AL68: ='SN005'!J61 -> 0 | AM68: ='SN005'!L61 -> 0 | AN68: 0
A69: 1 | B69: 11 | C69: 3 | D69: 0 | E69: 111 | F69: 850 | G69: 10 | H69: 0 | I69: 2016-01-01 | J69: 2116-12-31 | K69: 1000000 | L69: 0 | M69: 0 | N69: 0 | O69: 0 | P69: 1200 | Q69: 0 | R69: 0 | S69: 0 | T69: 2000000000 | U69: 0 | V69: 0 | W69: 0 | X69: 0 | Y69: 0 | Z69: 0 | AA69: 0 | AB69: 0 | AK69: 54 | AL69: ='SN005'!J62 -> 0 | AM69: ='SN005'!L62 -> 0 | AN69: 0
A70: 1 | B70: 11 | C70: 1 | D70: 1 | E70: 112 | F70: 899 | G70: 5 | H70: 1 | I70: 2016-01-01 | J70: 2116-12-31 | K70: =-VLOOKUP(Portfolio,$E$10:$G$13,3) -> -2.274e-05 | L70: 0 | M70: 6 | N70: 3 | O70: 0 | P70: 1200 | Q70: 0 | R70: 0 | S70: 0 | T70: 2000000000 | U70: 0 | V70: 0 | W70: 8 | X70: 0 | Y70: 0 | Z70: 0 | AA70: 0 | AB70: 0 | AK70: 55 | AL70: ='SN005'!J63 -> 0 | AM70: ='SN005'!L63 -> 0 | AN70: 0
A71: 1 | B71: 11 | C71: 3 | D71: 1 | E71: 112 | F71: 899 | G71: 5 | H71: 1 | I71: 2016-01-01 | J71: 2116-12-31 | K71: =+K70 -> -2.274e-05 | L71: 0 | M71: 6 | N71: 3 | O71: 0 | P71: 1200 | Q71: 0 | R71: 0 | S71: 0 | T71: 2000000000 | U71: 0 | V71: 0 | W71: 8 | X71: 0 | Y71: 0 | Z71: 0 | AA71: 0 | AB71: 0
A72: 1 | B72: 11 | C72: 3 | D72: 1 | E72: 36 | F72: 950 | G72: 5 | H72: 0 | I72: 2016-01-01 | J72: 2116-12-31 | K72: 0.5 | L72: 0 | M72: 0 | N72: 0 | O72: 121 | P72: 121 | Q72: 0 | R72: 0 | S72: 0 | T72: 1000000000 | U72: 0 | V72: 0 | W72: 6 | X72: 0 | Y72: 0 | Z72: 0 | AA72: 0 | AB72: 0
A73: 1 | B73: 11 | C73: 3 | D73: 1 | E73: 36 | F73: 950 | G73: 5 | H73: 0 | I73: 2016-01-01 | J73: 2116-12-31 | K73: 0.5 | L73: 0 | M73: 0 | N73: 0 | O73: 181 | P73: 181 | Q73: 0 | R73: 0 | S73: 0 | T73: 1000000000 | U73: 0 | V73: 0 | W73: 6 | X73: 0 | Y73: 0 | Z73: 0 | AA73: 0 | AB73: 0
A74: 1 | B74: 11 | C74: 3 | D74: 1 | E74: 36 | F74: 950 | G74: 5 | H74: 0 | I74: 2016-01-01 | J74: 2116-12-31 | K74: 0.5 | L74: 0 | M74: 0 | N74: 0 | O74: 241 | P74: 241 | Q74: 0 | R74: 0 | S74: 0 | T74: 1000000000 | U74: 0 | V74: 0 | W74: 6 | X74: 0 | Y74: 0 | Z74: 0 | AA74: 0 | AB74: 0
A75: 1 | B75: 11 | C75: 3 | D75: 1 | E75: 36 | F75: 950 | G75: 5 | H75: 0 | I75: 2016-01-01 | J75: 2116-12-31 | K75: 0.5 | L75: 0 | M75: 0 | N75: 0 | O75: 301 | P75: 301 | Q75: 0 | R75: 0 | S75: 0 | T75: 1000000000 | U75: 0 | V75: 0 | W75: 6 | X75: 0 | Y75: 0 | Z75: 0 | AA75: 0 | AB75: 0
A76: 1 | B76: 11 | C76: 3 | D76: 1 | E76: 36 | F76: 950 | G76: 5 | H76: 0 | I76: 2016-01-01 | J76: 2116-12-31 | K76: 0.5 | L76: 0 | M76: 0 | N76: 0 | O76: 361 | P76: 361 | Q76: 0 | R76: 0 | S76: 0 | T76: 1000000000 | U76: 0 | V76: 0 | W76: 6 | X76: 0 | Y76: 0 | Z76: 0 | AA76: 0 | AB76: 0
A77: 1 | B77: 11 | C77: 3 | D77: 1 | E77: 36 | F77: 950 | G77: 5 | H77: 0 | I77: 2016-01-01 | J77: 2116-12-31 | K77: 0.5 | L77: 0 | M77: 0 | N77: 0 | O77: 421 | P77: 421 | Q77: 0 | R77: 0 | S77: 0 | T77: 1000000000 | U77: 0 | V77: 0 | W77: 6 | X77: 0 | Y77: 0 | Z77: 0 | AA77: 0 | AB77: 0
A78: 1 | B78: 11 | C78: 3 | D78: 1 | E78: 36 | F78: 950 | G78: 5 | H78: 0 | I78: 2016-01-01 | J78: 2116-12-31 | K78: 0.5 | L78: 0 | M78: 0 | N78: 0 | O78: 481 | P78: 481 | Q78: 0 | R78: 0 | S78: 0 | T78: 1000000000 | U78: 0 | V78: 0 | W78: 6 | X78: 0 | Y78: 0 | Z78: 0 | AA78: 0 | AB78: 0
A79: 1 | B79: 11 | C79: 3 | D79: 1 | E79: 36 | F79: 950 | G79: 5 | H79: 0 | I79: 2016-01-01 | J79: 2116-12-31 | K79: 0.5 | L79: 0 | M79: 0 | N79: 0 | O79: 541 | P79: 541 | Q79: 0 | R79: 0 | S79: 0 | T79: 1000000000 | U79: 0 | V79: 0 | W79: 6 | X79: 0 | Y79: 0 | Z79: 0 | AA79: 0 | AB79: 0
A80: 2 | B80: 12 | C80: 4 | D80: 0 | E80: 31 | F80: 203 | G80: 11 | H80: 0 | I80: 2016-01-01 | J80: 2116-12-31 | K80: 0.01 | L80: 0 | M80: 0 | N80: 3000000 | O80: 0 | P80: 1200 | Q80: 0 | R80: 0 | S80: 0 | T80: 2000000000 | U80: 0 | V80: 0 | W80: 6 | X80: 0 | Y80: 0 | Z80: 0 | AA80: 0 | AB80: 0
A81: 2 | B81: 12 | C81: 4 | D81: 0 | E81: 31 | F81: 203 | G81: 11 | H81: 0 | I81: 2016-01-01 | J81: 2116-12-31 | K81: 0.01 | L81: 0 | M81: 0 | N81: 10000000 | O81: 0 | P81: 1200 | Q81: 0 | R81: 0 | S81: 0 | T81: 2000000000 | U81: 0 | V81: 0 | W81: 6 | X81: 0 | Y81: 0 | Z81: 0 | AA81: 0 | AB81: 0
A82: 2 | B82: 12 | C82: 4 | D82: 0 | E82: 31 | F82: 203 | G82: 11 | H82: 0 | I82: 2016-01-01 | J82: 2116-12-31 | K82: 0.01 | L82: 0 | M82: 0 | N82: 2000000000 | O82: 0 | P82: 1200 | Q82: 0 | R82: 0 | S82: 0 | T82: 2000000000 | U82: 0 | V82: 0 | W82: 6 | X82: 0 | Y82: 0 | Z82: 0 | AA82: 0 | AB82: 0
A83: 2 | B83: 12 | C83: 4 | D83: 0 | E83: 27 | F83: 225 | G83: 9 | H83: 2690 | I83: 2016-01-01 | J83: 2116-12-31 | K83: 0.00166667 | L83: 0 | M83: 0 | N83: 0 | O83: 0 | P83: 1200 | Q83: 0 | R83: 0 | S83: 0 | T83: 1000000000 | U83: 0 | V83: 0 | W83: 8 | X83: 0 | Y83: 0 | Z83: 0 | AA83: 0 | AB83: 0
A84: 2 | B84: 12 | C84: 4 | D84: 0 | E84: 16 | F84: 260 | G84: 7 | H84: 0 | I84: 2016-01-01 | J84: 2116-12-31 | K84: 0.003 | L84: 0 | M84: 300 | N84: 1500 | O84: 0 | P84: 1200 | Q84: 0 | R84: 0 | S84: 0 | T84: 1000000000 | U84: 0 | V84: 0 | W84: 6 | X84: 0 | Y84: 0 | Z84: 0 | AA84: 0 | AB84: 0
A85: 2 | B85: 12 | C85: 4 | D85: 4 | E85: 112 | F85: 899 | G85: 5 | H85: 1 | I85: 2016-01-01 | J85: 2116-12-31 | K85: =-VLOOKUP(Portfolio,$E$10:$G$13,3) -> -2.274e-05 | L85: 0 | M85: 0 | N85: 0 | O85: 0 | P85: 1200 | Q85: 0 | R85: 0 | S85: 0 | T85: 2000000000 | U85: 0 | V85: 0 | W85: 8 | X85: 0 | Y85: 0 | Z85: 0 | AA85: 0 | AB85: 0
A86: 3 | B86: 13 | C86: 4 | D86: 0 | E86: 31 | F86: 203 | G86: 11 | H86: 0 | I86: 2016-01-01 | J86: 2116-12-31 | K86: 0.01 | L86: 0 | M86: 0 | N86: 3000000 | O86: 0 | P86: 1200 | Q86: 0 | R86: 0 | S86: 0 | T86: 2000000000 | U86: 0 | V86: 0 | W86: 6 | X86: 0 | Y86: 0 | Z86: 0 | AA86: 0 | AB86: 0
A87: 3 | B87: 13 | C87: 4 | D87: 0 | E87: 31 | F87: 203 | G87: 11 | H87: 0 | I87: 2016-01-01 | J87: 2116-12-31 | K87: 0.01 | L87: 0 | M87: 0 | N87: 10000000 | O87: 0 | P87: 1200 | Q87: 0 | R87: 0 | S87: 0 | T87: 2000000000 | U87: 0 | V87: 0 | W87: 6 | X87: 0 | Y87: 0 | Z87: 0 | AA87: 0 | AB87: 0
A88: 3 | B88: 13 | C88: 4 | D88: 0 | E88: 31 | F88: 203 | G88: 11 | H88: 0 | I88: 2016-01-01 | J88: 2116-12-31 | K88: 0.01 | L88: 0 | M88: 0 | N88: 2000000000 | O88: 0 | P88: 1200 | Q88: 0 | R88: 0 | S88: 0 | T88: 2000000000 | U88: 0 | V88: 0 | W88: 6 | X88: 0 | Y88: 0 | Z88: 0 | AA88: 0 | AB88: 0
A89: 3 | B89: 13 | C89: 4 | D89: 0 | E89: 27 | F89: 225 | G89: 9 | H89: 2690 | I89: 2016-01-01 | J89: 2116-12-31 | K89: 0.00166667 | L89: 0 | M89: 0 | N89: 0 | O89: 0 | P89: 1200 | Q89: 0 | R89: 0 | S89: 0 | T89: 1000000000 | U89: 0 | V89: 0 | W89: 8 | X89: 0 | Y89: 0 | Z89: 0 | AA89: 0 | AB89: 0
A90: 3 | B90: 13 | C90: 4 | D90: 0 | E90: 16 | F90: 260 | G90: 7 | H90: 0 | I90: 2016-01-01 | J90: 2116-12-31 | K90: 0.003 | L90: 0 | M90: 300 | N90: 1500 | O90: 0 | P90: 1200 | Q90: 0 | R90: 0 | S90: 0 | T90: 1000000000 | U90: 0 | V90: 0 | W90: 6 | X90: 0 | Y90: 0 | Z90: 0 | AA90: 0 | AB90: 0
A91: 3 | B91: 13 | C91: 4 | D91: 4 | E91: 112 | F91: 899 | G91: 5 | H91: 1 | I91: 2016-01-01 | J91: 2116-12-31 | K91: =-VLOOKUP(Portfolio,$E$10:$G$13,3) -> -2.274e-05 | L91: 0 | M91: 0 | N91: 0 | O91: 0 | P91: 1200 | Q91: 0 | R91: 0 | S91: 0 | T91: 2000000000 | U91: 0 | V91: 0 | W91: 8 | X91: 0 | Y91: 0 | Z91: 0 | AA91: 0 | AB91: 0
A92: 4 | B92: 14 | C92: 5 | D92: 0 | E92: 27 | F92: 225 | G92: 9 | H92: 2690 | I92: 2016-01-01 | J92: 2116-12-31 | K92: 0.00166667 | L92: 0 | M92: 0 | N92: 0 | O92: 0 | P92: 1200 | Q92: 0 | R92: 0 | S92: 0 | T92: 1000000000 | U92: 0 | V92: 0 | W92: 8 | X92: 0 | Y92: 0 | Z92: 0 | AA92: 0 | AB92: 0
A93: 4 | B93: 14 | C93: 5 | D93: 5 | E93: 112 | F93: 899 | G93: 5 | H93: 1 | I93: 2016-01-01 | J93: 2116-12-31 | K93: =-VLOOKUP(Portfolio,$E$10:$G$13,3) -> -2.274e-05 | L93: 0 | M93: 0 | N93: 0 | O93: 0 | P93: 1200 | Q93: 0 | R93: 0 | S93: 0 | T93: 2000000000 | U93: 0 | V93: 0 | W93: 8 | X93: 0 | Y93: 0 | Z93: 0 | AA93: 0 | AB93: 0

Sheet oData (hidden)
A1: fAccountNr | B1: fPremiumType | C1: fPrmStatus | D1: fPremiumSum | E1: fPremiumFrom | F1: fPremiumTo | G1: fInvestDate | I1: fID | J1: fAccountID | K1: fPolBodyNr | L1: fUnitType | M1: fInsPers | N1: fFromID | O1: fFundID | P1: fTransType | Q1: fFormula | R1: fValue1 | S1: fValue2 | T1: fValue3 | U1: fValue4 | V1: fValue5 | W1: fValue6 | X1: fValidFrom | Y1: fValidTo
A2: 1 | B2: 101 | C2: 3 | D2: 30000 | E2: 2018-02-01 | F2: 2018-03-01 | G2: 2018-02-01 | I2: 1 | J2: 1 | K2: 1 | L2: 1 | M2: 0 | N2: 30 | O2: 0 | P2: 202 | Q2: 6 | R2: 0.3 | S2: 0 | T2: 108000 | U2: 12 | V2: 108000 | W2: 0 | X2: 2018-01-01 | Y2: 2041-02-28
A3: 1 | B3: 101 | C3: 3 | D3: 30000 | E3: 2018-03-01 | F3: 2018-04-01 | G3: 2018-03-01 | I3: 2 | J3: 1 | K3: 1 | L3: 1 | M3: 0 | N3: 30 | O3: 0 | P3: 202 | Q3: 6 | R3: 0.3 | S3: 0 | T3: 221400 | U3: 24 | V3: 221400 | W3: 0 | X3: 2018-01-01 | Y3: 2041-02-28
A4: 1 | B4: 101 | C4: 3 | D4: 30000 | E4: 2018-04-01 | F4: 2018-05-01 | G4: 2018-04-01 | I4: 3 | J4: 1 | K4: 1 | L4: 1 | M4: 0 | N4: 30 | O4: 0 | P4: 202 | Q4: 6 | R4: 0.14 | S4: 0 | T4: 158886 | U4: 36 | V4: 158886 | W4: 0 | X4: 2018-01-01 | Y4: 2041-02-28
A5: 1 | B5: 101 | C5: 3 | D5: 30000 | E5: 2018-05-01 | F5: 2018-06-01 | G5: 2018-05-01 | I5: 4 | J5: 1 | K5: 1 | L5: 1 | M5: 0 | N5: 22 | O5: 0 | P5: 203 | Q5: 11 | R5: 0.06 | S5: 2000000000 | T5: 0 | U5: 0 | V5: 0 | W5: 0 | X5: 2018-01-01 | Y5: 2041-02-28
A6: 1 | B6: 101 | C6: 3 | D6: 30000 | E6: 2018-06-01 | F6: 2018-07-01 | G6: 2018-06-01 | I6: 5 | J6: 1 | K6: 1 | L6: 3 | M6: 0 | N6: 28 | O6: 2690 | P6: 225 | Q6: 9 | R6: 0.00166667 | S6: 0 | T6: 1200 | U6: 0 | V6: 0 | W6: 0 | X6: 2018-02-01 | Y6: 2041-02-28
A7: 1 | B7: 101 | C7: 3 | D7: 30000 | E7: 2018-07-01 | F7: 2018-08-01 | G7: 2018-07-01 | I7: 6 | J7: 1 | K7: 1 | L7: 1 | M7: 0 | N7: 15 | O7: 0 | P7: 260 | Q7: 7 | R7: 0.003 | S7: 300 | T7: 1500 | U7: 0 | V7: 0 | W7: 0 | X7: 2018-02-01 | Y7: 2041-02-28
A8: 1 | B8: 101 | C8: 3 | D8: 30000 | E8: 2018-08-01 | F8: 2018-09-01 | G8: 2018-08-01 | I8: 7 | J8: 1 | K8: 1 | L8: 3 | M8: 0 | N8: 17 | O8: 0 | P8: 262 | Q8: 5 | R8: 1 | S8: 0 | T8: 0 | U8: 0 | V8: 0 | W8: 0 | X8: 2018-02-01 | Y8: 2041-02-28
A9: 1 | B9: 101 | C9: 3 | D9: 30000 | E9: 2018-09-01 | F9: 2018-10-01 | G9: 2018-09-01 | I9: 8 | J9: 1 | K9: 1 | L9: 1 | M9: 0 | N9: 33 | O9: 0 | P9: 801 | Q9: 5 | R9: -0.01 | S9: 0 | T9: 0 | U9: 0 | V9: 0 | W9: 3 | X9: 2018-01-01 | Y9: 2041-02-28
A10: 1 | B10: 101 | C10: 3 | D10: 30000 | E10: 2018-10-01 | F10: 2018-11-01 | G10: 2018-10-01 | I10: 9 | J10: 1 | K10: 1 | L10: 1 | M10: 0 | N10: 32 | O10: 0 | P10: 804 | Q10: 5 | R10: -0.01 | S10: 0 | T10: 0 | U10: 0 | V10: 0 | W10: 3 | X10: 2018-01-01 | Y10: 2041-02-28
A11: 1 | B11: 101 | C11: 3 | D11: 30000 | E11: 2018-11-01 | F11: 2018-12-01 | G11: 2018-11-01 | I11: 10 | J11: 1 | K11: 1 | L11: 3 | M11: 0 | N11: 111 | O11: 0 | P11: 850 | Q11: 10 | R11: 1000000 | S11: 0 | T11: 1200 | U11: 0 | V11: 0 | W11: 0 | X11: 2018-02-01 | Y11: 2041-02-28
A12: 1 | B12: 101 | C12: 3 | D12: 30000 | E12: 2018-12-01 | F12: 2019-01-01 | G12: 2018-12-01 | I12: 11 | J12: 1 | K12: 1 | L12: 1 | M12: 0 | N12: 112 | O12: 1 | P12: 899 | Q12: 5 | R12: -2.274e-05 | S12: 0 | T12: 0 | U12: 0 | V12: 0 | W12: 1 | X12: 2018-02-01 | Y12: 2041-02-28
A13: 1 | B13: 101 | C13: 3 | D13: 30000 | E13: 2019-01-01 | F13: 2019-02-01 | G13: 2019-01-01 | I13: 12 | J13: 1 | K13: 1 | L13: 3 | M13: 0 | N13: 112 | O13: 1 | P13: 899 | Q13: 5 | R13: -2.274e-05 | S13: 0 | T13: 0 | U13: 0 | V13: 0 | W13: 1 | X13: 2018-02-01 | Y13: 2041-02-28
A14: 1 | B14: 101 | C14: 3 | D14: 31500 | E14: 2019-02-01 | F14: 2019-03-01 | G14: 2019-02-01 | I14: 13 | J14: 1 | K14: 1 | L14: 1 | M14: 0 | N14: 27 | O14: 2690 | P14: 225 | Q14: 9 | R14: 0.00166667 | S14: 37 | T14: 1200 | U14: 0 | V14: 0 | W14: 0 | X14: 2021-02-01 | Y14: 2041-02-28
A15: 1 | B15: 101 | C15: 3 | D15: 31500 | E15: 2019-03-01 | F15: 2019-04-01 | G15: 2019-03-01 | I15: 14 | J15: 1 | K15: 1 | L15: 3 | M15: 0 | N15: 26 | O15: 0 | P15: 803 | Q15: 4 | R15: -0.05 | S15: 488286 | T15: 1 | U15: 0 | V15: 0 | W15: 3 | X15: 2021-02-01 | Y15: 2033-01-31
A16: 1 | B16: 101 | C16: 3 | D16: 31500 | E16: 2019-04-01 | F16: 2019-05-01 | G16: 2019-04-01 | I16: 15 | J16: 1 | K16: 1 | L16: 3 | M16: 0 | N16: 36 | O16: 0 | P16: 950 | Q16: 5 | R16: 0.5 | S16: 0 | T16: 0 | U16: 0 | V16: 0 | W16: 1 | X16: 2028-02-01 | Y16: 2028-02-29
A17: 1 | B17: 101 | C17: 3 | D17: 31500 | E17: 2019-05-01 | F17: 2019-06-01 | G17: 2019-05-01 | I17: 16 | J17: 1 | K17: 1 | L17: 3 | M17: 0 | N17: 36 | O17: 0 | P17: 950 | Q17: 5 | R17: 0.5 | S17: 0 | T17: 0 | U17: 0 | V17: 0 | W17: 1 | X17: 2033-02-01 | Y17: 2033-02-28
A18: 1 | B18: 101 | C18: 3 | D18: 31500 | E18: 2019-06-01 | F18: 2019-07-01 | G18: 2019-06-01 | I18: 17 | J18: 1 | K18: 1 | L18: 3 | M18: 0 | N18: 26 | O18: 0 | P18: 803 | Q18: 4 | R18: -0.08 | S18: 488286 | T18: 1 | U18: 0 | V18: 0 | W18: 3 | X18: 2033-02-01 | Y18: 2038-01-31
A19: 1 | B19: 101 | C19: 3 | D19: 31500 | E19: 2019-07-01 | F19: 2019-08-01 | G19: 2019-07-01 | I19: 18 | J19: 1 | K19: 1 | L19: 3 | M19: 0 | N19: 36 | O19: 0 | P19: 950 | Q19: 5 | R19: 0.5 | S19: 0 | T19: 0 | U19: 0 | V19: 0 | W19: 1 | X19: 2038-02-01 | Y19: 2038-02-28
A20: 1 | B20: 101 | C20: 3 | D20: 31500 | E20: 2019-08-01 | F20: 2019-09-01 | G20: 2019-08-01
A21: 1 | B21: 101 | C21: 3 | D21: 31500 | E21: 2019-09-01 | F21: 2019-10-01 | G21: 2019-09-01
A22: 1 | B22: 101 | C22: 3 | D22: 31500 | E22: 2019-10-01 | F22: 2019-11-01 | G22: 2019-10-01
A23: 1 | B23: 101 | C23: 3 | D23: 31500 | E23: 2019-11-01 | F23: 2019-12-01 | G23: 2019-11-01
A24: 1 | B24: 101 | C24: 3 | D24: 31500 | E24: 2019-12-01 | F24: 2020-01-01 | G24: 2019-12-01
A25: 1 | B25: 101 | C25: 3 | D25: 31500 | E25: 2020-01-01 | F25: 2020-02-01 | G25: 2020-01-01
A26: 1 | B26: 101 | C26: 3 | D26: 33075 | E26: 2020-02-01 | F26: 2020-03-01 | G26: 2020-02-01
A27: 1 | B27: 101 | C27: 3 | D27: 33075 | E27: 2020-03-01 | F27: 2020-04-01 | G27: 2020-03-01
A28: 1 | B28: 101 | C28: 3 | D28: 33075 | E28: 2020-04-01 | F28: 2020-05-01 | G28: 2020-04-01
A29: 1 | B29: 101 | C29: 3 | D29: 33075 | E29: 2020-05-01 | F29: 2020-06-01 | G29: 2020-05-01
A30: 1 | B30: 101 | C30: 3 | D30: 33075 | E30: 2020-06-01 | F30: 2020-07-01 | G30: 2020-06-01
A31: 1 | B31: 101 | C31: 3 | D31: 33075 | E31: 2020-07-01 | F31: 2020-08-01 | G31: 2020-07-01
A32: 1 | B32: 101 | C32: 3 | D32: 33075 | E32: 2020-08-01 | F32: 2020-09-01 | G32: 2020-08-01
A33: 1 | B33: 101 | C33: 3 | D33: 33075 | E33: 2020-09-01 | F33: 2020-10-01 | G33: 2020-09-01
A34: 1 | B34: 101 | C34: 3 | D34: 33075 | E34: 2020-10-01 | F34: 2020-11-01 | G34: 2020-10-01
A35: 1 | B35: 101 | C35: 3 | D35: 33075 | E35: 2020-11-01 | F35: 2020-12-01 | G35: 2020-11-01
A36: 1 | B36: 101 | C36: 3 | D36: 33075 | E36: 2020-12-01 | F36: 2021-01-01 | G36: 2020-12-01
A37: 1 | B37: 101 | C37: 3 | D37: 33075 | E37: 2021-01-01 | F37: 2021-02-01 | G37: 2021-01-01
A38: 1 | B38: 101 | C38: 3 | D38: 34729 | E38: 2021-02-01 | F38: 2021-03-01 | G38: 2021-02-01
A39: 1 | B39: 101 | C39: 3 | D39: 34729 | E39: 2021-03-01 | F39: 2021-04-01 | G39: 2021-03-01
A40: 1 | B40: 101 | C40: 3 | D40: 34729 | E40: 2021-04-01 | F40: 2021-05-01 | G40: 2021-04-01
A41: 1 | B41: 101 | C41: 3 | D41: 34729 | E41: 2021-05-01 | F41: 2021-06-01 | G41: 2021-05-01
A42: 1 | B42: 101 | C42: 3 | D42: 34729 | E42: 2021-06-01 | F42: 2021-07-01 | G42: 2021-06-01
A43: 1 | B43: 101 | C43: 3 | D43: 34729 | E43: 2021-07-01 | F43: 2021-08-01 | G43: 2021-07-01
A44: 1 | B44: 101 | C44: 3 | D44: 34729 | E44: 2021-08-01 | F44: 2021-09-01 | G44: 2021-08-01
A45: 1 | B45: 101 | C45: 3 | D45: 34729 | E45: 2021-09-01 | F45: 2021-10-01 | G45: 2021-09-01
A46: 1 | B46: 101 | C46: 3 | D46: 34729 | E46: 2021-10-01 | F46: 2021-11-01 | G46: 2021-10-01
A47: 1 | B47: 101 | C47: 3 | D47: 34729 | E47: 2021-11-01 | F47: 2021-12-01 | G47: 2021-11-01
A48: 1 | B48: 101 | C48: 3 | D48: 34729 | E48: 2021-12-01 | F48: 2022-01-01 | G48: 2021-12-01
A49: 1 | B49: 101 | C49: 3 | D49: 34729 | E49: 2022-01-01 | F49: 2022-02-01 | G49: 2022-01-01
A50: 1 | B50: 101 | C50: 3 | D50: 36465 | E50: 2022-02-01 | F50: 2022-03-01 | G50: 2022-02-01
A51: 1 | B51: 101 | C51: 3 | D51: 36465 | E51: 2022-03-01 | F51: 2022-04-01 | G51: 2022-03-01
A52: 1 | B52: 101 | C52: 3 | D52: 36465 | E52: 2022-04-01 | F52: 2022-05-01 | G52: 2022-04-01
A53: 1 | B53: 101 | C53: 3 | D53: 36465 | E53: 2022-05-01 | F53: 2022-06-01 | G53: 2022-05-01
A54: 1 | B54: 101 | C54: 3 | D54: 36465 | E54: 2022-06-01 | F54: 2022-07-01 | G54: 2022-06-01
A55: 1 | B55: 101 | C55: 3 | D55: 36465 | E55: 2022-07-01 | F55: 2022-08-01 | G55: 2022-07-01
A56: 1 | B56: 101 | C56: 3 | D56: 36465 | E56: 2022-08-01 | F56: 2022-09-01 | G56: 2022-08-01
A57: 1 | B57: 101 | C57: 3 | D57: 36465 | E57: 2022-09-01 | F57: 2022-10-01 | G57: 2022-09-01
A58: 1 | B58: 101 | C58: 3 | D58: 36465 | E58: 2022-10-01 | F58: 2022-11-01 | G58: 2022-10-01
A59: 1 | B59: 101 | C59: 3 | D59: 36465 | E59: 2022-11-01 | F59: 2022-12-01 | G59: 2022-11-01
A60: 1 | B60: 101 | C60: 3 | D60: 36465 | E60: 2022-12-01 | F60: 2023-01-01 | G60: 2022-12-01
A61: 1 | B61: 101 | C61: 3 | D61: 36465 | E61: 2023-01-01 | F61: 2023-02-01 | G61: 2023-01-01
A62: 1 | B62: 101 | C62: 3 | D62: 38288 | E62: 2023-02-01 | F62: 2023-03-01 | G62: 2023-02-01
A63: 1 | B63: 101 | C63: 3 | D63: 38288 | E63: 2023-03-01 | F63: 2023-04-01 | G63: 2023-03-01
A64: 1 | B64: 101 | C64: 3 | D64: 38288 | E64: 2023-04-01 | F64: 2023-05-01 | G64: 2023-04-01
A65: 1 | B65: 101 | C65: 3 | D65: 38288 | E65: 2023-05-01 | F65: 2023-06-01 | G65: 2023-05-01
A66: 1 | B66: 101 | C66: 3 | D66: 38288 | E66: 2023-06-01 | F66: 2023-07-01 | G66: 2023-06-01
A67: 1 | B67: 101 | C67: 3 | D67: 38288 | E67: 2023-07-01 | F67: 2023-08-01 | G67: 2023-07-01
A68: 1 | B68: 101 | C68: 3 | D68: 38288 | E68: 2023-08-01 | F68: 2023-09-01 | G68: 2023-08-01
A69: 1 | B69: 101 | C69: 3 | D69: 38288 | E69: 2023-09-01 | F69: 2023-10-01 | G69: 2023-09-01
A70: 1 | B70: 101 | C70: 3 | D70: 38288 | E70: 2023-10-01 | F70: 2023-11-01 | G70: 2023-10-01
A71: 1 | B71: 101 | C71: 3 | D71: 38288 | E71: 2023-11-01 | F71: 2023-12-01 | G71: 2023-11-01
A72: 1 | B72: 101 | C72: 3 | D72: 38288 | E72: 2023-12-01 | F72: 2024-01-01 | G72: 2023-12-01
A73: 1 | B73: 101 | C73: 3 | D73: 38288 | E73: 2024-01-01 | F73: 2024-02-01 | G73: 2024-01-01
A74: 1 | B74: 101 | C74: 3 | D74: 40202 | E74: 2024-02-01 | F74: 2024-03-01 | G74: 2024-02-01
A75: 1 | B75: 101 | C75: 3 | D75: 40202 | E75: 2024-03-01 | F75: 2024-04-01 | G75: 2024-03-01
A76: 1 | B76: 101 | C76: 3 | D76: 40202 | E76: 2024-04-01 | F76: 2024-05-01 | G76: 2024-04-01
A77: 1 | B77: 101 | C77: 3 | D77: 40202 | E77: 2024-05-01 | F77: 2024-06-01 | G77: 2024-05-01
A78: 1 | B78: 101 | C78: 3 | D78: 40202 | E78: 2024-06-01 | F78: 2024-07-01 | G78: 2024-06-01
A79: 1 | B79: 101 | C79: 3 | D79: 40202 | E79: 2024-07-01 | F79: 2024-08-01 | G79: 2024-07-01
A80: 1 | B80: 101 | C80: 3 | D80: 40202 | E80: 2024-08-01 | F80: 2024-09-01 | G80: 2024-08-01
A81: 1 | B81: 101 | C81: 3 | D81: 40202 | E81: 2024-09-01 | F81: 2024-10-01 | G81: 2024-09-01
A82: 1 | B82: 101 | C82: 3 | D82: 40202 | E82: 2024-10-01 | F82: 2024-11-01 | G82: 2024-10-01
A83: 1 | B83: 101 | C83: 3 | D83: 40202 | E83: 2024-11-01 | F83: 2024-12-01 | G83: 2024-11-01
A84: 1 | B84: 101 | C84: 3 | D84: 40202 | E84: 2024-12-01 | F84: 2025-01-01 | G84: 2024-12-01
A85: 1 | B85: 101 | C85: 3 | D85: 40202 | E85: 2025-01-01 | F85: 2025-02-01 | G85: 2025-01-01
A86: 1 | B86: 101 | C86: 3 | D86: 42212 | E86: 2025-02-01 | F86: 2025-03-01 | G86: 2025-02-01
A87: 1 | B87: 101 | C87: 3 | D87: 42212 | E87: 2025-03-01 | F87: 2025-04-01 | G87: 2025-03-01
A88: 1 | B88: 101 | C88: 3 | D88: 42212 | E88: 2025-04-01 | F88: 2025-05-01 | G88: 2025-04-01
A89: 1 | B89: 101 | C89: 3 | D89: 42212 | E89: 2025-05-01 | F89: 2025-06-01 | G89: 2025-05-01
A90: 1 | B90: 101 | C90: 3 | D90: 42212 | E90: 2025-06-01 | F90: 2025-07-01 | G90: 2025-06-01
A91: 1 | B91: 101 | C91: 3 | D91: 42212 | E91: 2025-07-01 | F91: 2025-08-01 | G91: 2025-07-01
A92: 1 | B92: 101 | C92: 3 | D92: 42212 | E92: 2025-08-01 | F92: 2025-09-01 | G92: 2025-08-01
A93: 1 | B93: 101 | C93: 3 | D93: 42212 | E93: 2025-09-01 | F93: 2025-10-01 | G93: 2025-09-01
A94: 1 | B94: 101 | C94: 3 | D94: 42212 | E94: 2025-10-01 | F94: 2025-11-01 | G94: 2025-10-01
A95: 1 | B95: 101 | C95: 3 | D95: 42212 | E95: 2025-11-01 | F95: 2025-12-01 | G95: 2025-11-01
A96: 1 | B96: 101 | C96: 3 | D96: 42212 | E96: 2025-12-01 | F96: 2026-01-01 | G96: 2025-12-01
A97: 1 | B97: 101 | C97: 3 | D97: 42212 | E97: 2026-01-01 | F97: 2026-02-01 | G97: 2026-01-01
A98: 1 | B98: 101 | C98: 3 | D98: 44323 | E98: 2026-02-01 | F98: 2026-03-01 | G98: 2026-02-01
A99: 1 | B99: 101 | C99: 3 | D99: 44323 | E99: 2026-03-01 | F99: 2026-04-01 | G99: 2026-03-01
A100: 1 | B100: 101 | C100: 3 | D100: 44323 | E100: 2026-04-01 | F100: 2026-05-01 | G100: 2026-04-01
A101: 1 | B101: 101 | C101: 3 | D101: 44323 | E101: 2026-05-01 | F101: 2026-06-01 | G101: 2026-05-01
A102: 1 | B102: 101 | C102: 3 | D102: 44323 | E102: 2026-06-01 | F102: 2026-07-01 | G102: 2026-06-01
A103: 1 | B103: 101 | C103: 3 | D103: 44323 | E103: 2026-07-01 | F103: 2026-08-01 | G103: 2026-07-01
A104: 1 | B104: 101 | C104: 3 | D104: 44323 | E104: 2026-08-01 | F104: 2026-09-01 | G104: 2026-08-01
A105: 1 | B105: 101 | C105: 3 | D105: 44323 | E105: 2026-09-01 | F105: 2026-10-01 | G105: 2026-09-01
A106: 1 | B106: 101 | C106: 3 | D106: 44323 | E106: 2026-10-01 | F106: 2026-11-01 | G106: 2026-10-01
A107: 1 | B107: 101 | C107: 3 | D107: 44323 | E107: 2026-11-01 | F107: 2026-12-01 | G107: 2026-11-01
A108: 1 | B108: 101 | C108: 3 | D108: 44323 | E108: 2026-12-01 | F108: 2027-01-01 | G108: 2026-12-01
A109: 1 | B109: 101 | C109: 3 | D109: 44323 | E109: 2027-01-01 | F109: 2027-02-01 | G109: 2027-01-01
A110: 1 | B110: 101 | C110: 3 | D110: 46539 | E110: 2027-02-01 | F110: 2027-03-01 | G110: 2027-02-01
A111: 1 | B111: 101 | C111: 3 | D111: 46539 | E111: 2027-03-01 | F111: 2027-04-01 | G111: 2027-03-01
A112: 1 | B112: 101 | C112: 3 | D112: 46539 | E112: 2027-04-01 | F112: 2027-05-01 | G112: 2027-04-01
A113: 1 | B113: 101 | C113: 3 | D113: 46539 | E113: 2027-05-01 | F113: 2027-06-01 | G113: 2027-05-01
A114: 1 | B114: 101 | C114: 3 | D114: 46539 | E114: 2027-06-01 | F114: 2027-07-01 | G114: 2027-06-01
A115: 1 | B115: 101 | C115: 3 | D115: 46539 | E115: 2027-07-01 | F115: 2027-08-01 | G115: 2027-07-01
A116: 1 | B116: 101 | C116: 3 | D116: 46539 | E116: 2027-08-01 | F116: 2027-09-01 | G116: 2027-08-01
A117: 1 | B117: 101 | C117: 3 | D117: 46539 | E117: 2027-09-01 | F117: 2027-10-01 | G117: 2027-09-01
A118: 1 | B118: 101 | C118: 3 | D118: 46539 | E118: 2027-10-01 | F118: 2027-11-01 | G118: 2027-10-01
A119: 1 | B119: 101 | C119: 3 | D119: 46539 | E119: 2027-11-01 | F119: 2027-12-01 | G119: 2027-11-01
A120: 1 | B120: 101 | C120: 3 | D120: 46539 | E120: 2027-12-01 | F120: 2028-01-01 | G120: 2027-12-01
A121: 1 | B121: 101 | C121: 3 | D121: 46539 | E121: 2028-01-01 | F121: 2028-02-01 | G121: 2028-01-01
A122: 1 | B122: 101 | C122: 3 | D122: 48866 | E122: 2028-02-01 | F122: 2028-03-01 | G122: 2028-02-01
A123: 1 | B123: 101 | C123: 3 | D123: 48866 | E123: 2028-03-01 | F123: 2028-04-01 | G123: 2028-03-01
A124: 1 | B124: 101 | C124: 3 | D124: 48866 | E124: 2028-04-01 | F124: 2028-05-01 | G124: 2028-04-01
A125: 1 | B125: 101 | C125: 3 | D125: 48866 | E125: 2028-05-01 | F125: 2028-06-01 | G125: 2028-05-01
A126: 1 | B126: 101 | C126: 3 | D126: 48866 | E126: 2028-06-01 | F126: 2028-07-01 | G126: 2028-06-01
A127: 1 | B127: 101 | C127: 3 | D127: 48866 | E127: 2028-07-01 | F127: 2028-08-01 | G127: 2028-07-01
A128: 1 | B128: 101 | C128: 3 | D128: 48866 | E128: 2028-08-01 | F128: 2028-09-01 | G128: 2028-08-01
A129: 1 | B129: 101 | C129: 3 | D129: 48866 | E129: 2028-09-01 | F129: 2028-10-01 | G129: 2028-09-01
A130: 1 | B130: 101 | C130: 3 | D130: 48866 | E130: 2028-10-01 | F130: 2028-11-01 | G130: 2028-10-01
A131: 1 | B131: 101 | C131: 3 | D131: 48866 | E131: 2028-11-01 | F131: 2028-12-01 | G131: 2028-11-01
A132: 1 | B132: 101 | C132: 3 | D132: 48866 | E132: 2028-12-01 | F132: 2029-01-01 | G132: 2028-12-01
A133: 1 | B133: 101 | C133: 3 | D133: 48866 | E133: 2029-01-01 | F133: 2029-02-01 | G133: 2029-01-01
A134: 1 | B134: 101 | C134: 3 | D134: 51309 | E134: 2029-02-01 | F134: 2029-03-01 | G134: 2029-02-01
A135: 1 | B135: 101 | C135: 3 | D135: 51309 | E135: 2029-03-01 | F135: 2029-04-01 | G135: 2029-03-01
A136: 1 | B136: 101 | C136: 3 | D136: 51309 | E136: 2029-04-01 | F136: 2029-05-01 | G136: 2029-04-01
A137: 1 | B137: 101 | C137: 3 | D137: 51309 | E137: 2029-05-01 | F137: 2029-06-01 | G137: 2029-05-01
A138: 1 | B138: 101 | C138: 3 | D138: 51309 | E138: 2029-06-01 | F138: 2029-07-01 | G138: 2029-06-01
A139: 1 | B139: 101 | C139: 3 | D139: 51309 | E139: 2029-07-01 | F139: 2029-08-01 | G139: 2029-07-01
A140: 1 | B140: 101 | C140: 3 | D140: 51309 | E140: 2029-08-01 | F140: 2029-09-01 | G140: 2029-08-01
A141: 1 | B141: 101 | C141: 3 | D141: 51309 | E141: 2029-09-01 | F141: 2029-10-01 | G141: 2029-09-01
A142: 1 | B142: 101 | C142: 3 | D142: 51309 | E142: 2029-10-01 | F142: 2029-11-01 | G142: 2029-10-01
A143: 1 | B143: 101 | C143: 3 | D143: 51309 | E143: 2029-11-01 | F143: 2029-12-01 | G143: 2029-11-01
A144: 1 | B144: 101 | C144: 3 | D144: 51309 | E144: 2029-12-01 | F144: 2030-01-01 | G144: 2029-12-01
A145: 1 | B145: 101 | C145: 3 | D145: 51309 | E145: 2030-01-01 | F145: 2030-02-01 | G145: 2030-01-01
A146: 1 | B146: 101 | C146: 3 | D146: 53874 | E146: 2030-02-01 | F146: 2030-03-01 | G146: 2030-02-01
A147: 1 | B147: 101 | C147: 3 | D147: 53874 | E147: 2030-03-01 | F147: 2030-04-01 | G147: 2030-03-01
A148: 1 | B148: 101 | C148: 3 | D148: 53874 | E148: 2030-04-01 | F148: 2030-05-01 | G148: 2030-04-01
A149: 1 | B149: 101 | C149: 3 | D149: 53874 | E149: 2030-05-01 | F149: 2030-06-01 | G149: 2030-05-01
A150: 1 | B150: 101 | C150: 3 | D150: 53874 | E150: 2030-06-01 | F150: 2030-07-01 | G150: 2030-06-01
A151: 1 | B151: 101 | C151: 3 | D151: 53874 | E151: 2030-07-01 | F151: 2030-08-01 | G151: 2030-07-01
A152: 1 | B152: 101 | C152: 3 | D152: 53874 | E152: 2030-08-01 | F152: 2030-09-01 | G152: 2030-08-01
A153: 1 | B153: 101 | C153: 3 | D153: 53874 | E153: 2030-09-01 | F153: 2030-10-01 | G153: 2030-09-01
A154: 1 | B154: 101 | C154: 3 | D154: 53874 | E154: 2030-10-01 | F154: 2030-11-01 | G154: 2030-10-01
A155: 1 | B155: 101 | C155: 3 | D155: 53874 | E155: 2030-11-01 | F155: 2030-12-01 | G155: 2030-11-01
A156: 1 | B156: 101 | C156: 3 | D156: 53874 | E156: 2030-12-01 | F156: 2031-01-01 | G156: 2030-12-01
A157: 1 | B157: 101 | C157: 3 | D157: 53874 | E157: 2031-01-01 | F157: 2031-02-01 | G157: 2031-01-01
A158: 1 | B158: 101 | C158: 3 | D158: 56568 | E158: 2031-02-01 | F158: 2031-03-01 | G158: 2031-02-01
A159: 1 | B159: 101 | C159: 3 | D159: 56568 | E159: 2031-03-01 | F159: 2031-04-01 | G159: 2031-03-01
A160: 1 | B160: 101 | C160: 3 | D160: 56568 | E160: 2031-04-01 | F160: 2031-05-01 | G160: 2031-04-01
A161: 1 | B161: 101 | C161: 3 | D161: 56568 | E161: 2031-05-01 | F161: 2031-06-01 | G161: 2031-05-01
A162: 1 | B162: 101 | C162: 3 | D162: 56568 | E162: 2031-06-01 | F162: 2031-07-01 | G162: 2031-06-01
A163: 1 | B163: 101 | C163: 3 | D163: 56568 | E163: 2031-07-01 | F163: 2031-08-01 | G163: 2031-07-01
A164: 1 | B164: 101 | C164: 3 | D164: 56568 | E164: 2031-08-01 | F164: 2031-09-01 | G164: 2031-08-01
A165: 1 | B165: 101 | C165: 3 | D165: 56568 | E165: 2031-09-01 | F165: 2031-10-01 | G165: 2031-09-01
A166: 1 | B166: 101 | C166: 3 | D166: 56568 | E166: 2031-10-01 | F166: 2031-11-01 | G166: 2031-10-01
A167: 1 | B167: 101 | C167: 3 | D167: 56568 | E167: 2031-11-01 | F167: 2031-12-01 | G167: 2031-11-01
A168: 1 | B168: 101 | C168: 3 | D168: 56568 | E168: 2031-12-01 | F168: 2032-01-01 | G168: 2031-12-01
A169: 1 | B169: 101 | C169: 3 | D169: 56568 | E169: 2032-01-01 | F169: 2032-02-01 | G169: 2032-01-01
A170: 1 | B170: 101 | C170: 3 | D170: 59396 | E170: 2032-02-01 | F170: 2032-03-01 | G170: 2032-02-01
A171: 1 | B171: 101 | C171: 3 | D171: 59396 | E171: 2032-03-01 | F171: 2032-04-01 | G171: 2032-03-01
A172: 1 | B172: 101 | C172: 3 | D172: 59396 | E172: 2032-04-01 | F172: 2032-05-01 | G172: 2032-04-01
A173: 1 | B173: 101 | C173: 3 | D173: 59396 | E173: 2032-05-01 | F173: 2032-06-01 | G173: 2032-05-01
A174: 1 | B174: 101 | C174: 3 | D174: 59396 | E174: 2032-06-01 | F174: 2032-07-01 | G174: 2032-06-01
A175: 1 | B175: 101 | C175: 3 | D175: 59396 | E175: 2032-07-01 | F175: 2032-08-01 | G175: 2032-07-01
A176: 1 | B176: 101 | C176: 3 | D176: 59396 | E176: 2032-08-01 | F176: 2032-09-01 | G176: 2032-08-01
A177: 1 | B177: 101 | C177: 3 | D177: 59396 | E177: 2032-09-01 | F177: 2032-10-01 | G177: 2032-09-01
A178: 1 | B178: 101 | C178: 3 | D178: 59396 | E178: 2032-10-01 | F178: 2032-11-01 | G178: 2032-10-01
A179: 1 | B179: 101 | C179: 3 | D179: 59396 | E179: 2032-11-01 | F179: 2032-12-01 | G179: 2032-11-01
A180: 1 | B180: 101 | C180: 3 | D180: 59396 | E180: 2032-12-01 | F180: 2033-01-01 | G180: 2032-12-01
A181: 1 | B181: 101 | C181: 3 | D181: 59396 | E181: 2033-01-01 | F181: 2033-02-01 | G181: 2033-01-01
A182: 1 | B182: 101 | C182: 3 | D182: 62366 | E182: 2033-02-01 | F182: 2033-03-01 | G182: 2033-02-01
A183: 1 | B183: 101 | C183: 3 | D183: 62366 | E183: 2033-03-01 | F183: 2033-04-01 | G183: 2033-03-01
A184: 1 | B184: 101 | C184: 3 | D184: 62366 | E184: 2033-04-01 | F184: 2033-05-01 | G184: 2033-04-01
A185: 1 | B185: 101 | C185: 3 | D185: 62366 | E185: 2033-05-01 | F185: 2033-06-01 | G185: 2033-05-01
A186: 1 | B186: 101 | C186: 3 | D186: 62366 | E186: 2033-06-01 | F186: 2033-07-01 | G186: 2033-06-01
A187: 1 | B187: 101 | C187: 3 | D187: 62366 | E187: 2033-07-01 | F187: 2033-08-01 | G187: 2033-07-01
A188: 1 | B188: 101 | C188: 3 | D188: 62366 | E188: 2033-08-01 | F188: 2033-09-01 | G188: 2033-08-01
A189: 1 | B189: 101 | C189: 3 | D189: 62366 | E189: 2033-09-01 | F189: 2033-10-01 | G189: 2033-09-01
A190: 1 | B190: 101 | C190: 3 | D190: 62366 | E190: 2033-10-01 | F190: 2033-11-01 | G190: 2033-10-01
A191: 1 | B191: 101 | C191: 3 | D191: 62366 | E191: 2033-11-01 | F191: 2033-12-01 | G191: 2033-11-01
A192: 1 | B192: 101 | C192: 3 | D192: 62366 | E192: 2033-12-01 | F192: 2034-01-01 | G192: 2033-12-01
A193: 1 | B193: 101 | C193: 3 | D193: 62366 | E193: 2034-01-01 | F193: 2034-02-01 | G193: 2034-01-01
A194: 1 | B194: 101 | C194: 3 | D194: 65484 | E194: 2034-02-01 | F194: 2034-03-01 | G194: 2034-02-01
A195: 1 | B195: 101 | C195: 3 | D195: 65484 | E195: 2034-03-01 | F195: 2034-04-01 | G195: 2034-03-01
A196: 1 | B196: 101 | C196: 3 | D196: 65484 | E196: 2034-04-01 | F196: 2034-05-01 | G196: 2034-04-01
A197: 1 | B197: 101 | C197: 3 | D197: 65484 | E197: 2034-05-01 | F197: 2034-06-01 | G197: 2034-05-01
A198: 1 | B198: 101 | C198: 3 | D198: 65484 | E198: 2034-06-01 | F198: 2034-07-01 | G198: 2034-06-01
A199: 1 | B199: 101 | C199: 3 | D199: 65484 | E199: 2034-07-01 | F199: 2034-08-01 | G199: 2034-07-01
A200: 1 | B200: 101 | C200: 3 | D200: 65484 | E200: 2034-08-01 | F200: 2034-09-01 | G200: 2034-08-01
... 78 more rows

Sheet oPool (hidden)
B1: ID | C1: 3 | D1: 4 | E1: 5 | F1: 6 | G1: 7 | H1: 8 | I1: 9 | J1: 10 | K1: 11 | L1: 12 | M1: 13 | N1: 14 | O1: 15 | P1: 16 | Q1: 17 | R1: 18 | S1: 19 | T1: 20 | U1: 21 | V1: 22 | W1: 23 | X1: 24 | Y1: 25 | Z1: 26 | AA1: 27 | AB1: 28 | AC1: 29 | AD1: 30 | AE1: 31 | AF1: 32 | AG1: 33 | AH1: 34 | AI1: 35 | AJ1: 36 | AK1: 37 | AL1: 38 | AM1: 39 | AN1: 40 | AO1: 41 | AP1: 42 | AQ1: 43 | AR1: 44 | AS1: 45 | AT1: 46 | AU1: 47 | AV1: 48 | AW1: 49 | AX1: 50 | AY1: 51 | AZ1: 52 | BA1: 53 | BB1: 54 | BC1: 55 | BD1: 56 | BE1: 57 | BF1: 58 | BG1: 59 | BH1: 60 | BI1: 61 | BJ1: 62 | BK1: 63 | BL1: 64 | BM1: 65 | BN1: 66 | BO1: 67 | BP1: 68 | BQ1: 69 | BR1: 70 | BS1: 71 | BT1: 72 | BU1: 73 | BV1: 74 | BW1: 75 | BX1: 76 | BY1: 77 | BZ1: 78 | CA1: 79
B2: Account | C2: 1 | D2: 1 | E2: 1 | F2: 1 | G2: 1 | H2: 1 | I2: 1 | J2: 1 | K2: 1 | L2: 1 | M2: 1 | N2: 1 | O2: 1 | P2: 1 | Q2: 1 | R2: 1 | S2: 1 | T2: 1 | U2: 1 | V2: 1 | W2: 1 | X2: 1 | Y2: 1 | Z2: 1 | AA2: 1 | AB2: 1 | AC2: 1 | AD2: 1 | AE2: 1 | AF2: 1 | AG2: 1 | AH2: 1 | AI2: 1 | AJ2: 1 | AK2: 1 | AL2: 1 | AM2: 1 | AN2: 1 | AO2: 1 | AP2: 1 | AQ2: 1 | AR2: 1 | AS2: 1 | AT2: 1 | AU2: 1 | AV2: 1 | AW2: 1 | AX2: 1 | AY2: 1 | AZ2: 1 | BA2: 2 | BB2: 2 | BC2: 2 | BD2: 2 | BE2: 2 | BF2: 2 | BG2: 2 | BH2: 2 | BI2: 2 | BJ2: 2 | BK2: 3 | BL2: 3 | BM2: 3 | BN2: 3 | BO2: 3 | BP2: 3 | BQ2: 3 | BR2: 3 | BS2: 3 | BT2: 3 | BU2: 4 | BV2: 4 | BW2: 4 | BX2: 4 | BY2: 4 | BZ2: 4 | CA2: 4 | CC2: =MIN(CC$6:CC$1048576) -> 0 | CD2: =MIN(CD$6:CD$1048576) -> 0 | CE2: 0 | CF2: 0 | CG2: 0 | CH2: 0 | CJ2: =MIN(CJ$6:CJ$1048576) -> 0 | CK2: 0 | CL2: 0 | CM2: 0 | CN2: 0 | CO2: 0
B3: UnitType | C3: 1 | D3: 1 | E3: 1 | F3: 1 | G3: 1 | H3: 1 | I3: 1 | J3: 1 | K3: 1 | L3: 1 | M3: 1 | N3: 1 | O3: 1 | P3: 1 | Q3: 1 | R3: 1 | S3: 1 | T3: 1 | U3: 2 | V3: 2 | W3: 2 | X3: 2 | Y3: 2 | Z3: 2 | AA3: 2 | AB3: 2 | AC3: 2 | AD3: 2 | AE3: 2 | AF3: 2 | AG3: 2 | AH3: 2 | AI3: 2 | AJ3: 2 | AK3: 3 | AL3: 3 | AM3: 3 | AN3: 3 | AO3: 3 | AP3: 3 | AQ3: 3 | AR3: 3 | AS3: 3 | AT3: 3 | AU3: 3 | AV3: 3 | AW3: 3 | AX3: 3 | AY3: 3 | AZ3: 3 | BA3: 4 | BB3: 4 | BC3: 4 | BD3: 4 | BE3: 4 | BF3: 4 | BG3: 4 | BH3: 4 | BI3: 4 | BJ3: 3 | BK3: 4 | BL3: 4 | BM3: 4 | BN3: 4 | BO3: 4 | BP3: 4 | BQ3: 4 | BR3: 4 | BS3: 4 | BT3: 3 | BU3: 5 | BV3: 5 | BW3: 5 | BX3: 5 | BY3: 5 | BZ3: 5 | CA3: 3 | CC3: =MAX(CC$6:CC$1048576) -> 0 | CD3: =MAX(CD$6:CD$1048576) -> 0 | CE3: 0 | CF3: 0 | CG3: 0 | CH3: 0 | CJ3: =MAX(CJ$6:CJ$1048576) -> 18429219 | CK3: 0 | CL3: 322277 | CM3: 0 | CN3: 0 | CO3: 3268045
B4: TransType | D4: 0 | E4: 100 | F4: 202 | G4: 203 | H4: 204 | I4: 225 | J4: 800 | K4: 801 | L4: 803 | M4: 804 | N4: 805 | O4: 825 | P4: 899 | Q4: 950 | R4: 260 | S4: 400 | T4: 1000 | U4: 0 | V4: 100 | W4: 202 | X4: 203 | Y4: 204 | Z4: 225 | AA4: 800 | AB4: 801 | AC4: 803 | AD4: 804 | AE4: 805 | AF4: 825 | AG4: 899 | AH4: 260 | AI4: 400 | AJ4: 1000 | AK4: 0 | AL4: 100 | AM4: 202 | AN4: 203 | AO4: 204 | AP4: 225 | AQ4: 800 | AR4: 801 | AS4: 803 | AT4: 804 | AU4: 805 | AV4: 825 | AW4: 950 | AX4: 850 | AY4: 1000 | AZ4: 262 | BA4: 0 | BB4: 100 | BC4: 203 | BD4: 225 | BE4: 800 | BF4: 260 | BG4: 400 | BH4: 899 | BI4: 1000 | BJ4: 262 | BK4: 0 | BL4: 100 | BM4: 203 | BN4: 225 | BO4: 800 | BP4: 260 | BQ4: 400 | BR4: 899 | BS4: 1000 | BT4: 262 | BU4: 0 | BV4: 100 | BW4: 225 | BX4: 800 | BY4: 899 | BZ4: 1000 | CA4: 262 | CC4: open + CF = close | CJ4: open = close-1
A5: Date | B5: PolMo | C5: Prm w/o index | D5: OpPool | E5: Prm | F5: Exp202 | G5: Exp203 | H5: Exp204 | I5: Exp225 | J5: Yield | K5: Bon801 | L5: Bon803 | M5: Bon804 | N5: Bon805 | O5: Bon825 | P5: Bon899 | Q5: Tr950 | R5: Exp260 | S5: PartSurr | T5: ClPool | U5: OpPool | V5: Prm | W5: Exp202 | X5: Exp203 | Y5: Exp204 | Z5: Exp225 | AA5: Yield | AB5: Bon801 | AC5: Bon803 | AD5: Bon804 | AE5: Bon805 | AF5: Bon825 | AG5: Bon899 | AH5: Exp260 | AI5: PartSurr | AJ5: ClPool | AK5: OpPool | AL5: Prm | AM5: Exp202 | AN5: Exp203 | AO5: Exp204 | AP5: Exp225 | AQ5: Yield | AR5: Bon801 | AS5: Bon803 | AT5: Bon804 | AU5: Bon805 | AV5: Bon825 | AW5: Bon950 | AX5: BonOUT | AY5: ClPool | AZ5: SurrFee | BA5: OpPool | BB5: Prm | BC5: Exp203 | BD5: Exp225 | BE5: Yield | BF5: Exp260 | BG5: PartSurr | BH5: Bon899 | BI5: ClPool | BJ5: SurrFee | BK5: OpPool | BL5: Prm | BM5: Exp203 | BN5: Exp225 | BO5: Yield | BP5: Exp260 | BQ5: PartSurr | BR5: Bon899 | BS5: ClPool | BT5: SurrFee | BU5: OpPool | BV5: Prm | BW5: Exp225 | BX5: Yield | BY5: Bon899 | BZ5: ClPool | CA5: SurrFee
A6: 2018-02-01 | B6: 1 | C6: 30000 | D6: 0 | E6: 30000 | F6: -22200 | G6: -1800 | H6: 0 | I6: 0 | J6: 20 | K6: 0 | L6: 0 | M6: 0 | N6: 0 | O6: 0 | P6: 0 | Q6: 0 | R6: 0 | S6: 0 | T6: 6020 | U6: 0 | V6: 0 | W6: 0 | X6: 0 | Y6: 0 | Z6: 0 | AA6: 0 | AB6: 0 | AC6: 0 | AD6: 0 | AE6: 0 | AF6: 0 | AG6: 0 | AH6: 0 | AI6: 0 | AJ6: 0 | AK6: 0 | AL6: 0 | AM6: 0 | AN6: 0 | AO6: 0 | AP6: -1 | AQ6: 2 | AR6: 300 | AS6: 0 | AT6: 300 | AU6: 0 | AV6: 0 | AW6: 0 | AX6: 0 | AY6: 601 | AZ6: 0 | BA6: 0 | BB6: 0 | BC6: 0 | BD6: 0 | BE6: 0 | BF6: 0 | BG6: 0 | BH6: 0 | BI6: 0 | BJ6: 0 | BK6: 0 | BL6: 0 | BM6: 0 | BN6: 0 | BO6: 0 | BP6: 0 | BQ6: 0 | BR6: 0 | BS6: 0 | BT6: 0 | BU6: 0 | BV6: 0 | BW6: 0 | BX6: 0 | BY6: 0 | BZ6: 0 | CA6: 0 | CC6: =SUM(D6:S6)-T6 -> 0 | CD6: =SUM(U6:AI6)-AJ6 -> 0 | CE6: =SUM(AK6:AX6)-AY6 -> 0 | CF6: =SUM(BA6:BH6)-BI6 -> 0 | CG6: =SUM(BK6:BR6)-BS6 -> 0 | CH6: =SUM(BU6:BY6)-BZ6 -> 0
A7: 2018-03-01 | B7: 2 | C7: 30000 | D7: 6020 | E7: 30000 | F7: -22200 | G7: -1800 | H7: 0 | I7: 0 | J7: 39 | K7: 0 | L7: 0 | M7: 0 | N7: 0 | O7: 0 | P7: 0 | Q7: 0 | R7: 0 | S7: 0 | T7: 12059 | U7: 0 | V7: 0 | W7: 0 | X7: 0 | Y7: 0 | Z7: 0 | AA7: 0 | AB7: 0 | AC7: 0 | AD7: 0 | AE7: 0 | AF7: 0 | AG7: 0 | AH7: 0 | AI7: 0 | AJ7: 0 | AK7: 601 | AL7: 0 | AM7: 0 | AN7: 0 | AO7: 0 | AP7: -2 | AQ7: 4 | AR7: 300 | AS7: 0 | AT7: 300 | AU7: 0 | AV7: 0 | AW7: 0 | AX7: 0 | AY7: 1203 | AZ7: 0 | BA7: 0 | BB7: 0 | BC7: 0 | BD7: 0 | BE7: 0 | BF7: 0 | BG7: 0 | BH7: 0 | BI7: 0 | BJ7: 0 | BK7: 0 | BL7: 0 | BM7: 0 | BN7: 0 | BO7: 0 | BP7: 0 | BQ7: 0 | BR7: 0 | BS7: 0 | BT7: 0 | BU7: 0 | BV7: 0 | BW7: 0 | BX7: 0 | BY7: 0 | BZ7: 0 | CA7: 0 | CC7: 0 | CD7: 0 | CE7: 0 | CF7: 0 | CG7: 0 | CH7: 0 | CJ7: =+T6-D7 -> 0 | CK7: =+AJ6-U7 -> 0 | CL7: =+AY6-AK7 -> 0 | CM7: =+BI6-BA7 -> 0 | CN7: =+BS6-BK7 -> 0 | CO7: =+BZ6-BU7 -> 0
A8: 2018-04-01 | B8: 3 | C8: 30000 | D8: 12059 | E8: 30000 | F8: -22200 | G8: -1800 | H8: 0 | I8: 0 | J8: 59 | K8: 0 | L8: 0 | M8: 0 | N8: 0 | O8: 0 | P8: 0 | Q8: 0 | R8: 0 | S8: 0 | T8: 18118 | U8: 0 | V8: 0 | W8: 0 | X8: 0 | Y8: 0 | Z8: 0 | AA8: 0 | AB8: 0 | AC8: 0 | AD8: 0 | AE8: 0 | AF8: 0 | AG8: 0 | AH8: 0 | AI8: 0 | AJ8: 0 | AK8: 1203 | AL8: 0 | AM8: 0 | AN8: 0 | AO8: 0 | AP8: -3 | AQ8: 6 | AR8: 300 | AS8: 0 | AT8: 300 | AU8: 0 | AV8: 0 | AW8: 0 | AX8: 0 | AY8: 1806 | AZ8: 0 | BA8: 0 | BB8: 0 | BC8: 0 | BD8: 0 | BE8: 0 | BF8: 0 | BG8: 0 | BH8: 0 | BI8: 0 | BJ8: 0 | BK8: 0 | BL8: 0 | BM8: 0 | BN8: 0 | BO8: 0 | BP8: 0 | BQ8: 0 | BR8: 0 | BS8: 0 | BT8: 0 | BU8: 0 | BV8: 0 | BW8: 0 | BX8: 0 | BY8: 0 | BZ8: 0 | CA8: 0 | CC8: 0 | CD8: 0 | CE8: 0 | CF8: 0 | CG8: 0 | CH8: 0 | CJ8: 0 | CK8: 0 | CL8: 0 | CM8: 0 | CN8: 0 | CO8: 0
A9: 2018-05-01 | B9: 4 | C9: 30000 | D9: 18118 | E9: 30000 | F9: -22200 | G9: -1800 | H9: 0 | I9: 0 | J9: 79 | K9: 0 | L9: 0 | M9: 0 | N9: 0 | O9: 0 | P9: 0 | Q9: 0 | R9: 0 | S9: 0 | T9: 24197 | U9: 0 | V9: 0 | W9: 0 | X9: 0 | Y9: 0 | Z9: 0 | AA9: 0 | AB9: 0 | AC9: 0 | AD9: 0 | AE9: 0 | AF9: 0 | AG9: 0 | AH9: 0 | AI9: 0 | AJ9: 0 | AK9: 1806 | AL9: 0 | AM9: 0 | AN9: 0 | AO9: 0 | AP9: -4 | AQ9: 8 | AR9: 300 | AS9: 0 | AT9: 300 | AU9: 0 | AV9: 0 | AW9: 0 | AX9: 0 | AY9: 2410 | AZ9: 0 | BA9: 0 | BB9: 0 | BC9: 0 | BD9: 0 | BE9: 0 | BF9: 0 | BG9: 0 | BH9: 0 | BI9: 0 | BJ9: 0 | BK9: 0 | BL9: 0 | BM9: 0 | BN9: 0 | BO9: 0 | BP9: 0 | BQ9: 0 | BR9: 0 | BS9: 0 | BT9: 0 | BU9: 0 | BV9: 0 | BW9: 0 | BX9: 0 | BY9: 0 | BZ9: 0 | CA9: 0 | CC9: 0 | CD9: 0 | CE9: 0 | CF9: 0 | CG9: 0 | CH9: 0 | CJ9: 0 | CK9: 0 | CL9: 0 | CM9: 0 | CN9: 0 | CO9: 0
A10: 2018-06-01 | B10: 5 | C10: 30000 | D10: 24197 | E10: 30000 | F10: -22200 | G10: -1800 | H10: 0 | I10: 0 | J10: 99 | K10: 0 | L10: 0 | M10: 0 | N10: 0 | O10: 0 | P10: 13 | Q10: 0 | R10: 0 | S10: 0 | T10: 30309 | U10: 0 | V10: 0 | W10: 0 | X10: 0 | Y10: 0 | Z10: 0 | AA10: 0 | AB10: 0 | AC10: 0 | AD10: 0 | AE10: 0 | AF10: 0 | AG10: 0 | AH10: 0 | AI10: 0 | AJ10: 0 | AK10: 2410 | AL10: 0 | AM10: 0 | AN10: 0 | AO10: 0 | AP10: -5 | AQ10: 10 | AR10: 300 | AS10: 0 | AT10: 300 | AU10: 0 | AV10: 0 | AW10: 0 | AX10: 0 | AY10: 3015 | AZ10: 0 | BA10: 0 | BB10: 0 | BC10: 0 | BD10: 0 | BE10: 0 | BF10: 0 | BG10: 0 | BH10: 0 | BI10: 0 | BJ10: 0 | BK10: 0 | BL10: 0 | BM10: 0 | BN10: 0 | BO10: 0 | BP10: 0 | BQ10: 0 | BR10: 0 | BS10: 0 | BT10: 0 | BU10: 0 | BV10: 0 | BW10: 0 | BX10: 0 | BY10: 0 | BZ10: 0 | CA10: 0 | CC10: 0 | CD10: 0 | CE10: 0 | CF10: 0 | CG10: 0 | CH10: 0 | CJ10: 0 | CK10: 0 | CL10: 0 | CM10: 0 | CN10: 0 | CO10: 0
A11: 2018-07-01 | B11: 6 | C11: 30000 | D11: 30309 | E11: 30000 | F11: -22200 | G11: -1800 | H11: 0 | I11: 0 | J11: 119 | K11: 0 | L11: 0 | M11: 0 | N11: 0 | O11: 0 | P11: 0 | Q11: 0 | R11: 0 | S11: 0 | T11: 36428 | U11: 0 | V11: 0 | W11: 0 | X11: 0 | Y11: 0 | Z11: 0 | AA11: 0 | AB11: 0 | AC11: 0 | AD11: 0 | AE11: 0 | AF11: 0 | AG11: 0 | AH11: 0 | AI11: 0 | AJ11: 0 | AK11: 3015 | AL11: 0 | AM11: 0 | AN11: 0 | AO11: 0 | AP11: -6 | AQ11: 12 | AR11: 300 | AS11: 0 | AT11: 300 | AU11: 0 | AV11: 0 | AW11: 0 | AX11: 0 | AY11: 3621 | AZ11: 0 | BA11: 0 | BB11: 0 | BC11: 0 | BD11: 0 | BE11: 0 | BF11: 0 | BG11: 0 | BH11: 0 | BI11: 0 | BJ11: 0 | BK11: 0 | BL11: 0 | BM11: 0 | BN11: 0 | BO11: 0 | BP11: 0 | BQ11: 0 | BR11: 0 | BS11: 0 | BT11: 0 | BU11: 0 | BV11: 0 | BW11: 0 | BX11: 0 | BY11: 0 | BZ11: 0 | CA11: 0 | CC11: 0 | CD11: 0 | CE11: 0 | CF11: 0 | CG11: 0 | CH11: 0 | CJ11: 0 | CK11: 0 | CL11: 0 | CM11: 0 | CN11: 0 | CO11: 0
A12: 2018-08-01 | B12: 7 | C12: 30000 | D12: 36428 | E12: 30000 | F12: -22200 | G12: -1800 | H12: 0 | I12: 0 | J12: 139 | K12: 0 | L12: 0 | M12: 0 | N12: 0 | O12: 0 | P12: 0 | Q12: 0 | R12: 0 | S12: 0 | T12: 42567 | U12: 0 | V12: 0 | W12: 0 | X12: 0 | Y12: 0 | Z12: 0 | AA12: 0 | AB12: 0 | AC12: 0 | AD12: 0 | AE12: 0 | AF12: 0 | AG12: 0 | AH12: 0 | AI12: 0 | AJ12: 0 | AK12: 3621 | AL12: 0 | AM12: 0 | AN12: 0 | AO12: 0 | AP12: -7 | AQ12: 14 | AR12: 300 | AS12: 0 | AT12: 300 | AU12: 0 | AV12: 0 | AW12: 0 | AX12: 0 | AY12: 4228 | AZ12: 0 | BA12: 0 | BB12: 0 | BC12: 0 | BD12: 0 | BE12: 0 | BF12: 0 | BG12: 0 | BH12: 0 | BI12: 0 | BJ12: 0 | BK12: 0 | BL12: 0 | BM12: 0 | BN12: 0 | BO12: 0 | BP12: 0 | BQ12: 0 | BR12: 0 | BS12: 0 | BT12: 0 | BU12: 0 | BV12: 0 | BW12: 0 | BX12: 0 | BY12: 0 | BZ12: 0 | CA12: 0 | CC12: 0 | CD12: 0 | CE12: 0 | CF12: 0 | CG12: 0 | CH12: 0 | CJ12: 0 | CK12: 0 | CL12: 0 | CM12: 0 | CN12: 0 | CO12: 0
A13: 2018-09-01 | B13: 8 | C13: 30000 | D13: 42567 | E13: 30000 | F13: -22200 | G13: -1800 | H13: 0 | I13: 0 | J13: 159 | K13: 0 | L13: 0 | M13: 0 | N13: 0 | O13: 0 | P13: 55 | Q13: 0 | R13: 0 | S13: 0 | T13: 48781 | U13: 0 | V13: 0 | W13: 0 | X13: 0 | Y13: 0 | Z13: 0 | AA13: 0 | AB13: 0 | AC13: 0 | AD13: 0 | AE13: 0 | AF13: 0 | AG13: 0 | AH13: 0 | AI13: 0 | AJ13: 0 | AK13: 4228 | AL13: 0 | AM13: 0 | AN13: 0 | AO13: 0 | AP13: -8 | AQ13: 16 | AR13: 300 | AS13: 0 | AT13: 300 | AU13: 0 | AV13: 0 | AW13: 0 | AX13: 0 | AY13: 4836 | AZ13: 0 | BA13: 0 | BB13: 0 | BC13: 0 | BD13: 0 | BE13: 0 | BF13: 0 | BG13: 0 | BH13: 0 | BI13: 0 | BJ13: 0 | BK13: 0 | BL13: 0 | BM13: 0 | BN13: 0 | BO13: 0 | BP13: 0 | BQ13: 0 | BR13: 0 | BS13: 0 | BT13: 0 | BU13: 0 | BV13: 0 | BW13: 0 | BX13: 0 | BY13: 0 | BZ13: 0 | CA13: 0 | CC13: 0 | CD13: 0 | CE13: 0 | CF13: 0 | CG13: 0 | CH13: 0 | CJ13: 0 | CK13: 0 | CL13: 0 | CM13: 0 | CN13: 0 | CO13: 0
A14: 2018-10-01 | B14: 9 | C14: 30000 | D14: 48781 | E14: 30000 | F14: -22200 | G14: -1800 | H14: 0 | I14: 0 | J14: 179 | K14: 0 | L14: 0 | M14: 0 | N14: 0 | O14: 0 | P14: 0 | Q14: 0 | R14: 0 | S14: 0 | T14: 54960 | U14: 0 | V14: 0 | W14: 0 | X14: 0 | Y14: 0 | Z14: 0 | AA14: 0 | AB14: 0 | AC14: 0 | AD14: 0 | AE14: 0 | AF14: 0 | AG14: 0 | AH14: 0 | AI14: 0 | AJ14: 0 | AK14: 4836 | AL14: 0 | AM14: 0 | AN14: 0 | AO14: 0 | AP14: -9 | AQ14: 18 | AR14: 300 | AS14: 0 | AT14: 300 | AU14: 0 | AV14: 0 | AW14: 0 | AX14: 0 | AY14: 5445 | AZ14: 0 | BA14: 0 | BB14: 0 | BC14: 0 | BD14: 0 | BE14: 0 | BF14: 0 | BG14: 0 | BH14: 0 | BI14: 0 | BJ14: 0 | BK14: 0 | BL14: 0 | BM14: 0 | BN14: 0 | BO14: 0 | BP14: 0 | BQ14: 0 | BR14: 0 | BS14: 0 | BT14: 0 | BU14: 0 | BV14: 0 | BW14: 0 | BX14: 0 | BY14: 0 | BZ14: 0 | CA14: 0 | CC14: 0 | CD14: 0 | CE14: 0 | CF14: 0 | CG14: 0 | CH14: 0 | CJ14: 0 | CK14: 0 | CL14: 0 | CM14: 0 | CN14: 0 | CO14: 0
A15: 2018-11-01 | B15: 10 | C15: 30000 | D15: 54960 | E15: 30000 | F15: -22200 | G15: -1800 | H15: 0 | I15: 0 | J15: 200 | K15: 0 | L15: 0 | M15: 0 | N15: 0 | O15: 0 | P15: 0 | Q15: 0 | R15: 0 | S15: 0 | T15: 61160 | U15: 0 | V15: 0 | W15: 0 | X15: 0 | Y15: 0 | Z15: 0 | AA15: 0 | AB15: 0 | AC15: 0 | AD15: 0 | AE15: 0 | AF15: 0 | AG15: 0 | AH15: 0 | AI15: 0 | AJ15: 0 | AK15: 5445 | AL15: 0 | AM15: 0 | AN15: 0 | AO15: 0 | AP15: -10 | AQ15: 20 | AR15: 300 | AS15: 0 | AT15: 300 | AU15: 0 | AV15: 0 | AW15: 0 | AX15: 0 | AY15: 6055 | AZ15: 0 | BA15: 0 | BB15: 0 | BC15: 0 | BD15: 0 | BE15: 0 | BF15: 0 | BG15: 0 | BH15: 0 | BI15: 0 | BJ15: 0 | BK15: 0 | BL15: 0 | BM15: 0 | BN15: 0 | BO15: 0 | BP15: 0 | BQ15: 0 | BR15: 0 | BS15: 0 | BT15: 0 | BU15: 0 | BV15: 0 | BW15: 0 | BX15: 0 | BY15: 0 | BZ15: 0 | CA15: 0 | CC15: 0 | CD15: 0 | CE15: 0 | CF15: 0 | CG15: 0 | CH15: 0 | CJ15: 0 | CK15: 0 | CL15: 0 | CM15: 0 | CN15: 0 | CO15: 0
A16: 2018-12-01 | B16: 11 | C16: 30000 | D16: 61160 | E16: 30000 | F16: -22200 | G16: -1800 | H16: 0 | I16: 0 | J16: 220 | K16: 0 | L16: 0 | M16: 0 | N16: 0 | O16: 0 | P16: 98 | Q16: 0 | R16: 0 | S16: 0 | T16: 67478 | U16: 0 | V16: 0 | W16: 0 | X16: 0 | Y16: 0 | Z16: 0 | AA16: 0 | AB16: 0 | AC16: 0 | AD16: 0 | AE16: 0 | AF16: 0 | AG16: 0 | AH16: 0 | AI16: 0 | AJ16: 0 | AK16: 6055 | AL16: 0 | AM16: 0 | AN16: 0 | AO16: 0 | AP16: -11 | AQ16: 22 | AR16: 300 | AS16: 0 | AT16: 300 | AU16: 0 | AV16: 0 | AW16: 0 | AX16: 0 | AY16: 6666 | AZ16: 0 | BA16: 0 | BB16: 0 | BC16: 0 | BD16: 0 | BE16: 0 | BF16: 0 | BG16: 0 | BH16: 0 | BI16: 0 | BJ16: 0 | BK16: 0 | BL16: 0 | BM16: 0 | BN16: 0 | BO16: 0 | BP16: 0 | BQ16: 0 | BR16: 0 | BS16: 0 | BT16: 0 | BU16: 0 | BV16: 0 | BW16: 0 | BX16: 0 | BY16: 0 | BZ16: 0 | CA16: 0 | CC16: 0 | CD16: 0 | CE16: 0 | CF16: 0 | CG16: 0 | CH16: 0 | CJ16: 0 | CK16: 0 | CL16: 0 | CM16: 0 | CN16: 0 | CO16: 0
A17: 2019-01-01 | B17: 12 | C17: 30000 | D17: 67478 | E17: 30000 | F17: -22200 | G17: -1800 | H17: 0 | I17: 0 | J17: 241 | K17: 0 | L17: 0 | M17: 0 | N17: 0 | O17: 0 | P17: 0 | Q17: 0 | R17: 0 | S17: 0 | T17: 73719 | U17: 0 | V17: 0 | W17: 0 | X17: 0 | Y17: 0 | Z17: 0 | AA17: 0 | AB17: 0 | AC17: 0 | AD17: 0 | AE17: 0 | AF17: 0 | AG17: 0 | AH17: 0 | AI17: 0 | AJ17: 0 | AK17: 6666 | AL17: 0 | AM17: 0 | AN17: 0 | AO17: 0 | AP17: -12 | AQ17: 24 | AR17: 300 | AS17: 0 | AT17: 300 | AU17: 0 | AV17: 0 | AW17: 0 | AX17: 0 | AY17: 7278 | AZ17: 0 | BA17: 0 | BB17: 0 | BC17: 0 | BD17: 0 | BE17: 0 | BF17: 0 | BG17: 0 | BH17: 0 | BI17: 0 | BJ17: 0 | BK17: 0 | BL17: 0 | BM17: 0 | BN17: 0 | BO17: 0 | BP17: 0 | BQ17: 0 | BR17: 0 | BS17: 0 | BT17: 0 | BU17: 0 | BV17: 0 | BW17: 0 | BX17: 0 | BY17: 0 | BZ17: 0 | CA17: 0 | CC17: 0 | CD17: 0 | CE17: 0 | CF17: 0 | CG17: 0 | CH17: 0 | CJ17: 0 | CK17: 0 | CL17: 0 | CM17: 0 | CN17: 0 | CO17: 0
A18: 2019-02-01 | B18: 13 | C18: 30000 | D18: 73719 | E18: 31500 | F18: -13860 | G18: -1890 | H18: 0 | I18: 0 | J18: 293 | K18: 0 | L18: 0 | M18: 0 | N18: 0 | O18: 0 | P18: 0 | Q18: 0 | R18: 0 | S18: 0 | T18: 89762 | U18: 0 | V18: 0 | W18: 0 | X18: 0 | Y18: 0 | Z18: 0 | AA18: 0 | AB18: 0 | AC18: 0 | AD18: 0 | AE18: 0 | AF18: 0 | AG18: 0 | AH18: 0 | AI18: 0 | AJ18: 0 | AK18: 7278 | AL18: 0 | AM18: 0 | AN18: 0 | AO18: 0 | AP18: -13 | AQ18: 26 | AR18: 315 | AS18: 0 | AT18: 315 | AU18: 0 | AV18: 0 | AW18: 0 | AX18: 0 | AY18: 7921 | AZ18: 0 | BA18: 0 | BB18: 0 | BC18: 0 | BD18: 0 | BE18: 0 | BF18: 0 | BG18: 0 | BH18: 0 | BI18: 0 | BJ18: 0 | BK18: 0 | BL18: 0 | BM18: 0 | BN18: 0 | BO18: 0 | BP18: 0 | BQ18: 0 | BR18: 0 | BS18: 0 | BT18: 0 | BU18: 0 | BV18: 0 | BW18: 0 | BX18: 0 | BY18: 0 | BZ18: 0 | CA18: 0 | CC18: 0 | CD18: 0 | CE18: 0 | CF18: 0 | CG18: 0 | CH18: 0 | CJ18: 0 | CK18: 0 | CL18: 0 | CM18: 0 | CN18: 0 | CO18: 0
A19: 2019-03-01 | B19: 14 | C19: 30000 | D19: 89762 | E19: 31500 | F19: -13860 | G19: -1890 | H19: 0 | I19: 0 | J19: 345 | K19: 0 | L19: 0 | M19: 0 | N19: 0 | O19: 0 | P19: 141 | Q19: 0 | R19: 0 | S19: 0 | T19: 105998 | U19: 0 | V19: 0 | W19: 0 | X19: 0 | Y19: 0 | Z19: 0 | AA19: 0 | AB19: 0 | AC19: 0 | AD19: 0 | AE19: 0 | AF19: 0 | AG19: 0 | AH19: 0 | AI19: 0 | AJ19: 0 | AK19: 7921 | AL19: 0 | AM19: 0 | AN19: 0 | AO19: 0 | AP19: -14 | AQ19: 28 | AR19: 315 | AS19: 0 | AT19: 315 | AU19: 0 | AV19: 0 | AW19: 0 | AX19: 0 | AY19: 8565 | AZ19: 0 | BA19: 0 | BB19: 0 | BC19: 0 | BD19: 0 | BE19: 0 | BF19: 0 | BG19: 0 | BH19: 0 | BI19: 0 | BJ19: 0 | BK19: 0 | BL19: 0 | BM19: 0 | BN19: 0 | BO19: 0 | BP19: 0 | BQ19: 0 | BR19: 0 | BS19: 0 | BT19: 0 | BU19: 0 | BV19: 0 | BW19: 0 | BX19: 0 | BY19: 0 | BZ19: 0 | CA19: 0 | CC19: 0 | CD19: 0 | CE19: 0 | CF19: 0 | CG19: 0 | CH19: 0 | CJ19: 0 | CK19: 0 | CL19: 0 | CM19: 0 | CN19: 0 | CO19: 0
A20: 2019-04-01 | B20: 15 | C20: 30000 | D20: 105998 | E20: 31500 | F20: -13860 | G20: -1890 | H20: 0 | I20: 0 | J20: 399 | K20: 0 | L20: 0 | M20: 0 | N20: 0 | O20: 0 | P20: 0 | Q20: 0 | R20: 0 | S20: 0 | T20: 122147 | U20: 0 | V20: 0 | W20: 0 | X20: 0 | Y20: 0 | Z20: 0 | AA20: 0 | AB20: 0 | AC20: 0 | AD20: 0 | AE20: 0 | AF20: 0 | AG20: 0 | AH20: 0 | AI20: 0 | AJ20: 0 | AK20: 8565 | AL20: 0 | AM20: 0 | AN20: 0 | AO20: 0 | AP20: -15 | AQ20: 30 | AR20: 315 | AS20: 0 | AT20: 315 | AU20: 0 | AV20: 0 | AW20: 0 | AX20: 0 | AY20: 9210 | AZ20: 0 | BA20: 0 | BB20: 0 | BC20: 0 | BD20: 0 | BE20: 0 | BF20: 0 | BG20: 0 | BH20: 0 | BI20: 0 | BJ20: 0 | BK20: 0 | BL20: 0 | BM20: 0 | BN20: 0 | BO20: 0 | BP20: 0 | BQ20: 0 | BR20: 0 | BS20: 0 | BT20: 0 | BU20: 0 | BV20: 66000 | BW20: -110 | BX20: 216 | BY20: 0 | BZ20: 66106 | CA20: 0 | CC20: 0 | CD20: 0 | CE20: 0 | CF20: 0 | CG20: 0 | CH20: 0 | CJ20: 0 | CK20: 0 | CL20: 0 | CM20: 0 | CN20: 0 | CO20: 0
A21: 2019-05-01 | B21: 16 | C21: 30000 | D21: 122147 | E21: 31500 | F21: -13860 | G21: -1890 | H21: 0 | I21: 0 | J21: 451 | K21: 0 | L21: 0 | M21: 0 | N21: 0 | O21: 0 | P21: 0 | Q21: 0 | R21: 0 | S21: 0 | T21: 138348 | U21: 0 | V21: 0 | W21: 0 | X21: 0 | Y21: 0 | Z21: 0 | AA21: 0 | AB21: 0 | AC21: 0 | AD21: 0 | AE21: 0 | AF21: 0 | AG21: 0 | AH21: 0 | AI21: 0 | AJ21: 0 | AK21: 9210 | AL21: 0 | AM21: 0 | AN21: 0 | AO21: 0 | AP21: -16 | AQ21: 32 | AR21: 315 | AS21: 0 | AT21: 315 | AU21: 0 | AV21: 0 | AW21: 0 | AX21: 0 | AY21: 9856 | AZ21: 0 | BA21: 0 | BB21: 0 | BC21: 0 | BD21: 0 | BE21: 0 | BF21: 0 | BG21: 0 | BH21: 0 | BI21: 0 | BJ21: 0 | BK21: 0 | BL21: 0 | BM21: 0 | BN21: 0 | BO21: 0 | BP21: 0 | BQ21: 0 | BR21: 0 | BS21: 0 | BT21: 0 | BU21: 66106 | BV21: 0 | BW21: -111 | BX21: 216 | BY21: 0 | BZ21: 66211 | CA21: 0 | CC21: 0 | CD21: 0 | CE21: 0 | CF21: 0 | CG21: 0 | CH21: 0 | CJ21: 0 | CK21: 0 | CL21: 0 | CM21: 0 | CN21: 0 | CO21: 0
A22: 2019-06-01 | B22: 17 | C22: 30000 | D22: 138348 | E22: 31500 | F22: -13860 | G22: -1890 | H22: 0 | I22: 0 | J22: 504 | K22: 0 | L22: 0 | M22: 0 | N22: 0 | O22: 0 | P22: 199 | Q22: 0 | R22: 0 | S22: 0 | T22: 154801 | U22: 0 | V22: 0 | W22: 0 | X22: 0 | Y22: 0 | Z22: 0 | AA22: 0 | AB22: 0 | AC22: 0 | AD22: 0 | AE22: 0 | AF22: 0 | AG22: 0 | AH22: 0 | AI22: 0 | AJ22: 0 | AK22: 9856 | AL22: 0 | AM22: 0 | AN22: 0 | AO22: 0 | AP22: -18 | AQ22: 34 | AR22: 315 | AS22: 0 | AT22: 315 | AU22: 0 | AV22: 0 | AW22: 0 | AX22: 0 | AY22: 10502 | AZ22: 0 | BA22: 0 | BB22: 0 | BC22: 0 | BD22: 0 | BE22: 0 | BF22: 0 | BG22: 0 | BH22: 0 | BI22: 0 | BJ22: 0 | BK22: 0 | BL22: 0 | BM22: 0 | BN22: 0 | BO22: 0 | BP22: 0 | BQ22: 0 | BR22: 0 | BS22: 0 | BT22: 0 | BU22: 66211 | BV22: 0 | BW22: -111 | BX22: 217 | BY22: 0 | BZ22: 66317 | CA22: 0 | CC22: 0 | CD22: 0 | CE22: 0 | CF22: 0 | CG22: 0 | CH22: 0 | CJ22: 0 | CK22: 0 | CL22: 0 | CM22: 0 | CN22: 0 | CO22: 0
A23: 2019-07-01 | B23: 18 | C23: 30000 | D23: 154801 | E23: 31500 | F23: -13860 | G23: -1890 | H23: 0 | I23: 0 | J23: 558 | K23: 0 | L23: 0 | M23: 0 | N23: 0 | O23: 0 | P23: 0 | Q23: 0 | R23: 0 | S23: 0 | T23: 171109 | U23: 0 | V23: 0 | W23: 0 | X23: 0 | Y23: 0 | Z23: 0 | AA23: 0 | AB23: 0 | AC23: 0 | AD23: 0 | AE23: 0 | AF23: 0 | AG23: 0 | AH23: 0 | AI23: 0 | AJ23: 0 | AK23: 10502 | AL23: 0 | AM23: 0 | AN23: 0 | AO23: 0 | AP23: -19 | AQ23: 36 | AR23: 315 | AS23: 0 | AT23: 315 | AU23: 0 | AV23: 0 | AW23: 0 | AX23: 0 | AY23: 11149 | AZ23: 0 | BA23: 0 | BB23: 0 | BC23: 0 | BD23: 0 | BE23: 0 | BF23: 0 | BG23: 0 | BH23: 0 | BI23: 0 | BJ23: 0 | BK23: 0 | BL23: 0 | BM23: 0 | BN23: 0 | BO23: 0 | BP23: 0 | BQ23: 0 | BR23: 0 | BS23: 0 | BT23: 0 | BU23: 66317 | BV23: 0 | BW23: -111 | BX23: 217 | BY23: 0 | BZ23: 66423 | CA23: 0 | CC23: 0 | CD23: 0 | CE23: 0 | CF23: 0 | CG23: 0 | CH23: 0 | CJ23: 0 | CK23: 0 | CL23: 0 | CM23: 0 | CN23: 0 | CO23: 0
A24: 2019-08-01 | B24: 19 | C24: 30000 | D24: 171109 | E24: 31500 | F24: -13860 | G24: -1890 | H24: 0 | I24: 0 | J24: 612 | K24: 0 | L24: 0 | M24: 0 | N24: 0 | O24: 0 | P24: 0 | Q24: 0 | R24: 0 | S24: 0 | T24: 187471 | U24: 0 | V24: 0 | W24: 0 | X24: 0 | Y24: 0 | Z24: 0 | AA24: 0 | AB24: 0 | AC24: 0 | AD24: 0 | AE24: 0 | AF24: 0 | AG24: 0 | AH24: 0 | AI24: 0 | AJ24: 0 | AK24: 11149 | AL24: 0 | AM24: 0 | AN24: 0 | AO24: 0 | AP24: -20 | AQ24: 39 | AR24: 315 | AS24: 0 | AT24: 315 | AU24: 0 | AV24: 0 | AW24: 0 | AX24: 0 | AY24: 11798 | AZ24: 0 | BA24: 0 | BB24: 0 | BC24: 0 | BD24: 0 | BE24: 0 | BF24: 0 | BG24: 0 | BH24: 0 | BI24: 0 | BJ24: 0 | BK24: 0 | BL24: 0 | BM24: 0 | BN24: 0 | BO24: 0 | BP24: 0 | BQ24: 0 | BR24: 0 | BS24: 0 | BT24: 0 | BU24: 66423 | BV24: 0 | BW24: -111 | BX24: 217 | BY24: 0 | BZ24: 66529 | CA24: 0 | CC24: 0 | CD24: 0 | CE24: 0 | CF24: 0 | CG24: 0 | CH24: 0 | CJ24: 0 | CK24: 0 | CL24: 0 | CM24: 0 | CN24: 0 | CO24: 0
A25: 2019-09-01 | B25: 20 | C25: 30000 | D25: 187471 | E25: 31500 | F25: -13860 | G25: -1890 | H25: 0 | I25: 0 | J25: 665 | K25: 0 | L25: 0 | M25: 0 | N25: 0 | O25: 0 | P25: 305 | Q25: 0 | R25: 0 | S25: 0 | T25: 204191 | U25: 0 | V25: 0 | W25: 0 | X25: 0 | Y25: 0 | Z25: 0 | AA25: 0 | AB25: 0 | AC25: 0 | AD25: 0 | AE25: 0 | AF25: 0 | AG25: 0 | AH25: 0 | AI25: 0 | AJ25: 0 | AK25: 11798 | AL25: 0 | AM25: 0 | AN25: 0 | AO25: 0 | AP25: -21 | AQ25: 41 | AR25: 315 | AS25: 0 | AT25: 315 | AU25: 0 | AV25: 0 | AW25: 0 | AX25: 0 | AY25: 12448 | AZ25: 0 | BA25: 0 | BB25: 0 | BC25: 0 | BD25: 0 | BE25: 0 | BF25: 0 | BG25: 0 | BH25: 0 | BI25: 0 | BJ25: 0 | BK25: 0 | BL25: 0 | BM25: 0 | BN25: 0 | BO25: 0 | BP25: 0 | BQ25: 0 | BR25: 0 | BS25: 0 | BT25: 0 | BU25: 66529 | BV25: 0 | BW25: -111 | BX25: 218 | BY25: 137 | BZ25: 66773 | CA25: 0 | CC25: 0 | CD25: 0 | CE25: 0 | CF25: 0 | CG25: 0 | CH25: 0 | CJ25: 0 | CK25: 0 | CL25: 0 | CM25: 0 | CN25: 0 | CO25: 0
A26: 2019-10-01 | B26: 21 | C26: 30000 | D26: 204191 | E26: 31500 | F26: -13860 | G26: -1890 | H26: 0 | I26: 0 | J26: 720 | K26: 0 | L26: 0 | M26: 0 | N26: 0 | O26: 0 | P26: 0 | Q26: 0 | R26: 0 | S26: 0 | T26: 220661 | U26: 0 | V26: 0 | W26: 0 | X26: 0 | Y26: 0 | Z26: 0 | AA26: 0 | AB26: 0 | AC26: 0 | AD26: 0 | AE26: 0 | AF26: 0 | AG26: 0 | AH26: 0 | AI26: 0 | AJ26: 0 | AK26: 12448 | AL26: 0 | AM26: 0 | AN26: 0 | AO26: 0 | AP26: -22 | AQ26: 43 | AR26: 315 | AS26: 0 | AT26: 315 | AU26: 0 | AV26: 0 | AW26: 0 | AX26: 0 | AY26: 13099 | AZ26: 0 | BA26: 0 | BB26: 0 | BC26: 0 | BD26: 0 | BE26: 0 | BF26: 0 | BG26: 0 | BH26: 0 | BI26: 0 | BJ26: 0 | BK26: 0 | BL26: 0 | BM26: 0 | BN26: 0 | BO26: 0 | BP26: 0 | BQ26: 0 | BR26: 0 | BS26: 0 | BT26: 0 | BU26: 66773 | BV26: 0 | BW26: -112 | BX26: 219 | BY26: 0 | BZ26: 66880 | CA26: 0 | CC26: 0 | CD26: 0 | CE26: 0 | CF26: 0 | CG26: 0 | CH26: 0 | CJ26: 0 | CK26: 0 | CL26: 0 | CM26: 0 | CN26: 0 | CO26: 0
A27: 2019-11-01 | B27: 22 | C27: 30000 | D27: 220661 | E27: 31500 | F27: -13860 | G27: -1890 | H27: 0 | I27: 0 | J27: 774 | K27: 0 | L27: 0 | M27: 0 | N27: 0 | O27: 0 | P27: 0 | Q27: 0 | R27: 0 | S27: 0 | T27: 237185 | U27: 0 | V27: 0 | W27: 0 | X27: 0 | Y27: 0 | Z27: 0 | AA27: 0 | AB27: 0 | AC27: 0 | AD27: 0 | AE27: 0 | AF27: 0 | AG27: 0 | AH27: 0 | AI27: 0 | AJ27: 0 | AK27: 13099 | AL27: 0 | AM27: 0 | AN27: 0 | AO27: 0 | AP27: -23 | AQ27: 45 | AR27: 315 | AS27: 0 | AT27: 315 | AU27: 0 | AV27: 0 | AW27: 0 | AX27: 0 | AY27: 13751 | AZ27: 0 | BA27: 0 | BB27: 0 | BC27: 0 | BD27: 0 | BE27: 0 | BF27: 0 | BG27: 0 | BH27: 0 | BI27: 0 | BJ27: 0 | BK27: 0 | BL27: 0 | BM27: 0 | BN27: 0 | BO27: 0 | BP27: 0 | BQ27: 0 | BR27: 0 | BS27: 0 | BT27: 0 | BU27: 66880 | BV27: 0 | BW27: -112 | BX27: 219 | BY27: 0 | BZ27: 66987 | CA27: 0 | CC27: 0 | CD27: 0 | CE27: 0 | CF27: 0 | CG27: 0 | CH27: 0 | CJ27: 0 | CK27: 0 | CL27: 0 | CM27: 0 | CN27: 0 | CO27: 0
A28: 2019-12-01 | B28: 23 | C28: 30000 | D28: 237185 | E28: 31500 | F28: -13860 | G28: -1890 | H28: 0 | I28: 0 | J28: 828 | K28: 0 | L28: 0 | M28: 0 | N28: 0 | O28: 0 | P28: 416 | Q28: 0 | R28: 0 | S28: 0 | T28: 254179 | U28: 0 | V28: 0 | W28: 0 | X28: 0 | Y28: 0 | Z28: 0 | AA28: 0 | AB28: 0 | AC28: 0 | AD28: 0 | AE28: 0 | AF28: 0 | AG28: 0 | AH28: 0 | AI28: 0 | AJ28: 0 | AK28: 13751 | AL28: 0 | AM28: 0 | AN28: 0 | AO28: 0 | AP28: -24 | AQ28: 47 | AR28: 315 | AS28: 0 | AT28: 315 | AU28: 0 | AV28: 0 | AW28: 0 | AX28: 0 | AY28: 14404 | AZ28: 0 | BA28: 0 | BB28: 0 | BC28: 0 | BD28: 0 | BE28: 0 | BF28: 0 | BG28: 0 | BH28: 0 | BI28: 0 | BJ28: 0 | BK28: 0 | BL28: 0 | BM28: 0 | BN28: 0 | BO28: 0 | BP28: 0 | BQ28: 0 | BR28: 0 | BS28: 0 | BT28: 0 | BU28: 66987 | BV28: 0 | BW28: -112 | BX28: 219 | BY28: 139 | BZ28: 67233 | CA28: 0 | CC28: 0 | CD28: 0 | CE28: 0 | CF28: 0 | CG28: 0 | CH28: 0 | CJ28: 0 | CK28: 0 | CL28: 0 | CM28: 0 | CN28: 0 | CO28: 0
A29: 2020-01-01 | B29: 24 | C29: 30000 | D29: 254179 | E29: 31500 | F29: -13860 | G29: -1890 | H29: 0 | I29: 0 | J29: 884 | K29: 0 | L29: 0 | M29: 0 | N29: 0 | O29: 0 | P29: 0 | Q29: 0 | R29: 0 | S29: 0 | T29: 270813 | U29: 0 | V29: 0 | W29: 0 | X29: 0 | Y29: 0 | Z29: 0 | AA29: 0 | AB29: 0 | AC29: 0 | AD29: 0 | AE29: 0 | AF29: 0 | AG29: 0 | AH29: 0 | AI29: 0 | AJ29: 0 | AK29: 14404 | AL29: 0 | AM29: 0 | AN29: 0 | AO29: 0 | AP29: -25 | AQ29: 49 | AR29: 315 | AS29: 0 | AT29: 315 | AU29: 0 | AV29: 0 | AW29: 0 | AX29: 0 | AY29: 15058 | AZ29: 0 | BA29: 0 | BB29: 0 | BC29: 0 | BD29: 0 | BE29: 0 | BF29: 0 | BG29: 0 | BH29: 0 | BI29: 0 | BJ29: 0 | BK29: 0 | BL29: 0 | BM29: 0 | BN29: 0 | BO29: 0 | BP29: 0 | BQ29: 0 | BR29: 0 | BS29: 0 | BT29: 0 | BU29: 67233 | BV29: 0 | BW29: -112 | BX29: 220 | BY29: 0 | BZ29: 67341 | CA29: 0 | CC29: 0 | CD29: 0 | CE29: 0 | CF29: 0 | CG29: 0 | CH29: 0 | CJ29: 0 | CK29: 0 | CL29: 0 | CM29: 0 | CN29: 0 | CO29: 0
A30: 2020-02-01 | B30: 25 | C30: 30000 | D30: 270813 | E30: 33075 | F30: -4630 | G30: -1984 | H30: 0 | I30: 0 | J30: 973 | K30: 0 | L30: 0 | M30: 0 | N30: 0 | O30: 0 | P30: 0 | Q30: 0 | R30: 0 | S30: 0 | T30: 298247 | U30: 0 | V30: 0 | W30: 0 | X30: 0 | Y30: 0 | Z30: 0 | AA30: 0 | AB30: 0 | AC30: 0 | AD30: 0 | AE30: 0 | AF30: 0 | AG30: 0 | AH30: 0 | AI30: 0 | AJ30: 0 | AK30: 15058 | AL30: 0 | AM30: 0 | AN30: 0 | AO30: 0 | AP30: -26 | AQ30: 51 | AR30: 331 | AS30: 0 | AT30: 331 | AU30: 0 | AV30: 0 | AW30: 0 | AX30: 0 | AY30: 15745 | AZ30: 0 | BA30: 0 | BB30: 0 | BC30: 0 | BD30: 0 | BE30: 0 | BF30: 0 | BG30: 0 | BH30: 0 | BI30: 0 | BJ30: 0 | BK30: 0 | BL30: 0 | BM30: 0 | BN30: 0 | BO30: 0 | BP30: 0 | BQ30: 0 | BR30: 0 | BS30: 0 | BT30: 0 | BU30: 67341 | BV30: 0 | BW30: -113 | BX30: 220 | BY30: 0 | BZ30: 67448 | CA30: 0 | CC30: 0 | CD30: 0 | CE30: 0 | CF30: 0 | CG30: 0 | CH30: 0 | CJ30: 0 | CK30: 0 | CL30: 0 | CM30: 0 | CN30: 0 | CO30: 0
A31: 2020-03-01 | B31: 26 | C31: 30000 | D31: 298247 | E31: 33075 | F31: -4630 | G31: -1984 | H31: 0 | I31: 0 | J31: 1063 | K31: 0 | L31: 0 | M31: 0 | N31: 0 | O31: 0 | P31: 524 | Q31: 0 | R31: 0 | S31: 0 | T31: 326295 | U31: 0 | V31: 0 | W31: 0 | X31: 0 | Y31: 0 | Z31: 0 | AA31: 0 | AB31: 0 | AC31: 0 | AD31: 0 | AE31: 0 | AF31: 0 | AG31: 0 | AH31: 0 | AI31: 0 | AJ31: 0 | AK31: 15745 | AL31: 0 | AM31: 0 | AN31: 0 | AO31: 0 | AP31: -27 | AQ31: 54 | AR31: 331 | AS31: 0 | AT31: 331 | AU31: 0 | AV31: 0 | AW31: 0 | AX31: 0 | AY31: 16434 | AZ31: 0 | BA31: 0 | BB31: 0 | BC31: 0 | BD31: 0 | BE31: 0 | BF31: 0 | BG31: 0 | BH31: 0 | BI31: 0 | BJ31: 0 | BK31: 0 | BL31: 0 | BM31: 0 | BN31: 0 | BO31: 0 | BP31: 0 | BQ31: 0 | BR31: 0 | BS31: 0 | BT31: 0 | BU31: 67448 | BV31: 0 | BW31: -113 | BX31: 221 | BY31: 140 | BZ31: 67696 | CA31: 0 | CC31: 0 | CD31: 0 | CE31: 0 | CF31: 0 | CG31: 0 | CH31: 0 | CJ31: 0 | CK31: 0 | CL31: 0 | CM31: 0 | CN31: 0 | CO31: 0
A32: 2020-04-01 | B32: 27 | C32: 30000 | D32: 326295 | E32: 33075 | F32: -4630 | G32: -1984 | H32: 0 | I32: 0 | J32: 1155 | K32: 0 | L32: 0 | M32: 0 | N32: 0 | O32: 0 | P32: 0 | Q32: 0 | R32: 0 | S32: 0 | T32: 353911 | U32: 0 | V32: 0 | W32: 0 | X32: 0 | Y32: 0 | Z32: 0 | AA32: 0 | AB32: 0 | AC32: 0 | AD32: 0 | AE32: 0 | AF32: 0 | AG32: 0 | AH32: 0 | AI32: 0 | AJ32: 0 | AK32: 16434 | AL32: 0 | AM32: 0 | AN32: 0 | AO32: 0 | AP32: -29 | AQ32: 56 | AR32: 331 | AS32: 0 | AT32: 331 | AU32: 0 | AV32: 0 | AW32: 0 | AX32: 0 | AY32: 17123 | AZ32: 0 | BA32: 0 | BB32: 0 | BC32: 0 | BD32: 0 | BE32: 0 | BF32: 0 | BG32: 0 | BH32: 0 | BI32: 0 | BJ32: 0 | BK32: 0 | BL32: 0 | BM32: 0 | BN32: 0 | BO32: 0 | BP32: 0 | BQ32: 0 | BR32: 0 | BS32: 0 | BT32: 0 | BU32: 67696 | BV32: 75300 | BW32: -239 | BX32: 468 | BY32: 0 | BZ32: 143225 | CA32: 0 | CC32: 0 | CD32: 0 | CE32: 0 | CF32: 0 | CG32: 0 | CH32: 0 | CJ32: 0 | CK32: 0 | CL32: 0 | CM32: 0 | CN32: 0 | CO32: 0
A33: 2020-05-01 | B33: 28 | C33: 30000 | D33: 353911 | E33: 33075 | F33: -4630 | G33: -1984 | H33: 0 | I33: 0 | J33: 1245 | K33: 0 | L33: 0 | M33: 0 | N33: 0 | O33: 0 | P33: 0 | Q33: 0 | R33: 0 | S33: 0 | T33: 381617 | U33: 0 | V33: 0 | W33: 0 | X33: 0 | Y33: 0 | Z33: 0 | AA33: 0 | AB33: 0 | AC33: 0 | AD33: 0 | AE33: 0 | AF33: 0 | AG33: 0 | AH33: 0 | AI33: 0 | AJ33: 0 | AK33: 17123 | AL33: 0 | AM33: 0 | AN33: 0 | AO33: 0 | AP33: -30 | AQ33: 58 | AR33: 331 | AS33: 0 | AT33: 331 | AU33: 0 | AV33: 0 | AW33: 0 | AX33: 0 | AY33: 17813 | AZ33: 0 | BA33: 0 | BB33: 0 | BC33: 0 | BD33: 0 | BE33: 0 | BF33: 0 | BG33: 0 | BH33: 0 | BI33: 0 | BJ33: 0 | BK33: 0 | BL33: 0 | BM33: 0 | BN33: 0 | BO33: 0 | BP33: 0 | BQ33: 0 | BR33: 0 | BS33: 0 | BT33: 0 | BU33: 143225 | BV33: 0 | BW33: -239 | BX33: 469 | BY33: 0 | BZ33: 143455 | CA33: 0 | CC33: 0 | CD33: 0 | CE33: 0 | CF33: 0 | CG33: 0 | CH33: 0 | CJ33: 0 | CK33: 0 | CL33: 0 | CM33: 0 | CN33: 0 | CO33: 0
A34: 2020-06-01 | B34: 29 | C34: 30000 | D34: 381617 | E34: 33075 | F34: -4630 | G34: -1984 | H34: 0 | I34: 0 | J34: 1336 | K34: 0 | L34: 0 | M34: 0 | N34: 0 | O34: 0 | P34: 648 | Q34: 0 | R34: 0 | S34: 0 | T34: 410062 | U34: 0 | V34: 0 | W34: 0 | X34: 0 | Y34: 0 | Z34: 0 | AA34: 0 | AB34: 0 | AC34: 0 | AD34: 0 | AE34: 0 | AF34: 0 | AG34: 0 | AH34: 0 | AI34: 0 | AJ34: 0 | AK34: 17813 | AL34: 0 | AM34: 0 | AN34: 0 | AO34: 0 | AP34: -31 | AQ34: 60 | AR34: 331 | AS34: 0 | AT34: 331 | AU34: 0 | AV34: 0 | AW34: 0 | AX34: 0 | AY34: 18504 | AZ34: 0 | BA34: 0 | BB34: 0 | BC34: 0 | BD34: 0 | BE34: 0 | BF34: 0 | BG34: 0 | BH34: 0 | BI34: 0 | BJ34: 0 | BK34: 0 | BL34: 0 | BM34: 0 | BN34: 0 | BO34: 0 | BP34: 0 | BQ34: 0 | BR34: 0 | BS34: 0 | BT34: 0 | BU34: 143455 | BV34: 0 | BW34: -240 | BX34: 470 | BY34: 139 | BZ34: 143824 | CA34: 0 | CC34: 0 | CD34: 0 | CE34: 0 | CF34: 0 | CG34: 0 | CH34: 0 | CJ34: 0 | CK34: 0 | CL34: 0 | CM34: 0 | CN34: 0 | CO34: 0
A35: 2020-07-01 | B35: 30 | C35: 30000 | D35: 410062 | E35: 33075 | F35: -4630 | G35: -1984 | H35: 0 | I35: 0 | J35: 1429 | K35: 0 | L35: 0 | M35: 0 | N35: 0 | O35: 0 | P35: 0 | Q35: 0 | R35: 0 | S35: 0 | T35: 437952 | U35: 0 | V35: 0 | W35: 0 | X35: 0 | Y35: 0 | Z35: 0 | AA35: 0 | AB35: 0 | AC35: 0 | AD35: 0 | AE35: 0 | AF35: 0 | AG35: 0 | AH35: 0 | AI35: 0 | AJ35: 0 | AK35: 18504 | AL35: 0 | AM35: 0 | AN35: 0 | AO35: 0 | AP35: -32 | AQ35: 63 | AR35: 331 | AS35: 0 | AT35: 331 | AU35: 0 | AV35: 0 | AW35: 0 | AX35: 0 | AY35: 19197 | AZ35: 0 | BA35: 0 | BB35: 0 | BC35: 0 | BD35: 0 | BE35: 0 | BF35: 0 | BG35: 0 | BH35: 0 | BI35: 0 | BJ35: 0 | BK35: 0 | BL35: 0 | BM35: 0 | BN35: 0 | BO35: 0 | BP35: 0 | BQ35: 0 | BR35: 0 | BS35: 0 | BT35: 0 | BU35: 143824 | BV35: 0 | BW35: -240 | BX35: 471 | BY35: 0 | BZ35: 144055 | CA35: 0 | CC35: 0 | CD35: 0 | CE35: 0 | CF35: 0 | CG35: 0 | CH35: 0 | CJ35: 0 | CK35: 0 | CL35: 0 | CM35: 0 | CN35: 0 | CO35: 0
A36: 2020-08-01 | B36: 31 | C36: 30000 | D36: 437952 | E36: 33075 | F36: -4630 | G36: -1984 | H36: 0 | I36: 0 | J36: 1520 | K36: 0 | L36: 0 | M36: 0 | N36: 0 | O36: 0 | P36: 0 | Q36: 0 | R36: 0 | S36: 0 | T36: 465933 | U36: 0 | V36: 0 | W36: 0 | X36: 0 | Y36: 0 | Z36: 0 | AA36: 0 | AB36: 0 | AC36: 0 | AD36: 0 | AE36: 0 | AF36: 0 | AG36: 0 | AH36: 0 | AI36: 0 | AJ36: 0 | AK36: 19197 | AL36: 0 | AM36: 0 | AN36: 0 | AO36: 0 | AP36: -33 | AQ36: 65 | AR36: 331 | AS36: 0 | AT36: 331 | AU36: 0 | AV36: 0 | AW36: 0 | AX36: 0 | AY36: 19891 | AZ36: 0 | BA36: 0 | BB36: 0 | BC36: 0 | BD36: 0 | BE36: 0 | BF36: 0 | BG36: 0 | BH36: 0 | BI36: 0 | BJ36: 0 | BK36: 0 | BL36: 0 | BM36: 0 | BN36: 0 | BO36: 0 | BP36: 0 | BQ36: 0 | BR36: 0 | BS36: 0 | BT36: 0 | BU36: 144055 | BV36: 0 | BW36: -241 | BX36: 472 | BY36: 0 | BZ36: 144286 | CA36: 0 | CC36: 0 | CD36: 0 | CE36: 0 | CF36: 0 | CG36: 0 | CH36: 0 | CJ36: 0 | CK36: 0 | CL36: 0 | CM36: 0 | CN36: 0 | CO36: 0
A37: 2020-09-01 | B37: 32 | C37: 30000 | D37: 465933 | E37: 33075 | F37: -4630 | G37: -1984 | H37: 0 | I37: 0 | J37: 1612 | K37: 0 | L37: 0 | M37: 0 | N37: 0 | O37: 0 | P37: 824 | Q37: 0 | R37: 0 | S37: 0 | T37: 494830 | U37: 0 | V37: 0 | W37: 0 | X37: 0 | Y37: 0 | Z37: 0 | AA37: 0 | AB37: 0 | AC37: 0 | AD37: 0 | AE37: 0 | AF37: 0 | AG37: 0 | AH37: 0 | AI37: 0 | AJ37: 0 | AK37: 19891 | AL37: 0 | AM37: 0 | AN37: 0 | AO37: 0 | AP37: -34 | AQ37: 67 | AR37: 331 | AS37: 0 | AT37: 331 | AU37: 0 | AV37: 0 | AW37: 0 | AX37: 0 | AY37: 20586 | AZ37: 0 | BA37: 0 | BB37: 0 | BC37: 0 | BD37: 0 | BE37: 0 | BF37: 0 | BG37: 0 | BH37: 0 | BI37: 0 | BJ37: 0 | BK37: 0 | BL37: 0 | BM37: 0 | BN37: 0 | BO37: 0 | BP37: 0 | BQ37: 0 | BR37: 0 | BS37: 0 | BT37: 0 | BU37: 144286 | BV37: 0 | BW37: -241 | BX37: 472 | BY37: 296 | BZ37: 144813 | CA37: 0 | CC37: 0 | CD37: 0 | CE37: 0 | CF37: 0 | CG37: 0 | CH37: 0 | CJ37: 0 | CK37: 0 | CL37: 0 | CM37: 0 | CN37: 0 | CO37: 0
A38: 2020-10-01 | B38: 33 | C38: 30000 | D38: 494830 | E38: 33075 | F38: -4630 | G38: -1984 | H38: 0 | I38: 0 | J38: 1707 | K38: 0 | L38: 0 | M38: 0 | N38: 0 | O38: 0 | P38: 0 | Q38: 0 | R38: 0 | S38: 0 | T38: 522998 | U38: 0 | V38: 0 | W38: 0 | X38: 0 | Y38: 0 | Z38: 0 | AA38: 0 | AB38: 0 | AC38: 0 | AD38: 0 | AE38: 0 | AF38: 0 | AG38: 0 | AH38: 0 | AI38: 0 | AJ38: 0 | AK38: 20586 | AL38: 0 | AM38: 0 | AN38: 0 | AO38: 0 | AP38: -36 | AQ38: 70 | AR38: 331 | AS38: 0 | AT38: 331 | AU38: 0 | AV38: 0 | AW38: 0 | AX38: 0 | AY38: 21282 | AZ38: 0 | BA38: 0 | BB38: 0 | BC38: 0 | BD38: 0 | BE38: 0 | BF38: 0 | BG38: 0 | BH38: 0 | BI38: 0 | BJ38: 0 | BK38: 0 | BL38: 0 | BM38: 0 | BN38: 0 | BO38: 0 | BP38: 0 | BQ38: 0 | BR38: 0 | BS38: 0 | BT38: 0 | BU38: 144813 | BV38: 0 | BW38: -242 | BX38: 474 | BY38: 0 | BZ38: 145045 | CA38: 0 | CC38: 0 | CD38: 0 | CE38: 0 | CF38: 0 | CG38: 0 | CH38: 0 | CJ38: 0 | CK38: 0 | CL38: 0 | CM38: 0 | CN38: 0 | CO38: 0
A39: 2020-11-01 | B39: 34 | C39: 30000 | D39: 522998 | E39: 33075 | F39: -4630 | G39: -1984 | H39: 0 | I39: 0 | J39: 1799 | K39: 0 | L39: 0 | M39: 0 | N39: 0 | O39: 0 | P39: 0 | Q39: 0 | R39: 0 | S39: 0 | T39: 551258 | U39: 0 | V39: 0 | W39: 0 | X39: 0 | Y39: 0 | Z39: 0 | AA39: 0 | AB39: 0 | AC39: 0 | AD39: 0 | AE39: 0 | AF39: 0 | AG39: 0 | AH39: 0 | AI39: 0 | AJ39: 0 | AK39: 21282 | AL39: 0 | AM39: 0 | AN39: 0 | AO39: 0 | AP39: -37 | AQ39: 72 | AR39: 331 | AS39: 0 | AT39: 331 | AU39: 0 | AV39: 0 | AW39: 0 | AX39: 0 | AY39: 21979 | AZ39: 0 | BA39: 0 | BB39: 0 | BC39: 0 | BD39: 0 | BE39: 0 | BF39: 0 | BG39: 0 | BH39: 0 | BI39: 0 | BJ39: 0 | BK39: 0 | BL39: 0 | BM39: 0 | BN39: 0 | BO39: 0 | BP39: 0 | BQ39: 0 | BR39: 0 | BS39: 0 | BT39: 0 | BU39: 145045 | BV39: 0 | BW39: -243 | BX39: 475 | BY39: 0 | BZ39: 145277 | CA39: 0 | CC39: 0 | CD39: 0 | CE39: 0 | CF39: 0 | CG39: 0 | CH39: 0 | CJ39: 0 | CK39: 0 | CL39: 0 | CM39: 0 | CN39: 0 | CO39: 0
A40: 2020-12-01 | B40: 35 | C40: 30000 | D40: 551258 | E40: 33075 | F40: -4630 | G40: -1984 | H40: 0 | I40: 0 | J40: 1891 | K40: 0 | L40: 0 | M40: 0 | N40: 0 | O40: 0 | P40: 1013 | Q40: 0 | R40: 0 | S40: 0 | T40: 580623 | U40: 0 | V40: 0 | W40: 0 | X40: 0 | Y40: 0 | Z40: 0 | AA40: 0 | AB40: 0 | AC40: 0 | AD40: 0 | AE40: 0 | AF40: 0 | AG40: 0 | AH40: 0 | AI40: 0 | AJ40: 0 | AK40: 21979 | AL40: 0 | AM40: 0 | AN40: 0 | AO40: 0 | AP40: -38 | AQ40: 74 | AR40: 331 | AS40: 0 | AT40: 331 | AU40: 0 | AV40: 0 | AW40: 0 | AX40: 0 | AY40: 22677 | AZ40: 0 | BA40: 0 | BB40: 0 | BC40: 0 | BD40: 0 | BE40: 0 | BF40: 0 | BG40: 0 | BH40: 0 | BI40: 0 | BJ40: 0 | BK40: 0 | BL40: 0 | BM40: 0 | BN40: 0 | BO40: 0 | BP40: 0 | BQ40: 0 | BR40: 0 | BS40: 0 | BT40: 0 | BU40: 145277 | BV40: 0 | BW40: -243 | BX40: 476 | BY40: 301 | BZ40: 145811 | CA40: 0 | CC40: 0 | CD40: 0 | CE40: 0 | CF40: 0 | CG40: 0 | CH40: 0 | CJ40: 0 | CK40: 0 | CL40: 0 | CM40: 0 | CN40: 0 | CO40: 0
A41: 2021-01-01 | B41: 36 | C41: 30000 | D41: 580623 | E41: 33075 | F41: -4630 | G41: -1984 | H41: 0 | I41: 0 | J41: 1987 | K41: 0 | L41: 0 | M41: 0 | N41: 0 | O41: 0 | P41: 0 | Q41: 0 | R41: 0 | S41: 0 | T41: 609071 | U41: 0 | V41: 0 | W41: 0 | X41: 0 | Y41: 0 | Z41: 0 | AA41: 0 | AB41: 0 | AC41: 0 | AD41: 0 | AE41: 0 | AF41: 0 | AG41: 0 | AH41: 0 | AI41: 0 | AJ41: 0 | AK41: 22677 | AL41: 0 | AM41: 0 | AN41: 0 | AO41: 0 | AP41: -39 | AQ41: 76 | AR41: 331 | AS41: 0 | AT41: 331 | AU41: 0 | AV41: 0 | AW41: 0 | AX41: 0 | AY41: 23376 | AZ41: 0 | BA41: 0 | BB41: 0 | BC41: 0 | BD41: 0 | BE41: 0 | BF41: 0 | BG41: 0 | BH41: 0 | BI41: 0 | BJ41: 0 | BK41: 0 | BL41: 0 | BM41: 0 | BN41: 0 | BO41: 0 | BP41: 0 | BQ41: 0 | BR41: 0 | BS41: 0 | BT41: 0 | BU41: 145811 | BV41: 0 | BW41: -244 | BX41: 477 | BY41: 0 | BZ41: 146044 | CA41: 0 | CC41: 0 | CD41: 0 | CE41: 0 | CF41: 0 | CG41: 0 | CH41: 0 | CJ41: 0 | CK41: 0 | CL41: 0 | CM41: 0 | CN41: 0 | CO41: 0
A42: 2021-02-01 | B42: 37 | C42: 30000 | D42: 609071 | E42: 34729 | F42: -6 | G42: -2084 | H42: 0 | I42: -1073 | J42: 2101 | K42: 0 | L42: 0 | M42: 0 | N42: 0 | O42: 0 | P42: 0 | Q42: 0 | R42: 0 | S42: 0 | T42: 642738 | U42: 0 | V42: 0 | W42: 0 | X42: 0 | Y42: 0 | Z42: 0 | AA42: 0 | AB42: 0 | AC42: 0 | AD42: 0 | AE42: 0 | AF42: 0 | AG42: 0 | AH42: 0 | AI42: 0 | AJ42: 0 | AK42: 23376 | AL42: 0 | AM42: 0 | AN42: 0 | AO42: 0 | AP42: -44 | AQ42: 85 | AR42: 347 | AS42: 2035 | AT42: 347 | AU42: 0 | AV42: 0 | AW42: 0 | AX42: 0 | AY42: 26146 | AZ42: 0 | BA42: 0 | BB42: 0 | BC42: 0 | BD42: 0 | BE42: 0 | BF42: 0 | BG42: 0 | BH42: 0 | BI42: 0 | BJ42: 0 | BK42: 0 | BL42: 0 | BM42: 0 | BN42: 0 | BO42: 0 | BP42: 0 | BQ42: 0 | BR42: 0 | BS42: 0 | BT42: 0 | BU42: 146044 | BV42: 0 | BW42: -244 | BX42: 478 | BY42: 0 | BZ42: 146278 | CA42: 0 | CC42: 0 | CD42: 0 | CE42: 0 | CF42: 0 | CG42: 0 | CH42: 0 | CJ42: 0 | CK42: 0 | CL42: 0 | CM42: 0 | CN42: 0 | CO42: 0
A43: 2021-03-01 | B43: 38 | C43: 30000 | D43: 642738 | E43: 34729 | F43: 0 | G43: -2084 | H43: 0 | I43: -1129 | J43: 2211 | K43: 0 | L43: 0 | M43: 0 | N43: 0 | O43: 0 | P43: 1196 | Q43: 0 | R43: 0 | S43: 0 | T43: 677661 | U43: 0 | V43: 0 | W43: 0 | X43: 0 | Y43: 0 | Z43: 0 | AA43: 0 | AB43: 0 | AC43: 0 | AD43: 0 | AE43: 0 | AF43: 0 | AG43: 0 | AH43: 0 | AI43: 0 | AJ43: 0 | AK43: 26146 | AL43: 0 | AM43: 0 | AN43: 0 | AO43: 0 | AP43: -48 | AQ43: 95 | AR43: 347 | AS43: 2035 | AT43: 347 | AU43: 0 | AV43: 0 | AW43: 0 | AX43: 0 | AY43: 28922 | AZ43: 0 | BA43: 0 | BB43: 0 | BC43: 0 | BD43: 0 | BE43: 0 | BF43: 0 | BG43: 0 | BH43: 0 | BI43: 0 | BJ43: 0 | BK43: 0 | BL43: 0 | BM43: 0 | BN43: 0 | BO43: 0 | BP43: 0 | BQ43: 0 | BR43: 0 | BS43: 0 | BT43: 0 | BU43: 146278 | BV43: 0 | BW43: -245 | BX43: 479 | BY43: 303 | BZ43: 146815 | CA43: 0 | CC43: 0 | CD43: 0 | CE43: 0 | CF43: 0 | CG43: 0 | CH43: 0 | CJ43: 0 | CK43: 0 | CL43: 0 | CM43: 0 | CN43: 0 | CO43: 0
A44: 2021-04-01 | B44: 39 | C44: 30000 | D44: 677661 | E44: 34729 | F44: 0 | G44: -2084 | H44: 0 | I44: -1188 | J44: 2325 | K44: 0 | L44: 0 | M44: 0 | N44: 0 | O44: 0 | P44: 0 | Q44: 0 | R44: 0 | S44: 0 | T44: 711443 | U44: 0 | V44: 0 | W44: 0 | X44: 0 | Y44: 0 | Z44: 0 | AA44: 0 | AB44: 0 | AC44: 0 | AD44: 0 | AE44: 0 | AF44: 0 | AG44: 0 | AH44: 0 | AI44: 0 | AJ44: 0 | AK44: 28922 | AL44: 0 | AM44: 0 | AN44: 0 | AO44: 0 | AP44: -53 | AQ44: 104 | AR44: 347 | AS44: 2035 | AT44: 347 | AU44: 0 | AV44: 0 | AW44: 0 | AX44: 0 | AY44: 31702 | AZ44: 0 | BA44: 0 | BB44: 0 | BC44: 0 | BD44: 0 | BE44: 0 | BF44: 0 | BG44: 0 | BH44: 0 | BI44: 0 | BJ44: 0 | BK44: 0 | BL44: 0 | BM44: 0 | BN44: 0 | BO44: 0 | BP44: 0 | BQ44: 0 | BR44: 0 | BS44: 0 | BT44: 0 | BU44: 146815 | BV44: 79065 | BW44: -378 | BX44: 739 | BY44: 0 | BZ44: 226241 | CA44: 0 | CC44: 0 | CD44: 0 | CE44: 0 | CF44: 0 | CG44: 0 | CH44: 0 | CJ44: 0 | CK44: 0 | CL44: 0 | CM44: 0 | CN44: 0 | CO44: 0
A45: 2021-05-01 | B45: 40 | C45: 30000 | D45: 711443 | E45: 34729 | F45: 0 | G45: -2084 | H45: 0 | I45: -1244 | J45: 2436 | K45: 0 | L45: 0 | M45: 0 | N45: 0 | O45: 0 | P45: 0 | Q45: 0 | R45: 0 | S45: 0 | T45: 745280 | U45: 0 | V45: 0 | W45: 0 | X45: 0 | Y45: 0 | Z45: 0 | AA45: 0 | AB45: 0 | AC45: 0 | AD45: 0 | AE45: 0 | AF45: 0 | AG45: 0 | AH45: 0 | AI45: 0 | AJ45: 0 | AK45: 31702 | AL45: 0 | AM45: 0 | AN45: 0 | AO45: 0 | AP45: -58 | AQ45: 113 | AR45: 347 | AS45: 2035 | AT45: 347 | AU45: 0 | AV45: 0 | AW45: 0 | AX45: 0 | AY45: 34486 | AZ45: 0 | BA45: 0 | BB45: 0 | BC45: 0 | BD45: 0 | BE45: 0 | BF45: 0 | BG45: 0 | BH45: 0 | BI45: 0 | BJ45: 0 | BK45: 0 | BL45: 0 | BM45: 0 | BN45: 0 | BO45: 0 | BP45: 0 | BQ45: 0 | BR45: 0 | BS45: 0 | BT45: 0 | BU45: 226241 | BV45: 0 | BW45: -378 | BX45: 741 | BY45: 0 | BZ45: 226604 | CA45: 0 | CC45: 0 | CD45: 0 | CE45: 0 | CF45: 0 | CG45: 0 | CH45: 0 | CJ45: 0 | CK45: 0 | CL45: 0 | CM45: 0 | CN45: 0 | CO45: 0
A46: 2021-06-01 | B46: 41 | C46: 30000 | D46: 745280 | E46: 34729 | F46: 0 | G46: -2084 | H46: 0 | I46: -1301 | J46: 2547 | K46: 0 | L46: 0 | M46: 0 | N46: 0 | O46: 0 | P46: 1366 | Q46: 0 | R46: 0 | S46: 0 | T46: 780537 | U46: 0 | V46: 0 | W46: 0 | X46: 0 | Y46: 0 | Z46: 0 | AA46: 0 | AB46: 0 | AC46: 0 | AD46: 0 | AE46: 0 | AF46: 0 | AG46: 0 | AH46: 0 | AI46: 0 | AJ46: 0 | AK46: 34486 | AL46: 0 | AM46: 0 | AN46: 0 | AO46: 0 | AP46: -62 | AQ46: 122 | AR46: 347 | AS46: 2035 | AT46: 347 | AU46: 0 | AV46: 0 | AW46: 0 | AX46: 0 | AY46: 37275 | AZ46: 0 | BA46: 0 | BB46: 0 | BC46: 0 | BD46: 0 | BE46: 0 | BF46: 0 | BG46: 0 | BH46: 0 | BI46: 0 | BJ46: 0 | BK46: 0 | BL46: 0 | BM46: 0 | BN46: 0 | BO46: 0 | BP46: 0 | BQ46: 0 | BR46: 0 | BS46: 0 | BT46: 0 | BU46: 226604 | BV46: 0 | BW46: -379 | BX46: 742 | BY46: 299 | BZ46: 227266 | CA46: 0 | CC46: 0 | CD46: 0 | CE46: 0 | CF46: 0 | CG46: 0 | CH46: 0 | CJ46: 0 | CK46: 0 | CL46: 0 | CM46: 0 | CN46: 0 | CO46: 0
A47: 2021-07-01 | B47: 42 | C47: 30000 | D47: 780537 | E47: 34729 | F47: 0 | G47: -2084 | H47: 0 | I47: -1360 | J47: 2662 | K47: 0 | L47: 0 | M47: 0 | N47: 0 | O47: 0 | P47: 0 | Q47: 0 | R47: 0 | S47: 0 | T47: 814484 | U47: 0 | V47: 0 | W47: 0 | X47: 0 | Y47: 0 | Z47: 0 | AA47: 0 | AB47: 0 | AC47: 0 | AD47: 0 | AE47: 0 | AF47: 0 | AG47: 0 | AH47: 0 | AI47: 0 | AJ47: 0 | AK47: 37275 | AL47: 0 | AM47: 0 | AN47: 0 | AO47: 0 | AP47: -67 | AQ47: 131 | AR47: 347 | AS47: 2035 | AT47: 347 | AU47: 0 | AV47: 0 | AW47: 0 | AX47: 0 | AY47: 40068 | AZ47: 0 | BA47: 0 | BB47: 0 | BC47: 0 | BD47: 0 | BE47: 0 | BF47: 0 | BG47: 0 | BH47: 0 | BI47: 0 | BJ47: 0 | BK47: 0 | BL47: 0 | BM47: 0 | BN47: 0 | BO47: 0 | BP47: 0 | BQ47: 0 | BR47: 0 | BS47: 0 | BT47: 0 | BU47: 227266 | BV47: 0 | BW47: -380 | BX47: 744 | BY47: 0 | BZ47: 227630 | CA47: 0 | CC47: 0 | CD47: 0 | CE47: 0 | CF47: 0 | CG47: 0 | CH47: 0 | CJ47: 0 | CK47: 0 | CL47: 0 | CM47: 0 | CN47: 0 | CO47: 0
A48: 2021-08-01 | B48: 43 | C48: 30000 | D48: 814484 | E48: 34729 | F48: 0 | G48: -2084 | H48: 0 | I48: -1417 | J48: 2773 | K48: 0 | L48: 0 | M48: 0 | N48: 0 | O48: 0 | P48: 0 | Q48: 0 | R48: 0 | S48: 0 | T48: 848485 | U48: 0 | V48: 0 | W48: 0 | X48: 0 | Y48: 0 | Z48: 0 | AA48: 0 | AB48: 0 | AC48: 0 | AD48: 0 | AE48: 0 | AF48: 0 | AG48: 0 | AH48: 0 | AI48: 0 | AJ48: 0 | AK48: 40068 | AL48: 0 | AM48: 0 | AN48: 0 | AO48: 0 | AP48: -72 | AQ48: 140 | AR48: 347 | AS48: 2035 | AT48: 347 | AU48: 0 | AV48: 0 | AW48: 0 | AX48: 0 | AY48: 42865 | AZ48: 0 | BA48: 0 | BB48: 0 | BC48: 0 | BD48: 0 | BE48: 0 | BF48: 0 | BG48: 0 | BH48: 0 | BI48: 0 | BJ48: 0 | BK48: 0 | BL48: 0 | BM48: 0 | BN48: 0 | BO48: 0 | BP48: 0 | BQ48: 0 | BR48: 0 | BS48: 0 | BT48: 0 | BU48: 227630 | BV48: 0 | BW48: -381 | BX48: 745 | BY48: 0 | BZ48: 227994 | CA48: 0 | CC48: 0 | CD48: 0 | CE48: 0 | CF48: 0 | CG48: 0 | CH48: 0 | CJ48: 0 | CK48: 0 | CL48: 0 | CM48: 0 | CN48: 0 | CO48: 0
A49: 2021-09-01 | B49: 44 | C49: 30000 | D49: 848485 | E49: 34729 | F49: 0 | G49: -2084 | H49: 0 | I49: -1473 | J49: 2885 | K49: 0 | L49: 0 | M49: 0 | N49: 0 | O49: 0 | P49: 1611 | Q49: 0 | R49: 0 | S49: 0 | T49: 884153 | U49: 0 | V49: 0 | W49: 0 | X49: 0 | Y49: 0 | Z49: 0 | AA49: 0 | AB49: 0 | AC49: 0 | AD49: 0 | AE49: 0 | AF49: 0 | AG49: 0 | AH49: 0 | AI49: 0 | AJ49: 0 | AK49: 42865 | AL49: 0 | AM49: 0 | AN49: 0 | AO49: 0 | AP49: -76 | AQ49: 149 | AR49: 347 | AS49: 2035 | AT49: 347 | AU49: 0 | AV49: 0 | AW49: 0 | AX49: 0 | AY49: 45667 | AZ49: 0 | BA49: 0 | BB49: 0 | BC49: 0 | BD49: 0 | BE49: 0 | BF49: 0 | BG49: 0 | BH49: 0 | BI49: 0 | BJ49: 0 | BK49: 0 | BL49: 0 | BM49: 0 | BN49: 0 | BO49: 0 | BP49: 0 | BQ49: 0 | BR49: 0 | BS49: 0 | BT49: 0 | BU49: 227994 | BV49: 0 | BW49: -381 | BX49: 746 | BY49: 468 | BZ49: 228827 | CA49: 0 | CC49: 0 | CD49: 0 | CE49: 0 | CF49: 0 | CG49: 0 | CH49: 0 | CJ49: 0 | CK49: 0 | CL49: 0 | CM49: 0 | CN49: 0 | CO49: 0
A50: 2021-10-01 | B50: 45 | C50: 30000 | D50: 884153 | E50: 34729 | F50: 0 | G50: -2084 | H50: 0 | I50: -1533 | J50: 3001 | K50: 0 | L50: 0 | M50: 0 | N50: 0 | O50: 0 | P50: 0 | Q50: 0 | R50: 0 | S50: 0 | T50: 918266 | U50: 0 | V50: 0 | W50: 0 | X50: 0 | Y50: 0 | Z50: 0 | AA50: 0 | AB50: 0 | AC50: 0 | AD50: 0 | AE50: 0 | AF50: 0 | AG50: 0 | AH50: 0 | AI50: 0 | AJ50: 0 | AK50: 45667 | AL50: 0 | AM50: 0 | AN50: 0 | AO50: 0 | AP50: -81 | AQ50: 158 | AR50: 347 | AS50: 2035 | AT50: 347 | AU50: 0 | AV50: 0 | AW50: 0 | AX50: 0 | AY50: 48473 | AZ50: 0 | BA50: 0 | BB50: 0 | BC50: 0 | BD50: 0 | BE50: 0 | BF50: 0 | BG50: 0 | BH50: 0 | BI50: 0 | BJ50: 0 | BK50: 0 | BL50: 0 | BM50: 0 | BN50: 0 | BO50: 0 | BP50: 0 | BQ50: 0 | BR50: 0 | BS50: 0 | BT50: 0 | BU50: 228827 | BV50: 0 | BW50: -383 | BX50: 749 | BY50: 0 | BZ50: 229193 | CA50: 0 | CC50: 0 | CD50: 0 | CE50: 0 | CF50: 0 | CG50: 0 | CH50: 0 | CJ50: 0 | CK50: 0 | CL50: 0 | CM50: 0 | CN50: 0 | CO50: 0
A51: 2021-11-01 | B51: 46 | C51: 30000 | D51: 918266 | E51: 34729 | F51: 0 | G51: -2084 | H51: 0 | I51: -1590 | J51: 3113 | K51: 0 | L51: 0 | M51: 0 | N51: 0 | O51: 0 | P51: 0 | Q51: 0 | R51: 0 | S51: 0 | T51: 952434 | U51: 0 | V51: 0 | W51: 0 | X51: 0 | Y51: 0 | Z51: 0 | AA51: 0 | AB51: 0 | AC51: 0 | AD51: 0 | AE51: 0 | AF51: 0 | AG51: 0 | AH51: 0 | AI51: 0 | AJ51: 0 | AK51: 48473 | AL51: 0 | AM51: 0 | AN51: 0 | AO51: 0 | AP51: -86 | AQ51: 168 | AR51: 347 | AS51: 2035 | AT51: 347 | AU51: 0 | AV51: 0 | AW51: 0 | AX51: 0 | AY51: 51284 | AZ51: 0 | BA51: 0 | BB51: 0 | BC51: 0 | BD51: 0 | BE51: 0 | BF51: 0 | BG51: 0 | BH51: 0 | BI51: 0 | BJ51: 0 | BK51: 0 | BL51: 0 | BM51: 0 | BN51: 0 | BO51: 0 | BP51: 0 | BQ51: 0 | BR51: 0 | BS51: 0 | BT51: 0 | BU51: 229193 | BV51: 0 | BW51: -383 | BX51: 750 | BY51: 0 | BZ51: 229560 | CA51: 0 | CC51: 0 | CD51: 0 | CE51: 0 | CF51: 0 | CG51: 0 | CH51: 0 | CJ51: 0 | CK51: 0 | CL51: 0 | CM51: 0 | CN51: 0 | CO51: 0
A52: 2021-12-01 | B52: 47 | C52: 30000 | D52: 952434 | E52: 34729 | F52: 0 | G52: -2084 | H52: 0 | I52: -1647 | J52: 3225 | K52: 0 | L52: 0 | M52: 0 | N52: 0 | O52: 0 | P52: 1861 | Q52: 0 | R52: 0 | S52: 0 | T52: 988518 | U52: 0 | V52: 0 | W52: 0 | X52: 0 | Y52: 0 | Z52: 0 | AA52: 0 | AB52: 0 | AC52: 0 | AD52: 0 | AE52: 0 | AF52: 0 | AG52: 0 | AH52: 0 | AI52: 0 | AJ52: 0 | AK52: 51284 | AL52: 0 | AM52: 0 | AN52: 0 | AO52: 0 | AP52: -90 | AQ52: 177 | AR52: 347 | AS52: 2035 | AT52: 347 | AU52: 0 | AV52: 0 | AW52: 0 | AX52: 0 | AY52: 54100 | AZ52: 0 | BA52: 0 | BB52: 0 | BC52: 0 | BD52: 0 | BE52: 0 | BF52: 0 | BG52: 0 | BH52: 0 | BI52: 0 | BJ52: 0 | BK52: 0 | BL52: 0 | BM52: 0 | BN52: 0 | BO52: 0 | BP52: 0 | BQ52: 0 | BR52: 0 | BS52: 0 | BT52: 0 | BU52: 229560 | BV52: 0 | BW52: -384 | BX52: 752 | BY52: 476 | BZ52: 230404 | CA52: 0 | CC52: 0 | CD52: 0 | CE52: 0 | CF52: 0 | CG52: 0 | CH52: 0 | CJ52: 0 | CK52: 0 | CL52: 0 | CM52: 0 | CN52: 0 | CO52: 0
A53: 2022-01-01 | B53: 48 | C53: 30000 | D53: 988518 | E53: 34729 | F53: 0 | G53: -2084 | H53: 0 | I53: -1708 | J53: 3343 | K53: 0 | L53: 0 | M53: 0 | N53: 0 | O53: 0 | P53: 0 | Q53: 0 | R53: 0 | S53: 0 | T53: 1022798 | U53: 0 | V53: 0 | W53: 0 | X53: 0 | Y53: 0 | Z53: 0 | AA53: 0 | AB53: 0 | AC53: 0 | AD53: 0 | AE53: 0 | AF53: 0 | AG53: 0 | AH53: 0 | AI53: 0 | AJ53: 0 | AK53: 54100 | AL53: 0 | AM53: 0 | AN53: 0 | AO53: 0 | AP53: -95 | AQ53: 186 | AR53: 347 | AS53: 2035 | AT53: 347 | AU53: 0 | AV53: 0 | AW53: 0 | AX53: 0 | AY53: 56920 | AZ53: 0 | BA53: 0 | BB53: 0 | BC53: 0 | BD53: 0 | BE53: 0 | BF53: 0 | BG53: 0 | BH53: 0 | BI53: 0 | BJ53: 0 | BK53: 0 | BL53: 0 | BM53: 0 | BN53: 0 | BO53: 0 | BP53: 0 | BQ53: 0 | BR53: 0 | BS53: 0 | BT53: 0 | BU53: 230404 | BV53: 0 | BW53: -385 | BX53: 754 | BY53: 0 | BZ53: 230773 | CA53: 0 | CC53: 0 | CD53: 0 | CE53: 0 | CF53: 0 | CG53: 0 | CH53: 0 | CJ53: 0 | CK53: 0 | CL53: 0 | CM53: 0 | CN53: 0 | CO53: 0
A54: 2022-02-01 | B54: 49 | C54: 30000 | D54: 1022798 | E54: 36465 | F54: 0 | G54: -2188 | H54: 0 | I54: -1768 | J54: 3461 | K54: 0 | L54: 0 | M54: 0 | N54: 0 | O54: 0 | P54: 0 | Q54: 0 | R54: 0 | S54: 0 | T54: 1058768 | U54: 0 | V54: 0 | W54: 0 | X54: 0 | Y54: 0 | Z54: 0 | AA54: 0 | AB54: 0 | AC54: 0 | AD54: 0 | AE54: 0 | AF54: 0 | AG54: 0 | AH54: 0 | AI54: 0 | AJ54: 0 | AK54: 56920 | AL54: 0 | AM54: 0 | AN54: 0 | AO54: 0 | AP54: -100 | AQ54: 195 | AR54: 365 | AS54: 2035 | AT54: 365 | AU54: 0 | AV54: 0 | AW54: 0 | AX54: 0 | AY54: 59780 | AZ54: 0 | BA54: 0 | BB54: 0 | BC54: 0 | BD54: 0 | BE54: 0 | BF54: 0 | BG54: 0 | BH54: 0 | BI54: 0 | BJ54: 0 | BK54: 0 | BL54: 0 | BM54: 0 | BN54: 0 | BO54: 0 | BP54: 0 | BQ54: 0 | BR54: 0 | BS54: 0 | BT54: 0 | BU54: 230773 | BV54: 0 | BW54: -386 | BX54: 755 | BY54: 0 | BZ54: 231142 | CA54: 0 | CC54: 0 | CD54: 0 | CE54: 0 | CF54: 0 | CG54: 0 | CH54: 0 | CJ54: 0 | CK54: 0 | CL54: 0 | CM54: 0 | CN54: 0 | CO54: 0
A55: 2022-03-01 | B55: 50 | C55: 30000 | D55: 1058768 | E55: 36465 | F55: 0 | G55: -2188 | H55: 0 | I55: -1828 | J55: 3578 | K55: 0 | L55: 0 | M55: 0 | N55: 0 | O55: 0 | P55: 2097 | Q55: 0 | R55: 0 | S55: 0 | T55: 1096892 | U55: 0 | V55: 0 | W55: 0 | X55: 0 | Y55: 0 | Z55: 0 | AA55: 0 | AB55: 0 | AC55: 0 | AD55: 0 | AE55: 0 | AF55: 0 | AG55: 0 | AH55: 0 | AI55: 0 | AJ55: 0 | AK55: 59780 | AL55: 0 | AM55: 0 | AN55: 0 | AO55: 0 | AP55: -105 | AQ55: 205 | AR55: 365 | AS55: 2035 | AT55: 365 | AU55: 0 | AV55: 0 | AW55: 0 | AX55: 0 | AY55: 62645 | AZ55: 0 | BA55: 0 | BB55: 0 | BC55: 0 | BD55: 0 | BE55: 0 | BF55: 0 | BG55: 0 | BH55: 0 | BI55: 0 | BJ55: 0 | BK55: 0 | BL55: 0 | BM55: 0 | BN55: 0 | BO55: 0 | BP55: 0 | BQ55: 0 | BR55: 0 | BS55: 0 | BT55: 0 | BU55: 231142 | BV55: 0 | BW55: -386 | BX55: 757 | BY55: 480 | BZ55: 231993 | CA55: 0 | CC55: 0 | CD55: 0 | CE55: 0 | CF55: 0 | CG55: 0 | CH55: 0 | CJ55: 0 | CK55: 0 | CL55: 0 | CM55: 0 | CN55: 0 | CO55: 0
A56: 2022-04-01 | B56: 51 | C56: 30000 | D56: 1096892 | E56: 36465 | F56: 0 | G56: -2188 | H56: 0 | I56: -1891 | J56: 3703 | K56: 0 | L56: 0 | M56: 0 | N56: 0 | O56: 0 | P56: 0 | Q56: 0 | R56: 0 | S56: 0 | T56: 1132981 | U56: 0 | V56: 0 | W56: 0 | X56: 0 | Y56: 0 | Z56: 0 | AA56: 0 | AB56: 0 | AC56: 0 | AD56: 0 | AE56: 0 | AF56: 0 | AG56: 0 | AH56: 0 | AI56: 0 | AJ56: 0 | AK56: 62645 | AL56: 0 | AM56: 0 | AN56: 0 | AO56: 0 | AP56: -109 | AQ56: 214 | AR56: 365 | AS56: 2035 | AT56: 365 | AU56: 0 | AV56: 0 | AW56: 0 | AX56: 0 | AY56: 65515 | AZ56: 0 | BA56: 0 | BB56: 0 | BC56: 0 | BD56: 0 | BE56: 0 | BF56: 0 | BG56: 0 | BH56: 0 | BI56: 0 | BJ56: 0 | BK56: 0 | BL56: 0 | BM56: 0 | BN56: 0 | BO56: 0 | BP56: 0 | BQ56: 0 | BR56: 0 | BS56: 0 | BT56: 0 | BU56: 231993 | BV56: 83019 | BW56: -527 | BX56: 1031 | BY56: 0 | BZ56: 315516 | CA56: 0 | CC56: 0 | CD56: 0 | CE56: 0 | CF56: 0 | CG56: 0 | CH56: 0 | CJ56: 0 | CK56: 0 | CL56: 0 | CM56: 0 | CN56: 0 | CO56: 0
A57: 2022-05-01 | B57: 52 | C57: 30000 | D57: 1132981 | E57: 36465 | F57: 0 | G57: -2188 | H57: 0 | I57: -1952 | J57: 3821 | K57: 0 | L57: 0 | M57: 0 | N57: 0 | O57: 0 | P57: 0 | Q57: 0 | R57: 0 | S57: 0 | T57: 1169127 | U57: 0 | V57: 0 | W57: 0 | X57: 0 | Y57: 0 | Z57: 0 | AA57: 0 | AB57: 0 | AC57: 0 | AD57: 0 | AE57: 0 | AF57: 0 | AG57: 0 | AH57: 0 | AI57: 0 | AJ57: 0 | AK57: 65515 | AL57: 0 | AM57: 0 | AN57: 0 | AO57: 0 | AP57: -114 | AQ57: 224 | AR57: 365 | AS57: 2035 | AT57: 365 | AU57: 0 | AV57: 0 | AW57: 0 | AX57: 0 | AY57: 68390 | AZ57: 0 | BA57: 0 | BB57: 0 | BC57: 0 | BD57: 0 | BE57: 0 | BF57: 0 | BG57: 0 | BH57: 0 | BI57: 0 | BJ57: 0 | BK57: 0 | BL57: 0 | BM57: 0 | BN57: 0 | BO57: 0 | BP57: 0 | BQ57: 0 | BR57: 0 | BS57: 0 | BT57: 0 | BU57: 315516 | BV57: 0 | BW57: -528 | BX57: 1033 | BY57: 0 | BZ57: 316021 | CA57: 0 | CC57: 0 | CD57: 0 | CE57: 0 | CF57: 0 | CG57: 0 | CH57: 0 | CJ57: 0 | CK57: 0 | CL57: 0 | CM57: 0 | CN57: 0 | CO57: 0
A58: 2022-06-01 | B58: 53 | C58: 30000 | D58: 1169127 | E58: 36465 | F58: 0 | G58: -2188 | H58: 0 | I58: -2012 | J58: 3940 | K58: 0 | L58: 0 | M58: 0 | N58: 0 | O58: 0 | P58: 2286 | Q58: 0 | R58: 0 | S58: 0 | T58: 1207618 | U58: 0 | V58: 0 | W58: 0 | X58: 0 | Y58: 0 | Z58: 0 | AA58: 0 | AB58: 0 | AC58: 0 | AD58: 0 | AE58: 0 | AF58: 0 | AG58: 0 | AH58: 0 | AI58: 0 | AJ58: 0 | AK58: 68390 | AL58: 0 | AM58: 0 | AN58: 0 | AO58: 0 | AP58: -119 | AQ58: 233 | AR58: 365 | AS58: 2035 | AT58: 365 | AU58: 0 | AV58: 0 | AW58: 0 | AX58: 0 | AY58: 71269 | AZ58: 0 | BA58: 0 | BB58: 0 | BC58: 0 | BD58: 0 | BE58: 0 | BF58: 0 | BG58: 0 | BH58: 0 | BI58: 0 | BJ58: 0 | BK58: 0 | BL58: 0 | BM58: 0 | BN58: 0 | BO58: 0 | BP58: 0 | BQ58: 0 | BR58: 0 | BS58: 0 | BT58: 0 | BU58: 316021 | BV58: 0 | BW58: -528 | BX58: 1035 | BY58: 472 | BZ58: 317000 | CA58: 0 | CC58: 0 | CD58: 0 | CE58: 0 | CF58: 0 | CG58: 0 | CH58: 0 | CJ58: 0 | CK58: 0 | CL58: 0 | CM58: 0 | CN58: 0 | CO58: 0
A59: 2022-07-01 | B59: 54 | C59: 30000 | D59: 1207618 | E59: 36465 | F59: 0 | G59: -2188 | H59: 0 | I59: -2077 | J59: 4066 | K59: 0 | L59: 0 | M59: 0 | N59: 0 | O59: 0 | P59: 0 | Q59: 0 | R59: 0 | S59: 0 | T59: 1243884 | U59: 0 | V59: 0 | W59: 0 | X59: 0 | Y59: 0 | Z59: 0 | AA59: 0 | AB59: 0 | AC59: 0 | AD59: 0 | AE59: 0 | AF59: 0 | AG59: 0 | AH59: 0 | AI59: 0 | AJ59: 0 | AK59: 71269 | AL59: 0 | AM59: 0 | AN59: 0 | AO59: 0 | AP59: -124 | AQ59: 242 | AR59: 365 | AS59: 2035 | AT59: 365 | AU59: 0 | AV59: 0 | AW59: 0 | AX59: 0 | AY59: 74152 | AZ59: 0 | BA59: 0 | BB59: 0 | BC59: 0 | BD59: 0 | BE59: 0 | BF59: 0 | BG59: 0 | BH59: 0 | BI59: 0 | BJ59: 0 | BK59: 0 | BL59: 0 | BM59: 0 | BN59: 0 | BO59: 0 | BP59: 0 | BQ59: 0 | BR59: 0 | BS59: 0 | BT59: 0 | BU59: 317000 | BV59: 0 | BW59: -530 | BX59: 1038 | BY59: 0 | BZ59: 317508 | CA59: 0 | CC59: 0 | CD59: 0 | CE59: 0 | CF59: 0 | CG59: 0 | CH59: 0 | CJ59: 0 | CK59: 0 | CL59: 0 | CM59: 0 | CN59: 0 | CO59: 0
A60: 2022-08-01 | B60: 55 | C60: 30000 | D60: 1243884 | E60: 36465 | F60: 0 | G60: -2188 | H60: 0 | I60: -2137 | J60: 4184 | K60: 0 | L60: 0 | M60: 0 | N60: 0 | O60: 0 | P60: 0 | Q60: 0 | R60: 0 | S60: 0 | T60: 1280208 | U60: 0 | V60: 0 | W60: 0 | X60: 0 | Y60: 0 | Z60: 0 | AA60: 0 | AB60: 0 | AC60: 0 | AD60: 0 | AE60: 0 | AF60: 0 | AG60: 0 | AH60: 0 | AI60: 0 | AJ60: 0 | AK60: 74152 | AL60: 0 | AM60: 0 | AN60: 0 | AO60: 0 | AP60: -129 | AQ60: 252 | AR60: 365 | AS60: 2035 | AT60: 365 | AU60: 0 | AV60: 0 | AW60: 0 | AX60: 0 | AY60: 77040 | AZ60: 0 | BA60: 0 | BB60: 0 | BC60: 0 | BD60: 0 | BE60: 0 | BF60: 0 | BG60: 0 | BH60: 0 | BI60: 0 | BJ60: 0 | BK60: 0 | BL60: 0 | BM60: 0 | BN60: 0 | BO60: 0 | BP60: 0 | BQ60: 0 | BR60: 0 | BS60: 0 | BT60: 0 | BU60: 317508 | BV60: 0 | BW60: -531 | BX60: 1039 | BY60: 0 | BZ60: 318016 | CA60: 0 | CC60: 0 | CD60: 0 | CE60: 0 | CF60: 0 | CG60: 0 | CH60: 0 | CJ60: 0 | CK60: 0 | CL60: 0 | CM60: 0 | CN60: 0 | CO60: 0
A61: 2022-09-01 | B61: 56 | C61: 30000 | D61: 1280208 | E61: 36465 | F61: 0 | G61: -2188 | H61: 0 | I61: -2198 | J61: 4303 | K61: 0 | L61: 0 | M61: 0 | N61: 0 | O61: 0 | P61: 2557 | Q61: 0 | R61: 0 | S61: 0 | T61: 1319147 | U61: 0 | V61: 0 | W61: 0 | X61: 0 | Y61: 0 | Z61: 0 | AA61: 0 | AB61: 0 | AC61: 0 | AD61: 0 | AE61: 0 | AF61: 0 | AG61: 0 | AH61: 0 | AI61: 0 | AJ61: 0 | AK61: 77040 | AL61: 0 | AM61: 0 | AN61: 0 | AO61: 0 | AP61: -133 | AQ61: 261 | AR61: 365 | AS61: 2035 | AT61: 365 | AU61: 0 | AV61: 0 | AW61: 0 | AX61: 0 | AY61: 79933 | AZ61: 0 | BA61: 0 | BB61: 0 | BC61: 0 | BD61: 0 | BE61: 0 | BF61: 0 | BG61: 0 | BH61: 0 | BI61: 0 | BJ61: 0 | BK61: 0 | BL61: 0 | BM61: 0 | BN61: 0 | BO61: 0 | BP61: 0 | BQ61: 0 | BR61: 0 | BS61: 0 | BT61: 0 | BU61: 318016 | BV61: 0 | BW61: -532 | BX61: 1041 | BY61: 653 | BZ61: 319178 | CA61: 0 | CC61: 0 | CD61: 0 | CE61: 0 | CF61: 0 | CG61: 0 | CH61: 0 | CJ61: 0 | CK61: 0 | CL61: 0 | CM61: 0 | CN61: 0 | CO61: 0
A62: 2022-10-01 | B62: 57 | C62: 30000 | D62: 1319147 | E62: 36465 | F62: 0 | G62: -2188 | H62: 0 | I62: -2263 | J62: 4431 | K62: 0 | L62: 0 | M62: 0 | N62: 0 | O62: 0 | P62: 0 | Q62: 0 | R62: 0 | S62: 0 | T62: 1355592 | U62: 0 | V62: 0 | W62: 0 | X62: 0 | Y62: 0 | Z62: 0 | AA62: 0 | AB62: 0 | AC62: 0 | AD62: 0 | AE62: 0 | AF62: 0 | AG62: 0 | AH62: 0 | AI62: 0 | AJ62: 0 | AK62: 79933 | AL62: 0 | AM62: 0 | AN62: 0 | AO62: 0 | AP62: -138 | AQ62: 271 | AR62: 365 | AS62: 2035 | AT62: 365 | AU62: 0 | AV62: 0 | AW62: 0 | AX62: 0 | AY62: 82831 | AZ62: 0 | BA62: 0 | BB62: 0 | BC62: 0 | BD62: 0 | BE62: 0 | BF62: 0 | BG62: 0 | BH62: 0 | BI62: 0 | BJ62: 0 | BK62: 0 | BL62: 0 | BM62: 0 | BN62: 0 | BO62: 0 | BP62: 0 | BQ62: 0 | BR62: 0 | BS62: 0 | BT62: 0 | BU62: 319178 | BV62: 0 | BW62: -534 | BX62: 1045 | BY62: 0 | BZ62: 319689 | CA62: 0 | CC62: 0 | CD62: 0 | CE62: 0 | CF62: 0 | CG62: 0 | CH62: 0 | CJ62: 0 | CK62: 0 | CL62: 0 | CM62: 0 | CN62: 0 | CO62: 0
A63: 2022-11-01 | B63: 58 | C63: 30000 | D63: 1355592 | E63: 36465 | F63: 0 | G63: -2188 | H63: 0 | I63: -2324 | J63: 4550 | K63: 0 | L63: 0 | M63: 0 | N63: 0 | O63: 0 | P63: 0 | Q63: 0 | R63: 0 | S63: 0 | T63: 1392095 | U63: 0 | V63: 0 | W63: 0 | X63: 0 | Y63: 0 | Z63: 0 | AA63: 0 | AB63: 0 | AC63: 0 | AD63: 0 | AE63: 0 | AF63: 0 | AG63: 0 | AH63: 0 | AI63: 0 | AJ63: 0 | AK63: 82831 | AL63: 0 | AM63: 0 | AN63: 0 | AO63: 0 | AP63: -143 | AQ63: 280 | AR63: 365 | AS63: 2035 | AT63: 365 | AU63: 0 | AV63: 0 | AW63: 0 | AX63: 0 | AY63: 85733 | AZ63: 0 | BA63: 0 | BB63: 0 | BC63: 0 | BD63: 0 | BE63: 0 | BF63: 0 | BG63: 0 | BH63: 0 | BI63: 0 | BJ63: 0 | BK63: 0 | BL63: 0 | BM63: 0 | BN63: 0 | BO63: 0 | BP63: 0 | BQ63: 0 | BR63: 0 | BS63: 0 | BT63: 0 | BU63: 319689 | BV63: 0 | BW63: -535 | BX63: 1047 | BY63: 0 | BZ63: 320201 | CA63: 0 | CC63: 0 | CD63: 0 | CE63: 0 | CF63: 0 | CG63: 0 | CH63: 0 | CJ63: 0 | CK63: 0 | CL63: 0 | CM63: 0 | CN63: 0 | CO63: 0
A64: 2022-12-01 | B64: 59 | C64: 30000 | D64: 1392095 | E64: 36465 | F64: 0 | G64: -2188 | H64: 0 | I64: -2385 | J64: 4670 | K64: 0 | L64: 0 | M64: 0 | N64: 0 | O64: 0 | P64: 2834 | Q64: 0 | R64: 0 | S64: 0 | T64: 1431491 | U64: 0 | V64: 0 | W64: 0 | X64: 0 | Y64: 0 | Z64: 0 | AA64: 0 | AB64: 0 | AC64: 0 | AD64: 0 | AE64: 0 | AF64: 0 | AG64: 0 | AH64: 0 | AI64: 0 | AJ64: 0 | AK64: 85733 | AL64: 0 | AM64: 0 | AN64: 0 | AO64: 0 | AP64: -148 | AQ64: 290 | AR64: 365 | AS64: 2035 | AT64: 365 | AU64: 0 | AV64: 0 | AW64: 0 | AX64: 0 | AY64: 88640 | AZ64: 0 | BA64: 0 | BB64: 0 | BC64: 0 | BD64: 0 | BE64: 0 | BF64: 0 | BG64: 0 | BH64: 0 | BI64: 0 | BJ64: 0 | BK64: 0 | BL64: 0 | BM64: 0 | BN64: 0 | BO64: 0 | BP64: 0 | BQ64: 0 | BR64: 0 | BS64: 0 | BT64: 0 | BU64: 320201 | BV64: 0 | BW64: -535 | BX64: 1048 | BY64: 664 | BZ64: 321378 | CA64: 0 | CC64: 0 | CD64: 0 | CE64: 0 | CF64: 0 | CG64: 0 | CH64: 0 | CJ64: 0 | CK64: 0 | CL64: 0 | CM64: 0 | CN64: 0 | CO64: 0
A65: 2023-01-01 | B65: 60 | C65: 30000 | D65: 1431491 | E65: 36465 | F65: 0 | G65: -2188 | H65: 0 | I65: -2451 | J65: 4799 | K65: 0 | L65: 0 | M65: 0 | N65: 0 | O65: 0 | P65: 0 | Q65: 0 | R65: 0 | S65: 0 | T65: 1468116 | U65: 0 | V65: 0 | W65: 0 | X65: 0 | Y65: 0 | Z65: 0 | AA65: 0 | AB65: 0 | AC65: 0 | AD65: 0 | AE65: 0 | AF65: 0 | AG65: 0 | AH65: 0 | AI65: 0 | AJ65: 0 | AK65: 88640 | AL65: 0 | AM65: 0 | AN65: 0 | AO65: 0 | AP65: -153 | AQ65: 299 | AR65: 365 | AS65: 2035 | AT65: 365 | AU65: 0 | AV65: 0 | AW65: 0 | AX65: 0 | AY65: 91551 | AZ65: 0 | BA65: 0 | BB65: 0 | BC65: 0 | BD65: 0 | BE65: 0 | BF65: 0 | BG65: 0 | BH65: 0 | BI65: 0 | BJ65: 0 | BK65: 0 | BL65: 0 | BM65: 0 | BN65: 0 | BO65: 0 | BP65: 0 | BQ65: 0 | BR65: 0 | BS65: 0 | BT65: 0 | BU65: 321378 | BV65: 0 | BW65: -537 | BX65: 1052 | BY65: 0 | BZ65: 321893 | CA65: 0 | CC65: 0 | CD65: 0 | CE65: 0 | CF65: 0 | CG65: 0 | CH65: 0 | CJ65: 0 | CK65: 0 | CL65: 0 | CM65: 0 | CN65: 0 | CO65: 0
A66: 2023-02-01 | B66: 61 | C66: 30000 | D66: 1468116 | E66: 38288 | F66: 0 | G66: -2297 | H66: 0 | I66: -2515 | J66: 4924 | K66: 0 | L66: 0 | M66: 0 | N66: 0 | O66: 0 | P66: 0 | Q66: 0 | R66: 0 | S66: 0 | T66: 1506516 | U66: 0 | V66: 0 | W66: 0 | X66: 0 | Y66: 0 | Z66: 0 | AA66: 0 | AB66: 0 | AC66: 0 | AD66: 0 | AE66: 0 | AF66: 0 | AG66: 0 | AH66: 0 | AI66: 0 | AJ66: 0 | AK66: 91551 | AL66: 0 | AM66: 0 | AN66: 0 | AO66: 0 | AP66: -158 | AQ66: 309 | AR66: 383 | AS66: 2035 | AT66: 383 | AU66: 0 | AV66: 0 | AW66: 0 | AX66: 0 | AY66: 94503 | AZ66: 0 | BA66: 0 | BB66: 0 | BC66: 0 | BD66: 0 | BE66: 0 | BF66: 0 | BG66: 0 | BH66: 0 | BI66: 0 | BJ66: 0 | BK66: 0 | BL66: 0 | BM66: 0 | BN66: 0 | BO66: 0 | BP66: 0 | BQ66: 0 | BR66: 0 | BS66: 0 | BT66: 0 | BU66: 321893 | BV66: 0 | BW66: -538 | BX66: 1054 | BY66: 0 | BZ66: 322409 | CA66: 0 | CC66: 0 | CD66: 0 | CE66: 0 | CF66: 0 | CG66: 0 | CH66: 0 | CJ66: 0 | CK66: 0 | CL66: 0 | CM66: 0 | CN66: 0 | CO66: 0
A67: 2023-03-01 | B67: 62 | C67: 30000 | D67: 1506516 | E67: 38288 | F67: 0 | G67: -2297 | H67: 0 | I67: -2579 | J67: 5050 | K67: 0 | L67: 0 | M67: 0 | N67: 0 | O67: 0 | P67: 3087 | Q67: 0 | R67: 0 | S67: 0 | T67: 1548065 | U67: 0 | V67: 0 | W67: 0 | X67: 0 | Y67: 0 | Z67: 0 | AA67: 0 | AB67: 0 | AC67: 0 | AD67: 0 | AE67: 0 | AF67: 0 | AG67: 0 | AH67: 0 | AI67: 0 | AJ67: 0 | AK67: 94503 | AL67: 0 | AM67: 0 | AN67: 0 | AO67: 0 | AP67: -163 | AQ67: 319 | AR67: 383 | AS67: 2035 | AT67: 383 | AU67: 0 | AV67: 0 | AW67: 0 | AX67: 0 | AY67: 97460 | AZ67: 0 | BA67: 0 | BB67: 0 | BC67: 0 | BD67: 0 | BE67: 0 | BF67: 0 | BG67: 0 | BH67: 0 | BI67: 0 | BJ67: 0 | BK67: 0 | BL67: 0 | BM67: 0 | BN67: 0 | BO67: 0 | BP67: 0 | BQ67: 0 | BR67: 0 | BS67: 0 | BT67: 0 | BU67: 322409 | BV67: 0 | BW67: -539 | BX67: 1055 | BY67: 669 | BZ67: 323594 | CA67: 0 | CC67: 0 | CD67: 0 | CE67: 0 | CF67: 0 | CG67: 0 | CH67: 0 | CJ67: 0 | CK67: 0 | CL67: 0 | CM67: 0 | CN67: 0 | CO67: 0
A68: 2023-04-01 | B68: 63 | C68: 30000 | D68: 1548065 | E68: 38288 | F68: 0 | G68: -2297 | H68: 0 | I68: -2649 | J68: 5186 | K68: 0 | L68: 0 | M68: 0 | N68: 0 | O68: 0 | P68: 0 | Q68: 0 | R68: 0 | S68: 0 | T68: 1586593 | U68: 0 | V68: 0 | W68: 0 | X68: 0 | Y68: 0 | Z68: 0 | AA68: 0 | AB68: 0 | AC68: 0 | AD68: 0 | AE68: 0 | AF68: 0 | AG68: 0 | AH68: 0 | AI68: 0 | AJ68: 0 | AK68: 97460 | AL68: 0 | AM68: 0 | AN68: 0 | AO68: 0 | AP68: -168 | AQ68: 328 | AR68: 383 | AS68: 2035 | AT68: 383 | AU68: 0 | AV68: 0 | AW68: 0 | AX68: 0 | AY68: 100421 | AZ68: 0 | BA68: 0 | BB68: 0 | BC68: 0 | BD68: 0 | BE68: 0 | BF68: 0 | BG68: 0 | BH68: 0 | BI68: 0 | BJ68: 0 | BK68: 0 | BL68: 0 | BM68: 0 | BN68: 0 | BO68: 0 | BP68: 0 | BQ68: 0 | BR68: 0 | BS68: 0 | BT68: 0 | BU68: 323594 | BV68: 87169 | BW68: -687 | BX68: 1345 | BY68: 0 | BZ68: 411421 | CA68: 0 | CC68: 0 | CD68: 0 | CE68: 0 | CF68: 0 | CG68: 0 | CH68: 0 | CJ68: 0 | CK68: 0 | CL68: 0 | CM68: 0 | CN68: 0 | CO68: 0
A69: 2023-05-01 | B69: 64 | C69: 30000 | D69: 1586593 | E69: 38288 | F69: 0 | G69: -2297 | H69: 0 | I69: -2713 | J69: 5312 | K69: 0 | L69: 0 | M69: 0 | N69: 0 | O69: 0 | P69: 0 | Q69: 0 | R69: 0 | S69: 0 | T69: 1625183 | U69: 0 | V69: 0 | W69: 0 | X69: 0 | Y69: 0 | Z69: 0 | AA69: 0 | AB69: 0 | AC69: 0 | AD69: 0 | AE69: 0 | AF69: 0 | AG69: 0 | AH69: 0 | AI69: 0 | AJ69: 0 | AK69: 100421 | AL69: 0 | AM69: 0 | AN69: 0 | AO69: 0 | AP69: -173 | AQ69: 338 | AR69: 383 | AS69: 2035 | AT69: 383 | AU69: 0 | AV69: 0 | AW69: 0 | AX69: 0 | AY69: 103387 | AZ69: 0 | BA69: 0 | BB69: 0 | BC69: 0 | BD69: 0 | BE69: 0 | BF69: 0 | BG69: 0 | BH69: 0 | BI69: 0 | BJ69: 0 | BK69: 0 | BL69: 0 | BM69: 0 | BN69: 0 | BO69: 0 | BP69: 0 | BQ69: 0 | BR69: 0 | BS69: 0 | BT69: 0 | BU69: 411421 | BV69: 0 | BW69: -688 | BX69: 1347 | BY69: 0 | BZ69: 412080 | CA69: 0 | CC69: 0 | CD69: 0 | CE69: 0 | CF69: 0 | CG69: 0 | CH69: 0 | CJ69: 0 | CK69: 0 | CL69: 0 | CM69: 0 | CN69: 0 | CO69: 0
A70: 2023-06-01 | B70: 65 | C70: 30000 | D70: 1625183 | E70: 38288 | F70: 0 | G70: -2297 | H70: 0 | I70: -2778 | J70: 5438 | K70: 0 | L70: 0 | M70: 0 | N70: 0 | O70: 0 | P70: 3272 | Q70: 0 | R70: 0 | S70: 0 | T70: 1667106 | U70: 0 | V70: 0 | W70: 0 | X70: 0 | Y70: 0 | Z70: 0 | AA70: 0 | AB70: 0 | AC70: 0 | AD70: 0 | AE70: 0 | AF70: 0 | AG70: 0 | AH70: 0 | AI70: 0 | AJ70: 0 | AK70: 103387 | AL70: 0 | AM70: 0 | AN70: 0 | AO70: 0 | AP70: -178 | AQ70: 348 | AR70: 383 | AS70: 2035 | AT70: 383 | AU70: 0 | AV70: 0 | AW70: 0 | AX70: 0 | AY70: 106358 | AZ70: 0 | BA70: 0 | BB70: 0 | BC70: 0 | BD70: 0 | BE70: 0 | BF70: 0 | BG70: 0 | BH70: 0 | BI70: 0 | BJ70: 0 | BK70: 0 | BL70: 0 | BM70: 0 | BN70: 0 | BO70: 0 | BP70: 0 | BQ70: 0 | BR70: 0 | BS70: 0 | BT70: 0 | BU70: 412080 | BV70: 0 | BW70: -689 | BX70: 1349 | BY70: 659 | BZ70: 413399 | CA70: 0 | CC70: =SUM(D70:S70)-T70 -> 0 | CD70: =SUM(U70:AI70)-AJ70 -> 0 | CE70: =SUM(AK70:AX70)-AY70 -> 0 | CF70: =SUM(BA70:BH70)-BI70 -> 0 | CG70: =SUM(BK70:BR70)-BS70 -> 0 | CH70: =SUM(BU70:BY70)-BZ70 -> 0 | CJ70: 0 | CK70: 0 | CL70: 0 | CM70: 0 | CN70: 0 | CO70: 0
A71: 2023-07-01 | B71: 66 | C71: 30000 | D71: 1667106 | E71: 38288 | F71: 0 | G71: -2297 | H71: 0 | I71: -2848 | J71: 5575 | K71: 0 | L71: 0 | M71: 0 | N71: 0 | O71: 0 | P71: 0 | Q71: 0 | R71: 0 | S71: 0 | T71: 1705824 | U71: 0 | V71: 0 | W71: 0 | X71: 0 | Y71: 0 | Z71: 0 | AA71: 0 | AB71: 0 | AC71: 0 | AD71: 0 | AE71: 0 | AF71: 0 | AG71: 0 | AH71: 0 | AI71: 0 | AJ71: 0 | AK71: 106358 | AL71: 0 | AM71: 0 | AN71: 0 | AO71: 0 | AP71: -183 | AQ71: 357 | AR71: 383 | AS71: 2035 | AT71: 383 | AU71: 0 | AV71: 0 | AW71: 0 | AX71: 0 | AY71: 109333 | AZ71: 0 | BA71: 0 | BB71: 0 | BC71: 0 | BD71: 0 | BE71: 0 | BF71: 0 | BG71: 0 | BH71: 0 | BI71: 0 | BJ71: 0 | BK71: 0 | BL71: 0 | BM71: 0 | BN71: 0 | BO71: 0 | BP71: 0 | BQ71: 0 | BR71: 0 | BS71: 0 | BT71: 0 | BU71: 413399 | BV71: 0 | BW71: -691 | BX71: 1353 | BY71: 0 | BZ71: 414061 | CA71: 0 | CC71: 0 | CD71: 0 | CE71: 0 | CF71: 0 | CG71: 0 | CH71: 0 | CJ71: =+T70-D71 -> 0 | CK71: =+AJ70-U71 -> 0 | CL71: =+AY70-AK71 -> 0 | CM71: =+BI70-BA71 -> 0 | CN71: =+BS70-BK71 -> 0 | CO71: =+BZ70-BU71 -> 0
A72: 2023-08-01 | B72: 67 | C72: 30000 | D72: 1705824 | E72: 38288 | F72: 0 | G72: -2297 | H72: 0 | I72: -2913 | J72: 5702 | K72: 0 | L72: 0 | M72: 0 | N72: 0 | O72: 0 | P72: 0 | Q72: 0 | R72: 0 | S72: 0 | T72: 1744604 | U72: 0 | V72: 0 | W72: 0 | X72: 0 | Y72: 0 | Z72: 0 | AA72: 0 | AB72: 0 | AC72: 0 | AD72: 0 | AE72: 0 | AF72: 0 | AG72: 0 | AH72: 0 | AI72: 0 | AJ72: 0 | AK72: 109333 | AL72: 0 | AM72: 0 | AN72: 0 | AO72: 0 | AP72: -188 | AQ72: 367 | AR72: 383 | AS72: 2035 | AT72: 383 | AU72: 0 | AV72: 0 | AW72: 0 | AX72: 0 | AY72: 112313 | AZ72: 0 | BA72: 0 | BB72: 0 | BC72: 0 | BD72: 0 | BE72: 0 | BF72: 0 | BG72: 0 | BH72: 0 | BI72: 0 | BJ72: 0 | BK72: 0 | BL72: 0 | BM72: 0 | BN72: 0 | BO72: 0 | BP72: 0 | BQ72: 0 | BR72: 0 | BS72: 0 | BT72: 0 | BU72: 414061 | BV72: 0 | BW72: -692 | BX72: 1356 | BY72: 0 | BZ72: 414725 | CA72: 0 | CC72: 0 | CD72: 0 | CE72: 0 | CF72: 0 | CG72: 0 | CH72: 0 | CJ72: 0 | CK72: 0 | CL72: 0 | CM72: 0 | CN72: 0 | CO72: 0
A73: 2023-09-01 | B73: 68 | C73: 30000 | D73: 1744604 | E73: 38288 | F73: 0 | G73: -2297 | H73: 0 | I73: -2977 | J73: 5829 | K73: 0 | L73: 0 | M73: 0 | N73: 0 | O73: 0 | P73: 3572 | Q73: 0 | R73: 0 | S73: 0 | T73: 1787019 | U73: 0 | V73: 0 | W73: 0 | X73: 0 | Y73: 0 | Z73: 0 | AA73: 0 | AB73: 0 | AC73: 0 | AD73: 0 | AE73: 0 | AF73: 0 | AG73: 0 | AH73: 0 | AI73: 0 | AJ73: 0 | AK73: 112313 | AL73: 0 | AM73: 0 | AN73: 0 | AO73: 0 | AP73: -192 | AQ73: 377 | AR73: 383 | AS73: 2035 | AT73: 383 | AU73: 0 | AV73: 0 | AW73: 0 | AX73: 0 | AY73: 115299 | AZ73: 0 | BA73: 0 | BB73: 0 | BC73: 0 | BD73: 0 | BE73: 0 | BF73: 0 | BG73: 0 | BH73: 0 | BI73: 0 | BJ73: 0 | BK73: 0 | BL73: 0 | BM73: 0 | BN73: 0 | BO73: 0 | BP73: 0 | BQ73: 0 | BR73: 0 | BS73: 0 | BT73: 0 | BU73: 414725 | BV73: 0 | BW73: -693 | BX73: 1358 | BY73: 851 | BZ73: 416241 | CA73: 0 | CC73: 0 | CD73: 0 | CE73: 0 | CF73: 0 | CG73: 0 | CH73: 0 | CJ73: 0 | CK73: 0 | CL73: 0 | CM73: 0 | CN73: 0 | CO73: 0
A74: 2023-10-01 | B74: 69 | C74: 30000 | D74: 1787019 | E74: 38288 | F74: 0 | G74: -2297 | H74: 0 | I74: -3048 | J74: 5968 | K74: 0 | L74: 0 | M74: 0 | N74: 0 | O74: 0 | P74: 0 | Q74: 0 | R74: 0 | S74: 0 | T74: 1825930 | U74: 0 | V74: 0 | W74: 0 | X74: 0 | Y74: 0 | Z74: 0 | AA74: 0 | AB74: 0 | AC74: 0 | AD74: 0 | AE74: 0 | AF74: 0 | AG74: 0 | AH74: 0 | AI74: 0 | AJ74: 0 | AK74: 115299 | AL74: 0 | AM74: 0 | AN74: 0 | AO74: 0 | AP74: -197 | AQ74: 387 | AR74: 383 | AS74: 2035 | AT74: 383 | AU74: 0 | AV74: 0 | AW74: 0 | AX74: 0 | AY74: 118290 | AZ74: 0 | BA74: 0 | BB74: 0 | BC74: 0 | BD74: 0 | BE74: 0 | BF74: 0 | BG74: 0 | BH74: 0 | BI74: 0 | BJ74: 0 | BK74: 0 | BL74: 0 | BM74: 0 | BN74: 0 | BO74: 0 | BP74: 0 | BQ74: 0 | BR74: 0 | BS74: 0 | BT74: 0 | BU74: 416241 | BV74: 0 | BW74: -696 | BX74: 1363 | BY74: 0 | BZ74: 416908 | CA74: 0 | CC74: 0 | CD74: 0 | CE74: 0 | CF74: 0 | CG74: 0 | CH74: 0 | CJ74: 0 | CK74: 0 | CL74: 0 | CM74: 0 | CN74: 0 | CO74: 0
A75: 2023-11-01 | B75: 70 | C75: 30000 | D75: 1825930 | E75: 38288 | F75: 0 | G75: -2297 | H75: 0 | I75: -3113 | J75: 6095 | K75: 0 | L75: 0 | M75: 0 | N75: 0 | O75: 0 | P75: 0 | Q75: 0 | R75: 0 | S75: 0 | T75: 1864903 | U75: 0 | V75: 0 | W75: 0 | X75: 0 | Y75: 0 | Z75: 0 | AA75: 0 | AB75: 0 | AC75: 0 | AD75: 0 | AE75: 0 | AF75: 0 | AG75: 0 | AH75: 0 | AI75: 0 | AJ75: 0 | AK75: 118290 | AL75: 0 | AM75: 0 | AN75: 0 | AO75: 0 | AP75: -202 | AQ75: 396 | AR75: 383 | AS75: 2035 | AT75: 383 | AU75: 0 | AV75: 0 | AW75: 0 | AX75: 0 | AY75: 121285 | AZ75: 0 | BA75: 0 | BB75: 0 | BC75: 0 | BD75: 0 | BE75: 0 | BF75: 0 | BG75: 0 | BH75: 0 | BI75: 0 | BJ75: 0 | BK75: 0 | BL75: 0 | BM75: 0 | BN75: 0 | BO75: 0 | BP75: 0 | BQ75: 0 | BR75: 0 | BS75: 0 | BT75: 0 | BU75: 416908 | BV75: 0 | BW75: -697 | BX75: 1365 | BY75: 0 | BZ75: 417576 | CA75: 0 | CC75: 0 | CD75: 0 | CE75: 0 | CF75: 0 | CG75: 0 | CH75: 0 | CJ75: 0 | CK75: 0 | CL75: 0 | CM75: 0 | CN75: 0 | CO75: 0
A76: 2023-12-01 | B76: 71 | C76: 30000 | D76: 1864903 | E76: 38288 | F76: 0 | G76: -2297 | H76: 0 | I76: -3179 | J76: 6223 | K76: 0 | L76: 0 | M76: 0 | N76: 0 | O76: 0 | P76: 3878 | Q76: 0 | R76: 0 | S76: 0 | T76: 1907816 | U76: 0 | V76: 0 | W76: 0 | X76: 0 | Y76: 0 | Z76: 0 | AA76: 0 | AB76: 0 | AC76: 0 | AD76: 0 | AE76: 0 | AF76: 0 | AG76: 0 | AH76: 0 | AI76: 0 | AJ76: 0 | AK76: 121285 | AL76: 0 | AM76: 0 | AN76: 0 | AO76: 0 | AP76: -207 | AQ76: 406 | AR76: 383 | AS76: 2035 | AT76: 383 | AU76: 0 | AV76: 0 | AW76: 0 | AX76: 0 | AY76: 124285 | AZ76: 0 | BA76: 0 | BB76: 0 | BC76: 0 | BD76: 0 | BE76: 0 | BF76: 0 | BG76: 0 | BH76: 0 | BI76: 0 | BJ76: 0 | BK76: 0 | BL76: 0 | BM76: 0 | BN76: 0 | BO76: 0 | BP76: 0 | BQ76: 0 | BR76: 0 | BS76: 0 | BT76: 0 | BU76: 417576 | BV76: 0 | BW76: -698 | BX76: 1367 | BY76: 866 | BZ76: 419111 | CA76: 0 | CC76: 0 | CD76: 0 | CE76: 0 | CF76: 0 | CG76: 0 | CH76: 0 | CJ76: 0 | CK76: 0 | CL76: 0 | CM76: 0 | CN76: 0 | CO76: 0
A77: 2024-01-01 | B77: 72 | C77: 30000 | D77: 1907816 | E77: 38288 | F77: 0 | G77: -2297 | H77: 0 | I77: -3250 | J77: 6364 | K77: 0 | L77: 0 | M77: 0 | N77: 0 | O77: 0 | P77: 0 | Q77: 0 | R77: 0 | S77: 0 | T77: 1946921 | U77: 0 | V77: 0 | W77: 0 | X77: 0 | Y77: 0 | Z77: 0 | AA77: 0 | AB77: 0 | AC77: 0 | AD77: 0 | AE77: 0 | AF77: 0 | AG77: 0 | AH77: 0 | AI77: 0 | AJ77: 0 | AK77: 124285 | AL77: 0 | AM77: 0 | AN77: 0 | AO77: 0 | AP77: -213 | AQ77: 416 | AR77: 383 | AS77: 2035 | AT77: 383 | AU77: 0 | AV77: 0 | AW77: 0 | AX77: 0 | AY77: 127289 | AZ77: 0 | BA77: 0 | BB77: 0 | BC77: 0 | BD77: 0 | BE77: 0 | BF77: 0 | BG77: 0 | BH77: 0 | BI77: 0 | BJ77: 0 | BK77: 0 | BL77: 0 | BM77: 0 | BN77: 0 | BO77: 0 | BP77: 0 | BQ77: 0 | BR77: 0 | BS77: 0 | BT77: 0 | BU77: 419111 | BV77: 0 | BW77: -701 | BX77: 1372 | BY77: 0 | BZ77: 419782 | CA77: 0 | CC77: 0 | CD77: 0 | CE77: 0 | CF77: 0 | CG77: 0 | CH77: 0 | CJ77: 0 | CK77: 0 | CL77: 0 | CM77: 0 | CN77: 0 | CO77: 0
A78: 2024-02-01 | B78: 73 | C78: 30000 | D78: 1946921 | E78: 40202 | F78: 0 | G78: -2412 | H78: 0 | I78: -3319 | J78: 6497 | K78: 0 | L78: 0 | M78: 0 | N78: 0 | O78: 0 | P78: 0 | Q78: 0 | R78: 0 | S78: 0 | T78: 1987889 | U78: 0 | V78: 0 | W78: 0 | X78: 0 | Y78: 0 | Z78: 0 | AA78: 0 | AB78: 0 | AC78: 0 | AD78: 0 | AE78: 0 | AF78: 0 | AG78: 0 | AH78: 0 | AI78: 0 | AJ78: 0 | AK78: 127289 | AL78: 0 | AM78: 0 | AN78: 0 | AO78: 0 | AP78: -218 | AQ78: 426 | AR78: 402 | AS78: 2035 | AT78: 402 | AU78: 0 | AV78: 0 | AW78: 0 | AX78: 0 | AY78: 130336 | AZ78: 0 | BA78: 0 | BB78: 0 | BC78: 0 | BD78: 0 | BE78: 0 | BF78: 0 | BG78: 0 | BH78: 0 | BI78: 0 | BJ78: 0 | BK78: 0 | BL78: 0 | BM78: 0 | BN78: 0 | BO78: 0 | BP78: 0 | BQ78: 0 | BR78: 0 | BS78: 0 | BT78: 0 | BU78: 419782 | BV78: 0 | BW78: -702 | BX78: 1374 | BY78: 0 | BZ78: 420454 | CA78: 0 | CC78: 0 | CD78: 0 | CE78: 0 | CF78: 0 | CG78: 0 | CH78: 0 | CJ78: 0 | CK78: 0 | CL78: 0 | CM78: 0 | CN78: 0 | CO78: 0
A79: 2024-03-01 | B79: 74 | C79: 30000 | D79: 1987889 | E79: 40202 | F79: 0 | G79: -2412 | H79: 0 | I79: -3387 | J79: 6632 | K79: 0 | L79: 0 | M79: 0 | N79: 0 | O79: 0 | P79: 4149 | Q79: 0 | R79: 0 | S79: 0 | T79: 2033073 | U79: 0 | V79: 0 | W79: 0 | X79: 0 | Y79: 0 | Z79: 0 | AA79: 0 | AB79: 0 | AC79: 0 | AD79: 0 | AE79: 0 | AF79: 0 | AG79: 0 | AH79: 0 | AI79: 0 | AJ79: 0 | AK79: 130336 | AL79: 0 | AM79: 0 | AN79: 0 | AO79: 0 | AP79: -223 | AQ79: 436 | AR79: 402 | AS79: 2035 | AT79: 402 | AU79: 0 | AV79: 0 | AW79: 0 | AX79: 0 | AY79: 133388 | AZ79: 0 | BA79: 0 | BB79: 0 | BC79: 0 | BD79: 0 | BE79: 0 | BF79: 0 | BG79: 0 | BH79: 0 | BI79: 0 | BJ79: 0 | BK79: 0 | BL79: 0 | BM79: 0 | BN79: 0 | BO79: 0 | BP79: 0 | BQ79: 0 | BR79: 0 | BS79: 0 | BT79: 0 | BU79: 420454 | BV79: 0 | BW79: -703 | BX79: 1376 | BY79: 872 | BZ79: 421999 | CA79: 0 | CC79: 0 | CD79: 0 | CE79: 0 | CF79: 0 | CG79: 0 | CH79: 0 | CJ79: 0 | CK79: 0 | CL79: 0 | CM79: 0 | CN79: 0 | CO79: 0
A80: 2024-04-01 | B80: 75 | C80: 30000 | D80: 2033073 | E80: 40202 | F80: 0 | G80: -2412 | H80: 0 | I80: -3463 | J80: 6779 | K80: 0 | L80: 0 | M80: 0 | N80: 0 | O80: 0 | P80: 0 | Q80: 0 | R80: 0 | S80: 0 | T80: 2074179 | U80: 0 | V80: 0 | W80: 0 | X80: 0 | Y80: 0 | Z80: 0 | AA80: 0 | AB80: 0 | AC80: 0 | AD80: 0 | AE80: 0 | AF80: 0 | AG80: 0 | AH80: 0 | AI80: 0 | AJ80: 0 | AK80: 133388 | AL80: 0 | AM80: 0 | AN80: 0 | AO80: 0 | AP80: -228 | AQ80: 446 | AR80: 402 | AS80: 2035 | AT80: 402 | AU80: 0 | AV80: 0 | AW80: 0 | AX80: 0 | AY80: 136445 | AZ80: 0 | BA80: 0 | BB80: 0 | BC80: 0 | BD80: 0 | BE80: 0 | BF80: 0 | BG80: 0 | BH80: 0 | BI80: 0 | BJ80: 0 | BK80: 0 | BL80: 0 | BM80: 0 | BN80: 0 | BO80: 0 | BP80: 0 | BQ80: 0 | BR80: 0 | BS80: 0 | BT80: 0 | BU80: 421999 | BV80: 91527 | BW80: -859 | BX80: 1681 | BY80: 0 | BZ80: 514348 | CA80: 0 | CC80: 0 | CD80: 0 | CE80: 0 | CF80: 0 | CG80: 0 | CH80: 0 | CJ80: 0 | CK80: 0 | CL80: 0 | CM80: 0 | CN80: 0 | CO80: 0
A81: 2024-05-01 | B81: 76 | C81: 30000 | D81: 2074179 | E81: 40202 | F81: 0 | G81: -2412 | H81: 0 | I81: -3531 | J81: 6914 | K81: 0 | L81: 0 | M81: 0 | N81: 0 | O81: 0 | P81: 0 | Q81: 0 | R81: 0 | S81: 0 | T81: 2115352 | U81: 0 | V81: 0 | W81: 0 | X81: 0 | Y81: 0 | Z81: 0 | AA81: 0 | AB81: 0 | AC81: 0 | AD81: 0 | AE81: 0 | AF81: 0 | AG81: 0 | AH81: 0 | AI81: 0 | AJ81: 0 | AK81: 136445 | AL81: 0 | AM81: 0 | AN81: 0 | AO81: 0 | AP81: -233 | AQ81: 456 | AR81: 402 | AS81: 2035 | AT81: 402 | AU81: 0 | AV81: 0 | AW81: 0 | AX81: 0 | AY81: 139507 | AZ81: 0 | BA81: 0 | BB81: 0 | BC81: 0 | BD81: 0 | BE81: 0 | BF81: 0 | BG81: 0 | BH81: 0 | BI81: 0 | BJ81: 0 | BK81: 0 | BL81: 0 | BM81: 0 | BN81: 0 | BO81: 0 | BP81: 0 | BQ81: 0 | BR81: 0 | BS81: 0 | BT81: 0 | BU81: 514348 | BV81: 0 | BW81: -860 | BX81: 1684 | BY81: 0 | BZ81: 515172 | CA81: 0 | CC81: 0 | CD81: 0 | CE81: 0 | CF81: 0 | CG81: 0 | CH81: 0 | CJ81: 0 | CK81: 0 | CL81: 0 | CM81: 0 | CN81: 0 | CO81: 0
A82: 2024-06-01 | B82: 77 | C82: 30000 | D82: 2115352 | E82: 40202 | F82: 0 | G82: -2412 | H82: 0 | I82: -3600 | J82: 7049 | K82: 0 | L82: 0 | M82: 0 | N82: 0 | O82: 0 | P82: 4376 | Q82: 0 | R82: 0 | S82: 0 | T82: 2160967 | U82: 0 | V82: 0 | W82: 0 | X82: 0 | Y82: 0 | Z82: 0 | AA82: 0 | AB82: 0 | AC82: 0 | AD82: 0 | AE82: 0 | AF82: 0 | AG82: 0 | AH82: 0 | AI82: 0 | AJ82: 0 | AK82: 139507 | AL82: 0 | AM82: 0 | AN82: 0 | AO82: 0 | AP82: -238 | AQ82: 466 | AR82: 402 | AS82: 2035 | AT82: 402 | AU82: 0 | AV82: 0 | AW82: 0 | AX82: 0 | AY82: 142574 | AZ82: 0 | BA82: 0 | BB82: 0 | BC82: 0 | BD82: 0 | BE82: 0 | BF82: 0 | BG82: 0 | BH82: 0 | BI82: 0 | BJ82: 0 | BK82: 0 | BL82: 0 | BM82: 0 | BN82: 0 | BO82: 0 | BP82: 0 | BQ82: 0 | BR82: 0 | BS82: 0 | BT82: 0 | BU82: 515172 | BV82: 0 | BW82: -861 | BX82: 1687 | BY82: 869 | BZ82: 516867 | CA82: 0 | CC82: 0 | CD82: 0 | CE82: 0 | CF82: 0 | CG82: 0 | CH82: 0 | CJ82: 0 | CK82: 0 | CL82: 0 | CM82: 0 | CN82: 0 | CO82: 0
A83: 2024-07-01 | B83: 78 | C83: 30000 | D83: 2160967 | E83: 40202 | F83: 0 | G83: -2412 | H83: 0 | I83: -3677 | J83: 7198 | K83: 0 | L83: 0 | M83: 0 | N83: 0 | O83: 0 | P83: 0 | Q83: 0 | R83: 0 | S83: 0 | T83: 2202278 | U83: 0 | V83: 0 | W83: 0 | X83: 0 | Y83: 0 | Z83: 0 | AA83: 0 | AB83: 0 | AC83: 0 | AD83: 0 | AE83: 0 | AF83: 0 | AG83: 0 | AH83: 0 | AI83: 0 | AJ83: 0 | AK83: 142574 | AL83: 0 | AM83: 0 | AN83: 0 | AO83: 0 | AP83: -243 | AQ83: 476 | AR83: 402 | AS83: 2035 | AT83: 402 | AU83: 0 | AV83: 0 | AW83: 0 | AX83: 0 | AY83: 145646 | AZ83: 0 | BA83: 0 | BB83: 0 | BC83: 0 | BD83: 0 | BE83: 0 | BF83: 0 | BG83: 0 | BH83: 0 | BI83: 0 | BJ83: 0 | BK83: 0 | BL83: 0 | BM83: 0 | BN83: 0 | BO83: 0 | BP83: 0 | BQ83: 0 | BR83: 0 | BS83: 0 | BT83: 0 | BU83: 516867 | BV83: 0 | BW83: -864 | BX83: 1692 | BY83: 0 | BZ83: 517695 | CA83: 0 | CC83: 0 | CD83: 0 | CE83: 0 | CF83: 0 | CG83: 0 | CH83: 0 | CJ83: 0 | CK83: 0 | CL83: 0 | CM83: 0 | CN83: 0 | CO83: 0
A84: 2024-08-01 | B84: 79 | C84: 30000 | D84: 2202278 | E84: 40202 | F84: 0 | G84: -2412 | H84: 0 | I84: -3746 | J84: 7333 | K84: 0 | L84: 0 | M84: 0 | N84: 0 | O84: 0 | P84: 0 | Q84: 0 | R84: 0 | S84: 0 | T84: 2243655 | U84: 0 | V84: 0 | W84: 0 | X84: 0 | Y84: 0 | Z84: 0 | AA84: 0 | AB84: 0 | AC84: 0 | AD84: 0 | AE84: 0 | AF84: 0 | AG84: 0 | AH84: 0 | AI84: 0 | AJ84: 0 | AK84: 145646 | AL84: 0 | AM84: 0 | AN84: 0 | AO84: 0 | AP84: -248 | AQ84: 486 | AR84: 402 | AS84: 2035 | AT84: 402 | AU84: 0 | AV84: 0 | AW84: 0 | AX84: 0 | AY84: 148723 | AZ84: 0 | BA84: 0 | BB84: 0 | BC84: 0 | BD84: 0 | BE84: 0 | BF84: 0 | BG84: 0 | BH84: 0 | BI84: 0 | BJ84: 0 | BK84: 0 | BL84: 0 | BM84: 0 | BN84: 0 | BO84: 0 | BP84: 0 | BQ84: 0 | BR84: 0 | BS84: 0 | BT84: 0 | BU84: 517695 | BV84: 0 | BW84: -866 | BX84: 1695 | BY84: 0 | BZ84: 518524 | CA84: 0 | CC84: 0 | CD84: 0 | CE84: 0 | CF84: 0 | CG84: 0 | CH84: 0 | CJ84: 0 | CK84: 0 | CL84: 0 | CM84: 0 | CN84: 0 | CO84: 0
A85: 2024-09-01 | B85: 80 | C85: 30000 | D85: 2243655 | E85: 40202 | F85: 0 | G85: -2412 | H85: 0 | I85: -3815 | J85: 7469 | K85: 0 | L85: 0 | M85: 0 | N85: 0 | O85: 0 | P85: 4659 | Q85: 0 | R85: 0 | S85: 0 | T85: 2289758 | U85: 0 | V85: 0 | W85: 0 | X85: 0 | Y85: 0 | Z85: 0 | AA85: 0 | AB85: 0 | AC85: 0 | AD85: 0 | AE85: 0 | AF85: 0 | AG85: 0 | AH85: 0 | AI85: 0 | AJ85: 0 | AK85: 148723 | AL85: 0 | AM85: 0 | AN85: 0 | AO85: 0 | AP85: -253 | AQ85: 496 | AR85: 402 | AS85: 2035 | AT85: 402 | AU85: 0 | AV85: 0 | AW85: 0 | AX85: 0 | AY85: 151805 | AZ85: 0 | BA85: 0 | BB85: 0 | BC85: 0 | BD85: 0 | BE85: 0 | BF85: 0 | BG85: 0 | BH85: 0 | BI85: 0 | BJ85: 0 | BK85: 0 | BL85: 0 | BM85: 0 | BN85: 0 | BO85: 0 | BP85: 0 | BQ85: 0 | BR85: 0 | BS85: 0 | BT85: 0 | BU85: 518524 | BV85: 0 | BW85: -867 | BX85: 1698 | BY85: 1064 | BZ85: 520419 | CA85: 0 | CC85: 0 | CD85: 0 | CE85: 0 | CF85: 0 | CG85: 0 | CH85: 0 | CJ85: 0 | CK85: 0 | CL85: 0 | CM85: 0 | CN85: 0 | CO85: 0
A86: 2024-10-01 | B86: 81 | C86: 30000 | D86: 2289758 | E86: 40202 | F86: 0 | G86: -2412 | H86: 0 | I86: -3892 | J86: 7620 | K86: 0 | L86: 0 | M86: 0 | N86: 0 | O86: 0 | P86: 0 | Q86: 0 | R86: 0 | S86: 0 | T86: 2331276 | U86: 0 | V86: 0 | W86: 0 | X86: 0 | Y86: 0 | Z86: 0 | AA86: 0 | AB86: 0 | AC86: 0 | AD86: 0 | AE86: 0 | AF86: 0 | AG86: 0 | AH86: 0 | AI86: 0 | AJ86: 0 | AK86: 151805 | AL86: 0 | AM86: 0 | AN86: 0 | AO86: 0 | AP86: -259 | AQ86: 506 | AR86: 402 | AS86: 2035 | AT86: 402 | AU86: 0 | AV86: 0 | AW86: 0 | AX86: 0 | AY86: 154891 | AZ86: 0 | BA86: 0 | BB86: 0 | BC86: 0 | BD86: 0 | BE86: 0 | BF86: 0 | BG86: 0 | BH86: 0 | BI86: 0 | BJ86: 0 | BK86: 0 | BL86: 0 | BM86: 0 | BN86: 0 | BO86: 0 | BP86: 0 | BQ86: 0 | BR86: 0 | BS86: 0 | BT86: 0 | BU86: 520419 | BV86: 0 | BW86: -870 | BX86: 1704 | BY86: 0 | BZ86: 521253 | CA86: 0 | CC86: 0 | CD86: 0 | CE86: 0 | CF86: 0 | CG86: 0 | CH86: 0 | CJ86: 0 | CK86: 0 | CL86: 0 | CM86: 0 | CN86: 0 | CO86: 0
A87: 2024-11-01 | B87: 82 | C87: 30000 | D87: 2331276 | E87: 40202 | F87: 0 | G87: -2412 | H87: 0 | I87: -3961 | J87: 7756 | K87: 0 | L87: 0 | M87: 0 | N87: 0 | O87: 0 | P87: 0 | Q87: 0 | R87: 0 | S87: 0 | T87: 2372861 | U87: 0 | V87: 0 | W87: 0 | X87: 0 | Y87: 0 | Z87: 0 | AA87: 0 | AB87: 0 | AC87: 0 | AD87: 0 | AE87: 0 | AF87: 0 | AG87: 0 | AH87: 0 | AI87: 0 | AJ87: 0 | AK87: 154891 | AL87: 0 | AM87: 0 | AN87: 0 | AO87: 0 | AP87: -264 | AQ87: 516 | AR87: 402 | AS87: 2035 | AT87: 402 | AU87: 0 | AV87: 0 | AW87: 0 | AX87: 0 | AY87: 157982 | AZ87: 0 | BA87: 0 | BB87: 0 | BC87: 0 | BD87: 0 | BE87: 0 | BF87: 0 | BG87: 0 | BH87: 0 | BI87: 0 | BJ87: 0 | BK87: 0 | BL87: 0 | BM87: 0 | BN87: 0 | BO87: 0 | BP87: 0 | BQ87: 0 | BR87: 0 | BS87: 0 | BT87: 0 | BU87: 521253 | BV87: 0 | BW87: -872 | BX87: 1706 | BY87: 0 | BZ87: 522087 | CA87: 0 | CC87: 0 | CD87: 0 | CE87: 0 | CF87: 0 | CG87: 0 | CH87: 0 | CJ87: 0 | CK87: 0 | CL87: 0 | CM87: 0 | CN87: 0 | CO87: 0
A88: 2024-12-01 | B88: 83 | C88: 30000 | D88: 2372861 | E88: 40202 | F88: 0 | G88: -2412 | H88: 0 | I88: -4031 | J88: 7892 | K88: 0 | L88: 0 | M88: 0 | N88: 0 | O88: 0 | P88: 4997 | Q88: 0 | R88: 0 | S88: 0 | T88: 2419509 | U88: 0 | V88: 0 | W88: 0 | X88: 0 | Y88: 0 | Z88: 0 | AA88: 0 | AB88: 0 | AC88: 0 | AD88: 0 | AE88: 0 | AF88: 0 | AG88: 0 | AH88: 0 | AI88: 0 | AJ88: 0 | AK88: 157982 | AL88: 0 | AM88: 0 | AN88: 0 | AO88: 0 | AP88: -269 | AQ88: 526 | AR88: 402 | AS88: 2035 | AT88: 402 | AU88: 0 | AV88: 0 | AW88: 0 | AX88: 0 | AY88: 161078 | AZ88: 0 | BA88: 0 | BB88: 0 | BC88: 0 | BD88: 0 | BE88: 0 | BF88: 0 | BG88: 0 | BH88: 0 | BI88: 0 | BJ88: 0 | BK88: 0 | BL88: 0 | BM88: 0 | BN88: 0 | BO88: 0 | BP88: 0 | BQ88: 0 | BR88: 0 | BS88: 0 | BT88: 0 | BU88: 522087 | BV88: 0 | BW88: -873 | BX88: 1709 | BY88: 1083 | BZ88: 524006 | CA88: 0 | CC88: 0 | CD88: 0 | CE88: 0 | CF88: 0 | CG88: 0 | CH88: 0 | CJ88: 0 | CK88: 0 | CL88: 0 | CM88: 0 | CN88: 0 | CO88: 0
A89: 2025-01-01 | B89: 84 | C89: 30000 | D89: 2419509 | E89: 40202 | F89: 0 | G89: -2412 | H89: 0 | I89: -4109 | J89: 8045 | K89: 0 | L89: 0 | M89: 0 | N89: 0 | O89: 0 | P89: 0 | Q89: 0 | R89: 0 | S89: 0 | T89: 2461235 | U89: 0 | V89: 0 | W89: 0 | X89: 0 | Y89: 0 | Z89: 0 | AA89: 0 | AB89: 0 | AC89: 0 | AD89: 0 | AE89: 0 | AF89: 0 | AG89: 0 | AH89: 0 | AI89: 0 | AJ89: 0 | AK89: 161078 | AL89: 0 | AM89: 0 | AN89: 0 | AO89: 0 | AP89: -274 | AQ89: 537 | AR89: 402 | AS89: 2035 | AT89: 402 | AU89: 0 | AV89: 0 | AW89: 0 | AX89: 0 | AY89: 164180 | AZ89: 0 | BA89: 0 | BB89: 0 | BC89: 0 | BD89: 0 | BE89: 0 | BF89: 0 | BG89: 0 | BH89: 0 | BI89: 0 | BJ89: 0 | BK89: 0 | BL89: 0 | BM89: 0 | BN89: 0 | BO89: 0 | BP89: 0 | BQ89: 0 | BR89: 0 | BS89: 0 | BT89: 0 | BU89: 524006 | BV89: 0 | BW89: -876 | BX89: 1715 | BY89: 0 | BZ89: 524845 | CA89: 0 | CC89: 0 | CD89: 0 | CE89: 0 | CF89: 0 | CG89: 0 | CH89: 0 | CJ89: 0 | CK89: 0 | CL89: 0 | CM89: 0 | CN89: 0 | CO89: 0
A90: 2025-02-01 | B90: 85 | C90: 30000 | D90: 2461235 | E90: 42212 | F90: 0 | G90: -2533 | H90: 0 | I90: -4182 | J90: 8187 | K90: 0 | L90: 0 | M90: 0 | N90: 0 | O90: 0 | P90: 0 | Q90: 0 | R90: 0 | S90: 0 | T90: 2504919 | U90: 0 | V90: 0 | W90: 0 | X90: 0 | Y90: 0 | Z90: 0 | AA90: 0 | AB90: 0 | AC90: 0 | AD90: 0 | AE90: 0 | AF90: 0 | AG90: 0 | AH90: 0 | AI90: 0 | AJ90: 0 | AK90: 164180 | AL90: 0 | AM90: 0 | AN90: 0 | AO90: 0 | AP90: -279 | AQ90: 547 | AR90: 422 | AS90: 2035 | AT90: 422 | AU90: 0 | AV90: 0 | AW90: 0 | AX90: 0 | AY90: 167327 | AZ90: 0 | BA90: 0 | BB90: 0 | BC90: 0 | BD90: 0 | BE90: 0 | BF90: 0 | BG90: 0 | BH90: 0 | BI90: 0 | BJ90: 0 | BK90: 0 | BL90: 0 | BM90: 0 | BN90: 0 | BO90: 0 | BP90: 0 | BQ90: 0 | BR90: 0 | BS90: 0 | BT90: 0 | BU90: 524845 | BV90: 0 | BW90: -878 | BX90: 1718 | BY90: 0 | BZ90: 525685 | CA90: 0 | CC90: 0 | CD90: 0 | CE90: 0 | CF90: 0 | CG90: 0 | CH90: 0 | CJ90: 0 | CK90: 0 | CL90: 0 | CM90: 0 | CN90: 0 | CO90: 0
A91: 2025-03-01 | B91: 86 | C91: 30000 | D91: 2504919 | E91: 42212 | F91: 0 | G91: -2533 | H91: 0 | I91: -4255 | J91: 8330 | K91: 0 | L91: 0 | M91: 0 | N91: 0 | O91: 0 | P91: 5287 | Q91: 0 | R91: 0 | S91: 0 | T91: 2553960 | U91: 0 | V91: 0 | W91: 0 | X91: 0 | Y91: 0 | Z91: 0 | AA91: 0 | AB91: 0 | AC91: 0 | AD91: 0 | AE91: 0 | AF91: 0 | AG91: 0 | AH91: 0 | AI91: 0 | AJ91: 0 | AK91: 167327 | AL91: 0 | AM91: 0 | AN91: 0 | AO91: 0 | AP91: -285 | AQ91: 557 | AR91: 422 | AS91: 2035 | AT91: 422 | AU91: 0 | AV91: 0 | AW91: 0 | AX91: 0 | AY91: 170478 | AZ91: 0 | BA91: 0 | BB91: 0 | BC91: 0 | BD91: 0 | BE91: 0 | BF91: 0 | BG91: 0 | BH91: 0 | BI91: 0 | BJ91: 0 | BK91: 0 | BL91: 0 | BM91: 0 | BN91: 0 | BO91: 0 | BP91: 0 | BQ91: 0 | BR91: 0 | BS91: 0 | BT91: 0 | BU91: 525685 | BV91: 0 | BW91: -879 | BX91: 1721 | BY91: 1091 | BZ91: 527618 | CA91: 0 | CC91: 0 | CD91: 0 | CE91: 0 | CF91: 0 | CG91: 0 | CH91: 0 | CJ91: 0 | CK91: 0 | CL91: 0 | CM91: 0 | CN91: 0 | CO91: 0
A92: 2025-04-01 | B92: 87 | C92: 30000 | D92: 2553960 | E92: 42212 | F92: 0 | G92: -2533 | H92: 0 | I92: -4337 | J92: 8491 | K92: 0 | L92: 0 | M92: 0 | N92: 0 | O92: 0 | P92: 0 | Q92: 0 | R92: 0 | S92: 0 | T92: 2597793 | U92: 0 | V92: 0 | W92: 0 | X92: 0 | Y92: 0 | Z92: 0 | AA92: 0 | AB92: 0 | AC92: 0 | AD92: 0 | AE92: 0 | AF92: 0 | AG92: 0 | AH92: 0 | AI92: 0 | AJ92: 0 | AK92: 170478 | AL92: 0 | AM92: 0 | AN92: 0 | AO92: 0 | AP92: -290 | AQ92: 568 | AR92: 422 | AS92: 2035 | AT92: 422 | AU92: 0 | AV92: 0 | AW92: 0 | AX92: 0 | AY92: 173635 | AZ92: 0 | BA92: 0 | BB92: 0 | BC92: 0 | BD92: 0 | BE92: 0 | BF92: 0 | BG92: 0 | BH92: 0 | BI92: 0 | BJ92: 0 | BK92: 0 | BL92: 0 | BM92: 0 | BN92: 0 | BO92: 0 | BP92: 0 | BQ92: 0 | BR92: 0 | BS92: 0 | BT92: 0 | BU92: 527618 | BV92: 96102 | BW92: -1043 | BX92: 2042 | BY92: 0 | BZ92: 624719 | CA92: 0 | CC92: 0 | CD92: 0 | CE92: 0 | CF92: 0 | CG92: 0 | CH92: 0 | CJ92: 0 | CK92: 0 | CL92: 0 | CM92: 0 | CN92: 0 | CO92: 0
A93: 2025-05-01 | B93: 88 | C93: 30000 | D93: 2597793 | E93: 42212 | F93: 0 | G93: -2533 | H93: 0 | I93: -4410 | J93: 8634 | K93: 0 | L93: 0 | M93: 0 | N93: 0 | O93: 0 | P93: 0 | Q93: 0 | R93: 0 | S93: 0 | T93: 2641696 | U93: 0 | V93: 0 | W93: 0 | X93: 0 | Y93: 0 | Z93: 0 | AA93: 0 | AB93: 0 | AC93: 0 | AD93: 0 | AE93: 0 | AF93: 0 | AG93: 0 | AH93: 0 | AI93: 0 | AJ93: 0 | AK93: 173635 | AL93: 0 | AM93: 0 | AN93: 0 | AO93: 0 | AP93: -295 | AQ93: 578 | AR93: 422 | AS93: 2035 | AT93: 422 | AU93: 0 | AV93: 0 | AW93: 0 | AX93: 0 | AY93: 176797 | AZ93: 0 | BA93: 0 | BB93: 0 | BC93: 0 | BD93: 0 | BE93: 0 | BF93: 0 | BG93: 0 | BH93: 0 | BI93: 0 | BJ93: 0 | BK93: 0 | BL93: 0 | BM93: 0 | BN93: 0 | BO93: 0 | BP93: 0 | BQ93: 0 | BR93: 0 | BS93: 0 | BT93: 0 | BU93: 624719 | BV93: 0 | BW93: -1045 | BX93: 2045 | BY93: 0 | BZ93: 625719 | CA93: 0 | CC93: 0 | CD93: 0 | CE93: 0 | CF93: 0 | CG93: 0 | CH93: 0 | CJ93: 0 | CK93: 0 | CL93: 0 | CM93: 0 | CN93: 0 | CO93: 0
A94: 2025-06-01 | B94: 89 | C94: 30000 | D94: 2641696 | E94: 42212 | F94: 0 | G94: -2533 | H94: 0 | I94: -4484 | J94: 8778 | K94: 0 | L94: 0 | M94: 0 | N94: 0 | O94: 0 | P94: 5461 | Q94: 0 | R94: 0 | S94: 0 | T94: 2691130 | U94: 0 | V94: 0 | W94: 0 | X94: 0 | Y94: 0 | Z94: 0 | AA94: 0 | AB94: 0 | AC94: 0 | AD94: 0 | AE94: 0 | AF94: 0 | AG94: 0 | AH94: 0 | AI94: 0 | AJ94: 0 | AK94: 176797 | AL94: 0 | AM94: 0 | AN94: 0 | AO94: 0 | AP94: -300 | AQ94: 588 | AR94: 422 | AS94: 2035 | AT94: 422 | AU94: 0 | AV94: 0 | AW94: 0 | AX94: 0 | AY94: 179964 | AZ94: 0 | BA94: 0 | BB94: 0 | BC94: 0 | BD94: 0 | BE94: 0 | BF94: 0 | BG94: 0 | BH94: 0 | BI94: 0 | BJ94: 0 | BK94: 0 | BL94: 0 | BM94: 0 | BN94: 0 | BO94: 0 | BP94: 0 | BQ94: 0 | BR94: 0 | BS94: 0 | BT94: 0 | BU94: 625719 | BV94: 0 | BW94: -1046 | BX94: 2048 | BY94: 1074 | BZ94: 627795 | CA94: 0 | CC94: 0 | CD94: 0 | CE94: 0 | CF94: 0 | CG94: 0 | CH94: 0 | CJ94: 0 | CK94: 0 | CL94: 0 | CM94: 0 | CN94: 0 | CO94: 0
A95: 2025-07-01 | B95: 90 | C95: 30000 | D95: 2691130 | E95: 42212 | F95: 0 | G95: -2533 | H95: 0 | I95: -4566 | J95: 8940 | K95: 0 | L95: 0 | M95: 0 | N95: 0 | O95: 0 | P95: 0 | Q95: 0 | R95: 0 | S95: 0 | T95: 2735183 | U95: 0 | V95: 0 | W95: 0 | X95: 0 | Y95: 0 | Z95: 0 | AA95: 0 | AB95: 0 | AC95: 0 | AD95: 0 | AE95: 0 | AF95: 0 | AG95: 0 | AH95: 0 | AI95: 0 | AJ95: 0 | AK95: 179964 | AL95: 0 | AM95: 0 | AN95: 0 | AO95: 0 | AP95: -306 | AQ95: 599 | AR95: 422 | AS95: 2035 | AT95: 422 | AU95: 0 | AV95: 0 | AW95: 0 | AX95: 0 | AY95: 183136 | AZ95: 0 | BA95: 0 | BB95: 0 | BC95: 0 | BD95: 0 | BE95: 0 | BF95: 0 | BG95: 0 | BH95: 0 | BI95: 0 | BJ95: 0 | BK95: 0 | BL95: 0 | BM95: 0 | BN95: 0 | BO95: 0 | BP95: 0 | BQ95: 0 | BR95: 0 | BS95: 0 | BT95: 0 | BU95: 627795 | BV95: 0 | BW95: -1050 | BX95: 2055 | BY95: 0 | BZ95: 628800 | CA95: 0 | CC95: 0 | CD95: 0 | CE95: 0 | CF95: 0 | CG95: 0 | CH95: 0 | CJ95: 0 | CK95: 0 | CL95: 0 | CM95: 0 | CN95: 0 | CO95: 0
A96: 2025-08-01 | B96: 91 | C96: 30000 | D96: 2735183 | E96: 42212 | F96: 0 | G96: -2533 | H96: 0 | I96: -4640 | J96: 9084 | K96: 0 | L96: 0 | M96: 0 | N96: 0 | O96: 0 | P96: 0 | Q96: 0 | R96: 0 | S96: 0 | T96: 2779306 | U96: 0 | V96: 0 | W96: 0 | X96: 0 | Y96: 0 | Z96: 0 | AA96: 0 | AB96: 0 | AC96: 0 | AD96: 0 | AE96: 0 | AF96: 0 | AG96: 0 | AH96: 0 | AI96: 0 | AJ96: 0 | AK96: 183136 | AL96: 0 | AM96: 0 | AN96: 0 | AO96: 0 | AP96: -311 | AQ96: 609 | AR96: 422 | AS96: 2035 | AT96: 422 | AU96: 0 | AV96: 0 | AW96: 0 | AX96: 0 | AY96: 186313 | AZ96: 0 | BA96: 0 | BB96: 0 | BC96: 0 | BD96: 0 | BE96: 0 | BF96: 0 | BG96: 0 | BH96: 0 | BI96: 0 | BJ96: 0 | BK96: 0 | BL96: 0 | BM96: 0 | BN96: 0 | BO96: 0 | BP96: 0 | BQ96: 0 | BR96: 0 | BS96: 0 | BT96: 0 | BU96: 628800 | BV96: 0 | BW96: -1051 | BX96: 2059 | BY96: 0 | BZ96: 629808 | CA96: 0 | CC96: 0 | CD96: 0 | CE96: 0 | CF96: 0 | CG96: 0 | CH96: 0 | CJ96: 0 | CK96: 0 | CL96: 0 | CM96: 0 | CN96: 0 | CO96: 0
A97: 2025-09-01 | B97: 92 | C97: 30000 | D97: 2779306 | E97: 42212 | F97: 0 | G97: -2533 | H97: 0 | I97: -4714 | J97: 9229 | K97: 0 | L97: 0 | M97: 0 | N97: 0 | O97: 0 | P97: 5823 | Q97: 0 | R97: 0 | S97: 0 | T97: 2829323 | U97: 0 | V97: 0 | W97: 0 | X97: 0 | Y97: 0 | Z97: 0 | AA97: 0 | AB97: 0 | AC97: 0 | AD97: 0 | AE97: 0 | AF97: 0 | AG97: 0 | AH97: 0 | AI97: 0 | AJ97: 0 | AK97: 186313 | AL97: 0 | AM97: 0 | AN97: 0 | AO97: 0 | AP97: -316 | AQ97: 619 | AR97: 422 | AS97: 2035 | AT97: 422 | AU97: 0 | AV97: 0 | AW97: 0 | AX97: 0 | AY97: 189495 | AZ97: 0 | BA97: 0 | BB97: 0 | BC97: 0 | BD97: 0 | BE97: 0 | BF97: 0 | BG97: 0 | BH97: 0 | BI97: 0 | BJ97: 0 | BK97: 0 | BL97: 0 | BM97: 0 | BN97: 0 | BO97: 0 | BP97: 0 | BQ97: 0 | BR97: 0 | BS97: 0 | BT97: 0 | BU97: 629808 | BV97: 0 | BW97: -1053 | BX97: 2062 | BY97: 1293 | BZ97: 632110 | CA97: 0 | CC97: 0 | CD97: 0 | CE97: 0 | CF97: 0 | CG97: 0 | CH97: 0 | CJ97: 0 | CK97: 0 | CL97: 0 | CM97: 0 | CN97: 0 | CO97: 0
A98: 2025-10-01 | B98: 93 | C98: 30000 | D98: 2829323 | E98: 42212 | F98: 0 | G98: -2533 | H98: 0 | I98: -4797 | J98: 9392 | K98: 0 | L98: 0 | M98: 0 | N98: 0 | O98: 0 | P98: 0 | Q98: 0 | R98: 0 | S98: 0 | T98: 2873597 | U98: 0 | V98: 0 | W98: 0 | X98: 0 | Y98: 0 | Z98: 0 | AA98: 0 | AB98: 0 | AC98: 0 | AD98: 0 | AE98: 0 | AF98: 0 | AG98: 0 | AH98: 0 | AI98: 0 | AJ98: 0 | AK98: 189495 | AL98: 0 | AM98: 0 | AN98: 0 | AO98: 0 | AP98: -322 | AQ98: 630 | AR98: 422 | AS98: 2035 | AT98: 422 | AU98: 0 | AV98: 0 | AW98: 0 | AX98: 0 | AY98: 192682 | AZ98: 0 | BA98: 0 | BB98: 0 | BC98: 0 | BD98: 0 | BE98: 0 | BF98: 0 | BG98: 0 | BH98: 0 | BI98: 0 | BJ98: 0 | BK98: 0 | BL98: 0 | BM98: 0 | BN98: 0 | BO98: 0 | BP98: 0 | BQ98: 0 | BR98: 0 | BS98: 0 | BT98: 0 | BU98: 632110 | BV98: 0 | BW98: -1057 | BX98: 2069 | BY98: 0 | BZ98: 633122 | CA98: 0 | CC98: 0 | CD98: 0 | CE98: 0 | CF98: 0 | CG98: 0 | CH98: 0 | CJ98: 0 | CK98: 0 | CL98: 0 | CM98: 0 | CN98: 0 | CO98: 0
A99: 2025-11-01 | B99: 94 | C99: 30000 | D99: 2873597 | E99: 42212 | F99: 0 | G99: -2533 | H99: 0 | I99: -4871 | J99: 9537 | K99: 0 | L99: 0 | M99: 0 | N99: 0 | O99: 0 | P99: 0 | Q99: 0 | R99: 0 | S99: 0 | T99: 2917942 | U99: 0 | V99: 0 | W99: 0 | X99: 0 | Y99: 0 | Z99: 0 | AA99: 0 | AB99: 0 | AC99: 0 | AD99: 0 | AE99: 0 | AF99: 0 | AG99: 0 | AH99: 0 | AI99: 0 | AJ99: 0 | AK99: 192682 | AL99: 0 | AM99: 0 | AN99: 0 | AO99: 0 | AP99: -327 | AQ99: 640 | AR99: 422 | AS99: 2035 | AT99: 422 | AU99: 0 | AV99: 0 | AW99: 0 | AX99: 0 | AY99: 195874 | AZ99: 0 | BA99: 0 | BB99: 0 | BC99: 0 | BD99: 0 | BE99: 0 | BF99: 0 | BG99: 0 | BH99: 0 | BI99: 0 | BJ99: 0 | BK99: 0 | BL99: 0 | BM99: 0 | BN99: 0 | BO99: 0 | BP99: 0 | BQ99: 0 | BR99: 0 | BS99: 0 | BT99: 0 | BU99: 633122 | BV99: 0 | BW99: -1059 | BX99: 2073 | BY99: 0 | BZ99: 634136 | CA99: 0 | CC99: 0 | CD99: 0 | CE99: 0 | CF99: 0 | CG99: 0 | CH99: 0 | CJ99: 0 | CK99: 0 | CL99: 0 | CM99: 0 | CN99: 0 | CO99: 0
A100: 2025-12-01 | B100: 95 | C100: 30000 | D100: 2917942 | E100: 42212 | F100: 0 | G100: -2533 | H100: 0 | I100: -4946 | J100: 9682 | K100: 0 | L100: 0 | M100: 0 | N100: 0 | O100: 0 | P100: 6194 | Q100: 0 | R100: 0 | S100: 0 | T100: 2968551 | U100: 0 | V100: 0 | W100: 0 | X100: 0 | Y100: 0 | Z100: 0 | AA100: 0 | AB100: 0 | AC100: 0 | AD100: 0 | AE100: 0 | AF100: 0 | AG100: 0 | AH100: 0 | AI100: 0 | AJ100: 0 | AK100: 195874 | AL100: 0 | AM100: 0 | AN100: 0 | AO100: 0 | AP100: -332 | AQ100: 651 | AR100: 422 | AS100: 2035 | AT100: 422 | AU100: 0 | AV100: 0 | AW100: 0 | AX100: 0 | AY100: 199072 | AZ100: 0 | BA100: 0 | BB100: 0 | BC100: 0 | BD100: 0 | BE100: 0 | BF100: 0 | BG100: 0 | BH100: 0 | BI100: 0 | BJ100: 0 | BK100: 0 | BL100: 0 | BM100: 0 | BN100: 0 | BO100: 0 | BP100: 0 | BQ100: 0 | BR100: 0 | BS100: 0 | BT100: 0 | BU100: 634136 | BV100: 0 | BW100: -1060 | BX100: 2076 | BY100: 1316 | BZ100: 636468 | CA100: 0 | CC100: 0 | CD100: 0 | CE100: 0 | CF100: 0 | CG100: 0 | CH100: 0 | CJ100: 0 | CK100: 0 | CL100: 0 | CM100: 0 | CN100: 0 | CO100: 0
A101: 2026-01-01 | B101: 96 | C101: 30000 | D101: 2968551 | E101: 42212 | F101: 0 | G101: -2533 | H101: 0 | I101: -5030 | J101: 9848 | K101: 0 | L101: 0 | M101: 0 | N101: 0 | O101: 0 | P101: 0 | Q101: 0 | R101: 0 | S101: 0 | T101: 3013048 | U101: 0 | V101: 0 | W101: 0 | X101: 0 | Y101: 0 | Z101: 0 | AA101: 0 | AB101: 0 | AC101: 0 | AD101: 0 | AE101: 0 | AF101: 0 | AG101: 0 | AH101: 0 | AI101: 0 | AJ101: 0 | AK101: 199072 | AL101: 0 | AM101: 0 | AN101: 0 | AO101: 0 | AP101: -338 | AQ101: 661 | AR101: 422 | AS101: 2035 | AT101: 422 | AU101: 0 | AV101: 0 | AW101: 0 | AX101: 0 | AY101: 202274 | AZ101: 0 | BA101: 0 | BB101: 0 | BC101: 0 | BD101: 0 | BE101: 0 | BF101: 0 | BG101: 0 | BH101: 0 | BI101: 0 | BJ101: 0 | BK101: 0 | BL101: 0 | BM101: 0 | BN101: 0 | BO101: 0 | BP101: 0 | BQ101: 0 | BR101: 0 | BS101: 0 | BT101: 0 | BU101: 636468 | BV101: 0 | BW101: -1064 | BX101: 2084 | BY101: 0 | BZ101: 637488 | CA101: 0 | CC101: 0 | CD101: 0 | CE101: 0 | CF101: 0 | CG101: 0 | CH101: 0 | CJ101: 0 | CK101: 0 | CL101: 0 | CM101: 0 | CN101: 0 | CO101: 0
A102: 2026-02-01 | B102: 97 | C102: 30000 | D102: 3013048 | E102: 44323 | F102: 0 | G102: -2659 | H102: 0 | I102: -5108 | J102: 10000 | K102: 0 | L102: 0 | M102: 0 | N102: 0 | O102: 0 | P102: 0 | Q102: 0 | R102: 0 | S102: 0 | T102: 3059604 | U102: 0 | V102: 0 | W102: 0 | X102: 0 | Y102: 0 | Z102: 0 | AA102: 0 | AB102: 0 | AC102: 0 | AD102: 0 | AE102: 0 | AF102: 0 | AG102: 0 | AH102: 0 | AI102: 0 | AJ102: 0 | AK102: 202274 | AL102: 0 | AM102: 0 | AN102: 0 | AO102: 0 | AP102: -343 | AQ102: 672 | AR102: 443 | AS102: 2035 | AT102: 443 | AU102: 0 | AV102: 0 | AW102: 0 | AX102: 0 | AY102: 205524 | AZ102: 0 | BA102: 0 | BB102: 0 | BC102: 0 | BD102: 0 | BE102: 0 | BF102: 0 | BG102: 0 | BH102: 0 | BI102: 0 | BJ102: 0 | BK102: 0 | BL102: 0 | BM102: 0 | BN102: 0 | BO102: 0 | BP102: 0 | BQ102: 0 | BR102: 0 | BS102: 0 | BT102: 0 | BU102: 637488 | BV102: 0 | BW102: -1066 | BX102: 2087 | BY102: 0 | BZ102: 638509 | CA102: 0 | CC102: 0 | CD102: 0 | CE102: 0 | CF102: 0 | CG102: 0 | CH102: 0 | CJ102: 0 | CK102: 0 | CL102: 0 | CM102: 0 | CN102: 0 | CO102: 0
A103: 2026-03-01 | B103: 98 | C103: 30000 | D103: 3059604 | E103: 44323 | F103: 0 | G103: -2659 | H103: 0 | I103: -5186 | J103: 10153 | K103: 0 | L103: 0 | M103: 0 | N103: 0 | O103: 0 | P103: 6504 | Q103: 0 | R103: 0 | S103: 0 | T103: 3112739 | U103: 0 | V103: 0 | W103: 0 | X103: 0 | Y103: 0 | Z103: 0 | AA103: 0 | AB103: 0 | AC103: 0 | AD103: 0 | AE103: 0 | AF103: 0 | AG103: 0 | AH103: 0 | AI103: 0 | AJ103: 0 | AK103: 205524 | AL103: 0 | AM103: 0 | AN103: 0 | AO103: 0 | AP103: -349 | AQ103: 682 | AR103: 443 | AS103: 2035 | AT103: 443 | AU103: 0 | AV103: 0 | AW103: 0 | AX103: 0 | AY103: 208778 | AZ103: 0 | BA103: 0 | BB103: 0 | BC103: 0 | BD103: 0 | BE103: 0 | BF103: 0 | BG103: 0 | BH103: 0 | BI103: 0 | BJ103: 0 | BK103: 0 | BL103: 0 | BM103: 0 | BN103: 0 | BO103: 0 | BP103: 0 | BQ103: 0 | BR103: 0 | BS103: 0 | BT103: 0 | BU103: 638509 | BV103: 0 | BW103: -1068 | BX103: 2090 | BY103: 1325 | BZ103: 640856 | CA103: 0 | CC103: 0 | CD103: 0 | CE103: 0 | CF103: 0 | CG103: 0 | CH103: 0 | CJ103: 0 | CK103: 0 | CL103: 0 | CM103: 0 | CN103: 0 | CO103: 0
A104: 2026-04-01 | B104: 99 | C104: 30000 | D104: 3112739 | E104: 44323 | F104: 0 | G104: -2659 | H104: 0 | I104: -5275 | J104: 10327 | K104: 0 | L104: 0 | M104: 0 | N104: 0 | O104: 0 | P104: 0 | Q104: 0 | R104: 0 | S104: 0 | T104: 3159455 | U104: 0 | V104: 0 | W104: 0 | X104: 0 | Y104: 0 | Z104: 0 | AA104: 0 | AB104: 0 | AC104: 0 | AD104: 0 | AE104: 0 | AF104: 0 | AG104: 0 | AH104: 0 | AI104: 0 | AJ104: 0 | AK104: 208778 | AL104: 0 | AM104: 0 | AN104: 0 | AO104: 0 | AP104: -354 | AQ104: 693 | AR104: 443 | AS104: 2035 | AT104: 443 | AU104: 0 | AV104: 0 | AW104: 0 | AX104: 0 | AY104: 212038 | AZ104: 0 | BA104: 0 | BB104: 0 | BC104: 0 | BD104: 0 | BE104: 0 | BF104: 0 | BG104: 0 | BH104: 0 | BI104: 0 | BJ104: 0 | BK104: 0 | BL104: 0 | BM104: 0 | BN104: 0 | BO104: 0 | BP104: 0 | BQ104: 0 | BR104: 0 | BS104: 0 | BT104: 0 | BU104: 640856 | BV104: 100907 | BW104: -1240 | BX104: 2428 | BY104: 0 | BZ104: 742951 | CA104: 0 | CC104: 0 | CD104: 0 | CE104: 0 | CF104: 0 | CG104: 0 | CH104: 0 | CJ104: 0 | CK104: 0 | CL104: 0 | CM104: 0 | CN104: 0 | CO104: 0
A105: 2026-05-01 | B105: 100 | C105: 30000 | D105: 3159455 | E105: 44323 | F105: 0 | G105: -2659 | H105: 0 | I105: -5353 | J105: 10480 | K105: 0 | L105: 0 | M105: 0 | N105: 0 | O105: 0 | P105: 0 | Q105: 0 | R105: 0 | S105: 0 | T105: 3206246 | U105: 0 | V105: 0 | W105: 0 | X105: 0 | Y105: 0 | Z105: 0 | AA105: 0 | AB105: 0 | AC105: 0 | AD105: 0 | AE105: 0 | AF105: 0 | AG105: 0 | AH105: 0 | AI105: 0 | AJ105: 0 | AK105: 212038 | AL105: 0 | AM105: 0 | AN105: 0 | AO105: 0 | AP105: -359 | AQ105: 704 | AR105: 443 | AS105: 2035 | AT105: 443 | AU105: 0 | AV105: 0 | AW105: 0 | AX105: 0 | AY105: 215304 | AZ105: 0 | BA105: 0 | BB105: 0 | BC105: 0 | BD105: 0 | BE105: 0 | BF105: 0 | BG105: 0 | BH105: 0 | BI105: 0 | BJ105: 0 | BK105: 0 | BL105: 0 | BM105: 0 | BN105: 0 | BO105: 0 | BP105: 0 | BQ105: 0 | BR105: 0 | BS105: 0 | BT105: 0 | BU105: 742951 | BV105: 0 | BW105: -1242 | BX105: 2432 | BY105: 0 | BZ105: 744141 | CA105: 0 | CC105: 0 | CD105: 0 | CE105: 0 | CF105: 0 | CG105: 0 | CH105: 0 | CJ105: 0 | CK105: 0 | CL105: 0 | CM105: 0 | CN105: 0 | CO105: 0
A106: 2026-06-01 | B106: 101 | C106: 30000 | D106: 3206246 | E106: 44323 | F106: 0 | G106: -2659 | H106: 0 | I106: -5431 | J106: 10633 | K106: 0 | L106: 0 | M106: 0 | N106: 0 | O106: 0 | P106: 6672 | Q106: 0 | R106: 0 | S106: 0 | T106: 3259784 | U106: 0 | V106: 0 | W106: 0 | X106: 0 | Y106: 0 | Z106: 0 | AA106: 0 | AB106: 0 | AC106: 0 | AD106: 0 | AE106: 0 | AF106: 0 | AG106: 0 | AH106: 0 | AI106: 0 | AJ106: 0 | AK106: 215304 | AL106: 0 | AM106: 0 | AN106: 0 | AO106: 0 | AP106: -365 | AQ106: 714 | AR106: 443 | AS106: 2035 | AT106: 443 | AU106: 0 | AV106: 0 | AW106: 0 | AX106: 0 | AY106: 218574 | AZ106: 0 | BA106: 0 | BB106: 0 | BC106: 0 | BD106: 0 | BE106: 0 | BF106: 0 | BG106: 0 | BH106: 0 | BI106: 0 | BJ106: 0 | BK106: 0 | BL106: 0 | BM106: 0 | BN106: 0 | BO106: 0 | BP106: 0 | BQ106: 0 | BR106: 0 | BS106: 0 | BT106: 0 | BU106: 744141 | BV106: 0 | BW106: -1244 | BX106: 2436 | BY106: 1305 | BZ106: 746638 | CA106: 0 | CC106: 0 | CD106: 0 | CE106: 0 | CF106: 0 | CG106: 0 | CH106: 0 | CJ106: 0 | CK106: 0 | CL106: 0 | CM106: 0 | CN106: 0 | CO106: 0
A107: 2026-07-01 | B107: 102 | C107: 30000 | D107: 3259784 | E107: 44323 | F107: 0 | G107: -2659 | H107: 0 | I107: -5520 | J107: 10808 | K107: 0 | L107: 0 | M107: 0 | N107: 0 | O107: 0 | P107: 0 | Q107: 0 | R107: 0 | S107: 0 | T107: 3306736 | U107: 0 | V107: 0 | W107: 0 | X107: 0 | Y107: 0 | Z107: 0 | AA107: 0 | AB107: 0 | AC107: 0 | AD107: 0 | AE107: 0 | AF107: 0 | AG107: 0 | AH107: 0 | AI107: 0 | AJ107: 0 | AK107: 218574 | AL107: 0 | AM107: 0 | AN107: 0 | AO107: 0 | AP107: -370 | AQ107: 725 | AR107: 443 | AS107: 2035 | AT107: 443 | AU107: 0 | AV107: 0 | AW107: 0 | AX107: 0 | AY107: 221850 | AZ107: 0 | BA107: 0 | BB107: 0 | BC107: 0 | BD107: 0 | BE107: 0 | BF107: 0 | BG107: 0 | BH107: 0 | BI107: 0 | BJ107: 0 | BK107: 0 | BL107: 0 | BM107: 0 | BN107: 0 | BO107: 0 | BP107: 0 | BQ107: 0 | BR107: 0 | BS107: 0 | BT107: 0 | BU107: 746638 | BV107: 0 | BW107: -1248 | BX107: 2444 | BY107: 0 | BZ107: 747834 | CA107: 0 | CC107: 0 | CD107: 0 | CE107: 0 | CF107: 0 | CG107: 0 | CH107: 0 | CJ107: 0 | CK107: 0 | CL107: 0 | CM107: 0 | CN107: 0 | CO107: 0
A108: 2026-08-01 | B108: 103 | C108: 30000 | D108: 3306736 | E108: 44323 | F108: 0 | G108: -2659 | H108: 0 | I108: -5599 | J108: 10962 | K108: 0 | L108: 0 | M108: 0 | N108: 0 | O108: 0 | P108: 0 | Q108: 0 | R108: 0 | S108: 0 | T108: 3353763 | U108: 0 | V108: 0 | W108: 0 | X108: 0 | Y108: 0 | Z108: 0 | AA108: 0 | AB108: 0 | AC108: 0 | AD108: 0 | AE108: 0 | AF108: 0 | AG108: 0 | AH108: 0 | AI108: 0 | AJ108: 0 | AK108: 221850 | AL108: 0 | AM108: 0 | AN108: 0 | AO108: 0 | AP108: -376 | AQ108: 736 | AR108: 443 | AS108: 2035 | AT108: 443 | AU108: 0 | AV108: 0 | AW108: 0 | AX108: 0 | AY108: 225131 | AZ108: 0 | BA108: 0 | BB108: 0 | BC108: 0 | BD108: 0 | BE108: 0 | BF108: 0 | BG108: 0 | BH108: 0 | BI108: 0 | BJ108: 0 | BK108: 0 | BL108: 0 | BM108: 0 | BN108: 0 | BO108: 0 | BP108: 0 | BQ108: 0 | BR108: 0 | BS108: 0 | BT108: 0 | BU108: 747834 | BV108: 0 | BW108: -1250 | BX108: 2448 | BY108: 0 | BZ108: 749032 | CA108: 0 | CC108: 0 | CD108: 0 | CE108: 0 | CF108: 0 | CG108: 0 | CH108: 0 | CJ108: 0 | CK108: 0 | CL108: 0 | CM108: 0 | CN108: 0 | CO108: 0
A109: 2026-09-01 | B109: 104 | C109: 30000 | D109: 3353763 | E109: 44323 | F109: 0 | G109: -2659 | H109: 0 | I109: -5678 | J109: 11116 | K109: 0 | L109: 0 | M109: 0 | N109: 0 | O109: 0 | P109: 7070 | Q109: 0 | R109: 0 | S109: 0 | T109: 3407935 | U109: 0 | V109: 0 | W109: 0 | X109: 0 | Y109: 0 | Z109: 0 | AA109: 0 | AB109: 0 | AC109: 0 | AD109: 0 | AE109: 0 | AF109: 0 | AG109: 0 | AH109: 0 | AI109: 0 | AJ109: 0 | AK109: 225131 | AL109: 0 | AM109: 0 | AN109: 0 | AO109: 0 | AP109: -381 | AQ109: 747 | AR109: 443 | AS109: 2035 | AT109: 443 | AU109: 0 | AV109: 0 | AW109: 0 | AX109: 0 | AY109: 228418 | AZ109: 0 | BA109: 0 | BB109: 0 | BC109: 0 | BD109: 0 | BE109: 0 | BF109: 0 | BG109: 0 | BH109: 0 | BI109: 0 | BJ109: 0 | BK109: 0 | BL109: 0 | BM109: 0 | BN109: 0 | BO109: 0 | BP109: 0 | BQ109: 0 | BR109: 0 | BS109: 0 | BT109: 0 | BU109: 749032 | BV109: 0 | BW109: -1252 | BX109: 2452 | BY109: 1538 | BZ109: 751770 | CA109: 0 | CC109: 0 | CD109: 0 | CE109: 0 | CF109: 0 | CG109: 0 | CH109: 0 | CJ109: 0 | CK109: 0 | CL109: 0 | CM109: 0 | CN109: 0 | CO109: 0
A110: 2026-10-01 | B110: 105 | C110: 30000 | D110: 3407935 | E110: 44323 | F110: 0 | G110: -2659 | H110: 0 | I110: -5768 | J110: 11293 | K110: 0 | L110: 0 | M110: 0 | N110: 0 | O110: 0 | P110: 0 | Q110: 0 | R110: 0 | S110: 0 | T110: 3455124 | U110: 0 | V110: 0 | W110: 0 | X110: 0 | Y110: 0 | Z110: 0 | AA110: 0 | AB110: 0 | AC110: 0 | AD110: 0 | AE110: 0 | AF110: 0 | AG110: 0 | AH110: 0 | AI110: 0 | AJ110: 0 | AK110: 228418 | AL110: 0 | AM110: 0 | AN110: 0 | AO110: 0 | AP110: -387 | AQ110: 757 | AR110: 443 | AS110: 2035 | AT110: 443 | AU110: 0 | AV110: 0 | AW110: 0 | AX110: 0 | AY110: 231709 | AZ110: 0 | BA110: 0 | BB110: 0 | BC110: 0 | BD110: 0 | BE110: 0 | BF110: 0 | BG110: 0 | BH110: 0 | BI110: 0 | BJ110: 0 | BK110: 0 | BL110: 0 | BM110: 0 | BN110: 0 | BO110: 0 | BP110: 0 | BQ110: 0 | BR110: 0 | BS110: 0 | BT110: 0 | BU110: 751770 | BV110: 0 | BW110: -1257 | BX110: 2461 | BY110: 0 | BZ110: 752974 | CA110: 0 | CC110: 0 | CD110: 0 | CE110: 0 | CF110: 0 | CG110: 0 | CH110: 0 | CJ110: 0 | CK110: 0 | CL110: 0 | CM110: 0 | CN110: 0 | CO110: 0
A111: 2026-11-01 | B111: 106 | C111: 30000 | D111: 3455124 | E111: 44323 | F111: 0 | G111: -2659 | H111: 0 | I111: -5847 | J111: 11448 | K111: 0 | L111: 0 | M111: 0 | N111: 0 | O111: 0 | P111: 0 | Q111: 0 | R111: 0 | S111: 0 | T111: 3502389 | U111: 0 | V111: 0 | W111: 0 | X111: 0 | Y111: 0 | Z111: 0 | AA111: 0 | AB111: 0 | AC111: 0 | AD111: 0 | AE111: 0 | AF111: 0 | AG111: 0 | AH111: 0 | AI111: 0 | AJ111: 0 | AK111: 231709 | AL111: 0 | AM111: 0 | AN111: 0 | AO111: 0 | AP111: -392 | AQ111: 768 | AR111: 443 | AS111: 2035 | AT111: 443 | AU111: 0 | AV111: 0 | AW111: 0 | AX111: 0 | AY111: 235006 | AZ111: 0 | BA111: 0 | BB111: 0 | BC111: 0 | BD111: 0 | BE111: 0 | BF111: 0 | BG111: 0 | BH111: 0 | BI111: 0 | BJ111: 0 | BK111: 0 | BL111: 0 | BM111: 0 | BN111: 0 | BO111: 0 | BP111: 0 | BQ111: 0 | BR111: 0 | BS111: 0 | BT111: 0 | BU111: 752974 | BV111: 0 | BW111: -1259 | BX111: 2465 | BY111: 0 | BZ111: 754180 | CA111: 0 | CC111: 0 | CD111: 0 | CE111: 0 | CF111: 0 | CG111: 0 | CH111: 0 | CJ111: 0 | CK111: 0 | CL111: 0 | CM111: 0 | CN111: 0 | CO111: 0
A112: 2026-12-01 | B112: 107 | C112: 30000 | D112: 3502389 | E112: 44323 | F112: 0 | G112: -2659 | H112: 0 | I112: -5926 | J112: 11602 | K112: 0 | L112: 0 | M112: 0 | N112: 0 | O112: 0 | P112: 7475 | Q112: 0 | R112: 0 | S112: 0 | T112: 3557204 | U112: 0 | V112: 0 | W112: 0 | X112: 0 | Y112: 0 | Z112: 0 | AA112: 0 | AB112: 0 | AC112: 0 | AD112: 0 | AE112: 0 | AF112: 0 | AG112: 0 | AH112: 0 | AI112: 0 | AJ112: 0 | AK112: 235006 | AL112: 0 | AM112: 0 | AN112: 0 | AO112: 0 | AP112: -398 | AQ112: 779 | AR112: 443 | AS112: 2035 | AT112: 443 | AU112: 0 | AV112: 0 | AW112: 0 | AX112: 0 | AY112: 238308 | AZ112: 0 | BA112: 0 | BB112: 0 | BC112: 0 | BD112: 0 | BE112: 0 | BF112: 0 | BG112: 0 | BH112: 0 | BI112: 0 | BJ112: 0 | BK112: 0 | BL112: 0 | BM112: 0 | BN112: 0 | BO112: 0 | BP112: 0 | BQ112: 0 | BR112: 0 | BS112: 0 | BT112: 0 | BU112: 754180 | BV112: 0 | BW112: -1261 | BX112: 2469 | BY112: 1565 | BZ112: 756953 | CA112: 0 | CC112: 0 | CD112: 0 | CE112: 0 | CF112: 0 | CG112: 0 | CH112: 0 | CJ112: 0 | CK112: 0 | CL112: 0 | CM112: 0 | CN112: 0 | CO112: 0
A113: 2027-01-01 | B113: 108 | C113: 30000 | D113: 3557204 | E113: 44323 | F113: 0 | G113: -2659 | H113: 0 | I113: -6018 | J113: 11782 | K113: 0 | L113: 0 | M113: 0 | N113: 0 | O113: 0 | P113: 0 | Q113: 0 | R113: 0 | S113: 0 | T113: 3604632 | U113: 0 | V113: 0 | W113: 0 | X113: 0 | Y113: 0 | Z113: 0 | AA113: 0 | AB113: 0 | AC113: 0 | AD113: 0 | AE113: 0 | AF113: 0 | AG113: 0 | AH113: 0 | AI113: 0 | AJ113: 0 | AK113: 238308 | AL113: 0 | AM113: 0 | AN113: 0 | AO113: 0 | AP113: -403 | AQ113: 790 | AR113: 443 | AS113: 2035 | AT113: 443 | AU113: 0 | AV113: 0 | AW113: 0 | AX113: 0 | AY113: 241616 | AZ113: 0 | BA113: 0 | BB113: 0 | BC113: 0 | BD113: 0 | BE113: 0 | BF113: 0 | BG113: 0 | BH113: 0 | BI113: 0 | BJ113: 0 | BK113: 0 | BL113: 0 | BM113: 0 | BN113: 0 | BO113: 0 | BP113: 0 | BQ113: 0 | BR113: 0 | BS113: 0 | BT113: 0 | BU113: 756953 | BV113: 0 | BW113: -1266 | BX113: 2478 | BY113: 0 | BZ113: 758165 | CA113: 0 | CC113: 0 | CD113: 0 | CE113: 0 | CF113: 0 | CG113: 0 | CH113: 0 | CJ113: 0 | CK113: 0 | CL113: 0 | CM113: 0 | CN113: 0 | CO113: 0
A114: 2027-02-01 | B114: 109 | C114: 30000 | D114: 3604632 | E114: 46539 | F114: 0 | G114: -2792 | H114: 0 | I114: -6101 | J114: 11944 | K114: 0 | L114: 0 | M114: 0 | N114: 0 | O114: 0 | P114: 0 | Q114: 0 | R114: 0 | S114: 0 | T114: 3654222 | U114: 0 | V114: 0 | W114: 0 | X114: 0 | Y114: 0 | Z114: 0 | AA114: 0 | AB114: 0 | AC114: 0 | AD114: 0 | AE114: 0 | AF114: 0 | AG114: 0 | AH114: 0 | AI114: 0 | AJ114: 0 | AK114: 241616 | AL114: 0 | AM114: 0 | AN114: 0 | AO114: 0 | AP114: -409 | AQ114: 801 | AR114: 465 | AS114: 2035 | AT114: 465 | AU114: 0 | AV114: 0 | AW114: 0 | AX114: 0 | AY114: 244973 | AZ114: 0 | BA114: 0 | BB114: 0 | BC114: 0 | BD114: 0 | BE114: 0 | BF114: 0 | BG114: 0 | BH114: 0 | BI114: 0 | BJ114: 0 | BK114: 0 | BL114: 0 | BM114: 0 | BN114: 0 | BO114: 0 | BP114: 0 | BQ114: 0 | BR114: 0 | BS114: 0 | BT114: 0 | BU114: 758165 | BV114: 0 | BW114: -1268 | BX114: 2482 | BY114: 0 | BZ114: 759379 | CA114: 0 | CC114: 0 | CD114: 0 | CE114: 0 | CF114: 0 | CG114: 0 | CH114: 0 | CJ114: 0 | CK114: 0 | CL114: 0 | CM114: 0 | CN114: 0 | CO114: 0
A115: 2027-03-01 | B115: 110 | C115: 30000 | D115: 3654222 | E115: 46539 | F115: 0 | G115: -2792 | H115: 0 | I115: -6183 | J115: 12106 | K115: 0 | L115: 0 | M115: 0 | N115: 0 | O115: 0 | P115: 7807 | Q115: 0 | R115: 0 | S115: 0 | T115: 3711699 | U115: 0 | V115: 0 | W115: 0 | X115: 0 | Y115: 0 | Z115: 0 | AA115: 0 | AB115: 0 | AC115: 0 | AD115: 0 | AE115: 0 | AF115: 0 | AG115: 0 | AH115: 0 | AI115: 0 | AJ115: 0 | AK115: 244973 | AL115: 0 | AM115: 0 | AN115: 0 | AO115: 0 | AP115: -415 | AQ115: 812 | AR115: 465 | AS115: 2035 | AT115: 465 | AU115: 0 | AV115: 0 | AW115: 0 | AX115: 0 | AY115: 248335 | AZ115: 0 | BA115: 0 | BB115: 0 | BC115: 0 | BD115: 0 | BE115: 0 | BF115: 0 | BG115: 0 | BH115: 0 | BI115: 0 | BJ115: 0 | BK115: 0 | BL115: 0 | BM115: 0 | BN115: 0 | BO115: 0 | BP115: 0 | BQ115: 0 | BR115: 0 | BS115: 0 | BT115: 0 | BU115: 759379 | BV115: 0 | BW115: -1270 | BX115: 2486 | BY115: 1575 | BZ115: 762170 | CA115: 0 | CC115: 0 | CD115: 0 | CE115: 0 | CF115: 0 | CG115: 0 | CH115: 0 | CJ115: 0 | CK115: 0 | CL115: 0 | CM115: 0 | CN115: 0 | CO115: 0
A116: 2027-04-01 | B116: 111 | C116: 30000 | D116: 3711699 | E116: 46539 | F116: 0 | G116: -2792 | H116: 0 | I116: -6280 | J116: 12294 | K116: 0 | L116: 0 | M116: 0 | N116: 0 | O116: 0 | P116: 0 | Q116: 0 | R116: 0 | S116: 0 | T116: 3761460 | U116: 0 | V116: 0 | W116: 0 | X116: 0 | Y116: 0 | Z116: 0 | AA116: 0 | AB116: 0 | AC116: 0 | AD116: 0 | AE116: 0 | AF116: 0 | AG116: 0 | AH116: 0 | AI116: 0 | AJ116: 0 | AK116: 248335 | AL116: 0 | AM116: 0 | AN116: 0 | AO116: 0 | AP116: -420 | AQ116: 823 | AR116: 465 | AS116: 2035 | AT116: 465 | AU116: 0 | AV116: 0 | AW116: 0 | AX116: 0 | AY116: 251703 | AZ116: 0 | BA116: 0 | BB116: 0 | BC116: 0 | BD116: 0 | BE116: 0 | BF116: 0 | BG116: 0 | BH116: 0 | BI116: 0 | BJ116: 0 | BK116: 0 | BL116: 0 | BM116: 0 | BN116: 0 | BO116: 0 | BP116: 0 | BQ116: 0 | BR116: 0 | BS116: 0 | BT116: 0 | BU116: 762170 | BV116: 105953 | BW116: -1452 | BX116: 2842 | BY116: 0 | BZ116: 869513 | CA116: 0 | CC116: 0 | CD116: 0 | CE116: 0 | CF116: 0 | CG116: 0 | CH116: 0 | CJ116: 0 | CK116: 0 | CL116: 0 | CM116: 0 | CN116: 0 | CO116: 0
A117: 2027-05-01 | B117: 112 | C117: 30000 | D117: 3761460 | E117: 46539 | F117: 0 | G117: -2792 | H117: 0 | I117: -6363 | J117: 12457 | K117: 0 | L117: 0 | M117: 0 | N117: 0 | O117: 0 | P117: 0 | Q117: 0 | R117: 0 | S117: 0 | T117: 3811301 | U117: 0 | V117: 0 | W117: 0 | X117: 0 | Y117: 0 | Z117: 0 | AA117: 0 | AB117: 0 | AC117: 0 | AD117: 0 | AE117: 0 | AF117: 0 | AG117: 0 | AH117: 0 | AI117: 0 | AJ117: 0 | AK117: 251703 | AL117: 0 | AM117: 0 | AN117: 0 | AO117: 0 | AP117: -426 | AQ117: 834 | AR117: 465 | AS117: 2035 | AT117: 465 | AU117: 0 | AV117: 0 | AW117: 0 | AX117: 0 | AY117: 255076 | AZ117: 0 | BA117: 0 | BB117: 0 | BC117: 0 | BD117: 0 | BE117: 0 | BF117: 0 | BG117: 0 | BH117: 0 | BI117: 0 | BJ117: 0 | BK117: 0 | BL117: 0 | BM117: 0 | BN117: 0 | BO117: 0 | BP117: 0 | BQ117: 0 | BR117: 0 | BS117: 0 | BT117: 0 | BU117: 869513 | BV117: 0 | BW117: -1454 | BX117: 2847 | BY117: 0 | BZ117: 870906 | CA117: 0 | CC117: 0 | CD117: 0 | CE117: 0 | CF117: 0 | CG117: 0 | CH117: 0 | CJ117: 0 | CK117: 0 | CL117: 0 | CM117: 0 | CN117: 0 | CO117: 0
A118: 2027-06-01 | B118: 113 | C118: 30000 | D118: 3811301 | E118: 46539 | F118: 0 | G118: -2792 | H118: 0 | I118: -6446 | J118: 12620 | K118: 0 | L118: 0 | M118: 0 | N118: 0 | O118: 0 | P118: 7968 | Q118: 0 | R118: 0 | S118: 0 | T118: 3869190 | U118: 0 | V118: 0 | W118: 0 | X118: 0 | Y118: 0 | Z118: 0 | AA118: 0 | AB118: 0 | AC118: 0 | AD118: 0 | AE118: 0 | AF118: 0 | AG118: 0 | AH118: 0 | AI118: 0 | AJ118: 0 | AK118: 255076 | AL118: 0 | AM118: 0 | AN118: 0 | AO118: 0 | AP118: -431 | AQ118: 845 | AR118: 465 | AS118: 2035 | AT118: 465 | AU118: 0 | AV118: 0 | AW118: 0 | AX118: 0 | AY118: 258455 | AZ118: 0 | BA118: 0 | BB118: 0 | BC118: 0 | BD118: 0 | BE118: 0 | BF118: 0 | BG118: 0 | BH118: 0 | BI118: 0 | BJ118: 0 | BK118: 0 | BL118: 0 | BM118: 0 | BN118: 0 | BO118: 0 | BP118: 0 | BQ118: 0 | BR118: 0 | BS118: 0 | BT118: 0 | BU118: 870906 | BV118: 0 | BW118: -1456 | BX118: 2851 | BY118: 1552 | BZ118: 873853 | CA118: 0 | CC118: 0 | CD118: 0 | CE118: 0 | CF118: 0 | CG118: 0 | CH118: 0 | CJ118: 0 | CK118: 0 | CL118: 0 | CM118: 0 | CN118: 0 | CO118: 0
A119: 2027-07-01 | B119: 114 | C119: 30000 | D119: 3869190 | E119: 46539 | F119: 0 | G119: -2792 | H119: 0 | I119: -6543 | J119: 12810 | K119: 0 | L119: 0 | M119: 0 | N119: 0 | O119: 0 | P119: 0 | Q119: 0 | R119: 0 | S119: 0 | T119: 3919204 | U119: 0 | V119: 0 | W119: 0 | X119: 0 | Y119: 0 | Z119: 0 | AA119: 0 | AB119: 0 | AC119: 0 | AD119: 0 | AE119: 0 | AF119: 0 | AG119: 0 | AH119: 0 | AI119: 0 | AJ119: 0 | AK119: 258455 | AL119: 0 | AM119: 0 | AN119: 0 | AO119: 0 | AP119: -437 | AQ119: 856 | AR119: 465 | AS119: 2035 | AT119: 465 | AU119: 0 | AV119: 0 | AW119: 0 | AX119: 0 | AY119: 261839 | AZ119: 0 | BA119: 0 | BB119: 0 | BC119: 0 | BD119: 0 | BE119: 0 | BF119: 0 | BG119: 0 | BH119: 0 | BI119: 0 | BJ119: 0 | BK119: 0 | BL119: 0 | BM119: 0 | BN119: 0 | BO119: 0 | BP119: 0 | BQ119: 0 | BR119: 0 | BS119: 0 | BT119: 0 | BU119: 873853 | BV119: 0 | BW119: -1461 | BX119: 2861 | BY119: 0 | BZ119: 875253 | CA119: 0 | CC119: 0 | CD119: 0 | CE119: 0 | CF119: 0 | CG119: 0 | CH119: 0 | CJ119: 0 | CK119: 0 | CL119: 0 | CM119: 0 | CN119: 0 | CO119: 0
A120: 2027-08-01 | B120: 115 | C120: 30000 | D120: 3919204 | E120: 46539 | F120: 0 | G120: -2792 | H120: 0 | I120: -6627 | J120: 12974 | K120: 0 | L120: 0 | M120: 0 | N120: 0 | O120: 0 | P120: 0 | Q120: 0 | R120: 0 | S120: 0 | T120: 3969298 | U120: 0 | V120: 0 | W120: 0 | X120: 0 | Y120: 0 | Z120: 0 | AA120: 0 | AB120: 0 | AC120: 0 | AD120: 0 | AE120: 0 | AF120: 0 | AG120: 0 | AH120: 0 | AI120: 0 | AJ120: 0 | AK120: 261839 | AL120: 0 | AM120: 0 | AN120: 0 | AO120: 0 | AP120: -443 | AQ120: 867 | AR120: 465 | AS120: 2035 | AT120: 465 | AU120: 0 | AV120: 0 | AW120: 0 | AX120: 0 | AY120: 265228 | AZ120: 0 | BA120: 0 | BB120: 0 | BC120: 0 | BD120: 0 | BE120: 0 | BF120: 0 | BG120: 0 | BH120: 0 | BI120: 0 | BJ120: 0 | BK120: 0 | BL120: 0 | BM120: 0 | BN120: 0 | BO120: 0 | BP120: 0 | BQ120: 0 | BR120: 0 | BS120: 0 | BT120: 0 | BU120: 875253 | BV120: 0 | BW120: -1464 | BX120: 2865 | BY120: 0 | BZ120: 876654 | CA120: 0 | CC120: 0 | CD120: 0 | CE120: 0 | CF120: 0 | CG120: 0 | CH120: 0 | CJ120: 0 | CK120: 0 | CL120: 0 | CM120: 0 | CN120: 0 | CO120: 0
A121: 2027-09-01 | B121: 116 | C121: 30000 | D121: 3969298 | E121: 46539 | F121: 0 | G121: -2792 | H121: 0 | I121: -6710 | J121: 13138 | K121: 0 | L121: 0 | M121: 0 | N121: 0 | O121: 0 | P121: 8402 | Q121: 0 | R121: 0 | S121: 0 | T121: 4027875 | U121: 0 | V121: 0 | W121: 0 | X121: 0 | Y121: 0 | Z121: 0 | AA121: 0 | AB121: 0 | AC121: 0 | AD121: 0 | AE121: 0 | AF121: 0 | AG121: 0 | AH121: 0 | AI121: 0 | AJ121: 0 | AK121: 265228 | AL121: 0 | AM121: 0 | AN121: 0 | AO121: 0 | AP121: -448 | AQ121: 878 | AR121: 465 | AS121: 2035 | AT121: 465 | AU121: 0 | AV121: 0 | AW121: 0 | AX121: 0 | AY121: 268623 | AZ121: 0 | BA121: 0 | BB121: 0 | BC121: 0 | BD121: 0 | BE121: 0 | BF121: 0 | BG121: 0 | BH121: 0 | BI121: 0 | BJ121: 0 | BK121: 0 | BL121: 0 | BM121: 0 | BN121: 0 | BO121: 0 | BP121: 0 | BQ121: 0 | BR121: 0 | BS121: 0 | BT121: 0 | BU121: 876654 | BV121: 0 | BW121: -1466 | BX121: 2870 | BY121: 1799 | BZ121: 879857 | CA121: 0 | CC121: 0 | CD121: 0 | CE121: 0 | CF121: 0 | CG121: 0 | CH121: 0 | CJ121: 0 | CK121: 0 | CL121: 0 | CM121: 0 | CN121: 0 | CO121: 0
A122: 2027-10-01 | B122: 117 | C122: 30000 | D122: 4027875 | E122: 46539 | F122: 0 | G122: -2792 | H122: 0 | I122: -6808 | J122: 13329 | K122: 0 | L122: 0 | M122: 0 | N122: 0 | O122: 0 | P122: 0 | Q122: 0 | R122: 0 | S122: 0 | T122: 4078143 | U122: 0 | V122: 0 | W122: 0 | X122: 0 | Y122: 0 | Z122: 0 | AA122: 0 | AB122: 0 | AC122: 0 | AD122: 0 | AE122: 0 | AF122: 0 | AG122: 0 | AH122: 0 | AI122: 0 | AJ122: 0 | AK122: 268623 | AL122: 0 | AM122: 0 | AN122: 0 | AO122: 0 | AP122: -454 | AQ122: 889 | AR122: 465 | AS122: 2035 | AT122: 465 | AU122: 0 | AV122: 0 | AW122: 0 | AX122: 0 | AY122: 272023 | AZ122: 0 | BA122: 0 | BB122: 0 | BC122: 0 | BD122: 0 | BE122: 0 | BF122: 0 | BG122: 0 | BH122: 0 | BI122: 0 | BJ122: 0 | BK122: 0 | BL122: 0 | BM122: 0 | BN122: 0 | BO122: 0 | BP122: 0 | BQ122: 0 | BR122: 0 | BS122: 0 | BT122: 0 | BU122: 879857 | BV122: 0 | BW122: -1471 | BX122: 2880 | BY122: 0 | BZ122: 881266 | CA122: 0 | CC122: 0 | CD122: 0 | CE122: 0 | CF122: 0 | CG122: 0 | CH122: 0 | CJ122: 0 | CK122: 0 | CL122: 0 | CM122: 0 | CN122: 0 | CO122: 0
A123: 2027-11-01 | B123: 118 | C123: 30000 | D123: 4078143 | E123: 46539 | F123: 0 | G123: -2792 | H123: 0 | I123: -6892 | J123: 13494 | K123: 0 | L123: 0 | M123: 0 | N123: 0 | O123: 0 | P123: 0 | Q123: 0 | R123: 0 | S123: 0 | T123: 4128492 | U123: 0 | V123: 0 | W123: 0 | X123: 0 | Y123: 0 | Z123: 0 | AA123: 0 | AB123: 0 | AC123: 0 | AD123: 0 | AE123: 0 | AF123: 0 | AG123: 0 | AH123: 0 | AI123: 0 | AJ123: 0 | AK123: 272023 | AL123: 0 | AM123: 0 | AN123: 0 | AO123: 0 | AP123: -460 | AQ123: 900 | AR123: 465 | AS123: 2035 | AT123: 465 | AU123: 0 | AV123: 0 | AW123: 0 | AX123: 0 | AY123: 275428 | AZ123: 0 | BA123: 0 | BB123: 0 | BC123: 0 | BD123: 0 | BE123: 0 | BF123: 0 | BG123: 0 | BH123: 0 | BI123: 0 | BJ123: 0 | BK123: 0 | BL123: 0 | BM123: 0 | BN123: 0 | BO123: 0 | BP123: 0 | BQ123: 0 | BR123: 0 | BS123: 0 | BT123: 0 | BU123: 881266 | BV123: 0 | BW123: -1474 | BX123: 2885 | BY123: 0 | BZ123: 882677 | CA123: 0 | CC123: 0 | CD123: 0 | CE123: 0 | CF123: 0 | CG123: 0 | CH123: 0 | CJ123: 0 | CK123: 0 | CL123: 0 | CM123: 0 | CN123: 0 | CO123: 0
A124: 2027-12-01 | B124: 119 | C124: 30000 | D124: 4128492 | E124: 46539 | F124: 0 | G124: -2792 | H124: 0 | I124: -6977 | J124: 13659 | K124: 0 | L124: 0 | M124: 0 | N124: 0 | O124: 0 | P124: 8844 | Q124: 0 | R124: 0 | S124: 0 | T124: 4187765 | U124: 0 | V124: 0 | W124: 0 | X124: 0 | Y124: 0 | Z124: 0 | AA124: 0 | AB124: 0 | AC124: 0 | AD124: 0 | AE124: 0 | AF124: 0 | AG124: 0 | AH124: 0 | AI124: 0 | AJ124: 0 | AK124: 275428 | AL124: 0 | AM124: 0 | AN124: 0 | AO124: 0 | AP124: -466 | AQ124: 911 | AR124: 465 | AS124: 2035 | AT124: 465 | AU124: 0 | AV124: 0 | AW124: 0 | AX124: 0 | AY124: 278838 | AZ124: 0 | BA124: 0 | BB124: 0 | BC124: 0 | BD124: 0 | BE124: 0 | BF124: 0 | BG124: 0 | BH124: 0 | BI124: 0 | BJ124: 0 | BK124: 0 | BL124: 0 | BM124: 0 | BN124: 0 | BO124: 0 | BP124: 0 | BQ124: 0 | BR124: 0 | BS124: 0 | BT124: 0 | BU124: 882677 | BV124: 0 | BW124: -1476 | BX124: 2890 | BY124: 1831 | BZ124: 885922 | CA124: 0 | CC124: 0 | CD124: 0 | CE124: 0 | CF124: 0 | CG124: 0 | CH124: 0 | CJ124: 0 | CK124: 0 | CL124: 0 | CM124: 0 | CN124: 0 | CO124: 0
A125: 2028-01-01 | B125: 120 | C125: 30000 | D125: 4187765 | E125: 46539 | F125: 0 | G125: -2792 | H125: 0 | I125: -7076 | J125: 13853 | K125: 0 | L125: 0 | M125: 0 | N125: 0 | O125: 0 | P125: 0 | Q125: 141128 | R125: 0 | S125: 0 | T125: 4379417 | U125: 0 | V125: 0 | W125: 0 | X125: 0 | Y125: 0 | Z125: 0 | AA125: 0 | AB125: 0 | AC125: 0 | AD125: 0 | AE125: 0 | AF125: 0 | AG125: 0 | AH125: 0 | AI125: 0 | AJ125: 0 | AK125: 278838 | AL125: 0 | AM125: 0 | AN125: 0 | AO125: 0 | AP125: -471 | AQ125: 923 | AR125: 465 | AS125: 2035 | AT125: 465 | AU125: 0 | AV125: 0 | AW125: -141128 | AX125: 0 | AY125: 141127 | AZ125: 0 | BA125: 0 | BB125: 0 | BC125: 0 | BD125: 0 | BE125: 0 | BF125: 0 | BG125: 0 | BH125: 0 | BI125: 0 | BJ125: 0 | BK125: 0 | BL125: 0 | BM125: 0 | BN125: 0 | BO125: 0 | BP125: 0 | BQ125: 0 | BR125: 0 | BS125: 0 | BT125: 0 | BU125: 885922 | BV125: 0 | BW125: -1481 | BX125: 2900 | BY125: 0 | BZ125: 887341 | CA125: 0 | CC125: 0 | CD125: 0 | CE125: 0 | CF125: 0 | CG125: 0 | CH125: 0 | CJ125: 0 | CK125: 0 | CL125: 0 | CM125: 0 | CN125: 0 | CO125: 0
A126: 2028-02-01 | B126: 121 | C126: 30000 | D126: 4379417 | E126: 48866 | F126: 0 | G126: -2932 | H126: 0 | I126: -7400 | J126: 14487 | K126: 0 | L126: 0 | M126: 0 | N126: 0 | O126: 0 | P126: 0 | Q126: 0 | R126: 0 | S126: 0 | T126: 4432438 | U126: 0 | V126: 0 | W126: 0 | X126: 0 | Y126: 0 | Z126: 0 | AA126: 0 | AB126: 0 | AC126: 0 | AD126: 0 | AE126: 0 | AF126: 0 | AG126: 0 | AH126: 0 | AI126: 0 | AJ126: 0 | AK126: 141127 | AL126: 0 | AM126: 0 | AN126: 0 | AO126: 0 | AP126: -241 | AQ126: 472 | AR126: 489 | AS126: 2035 | AT126: 489 | AU126: 0 | AV126: 0 | AW126: 0 | AX126: 0 | AY126: 144371 | AZ126: 0 | BA126: 0 | BB126: 0 | BC126: 0 | BD126: 0 | BE126: 0 | BF126: 0 | BG126: 0 | BH126: 0 | BI126: 0 | BJ126: 0 | BK126: 0 | BL126: 0 | BM126: 0 | BN126: 0 | BO126: 0 | BP126: 0 | BQ126: 0 | BR126: 0 | BS126: 0 | BT126: 0 | BU126: 887341 | BV126: 0 | BW126: -1484 | BX126: 2905 | BY126: 0 | BZ126: 888762 | CA126: 0 | CC126: 0 | CD126: 0 | CE126: 0 | CF126: 0 | CG126: 0 | CH126: 0 | CJ126: 0 | CK126: 0 | CL126: 0 | CM126: 0 | CN126: 0 | CO126: 0
A127: 2028-03-01 | B127: 122 | C127: 30000 | D127: 4432438 | E127: 48866 | F127: 0 | G127: -2932 | H127: 0 | I127: -7488 | J127: 14661 | K127: 0 | L127: 0 | M127: 0 | N127: 0 | O127: 0 | P127: 9199 | Q127: 0 | R127: 0 | S127: 0 | T127: 4494744 | U127: 0 | V127: 0 | W127: 0 | X127: 0 | Y127: 0 | Z127: 0 | AA127: 0 | AB127: 0 | AC127: 0 | AD127: 0 | AE127: 0 | AF127: 0 | AG127: 0 | AH127: 0 | AI127: 0 | AJ127: 0 | AK127: 144371 | AL127: 0 | AM127: 0 | AN127: 0 | AO127: 0 | AP127: -246 | AQ127: 482 | AR127: 489 | AS127: 2035 | AT127: 489 | AU127: 0 | AV127: 0 | AW127: 0 | AX127: 0 | AY127: 147620 | AZ127: 0 | BA127: 0 | BB127: 0 | BC127: 0 | BD127: 0 | BE127: 0 | BF127: 0 | BG127: 0 | BH127: 0 | BI127: 0 | BJ127: 0 | BK127: 0 | BL127: 0 | BM127: 0 | BN127: 0 | BO127: 0 | BP127: 0 | BQ127: 0 | BR127: 0 | BS127: 0 | BT127: 0 | BU127: 888762 | BV127: 0 | BW127: -1486 | BX127: 2910 | BY127: 1844 | BZ127: 892030 | CA127: 0 | CC127: 0 | CD127: 0 | CE127: 0 | CF127: 0 | CG127: 0 | CH127: 0 | CJ127: 0 | CK127: 0 | CL127: 0 | CM127: 0 | CN127: 0 | CO127: 0
A128: 2028-04-01 | B128: 123 | C128: 30000 | D128: 4494744 | E128: 48866 | F128: 0 | G128: -2932 | H128: 0 | I128: -7593 | J128: 14865 | K128: 0 | L128: 0 | M128: 0 | N128: 0 | O128: 0 | P128: 0 | Q128: 0 | R128: 0 | S128: 0 | T128: 4547950 | U128: 0 | V128: 0 | W128: 0 | X128: 0 | Y128: 0 | Z128: 0 | AA128: 0 | AB128: 0 | AC128: 0 | AD128: 0 | AE128: 0 | AF128: 0 | AG128: 0 | AH128: 0 | AI128: 0 | AJ128: 0 | AK128: 147620 | AL128: 0 | AM128: 0 | AN128: 0 | AO128: 0 | AP128: -252 | AQ128: 493 | AR128: 489 | AS128: 2035 | AT128: 489 | AU128: 0 | AV128: 0 | AW128: 0 | AX128: 0 | AY128: 150874 | AZ128: 0 | BA128: 0 | BB128: 0 | BC128: 0 | BD128: 0 | BE128: 0 | BF128: 0 | BG128: 0 | BH128: 0 | BI128: 0 | BJ128: 0 | BK128: 0 | BL128: 0 | BM128: 0 | BN128: 0 | BO128: 0 | BP128: 0 | BQ128: 0 | BR128: 0 | BS128: 0 | BT128: 0 | BU128: 892030 | BV128: 111250 | BW128: -1678 | BX128: 3284 | BY128: 0 | BZ128: 1004886 | CA128: 0 | CC128: 0 | CD128: 0 | CE128: 0 | CF128: 0 | CG128: 0 | CH128: 0 | CJ128: 0 | CK128: 0 | CL128: 0 | CM128: 0 | CN128: 0 | CO128: 0
A129: 2028-05-01 | B129: 124 | C129: 30000 | D129: 4547950 | E129: 48866 | F129: 0 | G129: -2932 | H129: 0 | I129: -7682 | J129: 15039 | K129: 0 | L129: 0 | M129: 0 | N129: 0 | O129: 0 | P129: 0 | Q129: 0 | R129: 0 | S129: 0 | T129: 4601241 | U129: 0 | V129: 0 | W129: 0 | X129: 0 | Y129: 0 | Z129: 0 | AA129: 0 | AB129: 0 | AC129: 0 | AD129: 0 | AE129: 0 | AF129: 0 | AG129: 0 | AH129: 0 | AI129: 0 | AJ129: 0 | AK129: 150874 | AL129: 0 | AM129: 0 | AN129: 0 | AO129: 0 | AP129: -257 | AQ129: 504 | AR129: 489 | AS129: 2035 | AT129: 489 | AU129: 0 | AV129: 0 | AW129: 0 | AX129: 0 | AY129: 154134 | AZ129: 0 | BA129: 0 | BB129: 0 | BC129: 0 | BD129: 0 | BE129: 0 | BF129: 0 | BG129: 0 | BH129: 0 | BI129: 0 | BJ129: 0 | BK129: 0 | BL129: 0 | BM129: 0 | BN129: 0 | BO129: 0 | BP129: 0 | BQ129: 0 | BR129: 0 | BS129: 0 | BT129: 0 | BU129: 1004886 | BV129: 0 | BW129: -1680 | BX129: 3290 | BY129: 0 | BZ129: 1006496 | CA129: 0 | CC129: 0 | CD129: 0 | CE129: 0 | CF129: 0 | CG129: 0 | CH129: 0 | CJ129: 0 | CK129: 0 | CL129: 0 | CM129: 0 | CN129: 0 | CO129: 0
A130: 2028-06-01 | B130: 125 | C130: 30000 | D130: 4601241 | E130: 48866 | F130: 0 | G130: -2932 | H130: 0 | I130: -7771 | J130: 15214 | K130: 0 | L130: 0 | M130: 0 | N130: 0 | O130: 0 | P130: 9456 | Q130: 0 | R130: 0 | S130: 0 | T130: 4664074 | U130: 0 | V130: 0 | W130: 0 | X130: 0 | Y130: 0 | Z130: 0 | AA130: 0 | AB130: 0 | AC130: 0 | AD130: 0 | AE130: 0 | AF130: 0 | AG130: 0 | AH130: 0 | AI130: 0 | AJ130: 0 | AK130: 154134 | AL130: 0 | AM130: 0 | AN130: 0 | AO130: 0 | AP130: -263 | AQ130: 514 | AR130: 489 | AS130: 2035 | AT130: 489 | AU130: 0 | AV130: 0 | AW130: 0 | AX130: 0 | AY130: 157398 | AZ130: 0 | BA130: 0 | BB130: 0 | BC130: 0 | BD130: 0 | BE130: 0 | BF130: 0 | BG130: 0 | BH130: 0 | BI130: 0 | BJ130: 0 | BK130: 0 | BL130: 0 | BM130: 0 | BN130: 0 | BO130: 0 | BP130: 0 | BQ130: 0 | BR130: 0 | BS130: 0 | BT130: 0 | BU130: 1006496 | BV130: 0 | BW130: -1683 | BX130: 3295 | BY130: 1836 | BZ130: 1009944 | CA130: 0 | CC130: 0 | CD130: 0 | CE130: 0 | CF130: 0 | CG130: 0 | CH130: 0 | CJ130: 0 | CK130: 0 | CL130: 0 | CM130: 0 | CN130: 0 | CO130: 0
A131: 2028-07-01 | B131: 126 | C131: 30000 | D131: 4664074 | E131: 48866 | F131: 0 | G131: -2932 | H131: 0 | I131: -7876 | J131: 15419 | K131: 0 | L131: 0 | M131: 0 | N131: 0 | O131: 0 | P131: 0 | Q131: 0 | R131: 0 | S131: 0 | T131: 4717551 | U131: 0 | V131: 0 | W131: 0 | X131: 0 | Y131: 0 | Z131: 0 | AA131: 0 | AB131: 0 | AC131: 0 | AD131: 0 | AE131: 0 | AF131: 0 | AG131: 0 | AH131: 0 | AI131: 0 | AJ131: 0 | AK131: 157398 | AL131: 0 | AM131: 0 | AN131: 0 | AO131: 0 | AP131: -268 | AQ131: 525 | AR131: 489 | AS131: 2035 | AT131: 489 | AU131: 0 | AV131: 0 | AW131: 0 | AX131: 0 | AY131: 160668 | AZ131: 0 | BA131: 0 | BB131: 0 | BC131: 0 | BD131: 0 | BE131: 0 | BF131: 0 | BG131: 0 | BH131: 0 | BI131: 0 | BJ131: 0 | BK131: 0 | BL131: 0 | BM131: 0 | BN131: 0 | BO131: 0 | BP131: 0 | BQ131: 0 | BR131: 0 | BS131: 0 | BT131: 0 | BU131: 1009944 | BV131: 0 | BW131: -1689 | BX131: 3306 | BY131: 0 | BZ131: 1011561 | CA131: 0 | CC131: 0 | CD131: 0 | CE131: 0 | CF131: 0 | CG131: 0 | CH131: 0 | CJ131: 0 | CK131: 0 | CL131: 0 | CM131: 0 | CN131: 0 | CO131: 0
A132: 2028-08-01 | B132: 127 | C132: 30000 | D132: 4717551 | E132: 48866 | F132: 0 | G132: -2932 | H132: 0 | I132: -7965 | J132: 15594 | K132: 0 | L132: 0 | M132: 0 | N132: 0 | O132: 0 | P132: 0 | Q132: 0 | R132: 0 | S132: 0 | T132: 4771114 | U132: 0 | V132: 0 | W132: 0 | X132: 0 | Y132: 0 | Z132: 0 | AA132: 0 | AB132: 0 | AC132: 0 | AD132: 0 | AE132: 0 | AF132: 0 | AG132: 0 | AH132: 0 | AI132: 0 | AJ132: 0 | AK132: 160668 | AL132: 0 | AM132: 0 | AN132: 0 | AO132: 0 | AP132: -274 | AQ132: 536 | AR132: 489 | AS132: 2035 | AT132: 489 | AU132: 0 | AV132: 0 | AW132: 0 | AX132: 0 | AY132: 163943 | AZ132: 0 | BA132: 0 | BB132: 0 | BC132: 0 | BD132: 0 | BE132: 0 | BF132: 0 | BG132: 0 | BH132: 0 | BI132: 0 | BJ132: 0 | BK132: 0 | BL132: 0 | BM132: 0 | BN132: 0 | BO132: 0 | BP132: 0 | BQ132: 0 | BR132: 0 | BS132: 0 | BT132: 0 | BU132: 1011561 | BV132: 0 | BW132: -1691 | BX132: 3312 | BY132: 0 | BZ132: 1013182 | CA132: 0 | CC132: 0 | CD132: 0 | CE132: 0 | CF132: 0 | CG132: 0 | CH132: 0 | CJ132: 0 | CK132: 0 | CL132: 0 | CM132: 0 | CN132: 0 | CO132: 0
A133: 2028-09-01 | B133: 128 | C133: 30000 | D133: 4771114 | E133: 48866 | F133: 0 | G133: -2932 | H133: 0 | I133: -8055 | J133: 15770 | K133: 0 | L133: 0 | M133: 0 | N133: 0 | O133: 0 | P133: 9825 | Q133: 0 | R133: 0 | S133: 0 | T133: 4834588 | U133: 0 | V133: 0 | W133: 0 | X133: 0 | Y133: 0 | Z133: 0 | AA133: 0 | AB133: 0 | AC133: 0 | AD133: 0 | AE133: 0 | AF133: 0 | AG133: 0 | AH133: 0 | AI133: 0 | AJ133: 0 | AK133: 163943 | AL133: 0 | AM133: 0 | AN133: 0 | AO133: 0 | AP133: -279 | AQ133: 547 | AR133: 489 | AS133: 2035 | AT133: 489 | AU133: 0 | AV133: 0 | AW133: 0 | AX133: 0 | AY133: 167224 | AZ133: 0 | BA133: 0 | BB133: 0 | BC133: 0 | BD133: 0 | BE133: 0 | BF133: 0 | BG133: 0 | BH133: 0 | BI133: 0 | BJ133: 0 | BK133: 0 | BL133: 0 | BM133: 0 | BN133: 0 | BO133: 0 | BP133: 0 | BQ133: 0 | BR133: 0 | BS133: 0 | BT133: 0 | BU133: 1013182 | BV133: 0 | BW133: -1694 | BX133: 3317 | BY133: 2080 | BZ133: 1016885 | CA133: 0 | CC133: 0 | CD133: 0 | CE133: 0 | CF133: 0 | CG133: 0 | CH133: 0 | CJ133: 0 | CK133: 0 | CL133: 0 | CM133: 0 | CN133: 0 | CO133: 0
A134: 2028-10-01 | B134: 129 | C134: 30000 | D134: 4834588 | E134: 48866 | F134: 0 | G134: -2932 | H134: 0 | I134: -8161 | J134: 15978 | K134: 0 | L134: 0 | M134: 0 | N134: 0 | O134: 0 | P134: 0 | Q134: 0 | R134: 0 | S134: 0 | T134: 4888339 | U134: 0 | V134: 0 | W134: 0 | X134: 0 | Y134: 0 | Z134: 0 | AA134: 0 | AB134: 0 | AC134: 0 | AD134: 0 | AE134: 0 | AF134: 0 | AG134: 0 | AH134: 0 | AI134: 0 | AJ134: 0 | AK134: 167224 | AL134: 0 | AM134: 0 | AN134: 0 | AO134: 0 | AP134: -285 | AQ134: 557 | AR134: 489 | AS134: 2035 | AT134: 489 | AU134: 0 | AV134: 0 | AW134: 0 | AX134: 0 | AY134: 170509 | AZ134: 0 | BA134: 0 | BB134: 0 | BC134: 0 | BD134: 0 | BE134: 0 | BF134: 0 | BG134: 0 | BH134: 0 | BI134: 0 | BJ134: 0 | BK134: 0 | BL134: 0 | BM134: 0 | BN134: 0 | BO134: 0 | BP134: 0 | BQ134: 0 | BR134: 0 | BS134: 0 | BT134: 0 | BU134: 1016885 | BV134: 0 | BW134: -1700 | BX134: 3329 | BY134: 0 | BZ134: 1018514 | CA134: 0 | CC134: =SUM(D134:S134)-T134 -> 0 | CD134: =SUM(U134:AI134)-AJ134 -> 0 | CE134: =SUM(AK134:AX134)-AY134 -> 0 | CF134: =SUM(BA134:BH134)-BI134 -> 0 | CG134: =SUM(BK134:BR134)-BS134 -> 0 | CH134: =SUM(BU134:BY134)-BZ134 -> 0 | CJ134: 0 | CK134: 0 | CL134: 0 | CM134: 0 | CN134: 0 | CO134: 0
A135: 2028-11-01 | B135: 130 | C135: 30000 | D135: 4888339 | E135: 48866 | F135: 0 | G135: -2932 | H135: 0 | I135: -8251 | J135: 16154 | K135: 0 | L135: 0 | M135: 0 | N135: 0 | O135: 0 | P135: 0 | Q135: 0 | R135: 0 | S135: 0 | T135: 4942176 | U135: 0 | V135: 0 | W135: 0 | X135: 0 | Y135: 0 | Z135: 0 | AA135: 0 | AB135: 0 | AC135: 0 | AD135: 0 | AE135: 0 | AF135: 0 | AG135: 0 | AH135: 0 | AI135: 0 | AJ135: 0 | AK135: 170509 | AL135: 0 | AM135: 0 | AN135: 0 | AO135: 0 | AP135: -290 | AQ135: 568 | AR135: 489 | AS135: 2035 | AT135: 489 | AU135: 0 | AV135: 0 | AW135: 0 | AX135: 0 | AY135: 173800 | AZ135: 0 | BA135: 0 | BB135: 0 | BC135: 0 | BD135: 0 | BE135: 0 | BF135: 0 | BG135: 0 | BH135: 0 | BI135: 0 | BJ135: 0 | BK135: 0 | BL135: 0 | BM135: 0 | BN135: 0 | BO135: 0 | BP135: 0 | BQ135: 0 | BR135: 0 | BS135: 0 | BT135: 0 | BU135: 1018514 | BV135: 0 | BW135: -1703 | BX135: 3334 | BY135: 0 | BZ135: 1020145 | CA135: 0 | CC135: 0 | CD135: 0 | CE135: 0 | CF135: 0 | CG135: 0 | CH135: 0 | CJ135: =+T134-D135 -> 0 | CK135: =+AJ134-U135 -> 0 | CL135: =+AY134-AK135 -> 0 | CM135: =+BI134-BA135 -> 0 | CN135: =+BS134-BK135 -> 0 | CO135: =+BZ134-BU135 -> 0
A136: 2028-12-01 | B136: 131 | C136: 30000 | D136: 4942176 | E136: 48866 | F136: 0 | G136: -2932 | H136: 0 | I136: -8341 | J136: 16330 | K136: 0 | L136: 0 | M136: 0 | N136: 0 | O136: 0 | P136: 10307 | Q136: 0 | R136: 0 | S136: 0 | T136: 5006406 | U136: 0 | V136: 0 | W136: 0 | X136: 0 | Y136: 0 | Z136: 0 | AA136: 0 | AB136: 0 | AC136: 0 | AD136: 0 | AE136: 0 | AF136: 0 | AG136: 0 | AH136: 0 | AI136: 0 | AJ136: 0 | AK136: 173800 | AL136: 0 | AM136: 0 | AN136: 0 | AO136: 0 | AP136: -296 | AQ136: 579 | AR136: 489 | AS136: 2035 | AT136: 489 | AU136: 0 | AV136: 0 | AW136: 0 | AX136: 0 | AY136: 177096 | AZ136: 0 | BA136: 0 | BB136: 0 | BC136: 0 | BD136: 0 | BE136: 0 | BF136: 0 | BG136: 0 | BH136: 0 | BI136: 0 | BJ136: 0 | BK136: 0 | BL136: 0 | BM136: 0 | BN136: 0 | BO136: 0 | BP136: 0 | BQ136: 0 | BR136: 0 | BS136: 0 | BT136: 0 | BU136: 1020145 | BV136: 0 | BW136: -1706 | BX136: 3340 | BY136: 2116 | BZ136: 1023895 | CA136: 0 | CC136: 0 | CD136: 0 | CE136: 0 | CF136: 0 | CG136: 0 | CH136: 0 | CJ136: 0 | CK136: 0 | CL136: 0 | CM136: 0 | CN136: 0 | CO136: 0
A137: 2029-01-01 | B137: 132 | C137: 30000 | D137: 5006406 | E137: 48866 | F137: 0 | G137: -2932 | H137: 0 | I137: -8448 | J137: 16540 | K137: 0 | L137: 0 | M137: 0 | N137: 0 | O137: 0 | P137: 0 | Q137: 0 | R137: 0 | S137: 0 | T137: 5060432 | U137: 0 | V137: 0 | W137: 0 | X137: 0 | Y137: 0 | Z137: 0 | AA137: 0 | AB137: 0 | AC137: 0 | AD137: 0 | AE137: 0 | AF137: 0 | AG137: 0 | AH137: 0 | AI137: 0 | AJ137: 0 | AK137: 177096 | AL137: 0 | AM137: 0 | AN137: 0 | AO137: 0 | AP137: -301 | AQ137: 590 | AR137: 489 | AS137: 2035 | AT137: 489 | AU137: 0 | AV137: 0 | AW137: 0 | AX137: 0 | AY137: 180398 | AZ137: 0 | BA137: 0 | BB137: 0 | BC137: 0 | BD137: 0 | BE137: 0 | BF137: 0 | BG137: 0 | BH137: 0 | BI137: 0 | BJ137: 0 | BK137: 0 | BL137: 0 | BM137: 0 | BN137: 0 | BO137: 0 | BP137: 0 | BQ137: 0 | BR137: 0 | BS137: 0 | BT137: 0 | BU137: 1023895 | BV137: 0 | BW137: -1712 | BX137: 3352 | BY137: 0 | BZ137: 1025535 | CA137: 0 | CC137: 0 | CD137: 0 | CE137: 0 | CF137: 0 | CG137: 0 | CH137: 0 | CJ137: 0 | CK137: 0 | CL137: 0 | CM137: 0 | CN137: 0 | CO137: 0
A138: 2029-02-01 | B138: 133 | C138: 30000 | D138: 5060432 | E138: 51309 | F138: 0 | G138: -3079 | H138: 0 | I138: -8542 | J138: 16724 | K138: 0 | L138: 0 | M138: 0 | N138: 0 | O138: 0 | P138: 0 | Q138: 0 | R138: 0 | S138: 0 | T138: 5116844 | U138: 0 | V138: 0 | W138: 0 | X138: 0 | Y138: 0 | Z138: 0 | AA138: 0 | AB138: 0 | AC138: 0 | AD138: 0 | AE138: 0 | AF138: 0 | AG138: 0 | AH138: 0 | AI138: 0 | AJ138: 0 | AK138: 180398 | AL138: 0 | AM138: 0 | AN138: 0 | AO138: 0 | AP138: -307 | AQ138: 601 | AR138: 513 | AS138: 2035 | AT138: 513 | AU138: 0 | AV138: 0 | AW138: 0 | AX138: 0 | AY138: 183753 | AZ138: 0 | BA138: 0 | BB138: 0 | BC138: 0 | BD138: 0 | BE138: 0 | BF138: 0 | BG138: 0 | BH138: 0 | BI138: 0 | BJ138: 0 | BK138: 0 | BL138: 0 | BM138: 0 | BN138: 0 | BO138: 0 | BP138: 0 | BQ138: 0 | BR138: 0 | BS138: 0 | BT138: 0 | BU138: 1025535 | BV138: 0 | BW138: -1715 | BX138: 3357 | BY138: 0 | BZ138: 1027177 | CA138: 0 | CC138: 0 | CD138: 0 | CE138: 0 | CF138: 0 | CG138: 0 | CH138: 0 | CJ138: 0 | CK138: 0 | CL138: 0 | CM138: 0 | CN138: 0 | CO138: 0
A139: 2029-03-01 | B139: 134 | C139: 30000 | D139: 5116844 | E139: 51309 | F139: 0 | G139: -3079 | H139: 0 | I139: -8637 | J139: 16909 | K139: 0 | L139: 0 | M139: 0 | N139: 0 | O139: 0 | P139: 10687 | Q139: 0 | R139: 0 | S139: 0 | T139: 5184033 | U139: 0 | V139: 0 | W139: 0 | X139: 0 | Y139: 0 | Z139: 0 | AA139: 0 | AB139: 0 | AC139: 0 | AD139: 0 | AE139: 0 | AF139: 0 | AG139: 0 | AH139: 0 | AI139: 0 | AJ139: 0 | AK139: 183753 | AL139: 0 | AM139: 0 | AN139: 0 | AO139: 0 | AP139: -312 | AQ139: 612 | AR139: 513 | AS139: 2035 | AT139: 513 | AU139: 0 | AV139: 0 | AW139: 0 | AX139: 0 | AY139: 187114 | AZ139: 0 | BA139: 0 | BB139: 0 | BC139: 0 | BD139: 0 | BE139: 0 | BF139: 0 | BG139: 0 | BH139: 0 | BI139: 0 | BJ139: 0 | BK139: 0 | BL139: 0 | BM139: 0 | BN139: 0 | BO139: 0 | BP139: 0 | BQ139: 0 | BR139: 0 | BS139: 0 | BT139: 0 | BU139: 1027177 | BV139: 0 | BW139: -1718 | BX139: 3363 | BY139: 2131 | BZ139: 1030953 | CA139: 0 | CC139: 0 | CD139: 0 | CE139: 0 | CF139: 0 | CG139: 0 | CH139: 0 | CJ139: 0 | CK139: 0 | CL139: 0 | CM139: 0 | CN139: 0 | CO139: 0
A140: 2029-04-01 | B140: 135 | C140: 30000 | D140: 5184033 | E140: 51309 | F140: 0 | G140: -3079 | H140: 0 | I140: -8749 | J140: 17129 | K140: 0 | L140: 0 | M140: 0 | N140: 0 | O140: 0 | P140: 0 | Q140: 0 | R140: 0 | S140: 0 | T140: 5240643 | U140: 0 | V140: 0 | W140: 0 | X140: 0 | Y140: 0 | Z140: 0 | AA140: 0 | AB140: 0 | AC140: 0 | AD140: 0 | AE140: 0 | AF140: 0 | AG140: 0 | AH140: 0 | AI140: 0 | AJ140: 0 | AK140: 187114 | AL140: 0 | AM140: 0 | AN140: 0 | AO140: 0 | AP140: -318 | AQ140: 623 | AR140: 513 | AS140: 2035 | AT140: 513 | AU140: 0 | AV140: 0 | AW140: 0 | AX140: 0 | AY140: 190480 | AZ140: 0 | BA140: 0 | BB140: 0 | BC140: 0 | BD140: 0 | BE140: 0 | BF140: 0 | BG140: 0 | BH140: 0 | BI140: 0 | BJ140: 0 | BK140: 0 | BL140: 0 | BM140: 0 | BN140: 0 | BO140: 0 | BP140: 0 | BQ140: 0 | BR140: 0 | BS140: 0 | BT140: 0 | BU140: 1030953 | BV140: 116813 | BW140: -1919 | BX140: 3757 | BY140: 0 | BZ140: 1149604 | CA140: 0 | CC140: 0 | CD140: 0 | CE140: 0 | CF140: 0 | CG140: 0 | CH140: 0 | CJ140: 0 | CK140: 0 | CL140: 0 | CM140: 0 | CN140: 0 | CO140: 0
A141: 2029-05-01 | B141: 136 | C141: 30000 | D141: 5240643 | E141: 51309 | F141: 0 | G141: -3079 | H141: 0 | I141: -8844 | J141: 17314 | K141: 0 | L141: 0 | M141: 0 | N141: 0 | O141: 0 | P141: 0 | Q141: 0 | R141: 0 | S141: 0 | T141: 5297343 | U141: 0 | V141: 0 | W141: 0 | X141: 0 | Y141: 0 | Z141: 0 | AA141: 0 | AB141: 0 | AC141: 0 | AD141: 0 | AE141: 0 | AF141: 0 | AG141: 0 | AH141: 0 | AI141: 0 | AJ141: 0 | AK141: 190480 | AL141: 0 | AM141: 0 | AN141: 0 | AO141: 0 | AP141: -324 | AQ141: 634 | AR141: 513 | AS141: 2035 | AT141: 513 | AU141: 0 | AV141: 0 | AW141: 0 | AX141: 0 | AY141: 193851 | AZ141: 0 | BA141: 0 | BB141: 0 | BC141: 0 | BD141: 0 | BE141: 0 | BF141: 0 | BG141: 0 | BH141: 0 | BI141: 0 | BJ141: 0 | BK141: 0 | BL141: 0 | BM141: 0 | BN141: 0 | BO141: 0 | BP141: 0 | BQ141: 0 | BR141: 0 | BS141: 0 | BT141: 0 | BU141: 1149604 | BV141: 0 | BW141: -1922 | BX141: 3764 | BY141: 0 | BZ141: 1151446 | CA141: 0 | CC141: 0 | CD141: 0 | CE141: 0 | CF141: 0 | CG141: 0 | CH141: 0 | CJ141: 0 | CK141: 0 | CL141: 0 | CM141: 0 | CN141: 0 | CO141: 0
A142: 2029-06-01 | B142: 137 | C142: 30000 | D142: 5297343 | E142: 51309 | F142: 0 | G142: -3079 | H142: 0 | I142: -8938 | J142: 17500 | K142: 0 | L142: 0 | M142: 0 | N142: 0 | O142: 0 | P142: 10831 | Q142: 0 | R142: 0 | S142: 0 | T142: 5364966 | U142: 0 | V142: 0 | W142: 0 | X142: 0 | Y142: 0 | Z142: 0 | AA142: 0 | AB142: 0 | AC142: 0 | AD142: 0 | AE142: 0 | AF142: 0 | AG142: 0 | AH142: 0 | AI142: 0 | AJ142: 0 | AK142: 193851 | AL142: 0 | AM142: 0 | AN142: 0 | AO142: 0 | AP142: -329 | AQ142: 645 | AR142: 513 | AS142: 2035 | AT142: 513 | AU142: 0 | AV142: 0 | AW142: 0 | AX142: 0 | AY142: 197228 | AZ142: 0 | BA142: 0 | BB142: 0 | BC142: 0 | BD142: 0 | BE142: 0 | BF142: 0 | BG142: 0 | BH142: 0 | BI142: 0 | BJ142: 0 | BK142: 0 | BL142: 0 | BM142: 0 | BN142: 0 | BO142: 0 | BP142: 0 | BQ142: 0 | BR142: 0 | BS142: 0 | BT142: 0 | BU142: 1151446 | BV142: 0 | BW142: -1925 | BX142: 3770 | BY142: 2099 | BZ142: 1155390 | CA142: 0 | CC142: 0 | CD142: 0 | CE142: 0 | CF142: 0 | CG142: 0 | CH142: 0 | CJ142: 0 | CK142: 0 | CL142: 0 | CM142: 0 | CN142: 0 | CO142: 0
A143: 2029-07-01 | B143: 138 | C143: 30000 | D143: 5364966 | E143: 51309 | F143: 0 | G143: -3079 | H143: 0 | I143: -9052 | J143: 17721 | K143: 0 | L143: 0 | M143: 0 | N143: 0 | O143: 0 | P143: 0 | Q143: 0 | R143: 0 | S143: 0 | T143: 5421865 | U143: 0 | V143: 0 | W143: 0 | X143: 0 | Y143: 0 | Z143: 0 | AA143: 0 | AB143: 0 | AC143: 0 | AD143: 0 | AE143: 0 | AF143: 0 | AG143: 0 | AH143: 0 | AI143: 0 | AJ143: 0 | AK143: 197228 | AL143: 0 | AM143: 0 | AN143: 0 | AO143: 0 | AP143: -335 | AQ143: 656 | AR143: 513 | AS143: 2035 | AT143: 513 | AU143: 0 | AV143: 0 | AW143: 0 | AX143: 0 | AY143: 200610 | AZ143: 0 | BA143: 0 | BB143: 0 | BC143: 0 | BD143: 0 | BE143: 0 | BF143: 0 | BG143: 0 | BH143: 0 | BI143: 0 | BJ143: 0 | BK143: 0 | BL143: 0 | BM143: 0 | BN143: 0 | BO143: 0 | BP143: 0 | BQ143: 0 | BR143: 0 | BS143: 0 | BT143: 0 | BU143: 1155390 | BV143: 0 | BW143: -1932 | BX143: 3782 | BY143: 0 | BZ143: 1157240 | CA143: 0 | CC143: 0 | CD143: 0 | CE143: 0 | CF143: 0 | CG143: 0 | CH143: 0 | CJ143: 0 | CK143: 0 | CL143: 0 | CM143: 0 | CN143: 0 | CO143: 0
A144: 2029-08-01 | B144: 139 | C144: 30000 | D144: 5421865 | E144: 51309 | F144: 0 | G144: -3079 | H144: 0 | I144: -9147 | J144: 17908 | K144: 0 | L144: 0 | M144: 0 | N144: 0 | O144: 0 | P144: 0 | Q144: 0 | R144: 0 | S144: 0 | T144: 5478856 | U144: 0 | V144: 0 | W144: 0 | X144: 0 | Y144: 0 | Z144: 0 | AA144: 0 | AB144: 0 | AC144: 0 | AD144: 0 | AE144: 0 | AF144: 0 | AG144: 0 | AH144: 0 | AI144: 0 | AJ144: 0 | AK144: 200610 | AL144: 0 | AM144: 0 | AN144: 0 | AO144: 0 | AP144: -341 | AQ144: 667 | AR144: 513 | AS144: 2035 | AT144: 513 | AU144: 0 | AV144: 0 | AW144: 0 | AX144: 0 | AY144: 203997 | AZ144: 0 | BA144: 0 | BB144: 0 | BC144: 0 | BD144: 0 | BE144: 0 | BF144: 0 | BG144: 0 | BH144: 0 | BI144: 0 | BJ144: 0 | BK144: 0 | BL144: 0 | BM144: 0 | BN144: 0 | BO144: 0 | BP144: 0 | BQ144: 0 | BR144: 0 | BS144: 0 | BT144: 0 | BU144: 1157240 | BV144: 0 | BW144: -1935 | BX144: 3789 | BY144: 0 | BZ144: 1159094 | CA144: 0 | CC144: 0 | CD144: 0 | CE144: 0 | CF144: 0 | CG144: 0 | CH144: 0 | CJ144: 0 | CK144: 0 | CL144: 0 | CM144: 0 | CN144: 0 | CO144: 0
A145: 2029-09-01 | B145: 140 | C145: 30000 | D145: 5478856 | E145: 51309 | F145: 0 | G145: -3079 | H145: 0 | I145: -9242 | J145: 18094 | K145: 0 | L145: 0 | M145: 0 | N145: 0 | O145: 0 | P145: 11346 | Q145: 0 | R145: 0 | S145: 0 | T145: 5547284 | U145: 0 | V145: 0 | W145: 0 | X145: 0 | Y145: 0 | Z145: 0 | AA145: 0 | AB145: 0 | AC145: 0 | AD145: 0 | AE145: 0 | AF145: 0 | AG145: 0 | AH145: 0 | AI145: 0 | AJ145: 0 | AK145: 203997 | AL145: 0 | AM145: 0 | AN145: 0 | AO145: 0 | AP145: -346 | AQ145: 678 | AR145: 513 | AS145: 2035 | AT145: 513 | AU145: 0 | AV145: 0 | AW145: 0 | AX145: 0 | AY145: 207390 | AZ145: 0 | BA145: 0 | BB145: 0 | BC145: 0 | BD145: 0 | BE145: 0 | BF145: 0 | BG145: 0 | BH145: 0 | BI145: 0 | BJ145: 0 | BK145: 0 | BL145: 0 | BM145: 0 | BN145: 0 | BO145: 0 | BP145: 0 | BQ145: 0 | BR145: 0 | BS145: 0 | BT145: 0 | BU145: 1159094 | BV145: 0 | BW145: -1938 | BX145: 3795 | BY145: 2379 | BZ145: 1163330 | CA145: 0 | CC145: 0 | CD145: 0 | CE145: 0 | CF145: 0 | CG145: 0 | CH145: 0 | CJ145: 0 | CK145: 0 | CL145: 0 | CM145: 0 | CN145: 0 | CO145: 0
A146: 2029-10-01 | B146: 141 | C146: 30000 | D146: 5547284 | E146: 51309 | F146: 0 | G146: -3079 | H146: 0 | I146: -9356 | J146: 18318 | K146: 0 | L146: 0 | M146: 0 | N146: 0 | O146: 0 | P146: 0 | Q146: 0 | R146: 0 | S146: 0 | T146: 5604476 | U146: 0 | V146: 0 | W146: 0 | X146: 0 | Y146: 0 | Z146: 0 | AA146: 0 | AB146: 0 | AC146: 0 | AD146: 0 | AE146: 0 | AF146: 0 | AG146: 0 | AH146: 0 | AI146: 0 | AJ146: 0 | AK146: 207390 | AL146: 0 | AM146: 0 | AN146: 0 | AO146: 0 | AP146: -352 | AQ146: 689 | AR146: 513 | AS146: 2035 | AT146: 513 | AU146: 0 | AV146: 0 | AW146: 0 | AX146: 0 | AY146: 210788 | AZ146: 0 | BA146: 0 | BB146: 0 | BC146: 0 | BD146: 0 | BE146: 0 | BF146: 0 | BG146: 0 | BH146: 0 | BI146: 0 | BJ146: 0 | BK146: 0 | BL146: 0 | BM146: 0 | BN146: 0 | BO146: 0 | BP146: 0 | BQ146: 0 | BR146: 0 | BS146: 0 | BT146: 0 | BU146: 1163330 | BV146: 0 | BW146: -1945 | BX146: 3808 | BY146: 0 | BZ146: 1165193 | CA146: 0 | CC146: 0 | CD146: 0 | CE146: 0 | CF146: 0 | CG146: 0 | CH146: 0 | CJ146: 0 | CK146: 0 | CL146: 0 | CM146: 0 | CN146: 0 | CO146: 0
A147: 2029-11-01 | B147: 142 | C147: 30000 | D147: 5604476 | E147: 51309 | F147: 0 | G147: -3079 | H147: 0 | I147: -9452 | J147: 18505 | K147: 0 | L147: 0 | M147: 0 | N147: 0 | O147: 0 | P147: 0 | Q147: 0 | R147: 0 | S147: 0 | T147: 5661759 | U147: 0 | V147: 0 | W147: 0 | X147: 0 | Y147: 0 | Z147: 0 | AA147: 0 | AB147: 0 | AC147: 0 | AD147: 0 | AE147: 0 | AF147: 0 | AG147: 0 | AH147: 0 | AI147: 0 | AJ147: 0 | AK147: 210788 | AL147: 0 | AM147: 0 | AN147: 0 | AO147: 0 | AP147: -358 | AQ147: 700 | AR147: 513 | AS147: 2035 | AT147: 513 | AU147: 0 | AV147: 0 | AW147: 0 | AX147: 0 | AY147: 214191 | AZ147: 0 | BA147: 0 | BB147: 0 | BC147: 0 | BD147: 0 | BE147: 0 | BF147: 0 | BG147: 0 | BH147: 0 | BI147: 0 | BJ147: 0 | BK147: 0 | BL147: 0 | BM147: 0 | BN147: 0 | BO147: 0 | BP147: 0 | BQ147: 0 | BR147: 0 | BS147: 0 | BT147: 0 | BU147: 1165193 | BV147: 0 | BW147: -1948 | BX147: 3815 | BY147: 0 | BZ147: 1167060 | CA147: 0 | CC147: 0 | CD147: 0 | CE147: 0 | CF147: 0 | CG147: 0 | CH147: 0 | CJ147: 0 | CK147: 0 | CL147: 0 | CM147: 0 | CN147: 0 | CO147: 0
A148: 2029-12-01 | B148: 143 | C148: 30000 | D148: 5661759 | E148: 51309 | F148: 0 | G148: -3079 | H148: 0 | I148: -9548 | J148: 18693 | K148: 0 | L148: 0 | M148: 0 | N148: 0 | O148: 0 | P148: 11870 | Q148: 0 | R148: 0 | S148: 0 | T148: 5731004 | U148: 0 | V148: 0 | W148: 0 | X148: 0 | Y148: 0 | Z148: 0 | AA148: 0 | AB148: 0 | AC148: 0 | AD148: 0 | AE148: 0 | AF148: 0 | AG148: 0 | AH148: 0 | AI148: 0 | AJ148: 0 | AK148: 214191 | AL148: 0 | AM148: 0 | AN148: 0 | AO148: 0 | AP148: -363 | AQ148: 711 | AR148: 513 | AS148: 2035 | AT148: 513 | AU148: 0 | AV148: 0 | AW148: 0 | AX148: 0 | AY148: 217600 | AZ148: 0 | BA148: 0 | BB148: 0 | BC148: 0 | BD148: 0 | BE148: 0 | BF148: 0 | BG148: 0 | BH148: 0 | BI148: 0 | BJ148: 0 | BK148: 0 | BL148: 0 | BM148: 0 | BN148: 0 | BO148: 0 | BP148: 0 | BQ148: 0 | BR148: 0 | BS148: 0 | BT148: 0 | BU148: 1167060 | BV148: 0 | BW148: -1951 | BX148: 3821 | BY148: 2421 | BZ148: 1171351 | CA148: 0 | CC148: 0 | CD148: 0 | CE148: 0 | CF148: 0 | CG148: 0 | CH148: 0 | CJ148: 0 | CK148: 0 | CL148: 0 | CM148: 0 | CN148: 0 | CO148: 0
A149: 2030-01-01 | B149: 144 | C149: 30000 | D149: 5731004 | E149: 51309 | F149: 0 | G149: -3079 | H149: 0 | I149: -9664 | J149: 18920 | K149: 0 | L149: 0 | M149: 0 | N149: 0 | O149: 0 | P149: 0 | Q149: 0 | R149: 0 | S149: 0 | T149: 5788490 | U149: 0 | V149: 0 | W149: 0 | X149: 0 | Y149: 0 | Z149: 0 | AA149: 0 | AB149: 0 | AC149: 0 | AD149: 0 | AE149: 0 | AF149: 0 | AG149: 0 | AH149: 0 | AI149: 0 | AJ149: 0 | AK149: 217600 | AL149: 0 | AM149: 0 | AN149: 0 | AO149: 0 | AP149: -369 | AQ149: 722 | AR149: 513 | AS149: 2035 | AT149: 513 | AU149: 0 | AV149: 0 | AW149: 0 | AX149: 0 | AY149: 221014 | AZ149: 0 | BA149: 0 | BB149: 0 | BC149: 0 | BD149: 0 | BE149: 0 | BF149: 0 | BG149: 0 | BH149: 0 | BI149: 0 | BJ149: 0 | BK149: 0 | BL149: 0 | BM149: 0 | BN149: 0 | BO149: 0 | BP149: 0 | BQ149: 0 | BR149: 0 | BS149: 0 | BT149: 0 | BU149: 1171351 | BV149: 0 | BW149: -1959 | BX149: 3835 | BY149: 0 | BZ149: 1173227 | CA149: 0 | CC149: 0 | CD149: 0 | CE149: 0 | CF149: 0 | CG149: 0 | CH149: 0 | CJ149: 0 | CK149: 0 | CL149: 0 | CM149: 0 | CN149: 0 | CO149: 0
A150: 2030-02-01 | B150: 145 | C150: 30000 | D150: 5788490 | E150: 53874 | F150: 0 | G150: -3232 | H150: 0 | I150: -9764 | J150: 19116 | K150: 0 | L150: 0 | M150: 0 | N150: 0 | O150: 0 | P150: 0 | Q150: 0 | R150: 0 | S150: 0 | T150: 5848484 | U150: 0 | V150: 0 | W150: 0 | X150: 0 | Y150: 0 | Z150: 0 | AA150: 0 | AB150: 0 | AC150: 0 | AD150: 0 | AE150: 0 | AF150: 0 | AG150: 0 | AH150: 0 | AI150: 0 | AJ150: 0 | AK150: 221014 | AL150: 0 | AM150: 0 | AN150: 0 | AO150: 0 | AP150: -375 | AQ150: 734 | AR150: 539 | AS150: 2035 | AT150: 539 | AU150: 0 | AV150: 0 | AW150: 0 | AX150: 0 | AY150: 224486 | AZ150: 0 | BA150: 0 | BB150: 0 | BC150: 0 | BD150: 0 | BE150: 0 | BF150: 0 | BG150: 0 | BH150: 0 | BI150: 0 | BJ150: 0 | BK150: 0 | BL150: 0 | BM150: 0 | BN150: 0 | BO150: 0 | BP150: 0 | BQ150: 0 | BR150: 0 | BS150: 0 | BT150: 0 | BU150: 1173227 | BV150: 0 | BW150: -1962 | BX150: 3841 | BY150: 0 | BZ150: 1175106 | CA150: 0 | CC150: 0 | CD150: 0 | CE150: 0 | CF150: 0 | CG150: 0 | CH150: 0 | CJ150: 0 | CK150: 0 | CL150: 0 | CM150: 0 | CN150: 0 | CO150: 0
A151: 2030-03-01 | B151: 146 | C151: 30000 | D151: 5848484 | E151: 53874 | F151: 0 | G151: -3232 | H151: 0 | I151: -9864 | J151: 19312 | K151: 0 | L151: 0 | M151: 0 | N151: 0 | O151: 0 | P151: 12274 | Q151: 0 | R151: 0 | S151: 0 | T151: 5920848 | U151: 0 | V151: 0 | W151: 0 | X151: 0 | Y151: 0 | Z151: 0 | AA151: 0 | AB151: 0 | AC151: 0 | AD151: 0 | AE151: 0 | AF151: 0 | AG151: 0 | AH151: 0 | AI151: 0 | AJ151: 0 | AK151: 224486 | AL151: 0 | AM151: 0 | AN151: 0 | AO151: 0 | AP151: -381 | AQ151: 745 | AR151: 539 | AS151: 2035 | AT151: 539 | AU151: 0 | AV151: 0 | AW151: 0 | AX151: 0 | AY151: 227963 | AZ151: 0 | BA151: 0 | BB151: 0 | BC151: 0 | BD151: 0 | BE151: 0 | BF151: 0 | BG151: 0 | BH151: 0 | BI151: 0 | BJ151: 0 | BK151: 0 | BL151: 0 | BM151: 0 | BN151: 0 | BO151: 0 | BP151: 0 | BQ151: 0 | BR151: 0 | BS151: 0 | BT151: 0 | BU151: 1175106 | BV151: 0 | BW151: -1965 | BX151: 3847 | BY151: 2438 | BZ151: 1179426 | CA151: 0 | CC151: 0 | CD151: 0 | CE151: 0 | CF151: 0 | CG151: 0 | CH151: 0 | CJ151: 0 | CK151: 0 | CL151: 0 | CM151: 0 | CN151: 0 | CO151: 0
A152: 2030-04-01 | B152: 147 | C152: 30000 | D152: 5920848 | E152: 53874 | F152: 0 | G152: -3232 | H152: 0 | I152: -9985 | J152: 19549 | K152: 0 | L152: 0 | M152: 0 | N152: 0 | O152: 0 | P152: 0 | Q152: 0 | R152: 0 | S152: 0 | T152: 5981054 | U152: 0 | V152: 0 | W152: 0 | X152: 0 | Y152: 0 | Z152: 0 | AA152: 0 | AB152: 0 | AC152: 0 | AD152: 0 | AE152: 0 | AF152: 0 | AG152: 0 | AH152: 0 | AI152: 0 | AJ152: 0 | AK152: 227963 | AL152: 0 | AM152: 0 | AN152: 0 | AO152: 0 | AP152: -386 | AQ152: 756 | AR152: 539 | AS152: 2035 | AT152: 539 | AU152: 0 | AV152: 0 | AW152: 0 | AX152: 0 | AY152: 231446 | AZ152: 0 | BA152: 0 | BB152: 0 | BC152: 0 | BD152: 0 | BE152: 0 | BF152: 0 | BG152: 0 | BH152: 0 | BI152: 0 | BJ152: 0 | BK152: 0 | BL152: 0 | BM152: 0 | BN152: 0 | BO152: 0 | BP152: 0 | BQ152: 0 | BR152: 0 | BS152: 0 | BT152: 0 | BU152: 1179426 | BV152: 122653 | BW152: -2177 | BX152: 4263 | BY152: 0 | BZ152: 1304165 | CA152: 0 | CC152: 0 | CD152: 0 | CE152: 0 | CF152: 0 | CG152: 0 | CH152: 0 | CJ152: 0 | CK152: 0 | CL152: 0 | CM152: 0 | CN152: 0 | CO152: 0
A153: 2030-05-01 | B153: 148 | C153: 30000 | D153: 5981054 | E153: 53874 | F153: 0 | G153: -3232 | H153: 0 | I153: -10086 | J153: 19746 | K153: 0 | L153: 0 | M153: 0 | N153: 0 | O153: 0 | P153: 0 | Q153: 0 | R153: 0 | S153: 0 | T153: 6041356 | U153: 0 | V153: 0 | W153: 0 | X153: 0 | Y153: 0 | Z153: 0 | AA153: 0 | AB153: 0 | AC153: 0 | AD153: 0 | AE153: 0 | AF153: 0 | AG153: 0 | AH153: 0 | AI153: 0 | AJ153: 0 | AK153: 231446 | AL153: 0 | AM153: 0 | AN153: 0 | AO153: 0 | AP153: -392 | AQ153: 768 | AR153: 539 | AS153: 2035 | AT153: 539 | AU153: 0 | AV153: 0 | AW153: 0 | AX153: 0 | AY153: 234935 | AZ153: 0 | BA153: 0 | BB153: 0 | BC153: 0 | BD153: 0 | BE153: 0 | BF153: 0 | BG153: 0 | BH153: 0 | BI153: 0 | BJ153: 0 | BK153: 0 | BL153: 0 | BM153: 0 | BN153: 0 | BO153: 0 | BP153: 0 | BQ153: 0 | BR153: 0 | BS153: 0 | BT153: 0 | BU153: 1304165 | BV153: 0 | BW153: -2181 | BX153: 4269 | BY153: 0 | BZ153: 1306253 | CA153: 0 | CC153: 0 | CD153: 0 | CE153: 0 | CF153: 0 | CG153: 0 | CH153: 0 | CJ153: 0 | CK153: 0 | CL153: 0 | CM153: 0 | CN153: 0 | CO153: 0
A154: 2030-06-01 | B154: 149 | C154: 30000 | D154: 6041356 | E154: 53874 | F154: 0 | G154: -3232 | H154: 0 | I154: -10187 | J154: 19944 | K154: 0 | L154: 0 | M154: 0 | N154: 0 | O154: 0 | P154: 12410 | Q154: 0 | R154: 0 | S154: 0 | T154: 6114165 | U154: 0 | V154: 0 | W154: 0 | X154: 0 | Y154: 0 | Z154: 0 | AA154: 0 | AB154: 0 | AC154: 0 | AD154: 0 | AE154: 0 | AF154: 0 | AG154: 0 | AH154: 0 | AI154: 0 | AJ154: 0 | AK154: 234935 | AL154: 0 | AM154: 0 | AN154: 0 | AO154: 0 | AP154: -398 | AQ154: 779 | AR154: 539 | AS154: 2035 | AT154: 539 | AU154: 0 | AV154: 0 | AW154: 0 | AX154: 0 | AY154: 238429 | AZ154: 0 | BA154: 0 | BB154: 0 | BC154: 0 | BD154: 0 | BE154: 0 | BF154: 0 | BG154: 0 | BH154: 0 | BI154: 0 | BJ154: 0 | BK154: 0 | BL154: 0 | BM154: 0 | BN154: 0 | BO154: 0 | BP154: 0 | BQ154: 0 | BR154: 0 | BS154: 0 | BT154: 0 | BU154: 1306253 | BV154: 0 | BW154: -2184 | BX154: 4276 | BY154: 2401 | BZ154: 1310746 | CA154: 0 | CC154: 0 | CD154: 0 | CE154: 0 | CF154: 0 | CG154: 0 | CH154: 0 | CJ154: 0 | CK154: 0 | CL154: 0 | CM154: 0 | CN154: 0 | CO154: 0
A155: 2030-07-01 | B155: 150 | C155: 30000 | D155: 6114165 | E155: 53874 | F155: 0 | G155: -3232 | H155: 0 | I155: -10308 | J155: 20182 | K155: 0 | L155: 0 | M155: 0 | N155: 0 | O155: 0 | P155: 0 | Q155: 0 | R155: 0 | S155: 0 | T155: 6174681 | U155: 0 | V155: 0 | W155: 0 | X155: 0 | Y155: 0 | Z155: 0 | AA155: 0 | AB155: 0 | AC155: 0 | AD155: 0 | AE155: 0 | AF155: 0 | AG155: 0 | AH155: 0 | AI155: 0 | AJ155: 0 | AK155: 238429 | AL155: 0 | AM155: 0 | AN155: 0 | AO155: 0 | AP155: -404 | AQ155: 791 | AR155: 539 | AS155: 2035 | AT155: 539 | AU155: 0 | AV155: 0 | AW155: 0 | AX155: 0 | AY155: 241929 | AZ155: 0 | BA155: 0 | BB155: 0 | BC155: 0 | BD155: 0 | BE155: 0 | BF155: 0 | BG155: 0 | BH155: 0 | BI155: 0 | BJ155: 0 | BK155: 0 | BL155: 0 | BM155: 0 | BN155: 0 | BO155: 0 | BP155: 0 | BQ155: 0 | BR155: 0 | BS155: 0 | BT155: 0 | BU155: 1310746 | BV155: 0 | BW155: -2192 | BX155: 4291 | BY155: 0 | BZ155: 1312845 | CA155: 0 | CC155: 0 | CD155: 0 | CE155: 0 | CF155: 0 | CG155: 0 | CH155: 0 | CJ155: 0 | CK155: 0 | CL155: 0 | CM155: 0 | CN155: 0 | CO155: 0
A156: 2030-08-01 | B156: 151 | C156: 30000 | D156: 6174681 | E156: 53874 | F156: 0 | G156: -3232 | H156: 0 | I156: -10410 | J156: 20380 | K156: 0 | L156: 0 | M156: 0 | N156: 0 | O156: 0 | P156: 0 | Q156: 0 | R156: 0 | S156: 0 | T156: 6235293 | U156: 0 | V156: 0 | W156: 0 | X156: 0 | Y156: 0 | Z156: 0 | AA156: 0 | AB156: 0 | AC156: 0 | AD156: 0 | AE156: 0 | AF156: 0 | AG156: 0 | AH156: 0 | AI156: 0 | AJ156: 0 | AK156: 241929 | AL156: 0 | AM156: 0 | AN156: 0 | AO156: 0 | AP156: -410 | AQ156: 802 | AR156: 539 | AS156: 2035 | AT156: 539 | AU156: 0 | AV156: 0 | AW156: 0 | AX156: 0 | AY156: 245434 | AZ156: 0 | BA156: 0 | BB156: 0 | BC156: 0 | BD156: 0 | BE156: 0 | BF156: 0 | BG156: 0 | BH156: 0 | BI156: 0 | BJ156: 0 | BK156: 0 | BL156: 0 | BM156: 0 | BN156: 0 | BO156: 0 | BP156: 0 | BQ156: 0 | BR156: 0 | BS156: 0 | BT156: 0 | BU156: 1312845 | BV156: 0 | BW156: -2195 | BX156: 4298 | BY156: 0 | BZ156: 1314948 | CA156: 0 | CC156: 0 | CD156: 0 | CE156: 0 | CF156: 0 | CG156: 0 | CH156: 0 | CJ156: 0 | CK156: 0 | CL156: 0 | CM156: 0 | CN156: 0 | CO156: 0
A157: 2030-09-01 | B157: 152 | C157: 30000 | D157: 6235293 | E157: 53874 | F157: 0 | G157: -3232 | H157: 0 | I157: -10511 | J157: 20579 | K157: 0 | L157: 0 | M157: 0 | N157: 0 | O157: 0 | P157: 12968 | Q157: 0 | R157: 0 | S157: 0 | T157: 6308971 | U157: 0 | V157: 0 | W157: 0 | X157: 0 | Y157: 0 | Z157: 0 | AA157: 0 | AB157: 0 | AC157: 0 | AD157: 0 | AE157: 0 | AF157: 0 | AG157: 0 | AH157: 0 | AI157: 0 | AJ157: 0 | AK157: 245434 | AL157: 0 | AM157: 0 | AN157: 0 | AO157: 0 | AP157: -416 | AQ157: 814 | AR157: 539 | AS157: 2035 | AT157: 539 | AU157: 0 | AV157: 0 | AW157: 0 | AX157: 0 | AY157: 248945 | AZ157: 0 | BA157: 0 | BB157: 0 | BC157: 0 | BD157: 0 | BE157: 0 | BF157: 0 | BG157: 0 | BH157: 0 | BI157: 0 | BJ157: 0 | BK157: 0 | BL157: 0 | BM157: 0 | BN157: 0 | BO157: 0 | BP157: 0 | BQ157: 0 | BR157: 0 | BS157: 0 | BT157: 0 | BU157: 1314948 | BV157: 0 | BW157: -2199 | BX157: 4305 | BY157: 2699 | BZ157: 1319753 | CA157: 0 | CC157: 0 | CD157: 0 | CE157: 0 | CF157: 0 | CG157: 0 | CH157: 0 | CJ157: 0 | CK157: 0 | CL157: 0 | CM157: 0 | CN157: 0 | CO157: 0
A158: 2030-10-01 | B158: 153 | C158: 30000 | D158: 6308971 | E158: 53874 | F158: 0 | G158: -3232 | H158: 0 | I158: -10634 | J158: 20820 | K158: 0 | L158: 0 | M158: 0 | N158: 0 | O158: 0 | P158: 0 | Q158: 0 | R158: 0 | S158: 0 | T158: 6369799 | U158: 0 | V158: 0 | W158: 0 | X158: 0 | Y158: 0 | Z158: 0 | AA158: 0 | AB158: 0 | AC158: 0 | AD158: 0 | AE158: 0 | AF158: 0 | AG158: 0 | AH158: 0 | AI158: 0 | AJ158: 0 | AK158: 248945 | AL158: 0 | AM158: 0 | AN158: 0 | AO158: 0 | AP158: -421 | AQ158: 825 | AR158: 539 | AS158: 2035 | AT158: 539 | AU158: 0 | AV158: 0 | AW158: 0 | AX158: 0 | AY158: 252462 | AZ158: 0 | BA158: 0 | BB158: 0 | BC158: 0 | BD158: 0 | BE158: 0 | BF158: 0 | BG158: 0 | BH158: 0 | BI158: 0 | BJ158: 0 | BK158: 0 | BL158: 0 | BM158: 0 | BN158: 0 | BO158: 0 | BP158: 0 | BQ158: 0 | BR158: 0 | BS158: 0 | BT158: 0 | BU158: 1319753 | BV158: 0 | BW158: -2207 | BX158: 4321 | BY158: 0 | BZ158: 1321867 | CA158: 0 | CC158: 0 | CD158: 0 | CE158: 0 | CF158: 0 | CG158: 0 | CH158: 0 | CJ158: 0 | CK158: 0 | CL158: 0 | CM158: 0 | CN158: 0 | CO158: 0
A159: 2030-11-01 | B159: 154 | C159: 30000 | D159: 6369799 | E159: 53874 | F159: 0 | G159: -3232 | H159: 0 | I159: -10736 | J159: 21019 | K159: 0 | L159: 0 | M159: 0 | N159: 0 | O159: 0 | P159: 0 | Q159: 0 | R159: 0 | S159: 0 | T159: 6430724 | U159: 0 | V159: 0 | W159: 0 | X159: 0 | Y159: 0 | Z159: 0 | AA159: 0 | AB159: 0 | AC159: 0 | AD159: 0 | AE159: 0 | AF159: 0 | AG159: 0 | AH159: 0 | AI159: 0 | AJ159: 0 | AK159: 252462 | AL159: 0 | AM159: 0 | AN159: 0 | AO159: 0 | AP159: -427 | AQ159: 837 | AR159: 539 | AS159: 2035 | AT159: 539 | AU159: 0 | AV159: 0 | AW159: 0 | AX159: 0 | AY159: 255985 | AZ159: 0 | BA159: 0 | BB159: 0 | BC159: 0 | BD159: 0 | BE159: 0 | BF159: 0 | BG159: 0 | BH159: 0 | BI159: 0 | BJ159: 0 | BK159: 0 | BL159: 0 | BM159: 0 | BN159: 0 | BO159: 0 | BP159: 0 | BQ159: 0 | BR159: 0 | BS159: 0 | BT159: 0 | BU159: 1321867 | BV159: 0 | BW159: -2210 | BX159: 4327 | BY159: 0 | BZ159: 1323984 | CA159: 0 | CC159: 0 | CD159: 0 | CE159: 0 | CF159: 0 | CG159: 0 | CH159: 0 | CJ159: 0 | CK159: 0 | CL159: 0 | CM159: 0 | CN159: 0 | CO159: 0
A160: 2030-12-01 | B160: 155 | C160: 30000 | D160: 6430724 | E160: 53874 | F160: 0 | G160: -3232 | H160: 0 | I160: -10838 | J160: 21218 | K160: 0 | L160: 0 | M160: 0 | N160: 0 | O160: 0 | P160: 13537 | Q160: 0 | R160: 0 | S160: 0 | T160: 6505283 | U160: 0 | V160: 0 | W160: 0 | X160: 0 | Y160: 0 | Z160: 0 | AA160: 0 | AB160: 0 | AC160: 0 | AD160: 0 | AE160: 0 | AF160: 0 | AG160: 0 | AH160: 0 | AI160: 0 | AJ160: 0 | AK160: 255985 | AL160: 0 | AM160: 0 | AN160: 0 | AO160: 0 | AP160: -433 | AQ160: 848 | AR160: 539 | AS160: 2035 | AT160: 539 | AU160: 0 | AV160: 0 | AW160: 0 | AX160: 0 | AY160: 259513 | AZ160: 0 | BA160: 0 | BB160: 0 | BC160: 0 | BD160: 0 | BE160: 0 | BF160: 0 | BG160: 0 | BH160: 0 | BI160: 0 | BJ160: 0 | BK160: 0 | BL160: 0 | BM160: 0 | BN160: 0 | BO160: 0 | BP160: 0 | BQ160: 0 | BR160: 0 | BS160: 0 | BT160: 0 | BU160: 1323984 | BV160: 0 | BW160: -2214 | BX160: 4334 | BY160: 2747 | BZ160: 1328851 | CA160: 0 | CC160: 0 | CD160: 0 | CE160: 0 | CF160: 0 | CG160: 0 | CH160: 0 | CJ160: 0 | CK160: 0 | CL160: 0 | CM160: 0 | CN160: 0 | CO160: 0
A161: 2031-01-01 | B161: 156 | C161: 30000 | D161: 6505283 | E161: 53874 | F161: 0 | G161: -3232 | H161: 0 | I161: -10962 | J161: 21462 | K161: 0 | L161: 0 | M161: 0 | N161: 0 | O161: 0 | P161: 0 | Q161: 0 | R161: 0 | S161: 0 | T161: 6566425 | U161: 0 | V161: 0 | W161: 0 | X161: 0 | Y161: 0 | Z161: 0 | AA161: 0 | AB161: 0 | AC161: 0 | AD161: 0 | AE161: 0 | AF161: 0 | AG161: 0 | AH161: 0 | AI161: 0 | AJ161: 0 | AK161: 259513 | AL161: 0 | AM161: 0 | AN161: 0 | AO161: 0 | AP161: -439 | AQ161: 860 | AR161: 539 | AS161: 2035 | AT161: 539 | AU161: 0 | AV161: 0 | AW161: 0 | AX161: 0 | AY161: 263047 | AZ161: 0 | BA161: 0 | BB161: 0 | BC161: 0 | BD161: 0 | BE161: 0 | BF161: 0 | BG161: 0 | BH161: 0 | BI161: 0 | BJ161: 0 | BK161: 0 | BL161: 0 | BM161: 0 | BN161: 0 | BO161: 0 | BP161: 0 | BQ161: 0 | BR161: 0 | BS161: 0 | BT161: 0 | BU161: 1328851 | BV161: 0 | BW161: -2222 | BX161: 4350 | BY161: 0 | BZ161: 1330979 | CA161: 0 | CC161: 0 | CD161: 0 | CE161: 0 | CF161: 0 | CG161: 0 | CH161: 0 | CJ161: 0 | CK161: 0 | CL161: 0 | CM161: 0 | CN161: 0 | CO161: 0
A162: 2031-02-01 | B162: 157 | C162: 30000 | D162: 6566425 | E162: 56568 | F162: 0 | G162: -3394 | H162: 0 | I162: -11069 | J162: 21671 | K162: 0 | L162: 0 | M162: 0 | N162: 0 | O162: 0 | P162: 0 | Q162: 0 | R162: 0 | S162: 0 | T162: 6630201 | U162: 0 | V162: 0 | W162: 0 | X162: 0 | Y162: 0 | Z162: 0 | AA162: 0 | AB162: 0 | AC162: 0 | AD162: 0 | AE162: 0 | AF162: 0 | AG162: 0 | AH162: 0 | AI162: 0 | AJ162: 0 | AK162: 263047 | AL162: 0 | AM162: 0 | AN162: 0 | AO162: 0 | AP162: -445 | AQ162: 872 | AR162: 566 | AS162: 2035 | AT162: 566 | AU162: 0 | AV162: 0 | AW162: 0 | AX162: 0 | AY162: 266641 | AZ162: 0 | BA162: 0 | BB162: 0 | BC162: 0 | BD162: 0 | BE162: 0 | BF162: 0 | BG162: 0 | BH162: 0 | BI162: 0 | BJ162: 0 | BK162: 0 | BL162: 0 | BM162: 0 | BN162: 0 | BO162: 0 | BP162: 0 | BQ162: 0 | BR162: 0 | BS162: 0 | BT162: 0 | BU162: 1330979 | BV162: 0 | BW162: -2226 | BX162: 4357 | BY162: 0 | BZ162: 1333110 | CA162: 0 | CC162: 0 | CD162: 0 | CE162: 0 | CF162: 0 | CG162: 0 | CH162: 0 | CJ162: 0 | CK162: 0 | CL162: 0 | CM162: 0 | CN162: 0 | CO162: 0
A163: 2031-03-01 | B163: 158 | C163: 30000 | D163: 6630201 | E163: 56568 | F163: 0 | G163: -3394 | H163: 0 | I163: -11175 | J163: 21880 | K163: 0 | L163: 0 | M163: 0 | N163: 0 | O163: 0 | P163: 13968 | Q163: 0 | R163: 0 | S163: 0 | T163: 6708048 | U163: 0 | V163: 0 | W163: 0 | X163: 0 | Y163: 0 | Z163: 0 | AA163: 0 | AB163: 0 | AC163: 0 | AD163: 0 | AE163: 0 | AF163: 0 | AG163: 0 | AH163: 0 | AI163: 0 | AJ163: 0 | AK163: 266641 | AL163: 0 | AM163: 0 | AN163: 0 | AO163: 0 | AP163: -451 | AQ163: 883 | AR163: 566 | AS163: 2035 | AT163: 566 | AU163: 0 | AV163: 0 | AW163: 0 | AX163: 0 | AY163: 270240 | AZ163: 0 | BA163: 0 | BB163: 0 | BC163: 0 | BD163: 0 | BE163: 0 | BF163: 0 | BG163: 0 | BH163: 0 | BI163: 0 | BJ163: 0 | BK163: 0 | BL163: 0 | BM163: 0 | BN163: 0 | BO163: 0 | BP163: 0 | BQ163: 0 | BR163: 0 | BS163: 0 | BT163: 0 | BU163: 1333110 | BV163: 0 | BW163: -2229 | BX163: 4364 | BY163: 2766 | BZ163: 1338011 | CA163: 0 | CC163: 0 | CD163: 0 | CE163: 0 | CF163: 0 | CG163: 0 | CH163: 0 | CJ163: 0 | CK163: 0 | CL163: 0 | CM163: 0 | CN163: 0 | CO163: 0
A164: 2031-04-01 | B164: 159 | C164: 30000 | D164: 6708048 | E164: 56568 | F164: 0 | G164: -3394 | H164: 0 | I164: -11306 | J164: 22134 | K164: 0 | L164: 0 | M164: 0 | N164: 0 | O164: 0 | P164: 0 | Q164: 0 | R164: 0 | S164: 0 | T164: 6772050 | U164: 0 | V164: 0 | W164: 0 | X164: 0 | Y164: 0 | Z164: 0 | AA164: 0 | AB164: 0 | AC164: 0 | AD164: 0 | AE164: 0 | AF164: 0 | AG164: 0 | AH164: 0 | AI164: 0 | AJ164: 0 | AK164: 270240 | AL164: 0 | AM164: 0 | AN164: 0 | AO164: 0 | AP164: -457 | AQ164: 895 | AR164: 566 | AS164: 2035 | AT164: 566 | AU164: 0 | AV164: 0 | AW164: 0 | AX164: 0 | AY164: 273845 | AZ164: 0 | BA164: 0 | BB164: 0 | BC164: 0 | BD164: 0 | BE164: 0 | BF164: 0 | BG164: 0 | BH164: 0 | BI164: 0 | BJ164: 0 | BK164: 0 | BL164: 0 | BM164: 0 | BN164: 0 | BO164: 0 | BP164: 0 | BQ164: 0 | BR164: 0 | BS164: 0 | BT164: 0 | BU164: 1338011 | BV164: 128785 | BW164: -2453 | BX164: 4802 | BY164: 0 | BZ164: 1469145 | CA164: 0 | CC164: 0 | CD164: 0 | CE164: 0 | CF164: 0 | CG164: 0 | CH164: 0 | CJ164: 0 | CK164: 0 | CL164: 0 | CM164: 0 | CN164: 0 | CO164: 0
A165: 2031-05-01 | B165: 160 | C165: 30000 | D165: 6772050 | E165: 56568 | F165: 0 | G165: -3394 | H165: 0 | I165: -11413 | J165: 22344 | K165: 0 | L165: 0 | M165: 0 | N165: 0 | O165: 0 | P165: 0 | Q165: 0 | R165: 0 | S165: 0 | T165: 6836155 | U165: 0 | V165: 0 | W165: 0 | X165: 0 | Y165: 0 | Z165: 0 | AA165: 0 | AB165: 0 | AC165: 0 | AD165: 0 | AE165: 0 | AF165: 0 | AG165: 0 | AH165: 0 | AI165: 0 | AJ165: 0 | AK165: 273845 | AL165: 0 | AM165: 0 | AN165: 0 | AO165: 0 | AP165: -463 | AQ165: 907 | AR165: 566 | AS165: 2035 | AT165: 566 | AU165: 0 | AV165: 0 | AW165: 0 | AX165: 0 | AY165: 277456 | AZ165: 0 | BA165: 0 | BB165: 0 | BC165: 0 | BD165: 0 | BE165: 0 | BF165: 0 | BG165: 0 | BH165: 0 | BI165: 0 | BJ165: 0 | BK165: 0 | BL165: 0 | BM165: 0 | BN165: 0 | BO165: 0 | BP165: 0 | BQ165: 0 | BR165: 0 | BS165: 0 | BT165: 0 | BU165: 1469145 | BV165: 0 | BW165: -2457 | BX165: 4810 | BY165: 0 | BZ165: 1471498 | CA165: 0 | CC165: 0 | CD165: 0 | CE165: 0 | CF165: 0 | CG165: 0 | CH165: 0 | CJ165: 0 | CK165: 0 | CL165: 0 | CM165: 0 | CN165: 0 | CO165: 0
A166: 2031-06-01 | B166: 161 | C166: 30000 | D166: 6836155 | E166: 56568 | F166: 0 | G166: -3394 | H166: 0 | I166: -11520 | J166: 22554 | K166: 0 | L166: 0 | M166: 0 | N166: 0 | O166: 0 | P166: 14094 | Q166: 0 | R166: 0 | S166: 0 | T166: 6914457 | U166: 0 | V166: 0 | W166: 0 | X166: 0 | Y166: 0 | Z166: 0 | AA166: 0 | AB166: 0 | AC166: 0 | AD166: 0 | AE166: 0 | AF166: 0 | AG166: 0 | AH166: 0 | AI166: 0 | AJ166: 0 | AK166: 277456 | AL166: 0 | AM166: 0 | AN166: 0 | AO166: 0 | AP166: -469 | AQ166: 919 | AR166: 566 | AS166: 2035 | AT166: 566 | AU166: 0 | AV166: 0 | AW166: 0 | AX166: 0 | AY166: 281073 | AZ166: 0 | BA166: 0 | BB166: 0 | BC166: 0 | BD166: 0 | BE166: 0 | BF166: 0 | BG166: 0 | BH166: 0 | BI166: 0 | BJ166: 0 | BK166: 0 | BL166: 0 | BM166: 0 | BN166: 0 | BO166: 0 | BP166: 0 | BQ166: 0 | BR166: 0 | BS166: 0 | BT166: 0 | BU166: 1471498 | BV166: 0 | BW166: -2461 | BX166: 4817 | BY166: 2724 | BZ166: 1476578 | CA166: 0 | CC166: 0 | CD166: 0 | CE166: 0 | CF166: 0 | CG166: 0 | CH166: 0 | CJ166: 0 | CK166: 0 | CL166: 0 | CM166: 0 | CN166: 0 | CO166: 0
A167: 2031-07-01 | B167: 162 | C167: 30000 | D167: 6914457 | E167: 56568 | F167: 0 | G167: -3394 | H167: 0 | I167: -11651 | J167: 22810 | K167: 0 | L167: 0 | M167: 0 | N167: 0 | O167: 0 | P167: 0 | Q167: 0 | R167: 0 | S167: 0 | T167: 6978790 | U167: 0 | V167: 0 | W167: 0 | X167: 0 | Y167: 0 | Z167: 0 | AA167: 0 | AB167: 0 | AC167: 0 | AD167: 0 | AE167: 0 | AF167: 0 | AG167: 0 | AH167: 0 | AI167: 0 | AJ167: 0 | AK167: 281073 | AL167: 0 | AM167: 0 | AN167: 0 | AO167: 0 | AP167: -475 | AQ167: 931 | AR167: 566 | AS167: 2035 | AT167: 566 | AU167: 0 | AV167: 0 | AW167: 0 | AX167: 0 | AY167: 284696 | AZ167: 0 | BA167: 0 | BB167: 0 | BC167: 0 | BD167: 0 | BE167: 0 | BF167: 0 | BG167: 0 | BH167: 0 | BI167: 0 | BJ167: 0 | BK167: 0 | BL167: 0 | BM167: 0 | BN167: 0 | BO167: 0 | BP167: 0 | BQ167: 0 | BR167: 0 | BS167: 0 | BT167: 0 | BU167: 1476578 | BV167: 0 | BW167: -2469 | BX167: 4834 | BY167: 0 | BZ167: 1478943 | CA167: 0 | CC167: 0 | CD167: 0 | CE167: 0 | CF167: 0 | CG167: 0 | CH167: 0 | CJ167: 0 | CK167: 0 | CL167: 0 | CM167: 0 | CN167: 0 | CO167: 0
A168: 2031-08-01 | B168: 163 | C168: 30000 | D168: 6978790 | E168: 56568 | F168: 0 | G168: -3394 | H168: 0 | I168: -11758 | J168: 23021 | K168: 0 | L168: 0 | M168: 0 | N168: 0 | O168: 0 | P168: 0 | Q168: 0 | R168: 0 | S168: 0 | T168: 7043227 | U168: 0 | V168: 0 | W168: 0 | X168: 0 | Y168: 0 | Z168: 0 | AA168: 0 | AB168: 0 | AC168: 0 | AD168: 0 | AE168: 0 | AF168: 0 | AG168: 0 | AH168: 0 | AI168: 0 | AJ168: 0 | AK168: 284696 | AL168: 0 | AM168: 0 | AN168: 0 | AO168: 0 | AP168: -481 | AQ168: 942 | AR168: 566 | AS168: 2035 | AT168: 566 | AU168: 0 | AV168: 0 | AW168: 0 | AX168: 0 | AY168: 288324 | AZ168: 0 | BA168: 0 | BB168: 0 | BC168: 0 | BD168: 0 | BE168: 0 | BF168: 0 | BG168: 0 | BH168: 0 | BI168: 0 | BJ168: 0 | BK168: 0 | BL168: 0 | BM168: 0 | BN168: 0 | BO168: 0 | BP168: 0 | BQ168: 0 | BR168: 0 | BS168: 0 | BT168: 0 | BU168: 1478943 | BV168: 0 | BW168: -2473 | BX168: 4842 | BY168: 0 | BZ168: 1481312 | CA168: 0 | CC168: 0 | CD168: 0 | CE168: 0 | CF168: 0 | CG168: 0 | CH168: 0 | CJ168: 0 | CK168: 0 | CL168: 0 | CM168: 0 | CN168: 0 | CO168: 0
A169: 2031-09-01 | B169: 164 | C169: 30000 | D169: 7043227 | E169: 56568 | F169: 0 | G169: -3394 | H169: 0 | I169: -11866 | J169: 23232 | K169: 0 | L169: 0 | M169: 0 | N169: 0 | O169: 0 | P169: 14698 | Q169: 0 | R169: 0 | S169: 0 | T169: 7122465 | U169: 0 | V169: 0 | W169: 0 | X169: 0 | Y169: 0 | Z169: 0 | AA169: 0 | AB169: 0 | AC169: 0 | AD169: 0 | AE169: 0 | AF169: 0 | AG169: 0 | AH169: 0 | AI169: 0 | AJ169: 0 | AK169: 288324 | AL169: 0 | AM169: 0 | AN169: 0 | AO169: 0 | AP169: -487 | AQ169: 954 | AR169: 566 | AS169: 2035 | AT169: 566 | AU169: 0 | AV169: 0 | AW169: 0 | AX169: 0 | AY169: 291958 | AZ169: 0 | BA169: 0 | BB169: 0 | BC169: 0 | BD169: 0 | BE169: 0 | BF169: 0 | BG169: 0 | BH169: 0 | BI169: 0 | BJ169: 0 | BK169: 0 | BL169: 0 | BM169: 0 | BN169: 0 | BO169: 0 | BP169: 0 | BQ169: 0 | BR169: 0 | BS169: 0 | BT169: 0 | BU169: 1481312 | BV169: 0 | BW169: -2477 | BX169: 4849 | BY169: 3040 | BZ169: 1486724 | CA169: 0 | CC169: 0 | CD169: 0 | CE169: 0 | CF169: 0 | CG169: 0 | CH169: 0 | CJ169: 0 | CK169: 0 | CL169: 0 | CM169: 0 | CN169: 0 | CO169: 0
A170: 2031-10-01 | B170: 165 | C170: 30000 | D170: 7122465 | E170: 56568 | F170: 0 | G170: -3394 | H170: 0 | I170: -11999 | J170: 23491 | K170: 0 | L170: 0 | M170: 0 | N170: 0 | O170: 0 | P170: 0 | Q170: 0 | R170: 0 | S170: 0 | T170: 7187131 | U170: 0 | V170: 0 | W170: 0 | X170: 0 | Y170: 0 | Z170: 0 | AA170: 0 | AB170: 0 | AC170: 0 | AD170: 0 | AE170: 0 | AF170: 0 | AG170: 0 | AH170: 0 | AI170: 0 | AJ170: 0 | AK170: 291958 | AL170: 0 | AM170: 0 | AN170: 0 | AO170: 0 | AP170: -493 | AQ170: 966 | AR170: 566 | AS170: 2035 | AT170: 566 | AU170: 0 | AV170: 0 | AW170: 0 | AX170: 0 | AY170: 295598 | AZ170: 0 | BA170: 0 | BB170: 0 | BC170: 0 | BD170: 0 | BE170: 0 | BF170: 0 | BG170: 0 | BH170: 0 | BI170: 0 | BJ170: 0 | BK170: 0 | BL170: 0 | BM170: 0 | BN170: 0 | BO170: 0 | BP170: 0 | BQ170: 0 | BR170: 0 | BS170: 0 | BT170: 0 | BU170: 1486724 | BV170: 0 | BW170: -2486 | BX170: 4867 | BY170: 0 | BZ170: 1489105 | CA170: 0 | CC170: 0 | CD170: 0 | CE170: 0 | CF170: 0 | CG170: 0 | CH170: 0 | CJ170: 0 | CK170: 0 | CL170: 0 | CM170: 0 | CN170: 0 | CO170: 0
A171: 2031-11-01 | B171: 166 | C171: 30000 | D171: 7187131 | E171: 56568 | F171: 0 | G171: -3394 | H171: 0 | I171: -12107 | J171: 23703 | K171: 0 | L171: 0 | M171: 0 | N171: 0 | O171: 0 | P171: 0 | Q171: 0 | R171: 0 | S171: 0 | T171: 7251901 | U171: 0 | V171: 0 | W171: 0 | X171: 0 | Y171: 0 | Z171: 0 | AA171: 0 | AB171: 0 | AC171: 0 | AD171: 0 | AE171: 0 | AF171: 0 | AG171: 0 | AH171: 0 | AI171: 0 | AJ171: 0 | AK171: 295598 | AL171: 0 | AM171: 0 | AN171: 0 | AO171: 0 | AP171: -500 | AQ171: 978 | AR171: 566 | AS171: 2035 | AT171: 566 | AU171: 0 | AV171: 0 | AW171: 0 | AX171: 0 | AY171: 299243 | AZ171: 0 | BA171: 0 | BB171: 0 | BC171: 0 | BD171: 0 | BE171: 0 | BF171: 0 | BG171: 0 | BH171: 0 | BI171: 0 | BJ171: 0 | BK171: 0 | BL171: 0 | BM171: 0 | BN171: 0 | BO171: 0 | BP171: 0 | BQ171: 0 | BR171: 0 | BS171: 0 | BT171: 0 | BU171: 1489105 | BV171: 0 | BW171: -2490 | BX171: 4875 | BY171: 0 | BZ171: 1491490 | CA171: 0 | CC171: 0 | CD171: 0 | CE171: 0 | CF171: 0 | CG171: 0 | CH171: 0 | CJ171: 0 | CK171: 0 | CL171: 0 | CM171: 0 | CN171: 0 | CO171: 0
A172: 2031-12-01 | B172: 167 | C172: 30000 | D172: 7251901 | E172: 56568 | F172: 0 | G172: -3394 | H172: 0 | I172: -12215 | J172: 23915 | K172: 0 | L172: 0 | M172: 0 | N172: 0 | O172: 0 | P172: 15313 | Q172: 0 | R172: 0 | S172: 0 | T172: 7332088 | U172: 0 | V172: 0 | W172: 0 | X172: 0 | Y172: 0 | Z172: 0 | AA172: 0 | AB172: 0 | AC172: 0 | AD172: 0 | AE172: 0 | AF172: 0 | AG172: 0 | AH172: 0 | AI172: 0 | AJ172: 0 | AK172: 299243 | AL172: 0 | AM172: 0 | AN172: 0 | AO172: 0 | AP172: -506 | AQ172: 990 | AR172: 566 | AS172: 2035 | AT172: 566 | AU172: 0 | AV172: 0 | AW172: 0 | AX172: 0 | AY172: 302894 | AZ172: 0 | BA172: 0 | BB172: 0 | BC172: 0 | BD172: 0 | BE172: 0 | BF172: 0 | BG172: 0 | BH172: 0 | BI172: 0 | BJ172: 0 | BK172: 0 | BL172: 0 | BM172: 0 | BN172: 0 | BO172: 0 | BP172: 0 | BQ172: 0 | BR172: 0 | BS172: 0 | BT172: 0 | BU172: 1491490 | BV172: 0 | BW172: -2494 | BX172: 4883 | BY172: 3094 | BZ172: 1496973 | CA172: 0 | CC172: 0 | CD172: 0 | CE172: 0 | CF172: 0 | CG172: 0 | CH172: 0 | CJ172: 0 | CK172: 0 | CL172: 0 | CM172: 0 | CN172: 0 | CO172: 0
A173: 2032-01-01 | B173: 168 | C173: 30000 | D173: 7332088 | E173: 56568 | F173: 0 | G173: -3394 | H173: 0 | I173: -12349 | J173: 24177 | K173: 0 | L173: 0 | M173: 0 | N173: 0 | O173: 0 | P173: 0 | Q173: 0 | R173: 0 | S173: 0 | T173: 7397090 | U173: 0 | V173: 0 | W173: 0 | X173: 0 | Y173: 0 | Z173: 0 | AA173: 0 | AB173: 0 | AC173: 0 | AD173: 0 | AE173: 0 | AF173: 0 | AG173: 0 | AH173: 0 | AI173: 0 | AJ173: 0 | AK173: 302894 | AL173: 0 | AM173: 0 | AN173: 0 | AO173: 0 | AP173: -512 | AQ173: 1002 | AR173: 566 | AS173: 2035 | AT173: 566 | AU173: 0 | AV173: 0 | AW173: 0 | AX173: 0 | AY173: 306551 | AZ173: 0 | BA173: 0 | BB173: 0 | BC173: 0 | BD173: 0 | BE173: 0 | BF173: 0 | BG173: 0 | BH173: 0 | BI173: 0 | BJ173: 0 | BK173: 0 | BL173: 0 | BM173: 0 | BN173: 0 | BO173: 0 | BP173: 0 | BQ173: 0 | BR173: 0 | BS173: 0 | BT173: 0 | BU173: 1496973 | BV173: 0 | BW173: -2503 | BX173: 4901 | BY173: 0 | BZ173: 1499371 | CA173: 0 | CC173: 0 | CD173: 0 | CE173: 0 | CF173: 0 | CG173: 0 | CH173: 0 | CJ173: 0 | CK173: 0 | CL173: 0 | CM173: 0 | CN173: 0 | CO173: 0
A174: 2032-02-01 | B174: 169 | C174: 30000 | D174: 7397090 | E174: 59396 | F174: 0 | G174: -3564 | H174: 0 | I174: -12462 | J174: 24399 | K174: 0 | L174: 0 | M174: 0 | N174: 0 | O174: 0 | P174: 0 | Q174: 0 | R174: 0 | S174: 0 | T174: 7464859 | U174: 0 | V174: 0 | W174: 0 | X174: 0 | Y174: 0 | Z174: 0 | AA174: 0 | AB174: 0 | AC174: 0 | AD174: 0 | AE174: 0 | AF174: 0 | AG174: 0 | AH174: 0 | AI174: 0 | AJ174: 0 | AK174: 306551 | AL174: 0 | AM174: 0 | AN174: 0 | AO174: 0 | AP174: -518 | AQ174: 1014 | AR174: 594 | AS174: 2035 | AT174: 594 | AU174: 0 | AV174: 0 | AW174: 0 | AX174: 0 | AY174: 310270 | AZ174: 0 | BA174: 0 | BB174: 0 | BC174: 0 | BD174: 0 | BE174: 0 | BF174: 0 | BG174: 0 | BH174: 0 | BI174: 0 | BJ174: 0 | BK174: 0 | BL174: 0 | BM174: 0 | BN174: 0 | BO174: 0 | BP174: 0 | BQ174: 0 | BR174: 0 | BS174: 0 | BT174: 0 | BU174: 1499371 | BV174: 0 | BW174: -2507 | BX174: 4909 | BY174: 0 | BZ174: 1501773 | CA174: 0 | CC174: 0 | CD174: 0 | CE174: 0 | CF174: 0 | CG174: 0 | CH174: 0 | CJ174: 0 | CK174: 0 | CL174: 0 | CM174: 0 | CN174: 0 | CO174: 0
A175: 2032-03-01 | B175: 170 | C175: 30000 | D175: 7464859 | E175: 59396 | F175: 0 | G175: -3564 | H175: 0 | I175: -12576 | J175: 24621 | K175: 0 | L175: 0 | M175: 0 | N175: 0 | O175: 0 | P175: 15774 | Q175: 0 | R175: 0 | S175: 0 | T175: 7548510 | U175: 0 | V175: 0 | W175: 0 | X175: 0 | Y175: 0 | Z175: 0 | AA175: 0 | AB175: 0 | AC175: 0 | AD175: 0 | AE175: 0 | AF175: 0 | AG175: 0 | AH175: 0 | AI175: 0 | AJ175: 0 | AK175: 310270 | AL175: 0 | AM175: 0 | AN175: 0 | AO175: 0 | AP175: -524 | AQ175: 1026 | AR175: 594 | AS175: 2035 | AT175: 594 | AU175: 0 | AV175: 0 | AW175: 0 | AX175: 0 | AY175: 313995 | AZ175: 0 | BA175: 0 | BB175: 0 | BC175: 0 | BD175: 0 | BE175: 0 | BF175: 0 | BG175: 0 | BH175: 0 | BI175: 0 | BJ175: 0 | BK175: 0 | BL175: 0 | BM175: 0 | BN175: 0 | BO175: 0 | BP175: 0 | BQ175: 0 | BR175: 0 | BS175: 0 | BT175: 0 | BU175: 1501773 | BV175: 0 | BW175: -2511 | BX175: 4916 | BY175: 3116 | BZ175: 1507294 | CA175: 0 | CC175: 0 | CD175: 0 | CE175: 0 | CF175: 0 | CG175: 0 | CH175: 0 | CJ175: 0 | CK175: 0 | CL175: 0 | CM175: 0 | CN175: 0 | CO175: 0
A176: 2032-04-01 | B176: 171 | C176: 30000 | D176: 7548510 | E176: 59396 | F176: 0 | G176: -3564 | H176: 0 | I176: -12715 | J176: 24895 | K176: 0 | L176: 0 | M176: 0 | N176: 0 | O176: 0 | P176: 0 | Q176: 0 | R176: 0 | S176: 0 | T176: 7616522 | U176: 0 | V176: 0 | W176: 0 | X176: 0 | Y176: 0 | Z176: 0 | AA176: 0 | AB176: 0 | AC176: 0 | AD176: 0 | AE176: 0 | AF176: 0 | AG176: 0 | AH176: 0 | AI176: 0 | AJ176: 0 | AK176: 313995 | AL176: 0 | AM176: 0 | AN176: 0 | AO176: 0 | AP176: -530 | AQ176: 1038 | AR176: 594 | AS176: 2035 | AT176: 594 | AU176: 0 | AV176: 0 | AW176: 0 | AX176: 0 | AY176: 317726 | AZ176: 0 | BA176: 0 | BB176: 0 | BC176: 0 | BD176: 0 | BE176: 0 | BF176: 0 | BG176: 0 | BH176: 0 | BI176: 0 | BJ176: 0 | BK176: 0 | BL176: 0 | BM176: 0 | BN176: 0 | BO176: 0 | BP176: 0 | BQ176: 0 | BR176: 0 | BS176: 0 | BT176: 0 | BU176: 1507294 | BV176: 130000 | BW176: -2738 | BX176: 5360 | BY176: 0 | BZ176: 1639916 | CA176: 0 | CC176: 0 | CD176: 0 | CE176: 0 | CF176: 0 | CG176: 0 | CH176: 0 | CJ176: 0 | CK176: 0 | CL176: 0 | CM176: 0 | CN176: 0 | CO176: 0
A177: 2032-05-01 | B177: 172 | C177: 30000 | D177: 7616522 | E177: 59396 | F177: 0 | G177: -3564 | H177: 0 | I177: -12829 | J177: 25117 | K177: 0 | L177: 0 | M177: 0 | N177: 0 | O177: 0 | P177: 0 | Q177: 0 | R177: 0 | S177: 0 | T177: 7684642 | U177: 0 | V177: 0 | W177: 0 | X177: 0 | Y177: 0 | Z177: 0 | AA177: 0 | AB177: 0 | AC177: 0 | AD177: 0 | AE177: 0 | AF177: 0 | AG177: 0 | AH177: 0 | AI177: 0 | AJ177: 0 | AK177: 317726 | AL177: 0 | AM177: 0 | AN177: 0 | AO177: 0 | AP177: -537 | AQ177: 1051 | AR177: 594 | AS177: 2035 | AT177: 594 | AU177: 0 | AV177: 0 | AW177: 0 | AX177: 0 | AY177: 321463 | AZ177: 0 | BA177: 0 | BB177: 0 | BC177: 0 | BD177: 0 | BE177: 0 | BF177: 0 | BG177: 0 | BH177: 0 | BI177: 0 | BJ177: 0 | BK177: 0 | BL177: 0 | BM177: 0 | BN177: 0 | BO177: 0 | BP177: 0 | BQ177: 0 | BR177: 0 | BS177: 0 | BT177: 0 | BU177: 1639916 | BV177: 0 | BW177: -2742 | BX177: 5369 | BY177: 0 | BZ177: 1642543 | CA177: 0 | CC177: 0 | CD177: 0 | CE177: 0 | CF177: 0 | CG177: 0 | CH177: 0 | CJ177: 0 | CK177: 0 | CL177: 0 | CM177: 0 | CN177: 0 | CO177: 0
A178: 2032-06-01 | B178: 173 | C178: 30000 | D178: 7684642 | E178: 59396 | F178: 0 | G178: -3564 | H178: 0 | I178: -12943 | J178: 25340 | K178: 0 | L178: 0 | M178: 0 | N178: 0 | O178: 0 | P178: 16065 | Q178: 0 | R178: 0 | S178: 0 | T178: 7768936 | U178: 0 | V178: 0 | W178: 0 | X178: 0 | Y178: 0 | Z178: 0 | AA178: 0 | AB178: 0 | AC178: 0 | AD178: 0 | AE178: 0 | AF178: 0 | AG178: 0 | AH178: 0 | AI178: 0 | AJ178: 0 | AK178: 321463 | AL178: 0 | AM178: 0 | AN178: 0 | AO178: 0 | AP178: -543 | AQ178: 1063 | AR178: 594 | AS178: 2035 | AT178: 594 | AU178: 0 | AV178: 0 | AW178: 0 | AX178: 0 | AY178: 325206 | AZ178: 0 | BA178: 0 | BB178: 0 | BC178: 0 | BD178: 0 | BE178: 0 | BF178: 0 | BG178: 0 | BH178: 0 | BI178: 0 | BJ178: 0 | BK178: 0 | BL178: 0 | BM178: 0 | BN178: 0 | BO178: 0 | BP178: 0 | BQ178: 0 | BR178: 0 | BS178: 0 | BT178: 0 | BU178: 1642543 | BV178: 0 | BW178: -2747 | BX178: 5377 | BY178: 3103 | BZ178: 1648276 | CA178: 0 | CC178: 0 | CD178: 0 | CE178: 0 | CF178: 0 | CG178: 0 | CH178: 0 | CJ178: 0 | CK178: 0 | CL178: 0 | CM178: 0 | CN178: 0 | CO178: 0
A179: 2032-07-01 | B179: 174 | C179: 30000 | D179: 7768936 | E179: 59396 | F179: 0 | G179: -3564 | H179: 0 | I179: -13084 | J179: 25616 | K179: 0 | L179: 0 | M179: 0 | N179: 0 | O179: 0 | P179: 0 | Q179: 0 | R179: 0 | S179: 0 | T179: 7837300 | U179: 0 | V179: 0 | W179: 0 | X179: 0 | Y179: 0 | Z179: 0 | AA179: 0 | AB179: 0 | AC179: 0 | AD179: 0 | AE179: 0 | AF179: 0 | AG179: 0 | AH179: 0 | AI179: 0 | AJ179: 0 | AK179: 325206 | AL179: 0 | AM179: 0 | AN179: 0 | AO179: 0 | AP179: -549 | AQ179: 1075 | AR179: 594 | AS179: 2035 | AT179: 594 | AU179: 0 | AV179: 0 | AW179: 0 | AX179: 0 | AY179: 328955 | AZ179: 0 | BA179: 0 | BB179: 0 | BC179: 0 | BD179: 0 | BE179: 0 | BF179: 0 | BG179: 0 | BH179: 0 | BI179: 0 | BJ179: 0 | BK179: 0 | BL179: 0 | BM179: 0 | BN179: 0 | BO179: 0 | BP179: 0 | BQ179: 0 | BR179: 0 | BS179: 0 | BT179: 0 | BU179: 1648276 | BV179: 0 | BW179: -2756 | BX179: 5396 | BY179: 0 | BZ179: 1650916 | CA179: 0 | CC179: 0 | CD179: 0 | CE179: 0 | CF179: 0 | CG179: 0 | CH179: 0 | CJ179: 0 | CK179: 0 | CL179: 0 | CM179: 0 | CN179: 0 | CO179: 0
A180: 2032-08-01 | B180: 175 | C180: 30000 | D180: 7837300 | E180: 59396 | F180: 0 | G180: -3564 | H180: 0 | I180: -13198 | J180: 25840 | K180: 0 | L180: 0 | M180: 0 | N180: 0 | O180: 0 | P180: 0 | Q180: 0 | R180: 0 | S180: 0 | T180: 7905774 | U180: 0 | V180: 0 | W180: 0 | X180: 0 | Y180: 0 | Z180: 0 | AA180: 0 | AB180: 0 | AC180: 0 | AD180: 0 | AE180: 0 | AF180: 0 | AG180: 0 | AH180: 0 | AI180: 0 | AJ180: 0 | AK180: 328955 | AL180: 0 | AM180: 0 | AN180: 0 | AO180: 0 | AP180: -555 | AQ180: 1087 | AR180: 594 | AS180: 2035 | AT180: 594 | AU180: 0 | AV180: 0 | AW180: 0 | AX180: 0 | AY180: 332710 | AZ180: 0 | BA180: 0 | BB180: 0 | BC180: 0 | BD180: 0 | BE180: 0 | BF180: 0 | BG180: 0 | BH180: 0 | BI180: 0 | BJ180: 0 | BK180: 0 | BL180: 0 | BM180: 0 | BN180: 0 | BO180: 0 | BP180: 0 | BQ180: 0 | BR180: 0 | BS180: 0 | BT180: 0 | BU180: 1650916 | BV180: 0 | BW180: -2761 | BX180: 5405 | BY180: 0 | BZ180: 1653560 | CA180: 0 | CC180: 0 | CD180: 0 | CE180: 0 | CF180: 0 | CG180: 0 | CH180: 0 | CJ180: 0 | CK180: 0 | CL180: 0 | CM180: 0 | CN180: 0 | CO180: 0
A181: 2032-09-01 | B181: 176 | C181: 30000 | D181: 7905774 | E181: 59396 | F181: 0 | G181: -3564 | H181: 0 | I181: -13313 | J181: 26064 | K181: 0 | L181: 0 | M181: 0 | N181: 0 | O181: 0 | P181: 16542 | Q181: 0 | R181: 0 | S181: 0 | T181: 7990899 | U181: 0 | V181: 0 | W181: 0 | X181: 0 | Y181: 0 | Z181: 0 | AA181: 0 | AB181: 0 | AC181: 0 | AD181: 0 | AE181: 0 | AF181: 0 | AG181: 0 | AH181: 0 | AI181: 0 | AJ181: 0 | AK181: 332710 | AL181: 0 | AM181: 0 | AN181: 0 | AO181: 0 | AP181: -562 | AQ181: 1100 | AR181: 594 | AS181: 2035 | AT181: 594 | AU181: 0 | AV181: 0 | AW181: 0 | AX181: 0 | AY181: 336471 | AZ181: 0 | BA181: 0 | BB181: 0 | BC181: 0 | BD181: 0 | BE181: 0 | BF181: 0 | BG181: 0 | BH181: 0 | BI181: 0 | BJ181: 0 | BK181: 0 | BL181: 0 | BM181: 0 | BN181: 0 | BO181: 0 | BP181: 0 | BQ181: 0 | BR181: 0 | BS181: 0 | BT181: 0 | BU181: 1653560 | BV181: 0 | BW181: -2765 | BX181: 5413 | BY181: 3394 | BZ181: 1659602 | CA181: 0 | CC181: 0 | CD181: 0 | CE181: 0 | CF181: 0 | CG181: 0 | CH181: 0 | CJ181: 0 | CK181: 0 | CL181: 0 | CM181: 0 | CN181: 0 | CO181: 0
A182: 2032-10-01 | B182: 177 | C182: 30000 | D182: 7990899 | E182: 59396 | F182: 0 | G182: -3564 | H182: 0 | I182: -13455 | J182: 26343 | K182: 0 | L182: 0 | M182: 0 | N182: 0 | O182: 0 | P182: 0 | Q182: 0 | R182: 0 | S182: 0 | T182: 8059619 | U182: 0 | V182: 0 | W182: 0 | X182: 0 | Y182: 0 | Z182: 0 | AA182: 0 | AB182: 0 | AC182: 0 | AD182: 0 | AE182: 0 | AF182: 0 | AG182: 0 | AH182: 0 | AI182: 0 | AJ182: 0 | AK182: 336471 | AL182: 0 | AM182: 0 | AN182: 0 | AO182: 0 | AP182: -568 | AQ182: 1112 | AR182: 594 | AS182: 2035 | AT182: 594 | AU182: 0 | AV182: 0 | AW182: 0 | AX182: 0 | AY182: 340238 | AZ182: 0 | BA182: 0 | BB182: 0 | BC182: 0 | BD182: 0 | BE182: 0 | BF182: 0 | BG182: 0 | BH182: 0 | BI182: 0 | BJ182: 0 | BK182: 0 | BL182: 0 | BM182: 0 | BN182: 0 | BO182: 0 | BP182: 0 | BQ182: 0 | BR182: 0 | BS182: 0 | BT182: 0 | BU182: 1659602 | BV182: 0 | BW182: -2775 | BX182: 5433 | BY182: 0 | BZ182: 1662260 | CA182: 0 | CC182: 0 | CD182: 0 | CE182: 0 | CF182: 0 | CG182: 0 | CH182: 0 | CJ182: 0 | CK182: 0 | CL182: 0 | CM182: 0 | CN182: 0 | CO182: 0
A183: 2032-11-01 | B183: 178 | C183: 30000 | D183: 8059619 | E183: 59396 | F183: 0 | G183: -3564 | H183: 0 | I183: -13570 | J183: 26568 | K183: 0 | L183: 0 | M183: 0 | N183: 0 | O183: 0 | P183: 0 | Q183: 0 | R183: 0 | S183: 0 | T183: 8128449 | U183: 0 | V183: 0 | W183: 0 | X183: 0 | Y183: 0 | Z183: 0 | AA183: 0 | AB183: 0 | AC183: 0 | AD183: 0 | AE183: 0 | AF183: 0 | AG183: 0 | AH183: 0 | AI183: 0 | AJ183: 0 | AK183: 340238 | AL183: 0 | AM183: 0 | AN183: 0 | AO183: 0 | AP183: -574 | AQ183: 1124 | AR183: 594 | AS183: 2035 | AT183: 594 | AU183: 0 | AV183: 0 | AW183: 0 | AX183: 0 | AY183: 344011 | AZ183: 0 | BA183: 0 | BB183: 0 | BC183: 0 | BD183: 0 | BE183: 0 | BF183: 0 | BG183: 0 | BH183: 0 | BI183: 0 | BJ183: 0 | BK183: 0 | BL183: 0 | BM183: 0 | BN183: 0 | BO183: 0 | BP183: 0 | BQ183: 0 | BR183: 0 | BS183: 0 | BT183: 0 | BU183: 1662260 | BV183: 0 | BW183: -2780 | BX183: 5442 | BY183: 0 | BZ183: 1664922 | CA183: 0 | CC183: 0 | CD183: 0 | CE183: 0 | CF183: 0 | CG183: 0 | CH183: 0 | CJ183: 0 | CK183: 0 | CL183: 0 | CM183: 0 | CN183: 0 | CO183: 0
A184: 2032-12-01 | B184: 179 | C184: 30000 | D184: 8128449 | E184: 59396 | F184: 0 | G184: -3564 | H184: 0 | I184: -13685 | J184: 26793 | K184: 0 | L184: 0 | M184: 0 | N184: 0 | O184: 0 | P184: 17208 | Q184: 0 | R184: 0 | S184: 0 | T184: 8214597 | U184: 0 | V184: 0 | W184: 0 | X184: 0 | Y184: 0 | Z184: 0 | AA184: 0 | AB184: 0 | AC184: 0 | AD184: 0 | AE184: 0 | AF184: 0 | AG184: 0 | AH184: 0 | AI184: 0 | AJ184: 0 | AK184: 344011 | AL184: 0 | AM184: 0 | AN184: 0 | AO184: 0 | AP184: -581 | AQ184: 1137 | AR184: 594 | AS184: 2035 | AT184: 594 | AU184: 0 | AV184: 0 | AW184: 0 | AX184: 0 | AY184: 347790 | AZ184: 0 | BA184: 0 | BB184: 0 | BC184: 0 | BD184: 0 | BE184: 0 | BF184: 0 | BG184: 0 | BH184: 0 | BI184: 0 | BJ184: 0 | BK184: 0 | BL184: 0 | BM184: 0 | BN184: 0 | BO184: 0 | BP184: 0 | BQ184: 0 | BR184: 0 | BS184: 0 | BT184: 0 | BU184: 1664922 | BV184: 0 | BW184: -2784 | BX184: 5451 | BY184: 3454 | BZ184: 1671043 | CA184: 0 | CC184: 0 | CD184: 0 | CE184: 0 | CF184: 0 | CG184: 0 | CH184: 0 | CJ184: 0 | CK184: 0 | CL184: 0 | CM184: 0 | CN184: 0 | CO184: 0
A185: 2033-01-01 | B185: 180 | C185: 30000 | D185: 8214597 | E185: 59396 | F185: 0 | G185: -3564 | H185: 0 | I185: -13829 | J185: 27075 | K185: 0 | L185: 0 | M185: 0 | N185: 0 | O185: 0 | P185: 0 | Q185: 175788 | R185: 0 | S185: 0 | T185: 8459463 | U185: 0 | V185: 0 | W185: 0 | X185: 0 | Y185: 0 | Z185: 0 | AA185: 0 | AB185: 0 | AC185: 0 | AD185: 0 | AE185: 0 | AF185: 0 | AG185: 0 | AH185: 0 | AI185: 0 | AJ185: 0 | AK185: 347790 | AL185: 0 | AM185: 0 | AN185: 0 | AO185: 0 | AP185: -587 | AQ185: 1149 | AR185: 594 | AS185: 2035 | AT185: 594 | AU185: 0 | AV185: 0 | AW185: -175788 | AX185: 0 | AY185: 175787 | AZ185: 0 | BA185: 0 | BB185: 0 | BC185: 0 | BD185: 0 | BE185: 0 | BF185: 0 | BG185: 0 | BH185: 0 | BI185: 0 | BJ185: 0 | BK185: 0 | BL185: 0 | BM185: 0 | BN185: 0 | BO185: 0 | BP185: 0 | BQ185: 0 | BR185: 0 | BS185: 0 | BT185: 0 | BU185: 1671043 | BV185: 0 | BW185: -2794 | BX185: 5471 | BY185: 0 | BZ185: 1673720 | CA185: 0 | CC185: 0 | CD185: 0 | CE185: 0 | CF185: 0 | CG185: 0 | CH185: 0 | CJ185: 0 | CK185: 0 | CL185: 0 | CM185: 0 | CN185: 0 | CO185: 0
A186: 2033-02-01 | B186: 181 | C186: 30000 | D186: 8459463 | E186: 62366 | F186: 0 | G186: -3742 | H186: 0 | I186: -14243 | J186: 27886 | K186: 0 | L186: 0 | M186: 0 | N186: 0 | O186: 0 | P186: 0 | Q186: 0 | R186: 0 | S186: 0 | T186: 8531730 | U186: 0 | V186: 0 | W186: 0 | X186: 0 | Y186: 0 | Z186: 0 | AA186: 0 | AB186: 0 | AC186: 0 | AD186: 0 | AE186: 0 | AF186: 0 | AG186: 0 | AH186: 0 | AI186: 0 | AJ186: 0 | AK186: 175787 | AL186: 0 | AM186: 0 | AN186: 0 | AO186: 0 | AP186: -301 | AQ186: 590 | AR186: 624 | AS186: 3255 | AT186: 624 | AU186: 0 | AV186: 0 | AW186: 0 | AX186: 0 | AY186: 180579 | AZ186: 0 | BA186: 0 | BB186: 0 | BC186: 0 | BD186: 0 | BE186: 0 | BF186: 0 | BG186: 0 | BH186: 0 | BI186: 0 | BJ186: 0 | BK186: 0 | BL186: 0 | BM186: 0 | BN186: 0 | BO186: 0 | BP186: 0 | BQ186: 0 | BR186: 0 | BS186: 0 | BT186: 0 | BU186: 1673720 | BV186: 0 | BW186: -2799 | BX186: 5479 | BY186: 0 | BZ186: 1676400 | CA186: 0 | CC186: 0 | CD186: 0 | CE186: 0 | CF186: 0 | CG186: 0 | CH186: 0 | CJ186: 0 | CK186: 0 | CL186: 0 | CM186: 0 | CN186: 0 | CO186: 0
A187: 2033-03-01 | B187: 182 | C187: 30000 | D187: 8531730 | E187: 62366 | F187: 0 | G187: -3742 | H187: 0 | I187: -14364 | J187: 28123 | K187: 0 | L187: 0 | M187: 0 | N187: 0 | O187: 0 | P187: 17699 | Q187: 0 | R187: 0 | S187: 0 | T187: 8621812 | U187: 0 | V187: 0 | W187: 0 | X187: 0 | Y187: 0 | Z187: 0 | AA187: 0 | AB187: 0 | AC187: 0 | AD187: 0 | AE187: 0 | AF187: 0 | AG187: 0 | AH187: 0 | AI187: 0 | AJ187: 0 | AK187: 180579 | AL187: 0 | AM187: 0 | AN187: 0 | AO187: 0 | AP187: -309 | AQ187: 606 | AR187: 624 | AS187: 3255 | AT187: 624 | AU187: 0 | AV187: 0 | AW187: 0 | AX187: 0 | AY187: 185379 | AZ187: 0 | BA187: 0 | BB187: 0 | BC187: 0 | BD187: 0 | BE187: 0 | BF187: 0 | BG187: 0 | BH187: 0 | BI187: 0 | BJ187: 0 | BK187: 0 | BL187: 0 | BM187: 0 | BN187: 0 | BO187: 0 | BP187: 0 | BQ187: 0 | BR187: 0 | BS187: 0 | BT187: 0 | BU187: 1676400 | BV187: 0 | BW187: -2803 | BX187: 5488 | BY187: 3478 | BZ187: 1682563 | CA187: 0 | CC187: 0 | CD187: 0 | CE187: 0 | CF187: 0 | CG187: 0 | CH187: 0 | CJ187: 0 | CK187: 0 | CL187: 0 | CM187: 0 | CN187: 0 | CO187: 0
A188: 2033-04-01 | B188: 183 | C188: 30000 | D188: 8621812 | E188: 62366 | F188: 0 | G188: -3742 | H188: 0 | I188: -14515 | J188: 28417 | K188: 0 | L188: 0 | M188: 0 | N188: 0 | O188: 0 | P188: 0 | Q188: 0 | R188: 0 | S188: 0 | T188: 8694338 | U188: 0 | V188: 0 | W188: 0 | X188: 0 | Y188: 0 | Z188: 0 | AA188: 0 | AB188: 0 | AC188: 0 | AD188: 0 | AE188: 0 | AF188: 0 | AG188: 0 | AH188: 0 | AI188: 0 | AJ188: 0 | AK188: 185379 | AL188: 0 | AM188: 0 | AN188: 0 | AO188: 0 | AP188: -318 | AQ188: 622 | AR188: 624 | AS188: 3255 | AT188: 624 | AU188: 0 | AV188: 0 | AW188: 0 | AX188: 0 | AY188: 190186 | AZ188: 0 | BA188: 0 | BB188: 0 | BC188: 0 | BD188: 0 | BE188: 0 | BF188: 0 | BG188: 0 | BH188: 0 | BI188: 0 | BJ188: 0 | BK188: 0 | BL188: 0 | BM188: 0 | BN188: 0 | BO188: 0 | BP188: 0 | BQ188: 0 | BR188: 0 | BS188: 0 | BT188: 0 | BU188: 1682563 | BV188: 130000 | BW188: -3031 | BX188: 5934 | BY188: 0 | BZ188: 1815466 | CA188: 0 | CC188: 0 | CD188: 0 | CE188: 0 | CF188: 0 | CG188: 0 | CH188: 0 | CJ188: 0 | CK188: 0 | CL188: 0 | CM188: 0 | CN188: 0 | CO188: 0
A189: 2033-05-01 | B189: 184 | C189: 30000 | D189: 8694338 | E189: 62366 | F189: 0 | G189: -3742 | H189: 0 | I189: -14636 | J189: 28655 | K189: 0 | L189: 0 | M189: 0 | N189: 0 | O189: 0 | P189: 0 | Q189: 0 | R189: 0 | S189: 0 | T189: 8766981 | U189: 0 | V189: 0 | W189: 0 | X189: 0 | Y189: 0 | Z189: 0 | AA189: 0 | AB189: 0 | AC189: 0 | AD189: 0 | AE189: 0 | AF189: 0 | AG189: 0 | AH189: 0 | AI189: 0 | AJ189: 0 | AK189: 190186 | AL189: 0 | AM189: 0 | AN189: 0 | AO189: 0 | AP189: -326 | AQ189: 637 | AR189: 624 | AS189: 3255 | AT189: 624 | AU189: 0 | AV189: 0 | AW189: 0 | AX189: 0 | AY189: 195000 | AZ189: 0 | BA189: 0 | BB189: 0 | BC189: 0 | BD189: 0 | BE189: 0 | BF189: 0 | BG189: 0 | BH189: 0 | BI189: 0 | BJ189: 0 | BK189: 0 | BL189: 0 | BM189: 0 | BN189: 0 | BO189: 0 | BP189: 0 | BQ189: 0 | BR189: 0 | BS189: 0 | BT189: 0 | BU189: 1815466 | BV189: 0 | BW189: -3036 | BX189: 5943 | BY189: 0 | BZ189: 1818373 | CA189: 0 | CC189: 0 | CD189: 0 | CE189: 0 | CF189: 0 | CG189: 0 | CH189: 0 | CJ189: 0 | CK189: 0 | CL189: 0 | CM189: 0 | CN189: 0 | CO189: 0
A190: 2033-06-01 | B190: 185 | C190: 30000 | D190: 8766981 | E190: 62366 | F190: 0 | G190: -3742 | H190: 0 | I190: -14758 | J190: 28893 | K190: 0 | L190: 0 | M190: 0 | N190: 0 | O190: 0 | P190: 17804 | Q190: 0 | R190: 0 | S190: 0 | T190: 8857544 | U190: 0 | V190: 0 | W190: 0 | X190: 0 | Y190: 0 | Z190: 0 | AA190: 0 | AB190: 0 | AC190: 0 | AD190: 0 | AE190: 0 | AF190: 0 | AG190: 0 | AH190: 0 | AI190: 0 | AJ190: 0 | AK190: 195000 | AL190: 0 | AM190: 0 | AN190: 0 | AO190: 0 | AP190: -334 | AQ190: 653 | AR190: 624 | AS190: 3255 | AT190: 624 | AU190: 0 | AV190: 0 | AW190: 0 | AX190: 0 | AY190: 199822 | AZ190: 0 | BA190: 0 | BB190: 0 | BC190: 0 | BD190: 0 | BE190: 0 | BF190: 0 | BG190: 0 | BH190: 0 | BI190: 0 | BJ190: 0 | BK190: 0 | BL190: 0 | BM190: 0 | BN190: 0 | BO190: 0 | BP190: 0 | BQ190: 0 | BR190: 0 | BS190: 0 | BT190: 0 | BU190: 1818373 | BV190: 0 | BW190: -3041 | BX190: 5953 | BY190: 3426 | BZ190: 1824711 | CA190: 0 | CC190: 0 | CD190: 0 | CE190: 0 | CF190: 0 | CG190: 0 | CH190: 0 | CJ190: 0 | CK190: 0 | CL190: 0 | CM190: 0 | CN190: 0 | CO190: 0
A191: 2033-07-01 | B191: 186 | C191: 30000 | D191: 8857544 | E191: 62366 | F191: 0 | G191: -3742 | H191: 0 | I191: -14909 | J191: 29189 | K191: 0 | L191: 0 | M191: 0 | N191: 0 | O191: 0 | P191: 0 | Q191: 0 | R191: 0 | S191: 0 | T191: 8930448 | U191: 0 | V191: 0 | W191: 0 | X191: 0 | Y191: 0 | Z191: 0 | AA191: 0 | AB191: 0 | AC191: 0 | AD191: 0 | AE191: 0 | AF191: 0 | AG191: 0 | AH191: 0 | AI191: 0 | AJ191: 0 | AK191: 199822 | AL191: 0 | AM191: 0 | AN191: 0 | AO191: 0 | AP191: -342 | AQ191: 669 | AR191: 624 | AS191: 3255 | AT191: 624 | AU191: 0 | AV191: 0 | AW191: 0 | AX191: 0 | AY191: 204652 | AZ191: 0 | BA191: 0 | BB191: 0 | BC191: 0 | BD191: 0 | BE191: 0 | BF191: 0 | BG191: 0 | BH191: 0 | BI191: 0 | BJ191: 0 | BK191: 0 | BL191: 0 | BM191: 0 | BN191: 0 | BO191: 0 | BP191: 0 | BQ191: 0 | BR191: 0 | BS191: 0 | BT191: 0 | BU191: 1824711 | BV191: 0 | BW191: -3051 | BX191: 5974 | BY191: 0 | BZ191: 1827634 | CA191: 0 | CC191: 0 | CD191: 0 | CE191: 0 | CF191: 0 | CG191: 0 | CH191: 0 | CJ191: 0 | CK191: 0 | CL191: 0 | CM191: 0 | CN191: 0 | CO191: 0
A192: 2033-08-01 | B192: 187 | C192: 30000 | D192: 8930448 | E192: 62366 | F192: 0 | G192: -3742 | H192: 0 | I192: -15031 | J192: 29428 | K192: 0 | L192: 0 | M192: 0 | N192: 0 | O192: 0 | P192: 0 | Q192: 0 | R192: 0 | S192: 0 | T192: 9003469 | U192: 0 | V192: 0 | W192: 0 | X192: 0 | Y192: 0 | Z192: 0 | AA192: 0 | AB192: 0 | AC192: 0 | AD192: 0 | AE192: 0 | AF192: 0 | AG192: 0 | AH192: 0 | AI192: 0 | AJ192: 0 | AK192: 204652 | AL192: 0 | AM192: 0 | AN192: 0 | AO192: 0 | AP192: -350 | AQ192: 685 | AR192: 624 | AS192: 3255 | AT192: 624 | AU192: 0 | AV192: 0 | AW192: 0 | AX192: 0 | AY192: 209490 | AZ192: 0 | BA192: 0 | BB192: 0 | BC192: 0 | BD192: 0 | BE192: 0 | BF192: 0 | BG192: 0 | BH192: 0 | BI192: 0 | BJ192: 0 | BK192: 0 | BL192: 0 | BM192: 0 | BN192: 0 | BO192: 0 | BP192: 0 | BQ192: 0 | BR192: 0 | BS192: 0 | BT192: 0 | BU192: 1827634 | BV192: 0 | BW192: -3056 | BX192: 5983 | BY192: 0 | BZ192: 1830561 | CA192: 0 | CC192: 0 | CD192: 0 | CE192: 0 | CF192: 0 | CG192: 0 | CH192: 0 | CJ192: 0 | CK192: 0 | CL192: 0 | CM192: 0 | CN192: 0 | CO192: 0
A193: 2033-09-01 | B193: 188 | C193: 30000 | D193: 9003469 | E193: 62366 | F193: 0 | G193: -3742 | H193: 0 | I193: -15153 | J193: 29667 | K193: 0 | L193: 0 | M193: 0 | N193: 0 | O193: 0 | P193: 18517 | Q193: 0 | R193: 0 | S193: 0 | T193: 9095124 | U193: 0 | V193: 0 | W193: 0 | X193: 0 | Y193: 0 | Z193: 0 | AA193: 0 | AB193: 0 | AC193: 0 | AD193: 0 | AE193: 0 | AF193: 0 | AG193: 0 | AH193: 0 | AI193: 0 | AJ193: 0 | AK193: 209490 | AL193: 0 | AM193: 0 | AN193: 0 | AO193: 0 | AP193: -358 | AQ193: 701 | AR193: 624 | AS193: 3255 | AT193: 624 | AU193: 0 | AV193: 0 | AW193: 0 | AX193: 0 | AY193: 214336 | AZ193: 0 | BA193: 0 | BB193: 0 | BC193: 0 | BD193: 0 | BE193: 0 | BF193: 0 | BG193: 0 | BH193: 0 | BI193: 0 | BJ193: 0 | BK193: 0 | BL193: 0 | BM193: 0 | BN193: 0 | BO193: 0 | BP193: 0 | BQ193: 0 | BR193: 0 | BS193: 0 | BT193: 0 | BU193: 1830561 | BV193: 0 | BW193: -3061 | BX193: 5993 | BY193: 3757 | BZ193: 1837250 | CA193: 0 | CC193: 0 | CD193: 0 | CE193: 0 | CF193: 0 | CG193: 0 | CH193: 0 | CJ193: 0 | CK193: 0 | CL193: 0 | CM193: 0 | CN193: 0 | CO193: 0
A194: 2033-10-01 | B194: 189 | C194: 30000 | D194: 9095124 | E194: 62366 | F194: 0 | G194: -3742 | H194: 0 | I194: -15306 | J194: 29967 | K194: 0 | L194: 0 | M194: 0 | N194: 0 | O194: 0 | P194: 0 | Q194: 0 | R194: 0 | S194: 0 | T194: 9168409 | U194: 0 | V194: 0 | W194: 0 | X194: 0 | Y194: 0 | Z194: 0 | AA194: 0 | AB194: 0 | AC194: 0 | AD194: 0 | AE194: 0 | AF194: 0 | AG194: 0 | AH194: 0 | AI194: 0 | AJ194: 0 | AK194: 214336 | AL194: 0 | AM194: 0 | AN194: 0 | AO194: 0 | AP194: -366 | AQ194: 716 | AR194: 624 | AS194: 3255 | AT194: 624 | AU194: 0 | AV194: 0 | AW194: 0 | AX194: 0 | AY194: 219189 | AZ194: 0 | BA194: 0 | BB194: 0 | BC194: 0 | BD194: 0 | BE194: 0 | BF194: 0 | BG194: 0 | BH194: 0 | BI194: 0 | BJ194: 0 | BK194: 0 | BL194: 0 | BM194: 0 | BN194: 0 | BO194: 0 | BP194: 0 | BQ194: 0 | BR194: 0 | BS194: 0 | BT194: 0 | BU194: 1837250 | BV194: 0 | BW194: -3072 | BX194: 6015 | BY194: 0 | BZ194: 1840193 | CA194: 0 | CC194: 0 | CD194: 0 | CE194: 0 | CF194: 0 | CG194: 0 | CH194: 0 | CJ194: 0 | CK194: 0 | CL194: 0 | CM194: 0 | CN194: 0 | CO194: 0
A195: 2033-11-01 | B195: 190 | C195: 30000 | D195: 9168409 | E195: 62366 | F195: 0 | G195: -3742 | H195: 0 | I195: -15429 | J195: 30207 | K195: 0 | L195: 0 | M195: 0 | N195: 0 | O195: 0 | P195: 0 | Q195: 0 | R195: 0 | S195: 0 | T195: 9241811 | U195: 0 | V195: 0 | W195: 0 | X195: 0 | Y195: 0 | Z195: 0 | AA195: 0 | AB195: 0 | AC195: 0 | AD195: 0 | AE195: 0 | AF195: 0 | AG195: 0 | AH195: 0 | AI195: 0 | AJ195: 0 | AK195: 219189 | AL195: 0 | AM195: 0 | AN195: 0 | AO195: 0 | AP195: -374 | AQ195: 732 | AR195: 624 | AS195: 3255 | AT195: 624 | AU195: 0 | AV195: 0 | AW195: 0 | AX195: 0 | AY195: 224050 | AZ195: 0 | BA195: 0 | BB195: 0 | BC195: 0 | BD195: 0 | BE195: 0 | BF195: 0 | BG195: 0 | BH195: 0 | BI195: 0 | BJ195: 0 | BK195: 0 | BL195: 0 | BM195: 0 | BN195: 0 | BO195: 0 | BP195: 0 | BQ195: 0 | BR195: 0 | BS195: 0 | BT195: 0 | BU195: 1840193 | BV195: 0 | BW195: -3077 | BX195: 6024 | BY195: 0 | BZ195: 1843140 | CA195: 0 | CC195: 0 | CD195: 0 | CE195: 0 | CF195: 0 | CG195: 0 | CH195: 0 | CJ195: 0 | CK195: 0 | CL195: 0 | CM195: 0 | CN195: 0 | CO195: 0
A196: 2033-12-01 | B196: 191 | C196: 30000 | D196: 9241811 | E196: 62366 | F196: 0 | G196: -3742 | H196: 0 | I196: -15552 | J196: 30447 | K196: 0 | L196: 0 | M196: 0 | N196: 0 | O196: 0 | P196: 19243 | Q196: 0 | R196: 0 | S196: 0 | T196: 9334573 | U196: 0 | V196: 0 | W196: 0 | X196: 0 | Y196: 0 | Z196: 0 | AA196: 0 | AB196: 0 | AC196: 0 | AD196: 0 | AE196: 0 | AF196: 0 | AG196: 0 | AH196: 0 | AI196: 0 | AJ196: 0 | AK196: 224050 | AL196: 0 | AM196: 0 | AN196: 0 | AO196: 0 | AP196: -382 | AQ196: 748 | AR196: 624 | AS196: 3255 | AT196: 624 | AU196: 0 | AV196: 0 | AW196: 0 | AX196: 0 | AY196: 228919 | AZ196: 0 | BA196: 0 | BB196: 0 | BC196: 0 | BD196: 0 | BE196: 0 | BF196: 0 | BG196: 0 | BH196: 0 | BI196: 0 | BJ196: 0 | BK196: 0 | BL196: 0 | BM196: 0 | BN196: 0 | BO196: 0 | BP196: 0 | BQ196: 0 | BR196: 0 | BS196: 0 | BT196: 0 | BU196: 1843140 | BV196: 0 | BW196: -3082 | BX196: 6034 | BY196: 3824 | BZ196: 1849916 | CA196: 0 | CC196: 0 | CD196: 0 | CE196: 0 | CF196: 0 | CG196: 0 | CH196: 0 | CJ196: 0 | CK196: 0 | CL196: 0 | CM196: 0 | CN196: 0 | CO196: 0
A197: 2034-01-01 | B197: 192 | C197: 30000 | D197: 9334573 | E197: 62366 | F197: 0 | G197: -3742 | H197: 0 | I197: -15707 | J197: 30751 | K197: 0 | L197: 0 | M197: 0 | N197: 0 | O197: 0 | P197: 0 | Q197: 0 | R197: 0 | S197: 0 | T197: 9408241 | U197: 0 | V197: 0 | W197: 0 | X197: 0 | Y197: 0 | Z197: 0 | AA197: 0 | AB197: 0 | AC197: 0 | AD197: 0 | AE197: 0 | AF197: 0 | AG197: 0 | AH197: 0 | AI197: 0 | AJ197: 0 | AK197: 228919 | AL197: 0 | AM197: 0 | AN197: 0 | AO197: 0 | AP197: -390 | AQ197: 764 | AR197: 624 | AS197: 3255 | AT197: 624 | AU197: 0 | AV197: 0 | AW197: 0 | AX197: 0 | AY197: 233796 | AZ197: 0 | BA197: 0 | BB197: 0 | BC197: 0 | BD197: 0 | BE197: 0 | BF197: 0 | BG197: 0 | BH197: 0 | BI197: 0 | BJ197: 0 | BK197: 0 | BL197: 0 | BM197: 0 | BN197: 0 | BO197: 0 | BP197: 0 | BQ197: 0 | BR197: 0 | BS197: 0 | BT197: 0 | BU197: 1849916 | BV197: 0 | BW197: -3093 | BX197: 6056 | BY197: 0 | BZ197: 1852879 | CA197: 0 | CC197: 0 | CD197: 0 | CE197: 0 | CF197: 0 | CG197: 0 | CH197: 0 | CJ197: 0 | CK197: 0 | CL197: 0 | CM197: 0 | CN197: 0 | CO197: 0
A198: 2034-02-01 | B198: 193 | C198: 30000 | D198: 9408241 | E198: 65484 | F198: 0 | G198: -3929 | H198: 0 | I198: -15835 | J198: 31002 | K198: 0 | L198: 0 | M198: 0 | N198: 0 | O198: 0 | P198: 0 | Q198: 0 | R198: 0 | S198: 0 | T198: 9484963 | U198: 0 | V198: 0 | W198: 0 | X198: 0 | Y198: 0 | Z198: 0 | AA198: 0 | AB198: 0 | AC198: 0 | AD198: 0 | AE198: 0 | AF198: 0 | AG198: 0 | AH198: 0 | AI198: 0 | AJ198: 0 | AK198: 233796 | AL198: 0 | AM198: 0 | AN198: 0 | AO198: 0 | AP198: -399 | AQ198: 780 | AR198: 655 | AS198: 3255 | AT198: 655 | AU198: 0 | AV198: 0 | AW198: 0 | AX198: 0 | AY198: 238742 | AZ198: 0 | BA198: 0 | BB198: 0 | BC198: 0 | BD198: 0 | BE198: 0 | BF198: 0 | BG198: 0 | BH198: 0 | BI198: 0 | BJ198: 0 | BK198: 0 | BL198: 0 | BM198: 0 | BN198: 0 | BO198: 0 | BP198: 0 | BQ198: 0 | BR198: 0 | BS198: 0 | BT198: 0 | BU198: 1852879 | BV198: 0 | BW198: -3098 | BX198: 6066 | BY198: 0 | BZ198: 1855847 | CA198: 0 | CC198: =SUM(D198:S198)-T198 -> 0 | CD198: =SUM(U198:AI198)-AJ198 -> 0 | CE198: =SUM(AK198:AX198)-AY198 -> 0 | CF198: =SUM(BA198:BH198)-BI198 -> 0 | CG198: =SUM(BK198:BR198)-BS198 -> 0 | CH198: =SUM(BU198:BY198)-BZ198 -> 0 | CJ198: 0 | CK198: 0 | CL198: 0 | CM198: 0 | CN198: 0 | CO198: 0
A199: 2034-03-01 | B199: 194 | C199: 30000 | D199: 9484963 | E199: 65484 | F199: 0 | G199: -3929 | H199: 0 | I199: -15963 | J199: 31253 | K199: 0 | L199: 0 | M199: 0 | N199: 0 | O199: 0 | P199: 19773 | Q199: 0 | R199: 0 | S199: 0 | T199: 9581581 | U199: 0 | V199: 0 | W199: 0 | X199: 0 | Y199: 0 | Z199: 0 | AA199: 0 | AB199: 0 | AC199: 0 | AD199: 0 | AE199: 0 | AF199: 0 | AG199: 0 | AH199: 0 | AI199: 0 | AJ199: 0 | AK199: 238742 | AL199: 0 | AM199: 0 | AN199: 0 | AO199: 0 | AP199: -407 | AQ199: 797 | AR199: 655 | AS199: 3255 | AT199: 655 | AU199: 0 | AV199: 0 | AW199: 0 | AX199: 0 | AY199: 243697 | AZ199: 0 | BA199: 0 | BB199: 0 | BC199: 0 | BD199: 0 | BE199: 0 | BF199: 0 | BG199: 0 | BH199: 0 | BI199: 0 | BJ199: 0 | BK199: 0 | BL199: 0 | BM199: 0 | BN199: 0 | BO199: 0 | BP199: 0 | BQ199: 0 | BR199: 0 | BS199: 0 | BT199: 0 | BU199: 1855847 | BV199: 0 | BW199: -3103 | BX199: 6076 | BY199: 3850 | BZ199: 1862670 | CA199: 0 | CC199: 0 | CD199: 0 | CE199: 0 | CF199: 0 | CG199: 0 | CH199: 0 | CJ199: =+T198-D199 -> 0 | CK199: =+AJ198-U199 -> 0 | CL199: =+AY198-AK199 -> 0 | CM199: =+BI198-BA199 -> 0 | CN199: =+BS198-BK199 -> 0 | CO199: =+BZ198-BU199 -> 0
A200: 2034-04-01 | B200: 195 | C200: 30000 | D200: 9581581 | E200: 65484 | F200: 0 | G200: -3929 | H200: 0 | I200: -16125 | J200: 31569 | K200: 0 | L200: 0 | M200: 0 | N200: 0 | O200: 0 | P200: 0 | Q200: 0 | R200: 0 | S200: 0 | T200: 9658580 | U200: 0 | V200: 0 | W200: 0 | X200: 0 | Y200: 0 | Z200: 0 | AA200: 0 | AB200: 0 | AC200: 0 | AD200: 0 | AE200: 0 | AF200: 0 | AG200: 0 | AH200: 0 | AI200: 0 | AJ200: 0 | AK200: 243697 | AL200: 0 | AM200: 0 | AN200: 0 | AO200: 0 | AP200: -415 | AQ200: 813 | AR200: 655 | AS200: 3255 | AT200: 655 | AU200: 0 | AV200: 0 | AW200: 0 | AX200: 0 | AY200: 248660 | AZ200: 0 | BA200: 0 | BB200: 0 | BC200: 0 | BD200: 0 | BE200: 0 | BF200: 0 | BG200: 0 | BH200: 0 | BI200: 0 | BJ200: 0 | BK200: 0 | BL200: 0 | BM200: 0 | BN200: 0 | BO200: 0 | BP200: 0 | BQ200: 0 | BR200: 0 | BS200: 0 | BT200: 0 | BU200: 1862670 | BV200: 130000 | BW200: -3332 | BX200: 6523 | BY200: 0 | BZ200: 1995861 | CA200: 0 | CC200: 0 | CD200: 0 | CE200: 0 | CF200: 0 | CG200: 0 | CH200: 0 | CJ200: 0 | CK200: 0 | CL200: 0 | CM200: 0 | CN200: 0 | CO200: 0
... 105 more rows

Sheet oRes (hidden)
A1: oszlop | B1: =+oPool!T1 -> 20 | C1: =+oPool!AJ1 -> 36 | D1: =+oPool!AY1 -> 51 | E1: =+oPool!BI1 -> 61 | F1: =+oPool!BS1 -> 71 | G1: =+oPool!BZ1 -> 78 | H1: =+oPool!Q1 -> 17 | I1: =+oPool!BV1 -> 74 | J1: =+oPool!CA1 -> 79 | K1: =+oPool!C1 -> 3 | L1: =+oPool!E1 -> 5
A2: típus | B2: 1 | C2: 1 | D2: 1 | E2: 1 | F2: 1 | G2: 1 | H2: 0 | I2: 0 | J2: 1 | K2: 0 | L2: 0
A3: sorszám | B3: 2 | C3: 3 | D3: 4 | E3: 5 | F3: 6 | G3: 7 | H3: 8 | I3: 9 | J3: 10 | K3: 11 | L3: 12
A4: utolsó adó. | B4: 165980
B5: aktuális tőkeértékek | H5: bónusz | I5: adójóváírás | K5: díjak
A6: bizt.év | B6: alap (NYC) | C6: alap (nNYC) | D6: lojalitás | E6: eseti (NYC) | F6: eseti (nNYC) | G6: adó-jóváírás | H6: fel-szabadítás | I6: jóváírás | J6: vissza +20% | K6: index nélkül | L6: indexszel
A7: 1 | B7: 73719 | C7: 0 | D7: 7278 | E7: 0 | F7: 0 | G7: 0 | H7: 0 | I7: 0 | J7: 0 | K7: 360000 | L7: 360000
A8: 2 | B8: 270813 | C8: 0 | D8: 15058 | E8: 0 | F8: 0 | G8: 67341 | H8: 0 | I8: 66000 | J8: 0 | K8: 360000 | L8: 378000
A9: 3 | B9: 609071 | C9: 0 | D9: 23376 | E9: 0 | F9: 0 | G9: 146044 | H9: 0 | I9: 75300 | J9: 0 | K9: 360000 | L9: 396900
A10: 4 | B10: 1022798 | C10: 0 | D10: 56920 | E10: 0 | F10: 0 | G10: 230773 | H10: 0 | I10: 79065 | J10: 0 | K10: 360000 | L10: 416748
A11: 5 | B11: 1468116 | C11: 0 | D11: 91551 | E11: 0 | F11: 0 | G11: 321893 | H11: 0 | I11: 83019 | J11: 0 | K11: 360000 | L11: 437580
A12: 6 | B12: 1946921 | C12: 0 | D12: 127289 | E12: 0 | F12: 0 | G12: 419782 | H12: 0 | I12: 87169 | J12: 0 | K12: 360000 | L12: 459456
A13: 7 | B13: 2461235 | C13: 0 | D13: 164180 | E13: 0 | F13: 0 | G13: 524845 | H13: 0 | I13: 91527 | J13: 0 | K13: 360000 | L13: 482424
A14: 8 | B14: 3013048 | C14: 0 | D14: 202274 | E14: 0 | F14: 0 | G14: 637488 | H14: 0 | I14: 96102 | J14: 0 | K14: 360000 | L14: 506544
A15: 9 | B15: 3604632 | C15: 0 | D15: 241616 | E15: 0 | F15: 0 | G15: 758165 | H15: 0 | I15: 100907 | J15: 0 | K15: 360000 | L15: 531876
A16: 10 | B16: 4379417 | C16: 0 | D16: 141127 | E16: 0 | F16: 0 | G16: 887341 | H16: 141128 | I16: 105953 | J16: 0 | K16: 360000 | L16: 558468
A17: 11 | B17: 5060432 | C17: 0 | D17: 180398 | E17: 0 | F17: 0 | G17: 1025535 | H17: 0 | I17: 111250 | J17: 0 | K17: 360000 | L17: 586392
A18: 12 | B18: 5788490 | C18: 0 | D18: 221014 | E18: 0 | F18: 0 | G18: 1173227 | H18: 0 | I18: 116813 | J18: 0 | K18: 360000 | L18: 615708
A19: 13 | B19: 6566425 | C19: 0 | D19: 263047 | E19: 0 | F19: 0 | G19: 1330979 | H19: 0 | I19: 122653 | J19: 0 | K19: 360000 | L19: 646488
A20: 14 | B20: 7397090 | C20: 0 | D20: 306551 | E20: 0 | F20: 0 | G20: 1499371 | H20: 0 | I20: 128785 | J20: 0 | K20: 360000 | L20: 678816
A21: 15 | B21: 8459463 | C21: 0 | D21: 175787 | E21: 0 | F21: 0 | G21: 1673720 | H21: 175788 | I21: 130000 | J21: 0 | K21: 360000 | L21: 712752
A22: 16 | B22: 9408241 | C22: 0 | D22: 233796 | E22: 0 | F22: 0 | G22: 1852879 | H22: 0 | I22: 130000 | J22: 0 | K22: 360000 | L22: 748392
A23: 17 | B23: 10419474 | C23: 0 | D23: 293684 | E23: 0 | F23: 0 | G23: 2037017 | H23: 0 | I23: 130000 | J23: 0 | K23: 360000 | L23: 785808
A24: 18 | B24: 11496701 | C24: 0 | D24: 355532 | E24: 0 | F24: 0 | G24: 2226271 | H24: 0 | I24: 130000 | J24: 0 | K24: 360000 | L24: 825096
A25: 19 | B25: 12643912 | C25: 0 | D25: 419406 | E25: 0 | F25: 0 | G25: 2420838 | H25: 0 | I25: 130000 | J25: 0 | K25: 360000 | L25: 866352
A26: 20 | B26: 14107191 | C26: 0 | D26: 242693 | E26: 0 | F26: 0 | G26: 2620762 | H26: 242694 | I26: 130000 | J26: 0 | K26: 360000 | L26: 909672
A27: 21 | B27: 15410143 | C27: 0 | D27: 266704 | E27: 0 | F27: 0 | G27: 2826245 | H27: 0 | I27: 130000 | J27: 0 | K27: 360000 | L27: 955152
A28: 22 | B28: 16794969 | C28: 0 | D28: 292149 | E28: 0 | F28: 0 | G28: 3037437 | H28: 0 | I28: 130000 | J28: 0 | K28: 360000 | L28: 1002912
A29: 23 | B29: 18266619 | C29: 0 | D29: 319106 | E29: 0 | F29: 0 | G29: 3254570 | H29: 0 | I29: 130000 | J29: 0 | K29: 360000 | L29: 1053060
A30: 24 | B30: 18429219 | C30: 0 | D30: 322277 | E30: 0 | F30: 0 | G30: 3268045 | H30: 0 | I30: 0 | J30: 0 | K30: 30000 | L30: 92143
